Workbook

Sheet Pulldown (hidden)
A1: within $500,000 | B1: 請選擇 | C1: Monthly-rated | D1: For monthly-rated (最後一個月工資／12個月的平均工資) | E1: SP(>2years) | F1: Please Select | G1: MC -> VC | H1: Yes
A2: beyond $500,000 | B2: MPF | C2: Non monthly-rated | D2: For non-monthly rated (18天的工資總和／12個月每日平均工資的18倍) | E2: LSP(>5years) | F2: SP | G2: VC -> MC | H2: No
B3: ORS | F3: LSP

Sheet Subsidy (hidden)
A1: Subsidy year | B1: 僱主每年遣散費／長服金 支出總額首500,000元的個案 | C1: 封頂金額 | D1: 僱主每年遣散費／長服金 支出總額超過首500,000元的個案
A2: 1 | B2: 0.5 | C2: 3000 | D2: 0.5 | F2: 50% or the amount in excess of the cap of 3,000 (whichever is more) | G2: 0.5
A3: 2 | B3: 0.5 | C3: 3000 | D3: 0.5 | F3: 50% or the amount in excess of the cap of 3,000 (whichever is more) | G3: 0.5
A4: 3 | B4: 0.5 | C4: 3000 | D4: 0.5 | F4: 50% or the amount in excess of the cap of 3,000 (whichever is more) | G4: 0.5
A5: 4 | B5: 0.45 | C5: 25000 | D5: 0.45 | F5: 45% or the amount in excess of the cap of 25,000 (whichever is more) | G5: 0.45
A6: 5 | B6: 0.4 | C6: 25000 | D6: 0.4 | F6: 40% or the amount in excess of the cap of 25,000 (whichever is more) | G6: 0.4
A7: 6 | B7: 0.35 | C7: 25000 | D7: 0.35 | F7: 35% or the amount in excess of the cap of 25,000 (whichever is more) | G7: 0.35
A8: 7 | B8: 0.3 | C8: 50000 | D8: 0.3 | F8: 30% or the amount in excess of the cap of 50,000 (whichever is more) | G8: 0.3
A9: 8 | B9: 0.25 | C9: 50000 | D9: 0.25 | F9: 25% or the amount in excess of the cap of 50,000 (whichever is more) | G9: 0.25
A10: 9 | B10: 0.2 | C10: 50000 | D10: 0.2 | F10: 20% or the amount in excess of the cap of 50,000 (whichever is more) | G10: 0.2
A11: 10 | B11: 0.2 | C11: 0 | D11: 0.15 | F11: 0.2 | G11: 0.15
A12: 11 | B12: 0.2 | C12: 0 | D12: 0.1 | F12: 0.2 | G12: 0.1
A13: 12 | B13: 0.15 | C13: 0 | D13: 0.5 | F13: 0.15 | G13: 0.5
A14: 13 | B14: 0.15 | C14: 0 | D14: 0 | F14: 0.15 | G14: 0
A15: 14 | B15: 0.1 | C15: 0 | D15: 0 | F15: 0.1 | G15: 0
A16: 15 | B16: 0.1 | C16: 0 | D16: 0 | F16: 0.1 | G16: 0
A17: 16 | B17: 0.1 | C17: 0 | D17: 0 | F17: 0.1 | G17: 0
A18: 17 | B18: 0.1 | C18: 0 | D18: 0 | F18: 0.1 | G18: 0
A19: 18 | B19: 0.1 | C19: 0 | D19: 0 | F19: 0.1 | G19: 0
A20: 19 | B20: 0.1 | C20: 0 | D20: 0 | F20: 0.1 | G20: 0
A21: 20 | B21: 0.05 | C21: 0 | D21: 0 | F21: 0.05 | G21: 0
A22: 21 | B22: 0.05 | C22: 0 | D22: 0 | F22: 0.05 | G22: 0
A23: 22 | B23: 0.05 | C23: 0 | D23: 0 | F23: 0.05 | G23: 0
A24: 23 | B24: 0.05 | C24: 0 | D24: 0 | F24: 0.05 | G24: 0
A25: 24 | B25: 0.05 | C25: 0 | D25: 0 | F25: 0.05 | G25: 0
A26: 25 | B26: 0.05 | C26: 0 | D26: 0 | F26: 0.05 | G26: 0

Sheet Sort (hidden)
A1: ='EasyCal Excel'!A10 -> 1 | B1: ='EasyCal Excel'!B10 -> 0 | C1: ='EasyCal Excel'!C10 -> Please Select | D1: ='EasyCal Excel'!F10 -> 00:00:00 | E1: ='EasyCal Excel'!G10 -> 00:00:00 | F1: ='EasyCal Excel'!L10 -> Monthly-rated | G1: ='EasyCal Excel'!O10 -> 0 | H1: ='EasyCal Excel'!P10 -> 0 | I1: ='EasyCal Excel'!AD10 -> 0 | J1: ='EasyCal Excel'!AT10 -> 0 | K1: ='EasyCal Excel'!AU10 -> 0 | L1: ='EasyCal Excel'!AV10 -> MPF | M1: ='EasyCal Excel'!AX10 -> MC -> VC | N1: ='EasyCal Excel'!AZ10 -> 0 | O1: ='EasyCal Excel'!BA10 -> 0 | P1: ='EasyCal Excel'!BB10 -> 0 | Q1: ='EasyCal Excel'!BS10 -> N/A | R1: ='EasyCal Excel'!BU10 -> N/A | S1: ='EasyCal Excel'!BV10 -> No | T1: ='EasyCal Excel'!BY10 -> 0 | U1: ='EasyCal Excel'!BZ10 -> 0 | V1: ='EasyCal Excel'!CA10 -> 0 | W1: ='EasyCal Excel'!CB10 -> 0 | X1: ='EasyCal Excel'!CC10 -> 0 | Y1: ='EasyCal Excel'!CD10 -> 0 | Z1: ='EasyCal Excel'!CH10 -> N/A | AA1: ='EasyCal Excel'!CL10 -> 0 | AB1: ='EasyCal Excel'!CM10 -> N/A | AC1: ='EasyCal Excel'!CO10 -> within $500,000 | AD1: ='EasyCal Excel'!CQ10 -> 0 | AE1: ='EasyCal Excel'!CR10 -> 0 | AF1: ='EasyCal Excel'!CW10 -> 0 | AG1: ='EasyCal Excel'!CX10 -> 0 | AH1: ='EasyCal Excel'!CY10 -> 0 | AI1: ='EasyCal Excel'!CZ10 -> 0 | AJ1: ='EasyCal Excel'!DA10 -> 0 | AK1: ='EasyCal Excel'!DB10 -> 0 | AL1: ='EasyCal Excel'!DC10 -> 0
A2: ='EasyCal Excel'!A11 -> 2 | B2: ='EasyCal Excel'!B11 -> 0 | C2: ='EasyCal Excel'!C11 -> Please Select | D2: ='EasyCal Excel'!F11 -> 00:00:00 | E2: ='EasyCal Excel'!G11 -> 00:00:00 | F2: ='EasyCal Excel'!L11 -> Monthly-rated | G2: ='EasyCal Excel'!O11 -> 0 | H2: ='EasyCal Excel'!P11 -> 0 | I2: ='EasyCal Excel'!AD11 -> 0 | J2: ='EasyCal Excel'!AT11 -> 0 | K2: ='EasyCal Excel'!AU11 -> 0 | L2: ='EasyCal Excel'!AV11 -> MPF | M2: ='EasyCal Excel'!AX11 -> MC -> VC | N2: ='EasyCal Excel'!AZ11 -> 0 | O2: ='EasyCal Excel'!BA11 -> 0 | P2: ='EasyCal Excel'!BB11 -> 0 | Q2: ='EasyCal Excel'!BS11 -> N/A | R2: ='EasyCal Excel'!BU11 -> N/A | S2: ='EasyCal Excel'!BV11 -> No | T2: ='EasyCal Excel'!BY11 -> 0 | U2: ='EasyCal Excel'!BZ11 -> 0 | V2: ='EasyCal Excel'!CA11 -> 0 | W2: ='EasyCal Excel'!CB11 -> 0 | X2: ='EasyCal Excel'!CC11 -> 0 | Y2: ='EasyCal Excel'!CD11 -> 0 | Z2: ='EasyCal Excel'!CH11 -> N/A | AA2: ='EasyCal Excel'!CL11 -> 0 | AB2: ='EasyCal Excel'!CM11 -> N/A | AC2: ='EasyCal Excel'!CO11 -> within $500,000 | AD2: ='EasyCal Excel'!CQ11 -> 0 | AE2: ='EasyCal Excel'!CR11 -> 0 | AF2: ='EasyCal Excel'!CW11 -> 0 | AG2: ='EasyCal Excel'!CX11 -> 0 | AH2: ='EasyCal Excel'!CY11 -> 0 | AI2: ='EasyCal Excel'!CZ11 -> 0 | AJ2: ='EasyCal Excel'!DA11 -> 0 | AK2: ='EasyCal Excel'!DB11 -> 0 | AL2: ='EasyCal Excel'!DC11 -> 0
A3: ='EasyCal Excel'!A12 -> 3 | B3: ='EasyCal Excel'!B12 -> 0 | C3: ='EasyCal Excel'!C12 -> Please Select | D3: ='EasyCal Excel'!F12 -> 00:00:00 | E3: ='EasyCal Excel'!G12 -> 00:00:00 | F3: ='EasyCal Excel'!L12 -> Monthly-rated | G3: ='EasyCal Excel'!O12 -> 0 | H3: ='EasyCal Excel'!P12 -> 0 | I3: ='EasyCal Excel'!AD12 -> 0 | J3: ='EasyCal Excel'!AT12 -> 0 | K3: ='EasyCal Excel'!AU12 -> 0 | L3: ='EasyCal Excel'!AV12 -> MPF | M3: ='EasyCal Excel'!AX12 -> MC -> VC | N3: ='EasyCal Excel'!AZ12 -> 0 | O3: ='EasyCal Excel'!BA12 -> 0 | P3: ='EasyCal Excel'!BB12 -> 0 | Q3: ='EasyCal Excel'!BS12 -> N/A | R3: ='EasyCal Excel'!BU12 -> N/A | S3: ='EasyCal Excel'!BV12 -> No | T3: ='EasyCal Excel'!BY12 -> 0 | U3: ='EasyCal Excel'!BZ12 -> 0 | V3: ='EasyCal Excel'!CA12 -> 0 | W3: ='EasyCal Excel'!CB12 -> 0 | X3: ='EasyCal Excel'!CC12 -> 0 | Y3: ='EasyCal Excel'!CD12 -> 0 | Z3: ='EasyCal Excel'!CH12 -> N/A | AA3: ='EasyCal Excel'!CL12 -> 0 | AB3: ='EasyCal Excel'!CM12 -> N/A | AC3: ='EasyCal Excel'!CO12 -> within $500,000 | AD3: ='EasyCal Excel'!CQ12 -> 0 | AE3: ='EasyCal Excel'!CR12 -> 0 | AF3: ='EasyCal Excel'!CW12 -> 0 | AG3: ='EasyCal Excel'!CX12 -> 0 | AH3: ='EasyCal Excel'!CY12 -> 0 | AI3: ='EasyCal Excel'!CZ12 -> 0 | AJ3: ='EasyCal Excel'!DA12 -> 0 | AK3: ='EasyCal Excel'!DB12 -> 0 | AL3: ='EasyCal Excel'!DC12 -> 0
A4: ='EasyCal Excel'!A13 -> 4 | B4: ='EasyCal Excel'!B13 -> 0 | C4: ='EasyCal Excel'!C13 -> Please Select | D4: ='EasyCal Excel'!F13 -> 00:00:00 | E4: ='EasyCal Excel'!G13 -> 00:00:00 | F4: ='EasyCal Excel'!L13 -> Monthly-rated | G4: ='EasyCal Excel'!O13 -> 0 | H4: ='EasyCal Excel'!P13 -> 0 | I4: ='EasyCal Excel'!AD13 -> 0 | J4: ='EasyCal Excel'!AT13 -> 0 | K4: ='EasyCal Excel'!AU13 -> 0 | L4: ='EasyCal Excel'!AV13 -> MPF | M4: ='EasyCal Excel'!AX13 -> MC -> VC | N4: ='EasyCal Excel'!AZ13 -> 0 | O4: ='EasyCal Excel'!BA13 -> 0 | P4: ='EasyCal Excel'!BB13 -> 0 | Q4: ='EasyCal Excel'!BS13 -> N/A | R4: ='EasyCal Excel'!BU13 -> N/A | S4: ='EasyCal Excel'!BV13 -> No | T4: ='EasyCal Excel'!BY13 -> 0 | U4: ='EasyCal Excel'!BZ13 -> 0 | V4: ='EasyCal Excel'!CA13 -> 0 | W4: ='EasyCal Excel'!CB13 -> 0 | X4: ='EasyCal Excel'!CC13 -> 0 | Y4: ='EasyCal Excel'!CD13 -> 0 | Z4: ='EasyCal Excel'!CH13 -> N/A | AA4: ='EasyCal Excel'!CL13 -> 0 | AB4: ='EasyCal Excel'!CM13 -> N/A | AC4: ='EasyCal Excel'!CO13 -> within $500,000 | AD4: ='EasyCal Excel'!CQ13 -> 0 | AE4: ='EasyCal Excel'!CR13 -> 0 | AF4: ='EasyCal Excel'!CW13 -> 0 | AG4: ='EasyCal Excel'!CX13 -> 0 | AH4: ='EasyCal Excel'!CY13 -> 0 | AI4: ='EasyCal Excel'!CZ13 -> 0 | AJ4: ='EasyCal Excel'!DA13 -> 0 | AK4: ='EasyCal Excel'!DB13 -> 0 | AL4: ='EasyCal Excel'!DC13 -> 0
A5: ='EasyCal Excel'!A14 -> 5 | B5: ='EasyCal Excel'!B14 -> 0 | C5: ='EasyCal Excel'!C14 -> Please Select | D5: ='EasyCal Excel'!F14 -> 00:00:00 | E5: ='EasyCal Excel'!G14 -> 00:00:00 | F5: ='EasyCal Excel'!L14 -> Monthly-rated | G5: ='EasyCal Excel'!O14 -> 0 | H5: ='EasyCal Excel'!P14 -> 0 | I5: ='EasyCal Excel'!AD14 -> 0 | J5: ='EasyCal Excel'!AT14 -> 0 | K5: ='EasyCal Excel'!AU14 -> 0 | L5: ='EasyCal Excel'!AV14 -> MPF | M5: ='EasyCal Excel'!AX14 -> MC -> VC | N5: ='EasyCal Excel'!AZ14 -> 0 | O5: ='EasyCal Excel'!BA14 -> 0 | P5: ='EasyCal Excel'!BB14 -> 0 | Q5: ='EasyCal Excel'!BS14 -> N/A | R5: ='EasyCal Excel'!BU14 -> N/A | S5: ='EasyCal Excel'!BV14 -> No | T5: ='EasyCal Excel'!BY14 -> 0 | U5: ='EasyCal Excel'!BZ14 -> 0 | V5: ='EasyCal Excel'!CA14 -> 0 | W5: ='EasyCal Excel'!CB14 -> 0 | X5: ='EasyCal Excel'!CC14 -> 0 | Y5: ='EasyCal Excel'!CD14 -> 0 | Z5: ='EasyCal Excel'!CH14 -> N/A | AA5: ='EasyCal Excel'!CL14 -> 0 | AB5: ='EasyCal Excel'!CM14 -> N/A | AC5: ='EasyCal Excel'!CO14 -> within $500,000 | AD5: ='EasyCal Excel'!CQ14 -> 0 | AE5: ='EasyCal Excel'!CR14 -> 0 | AF5: ='EasyCal Excel'!CW14 -> 0 | AG5: ='EasyCal Excel'!CX14 -> 0 | AH5: ='EasyCal Excel'!CY14 -> 0 | AI5: ='EasyCal Excel'!CZ14 -> 0 | AJ5: ='EasyCal Excel'!DA14 -> 0 | AK5: ='EasyCal Excel'!DB14 -> 0 | AL5: ='EasyCal Excel'!DC14 -> 0
A6: ='EasyCal Excel'!A15 -> 6 | B6: ='EasyCal Excel'!B15 -> 0 | C6: ='EasyCal Excel'!C15 -> Please Select | D6: ='EasyCal Excel'!F15 -> 00:00:00 | E6: ='EasyCal Excel'!G15 -> 00:00:00 | F6: ='EasyCal Excel'!L15 -> Monthly-rated | G6: ='EasyCal Excel'!O15 -> 0 | H6: ='EasyCal Excel'!P15 -> 0 | I6: ='EasyCal Excel'!AD15 -> 0 | J6: ='EasyCal Excel'!AT15 -> 0 | K6: ='EasyCal Excel'!AU15 -> 0 | L6: ='EasyCal Excel'!AV15 -> MPF | M6: ='EasyCal Excel'!AX15 -> MC -> VC | N6: ='EasyCal Excel'!AZ15 -> 0 | O6: ='EasyCal Excel'!BA15 -> 0 | P6: ='EasyCal Excel'!BB15 -> 0 | Q6: ='EasyCal Excel'!BS15 -> N/A | R6: ='EasyCal Excel'!BU15 -> N/A | S6: ='EasyCal Excel'!BV15 -> No | T6: ='EasyCal Excel'!BY15 -> 0 | U6: ='EasyCal Excel'!BZ15 -> 0 | V6: ='EasyCal Excel'!CA15 -> 0 | W6: ='EasyCal Excel'!CB15 -> 0 | X6: ='EasyCal Excel'!CC15 -> 0 | Y6: ='EasyCal Excel'!CD15 -> 0 | Z6: ='EasyCal Excel'!CH15 -> N/A | AA6: ='EasyCal Excel'!CL15 -> 0 | AB6: ='EasyCal Excel'!CM15 -> N/A | AC6: ='EasyCal Excel'!CO15 -> within $500,000 | AD6: ='EasyCal Excel'!CQ15 -> 0 | AE6: ='EasyCal Excel'!CR15 -> 0 | AF6: ='EasyCal Excel'!CW15 -> 0 | AG6: ='EasyCal Excel'!CX15 -> 0 | AH6: ='EasyCal Excel'!CY15 -> 0 | AI6: ='EasyCal Excel'!CZ15 -> 0 | AJ6: ='EasyCal Excel'!DA15 -> 0 | AK6: ='EasyCal Excel'!DB15 -> 0 | AL6: ='EasyCal Excel'!DC15 -> 0
A7: ='EasyCal Excel'!A16 -> 7 | B7: ='EasyCal Excel'!B16 -> 0 | C7: ='EasyCal Excel'!C16 -> Please Select | D7: ='EasyCal Excel'!F16 -> 00:00:00 | E7: ='EasyCal Excel'!G16 -> 00:00:00 | F7: ='EasyCal Excel'!L16 -> Monthly-rated | G7: ='EasyCal Excel'!O16 -> 0 | H7: ='EasyCal Excel'!P16 -> 0 | I7: ='EasyCal Excel'!AD16 -> 0 | J7: ='EasyCal Excel'!AT16 -> 0 | K7: ='EasyCal Excel'!AU16 -> 0 | L7: ='EasyCal Excel'!AV16 -> MPF | M7: ='EasyCal Excel'!AX16 -> MC -> VC | N7: ='EasyCal Excel'!AZ16 -> 0 | O7: ='EasyCal Excel'!BA16 -> 0 | P7: ='EasyCal Excel'!BB16 -> 0 | Q7: ='EasyCal Excel'!BS16 -> N/A | R7: ='EasyCal Excel'!BU16 -> N/A | S7: ='EasyCal Excel'!BV16 -> No | T7: ='EasyCal Excel'!BY16 -> 0 | U7: ='EasyCal Excel'!BZ16 -> 0 | V7: ='EasyCal Excel'!CA16 -> 0 | W7: ='EasyCal Excel'!CB16 -> 0 | X7: ='EasyCal Excel'!CC16 -> 0 | Y7: ='EasyCal Excel'!CD16 -> 0 | Z7: ='EasyCal Excel'!CH16 -> N/A | AA7: ='EasyCal Excel'!CL16 -> 0 | AB7: ='EasyCal Excel'!CM16 -> N/A | AC7: ='EasyCal Excel'!CO16 -> within $500,000 | AD7: ='EasyCal Excel'!CQ16 -> 0 | AE7: ='EasyCal Excel'!CR16 -> 0 | AF7: ='EasyCal Excel'!CW16 -> 0 | AG7: ='EasyCal Excel'!CX16 -> 0 | AH7: ='EasyCal Excel'!CY16 -> 0 | AI7: ='EasyCal Excel'!CZ16 -> 0 | AJ7: ='EasyCal Excel'!DA16 -> 0 | AK7: ='EasyCal Excel'!DB16 -> 0 | AL7: ='EasyCal Excel'!DC16 -> 0
A8: ='EasyCal Excel'!A17 -> 8 | B8: ='EasyCal Excel'!B17 -> 0 | C8: ='EasyCal Excel'!C17 -> Please Select | D8: ='EasyCal Excel'!F17 -> 00:00:00 | E8: ='EasyCal Excel'!G17 -> 00:00:00 | F8: ='EasyCal Excel'!L17 -> Monthly-rated | G8: ='EasyCal Excel'!O17 -> 0 | H8: ='EasyCal Excel'!P17 -> 0 | I8: ='EasyCal Excel'!AD17 -> 0 | J8: ='EasyCal Excel'!AT17 -> 0 | K8: ='EasyCal Excel'!AU17 -> 0 | L8: ='EasyCal Excel'!AV17 -> MPF | M8: ='EasyCal Excel'!AX17 -> MC -> VC | N8: ='EasyCal Excel'!AZ17 -> 0 | O8: ='EasyCal Excel'!BA17 -> 0 | P8: ='EasyCal Excel'!BB17 -> 0 | Q8: ='EasyCal Excel'!BS17 -> N/A | R8: ='EasyCal Excel'!BU17 -> N/A | S8: ='EasyCal Excel'!BV17 -> No | T8: ='EasyCal Excel'!BY17 -> 0 | U8: ='EasyCal Excel'!BZ17 -> 0 | V8: ='EasyCal Excel'!CA17 -> 0 | W8: ='EasyCal Excel'!CB17 -> 0 | X8: ='EasyCal Excel'!CC17 -> 0 | Y8: ='EasyCal Excel'!CD17 -> 0 | Z8: ='EasyCal Excel'!CH17 -> N/A | AA8: ='EasyCal Excel'!CL17 -> 0 | AB8: ='EasyCal Excel'!CM17 -> N/A | AC8: ='EasyCal Excel'!CO17 -> within $500,000 | AD8: ='EasyCal Excel'!CQ17 -> 0 | AE8: ='EasyCal Excel'!CR17 -> 0 | AF8: ='EasyCal Excel'!CW17 -> 0 | AG8: ='EasyCal Excel'!CX17 -> 0 | AH8: ='EasyCal Excel'!CY17 -> 0 | AI8: ='EasyCal Excel'!CZ17 -> 0 | AJ8: ='EasyCal Excel'!DA17 -> 0 | AK8: ='EasyCal Excel'!DB17 -> 0 | AL8: ='EasyCal Excel'!DC17 -> 0
A9: ='EasyCal Excel'!A18 -> 9 | B9: ='EasyCal Excel'!B18 -> 0 | C9: ='EasyCal Excel'!C18 -> Please Select | D9: ='EasyCal Excel'!F18 -> 00:00:00 | E9: ='EasyCal Excel'!G18 -> 00:00:00 | F9: ='EasyCal Excel'!L18 -> Monthly-rated | G9: ='EasyCal Excel'!O18 -> 0 | H9: ='EasyCal Excel'!P18 -> 0 | I9: ='EasyCal Excel'!AD18 -> 0 | J9: ='EasyCal Excel'!AT18 -> 0 | K9: ='EasyCal Excel'!AU18 -> 0 | L9: ='EasyCal Excel'!AV18 -> MPF | M9: ='EasyCal Excel'!AX18 -> MC -> VC | N9: ='EasyCal Excel'!AZ18 -> 0 | O9: ='EasyCal Excel'!BA18 -> 0 | P9: ='EasyCal Excel'!BB18 -> 0 | Q9: ='EasyCal Excel'!BS18 -> N/A | R9: ='EasyCal Excel'!BU18 -> N/A | S9: ='EasyCal Excel'!BV18 -> No | T9: ='EasyCal Excel'!BY18 -> 0 | U9: ='EasyCal Excel'!BZ18 -> 0 | V9: ='EasyCal Excel'!CA18 -> 0 | W9: ='EasyCal Excel'!CB18 -> 0 | X9: ='EasyCal Excel'!CC18 -> 0 | Y9: ='EasyCal Excel'!CD18 -> 0 | Z9: ='EasyCal Excel'!CH18 -> N/A | AA9: ='EasyCal Excel'!CL18 -> 0 | AB9: ='EasyCal Excel'!CM18 -> N/A | AC9: ='EasyCal Excel'!CO18 -> within $500,000 | AD9: ='EasyCal Excel'!CQ18 -> 0 | AE9: ='EasyCal Excel'!CR18 -> 0 | AF9: ='EasyCal Excel'!CW18 -> 0 | AG9: ='EasyCal Excel'!CX18 -> 0 | AH9: ='EasyCal Excel'!CY18 -> 0 | AI9: ='EasyCal Excel'!CZ18 -> 0 | AJ9: ='EasyCal Excel'!DA18 -> 0 | AK9: ='EasyCal Excel'!DB18 -> 0 | AL9: ='EasyCal Excel'!DC18 -> 0
A10: ='EasyCal Excel'!A19 -> 10 | B10: ='EasyCal Excel'!B19 -> 0 | C10: ='EasyCal Excel'!C19 -> Please Select | D10: ='EasyCal Excel'!F19 -> 00:00:00 | E10: ='EasyCal Excel'!G19 -> 00:00:00 | F10: ='EasyCal Excel'!L19 -> Monthly-rated | G10: ='EasyCal Excel'!O19 -> 0 | H10: ='EasyCal Excel'!P19 -> 0 | I10: ='EasyCal Excel'!AD19 -> 0 | J10: ='EasyCal Excel'!AT19 -> 0 | K10: ='EasyCal Excel'!AU19 -> 0 | L10: ='EasyCal Excel'!AV19 -> MPF | M10: ='EasyCal Excel'!AX19 -> MC -> VC | N10: ='EasyCal Excel'!AZ19 -> 0 | O10: ='EasyCal Excel'!BA19 -> 0 | P10: ='EasyCal Excel'!BB19 -> 0 | Q10: ='EasyCal Excel'!BS19 -> N/A | R10: ='EasyCal Excel'!BU19 -> N/A | S10: ='EasyCal Excel'!BV19 -> No | T10: ='EasyCal Excel'!BY19 -> 0 | U10: ='EasyCal Excel'!BZ19 -> 0 | V10: ='EasyCal Excel'!CA19 -> 0 | W10: ='EasyCal Excel'!CB19 -> 0 | X10: ='EasyCal Excel'!CC19 -> 0 | Y10: ='EasyCal Excel'!CD19 -> 0 | Z10: ='EasyCal Excel'!CH19 -> N/A | AA10: ='EasyCal Excel'!CL19 -> 0 | AB10: ='EasyCal Excel'!CM19 -> N/A | AC10: ='EasyCal Excel'!CO19 -> within $500,000 | AD10: ='EasyCal Excel'!CQ19 -> 0 | AE10: ='EasyCal Excel'!CR19 -> 0 | AF10: ='EasyCal Excel'!CW19 -> 0 | AG10: ='EasyCal Excel'!CX19 -> 0 | AH10: ='EasyCal Excel'!CY19 -> 0 | AI10: ='EasyCal Excel'!CZ19 -> 0 | AJ10: ='EasyCal Excel'!DA19 -> 0 | AK10: ='EasyCal Excel'!DB19 -> 0 | AL10: ='EasyCal Excel'!DC19 -> 0
A11: ='EasyCal Excel'!A20 -> 11 | B11: ='EasyCal Excel'!B20 -> 0 | C11: ='EasyCal Excel'!C20 -> Please Select | D11: ='EasyCal Excel'!F20 -> 00:00:00 | E11: ='EasyCal Excel'!G20 -> 00:00:00 | F11: ='EasyCal Excel'!L20 -> Monthly-rated | G11: ='EasyCal Excel'!O20 -> 0 | H11: ='EasyCal Excel'!P20 -> 0 | I11: ='EasyCal Excel'!AD20 -> 0 | J11: ='EasyCal Excel'!AT20 -> 0 | K11: ='EasyCal Excel'!AU20 -> 0 | L11: ='EasyCal Excel'!AV20 -> MPF | M11: ='EasyCal Excel'!AX20 -> MC -> VC | N11: ='EasyCal Excel'!AZ20 -> 0 | O11: ='EasyCal Excel'!BA20 -> 0 | P11: ='EasyCal Excel'!BB20 -> 0 | Q11: ='EasyCal Excel'!BS20 -> N/A | R11: ='EasyCal Excel'!BU20 -> N/A | S11: ='EasyCal Excel'!BV20 -> No | T11: ='EasyCal Excel'!BY20 -> 0 | U11: ='EasyCal Excel'!BZ20 -> 0 | V11: ='EasyCal Excel'!CA20 -> 0 | W11: ='EasyCal Excel'!CB20 -> 0 | X11: ='EasyCal Excel'!CC20 -> 0 | Y11: ='EasyCal Excel'!CD20 -> 0 | Z11: ='EasyCal Excel'!CH20 -> N/A | AA11: ='EasyCal Excel'!CL20 -> 0 | AB11: ='EasyCal Excel'!CM20 -> N/A | AC11: ='EasyCal Excel'!CO20 -> within $500,000 | AD11: ='EasyCal Excel'!CQ20 -> 0 | AE11: ='EasyCal Excel'!CR20 -> 0 | AF11: ='EasyCal Excel'!CW20 -> 0 | AG11: ='EasyCal Excel'!CX20 -> 0 | AH11: ='EasyCal Excel'!CY20 -> 0 | AI11: ='EasyCal Excel'!CZ20 -> 0 | AJ11: ='EasyCal Excel'!DA20 -> 0 | AK11: ='EasyCal Excel'!DB20 -> 0 | AL11: ='EasyCal Excel'!DC20 -> 0
A12: ='EasyCal Excel'!A21 -> 12 | B12: ='EasyCal Excel'!B21 -> 0 | C12: ='EasyCal Excel'!C21 -> Please Select | D12: ='EasyCal Excel'!F21 -> 00:00:00 | E12: ='EasyCal Excel'!G21 -> 00:00:00 | F12: ='EasyCal Excel'!L21 -> Monthly-rated | G12: ='EasyCal Excel'!O21 -> 0 | H12: ='EasyCal Excel'!P21 -> 0 | I12: ='EasyCal Excel'!AD21 -> 0 | J12: ='EasyCal Excel'!AT21 -> 0 | K12: ='EasyCal Excel'!AU21 -> 0 | L12: ='EasyCal Excel'!AV21 -> MPF | M12: ='EasyCal Excel'!AX21 -> MC -> VC | N12: ='EasyCal Excel'!AZ21 -> 0 | O12: ='EasyCal Excel'!BA21 -> 0 | P12: ='EasyCal Excel'!BB21 -> 0 | Q12: ='EasyCal Excel'!BS21 -> N/A | R12: ='EasyCal Excel'!BU21 -> N/A | S12: ='EasyCal Excel'!BV21 -> No | T12: ='EasyCal Excel'!BY21 -> 0 | U12: ='EasyCal Excel'!BZ21 -> 0 | V12: ='EasyCal Excel'!CA21 -> 0 | W12: ='EasyCal Excel'!CB21 -> 0 | X12: ='EasyCal Excel'!CC21 -> 0 | Y12: ='EasyCal Excel'!CD21 -> 0 | Z12: ='EasyCal Excel'!CH21 -> N/A | AA12: ='EasyCal Excel'!CL21 -> 0 | AB12: ='EasyCal Excel'!CM21 -> N/A | AC12: ='EasyCal Excel'!CO21 -> within $500,000 | AD12: ='EasyCal Excel'!CQ21 -> 0 | AE12: ='EasyCal Excel'!CR21 -> 0 | AF12: ='EasyCal Excel'!CW21 -> 0 | AG12: ='EasyCal Excel'!CX21 -> 0 | AH12: ='EasyCal Excel'!CY21 -> 0 | AI12: ='EasyCal Excel'!CZ21 -> 0 | AJ12: ='EasyCal Excel'!DA21 -> 0 | AK12: ='EasyCal Excel'!DB21 -> 0 | AL12: ='EasyCal Excel'!DC21 -> 0
A13: ='EasyCal Excel'!A22 -> 13 | B13: ='EasyCal Excel'!B22 -> 0 | C13: ='EasyCal Excel'!C22 -> Please Select | D13: ='EasyCal Excel'!F22 -> 00:00:00 | E13: ='EasyCal Excel'!G22 -> 00:00:00 | F13: ='EasyCal Excel'!L22 -> Monthly-rated | G13: ='EasyCal Excel'!O22 -> 0 | H13: ='EasyCal Excel'!P22 -> 0 | I13: ='EasyCal Excel'!AD22 -> 0 | J13: ='EasyCal Excel'!AT22 -> 0 | K13: ='EasyCal Excel'!AU22 -> 0 | L13: ='EasyCal Excel'!AV22 -> MPF | M13: ='EasyCal Excel'!AX22 -> MC -> VC | N13: ='EasyCal Excel'!AZ22 -> 0 | O13: ='EasyCal Excel'!BA22 -> 0 | P13: ='EasyCal Excel'!BB22 -> 0 | Q13: ='EasyCal Excel'!BS22 -> N/A | R13: ='EasyCal Excel'!BU22 -> N/A | S13: ='EasyCal Excel'!BV22 -> No | T13: ='EasyCal Excel'!BY22 -> 0 | U13: ='EasyCal Excel'!BZ22 -> 0 | V13: ='EasyCal Excel'!CA22 -> 0 | W13: ='EasyCal Excel'!CB22 -> 0 | X13: ='EasyCal Excel'!CC22 -> 0 | Y13: ='EasyCal Excel'!CD22 -> 0 | Z13: ='EasyCal Excel'!CH22 -> N/A | AA13: ='EasyCal Excel'!CL22 -> 0 | AB13: ='EasyCal Excel'!CM22 -> N/A | AC13: ='EasyCal Excel'!CO22 -> within $500,000 | AD13: ='EasyCal Excel'!CQ22 -> 0 | AE13: ='EasyCal Excel'!CR22 -> 0 | AF13: ='EasyCal Excel'!CW22 -> 0 | AG13: ='EasyCal Excel'!CX22 -> 0 | AH13: ='EasyCal Excel'!CY22 -> 0 | AI13: ='EasyCal Excel'!CZ22 -> 0 | AJ13: ='EasyCal Excel'!DA22 -> 0 | AK13: ='EasyCal Excel'!DB22 -> 0 | AL13: ='EasyCal Excel'!DC22 -> 0
A14: ='EasyCal Excel'!A23 -> 14 | B14: ='EasyCal Excel'!B23 -> 0 | C14: ='EasyCal Excel'!C23 -> Please Select | D14: ='EasyCal Excel'!F23 -> 00:00:00 | E14: ='EasyCal Excel'!G23 -> 00:00:00 | F14: ='EasyCal Excel'!L23 -> Monthly-rated | G14: ='EasyCal Excel'!O23 -> 0 | H14: ='EasyCal Excel'!P23 -> 0 | I14: ='EasyCal Excel'!AD23 -> 0 | J14: ='EasyCal Excel'!AT23 -> 0 | K14: ='EasyCal Excel'!AU23 -> 0 | L14: ='EasyCal Excel'!AV23 -> MPF | M14: ='EasyCal Excel'!AX23 -> MC -> VC | N14: ='EasyCal Excel'!AZ23 -> 0 | O14: ='EasyCal Excel'!BA23 -> 0 | P14: ='EasyCal Excel'!BB23 -> 0 | Q14: ='EasyCal Excel'!BS23 -> N/A | R14: ='EasyCal Excel'!BU23 -> N/A | S14: ='EasyCal Excel'!BV23 -> No | T14: ='EasyCal Excel'!BY23 -> 0 | U14: ='EasyCal Excel'!BZ23 -> 0 | V14: ='EasyCal Excel'!CA23 -> 0 | W14: ='EasyCal Excel'!CB23 -> 0 | X14: ='EasyCal Excel'!CC23 -> 0 | Y14: ='EasyCal Excel'!CD23 -> 0 | Z14: ='EasyCal Excel'!CH23 -> N/A | AA14: ='EasyCal Excel'!CL23 -> 0 | AB14: ='EasyCal Excel'!CM23 -> N/A | AC14: ='EasyCal Excel'!CO23 -> within $500,000 | AD14: ='EasyCal Excel'!CQ23 -> 0 | AE14: ='EasyCal Excel'!CR23 -> 0 | AF14: ='EasyCal Excel'!CW23 -> 0 | AG14: ='EasyCal Excel'!CX23 -> 0 | AH14: ='EasyCal Excel'!CY23 -> 0 | AI14: ='EasyCal Excel'!CZ23 -> 0 | AJ14: ='EasyCal Excel'!DA23 -> 0 | AK14: ='EasyCal Excel'!DB23 -> 0 | AL14: ='EasyCal Excel'!DC23 -> 0
A15: ='EasyCal Excel'!A24 -> 15 | B15: ='EasyCal Excel'!B24 -> 0 | C15: ='EasyCal Excel'!C24 -> Please Select | D15: ='EasyCal Excel'!F24 -> 00:00:00 | E15: ='EasyCal Excel'!G24 -> 00:00:00 | F15: ='EasyCal Excel'!L24 -> Monthly-rated | G15: ='EasyCal Excel'!O24 -> 0 | H15: ='EasyCal Excel'!P24 -> 0 | I15: ='EasyCal Excel'!AD24 -> 0 | J15: ='EasyCal Excel'!AT24 -> 0 | K15: ='EasyCal Excel'!AU24 -> 0 | L15: ='EasyCal Excel'!AV24 -> MPF | M15: ='EasyCal Excel'!AX24 -> MC -> VC | N15: ='EasyCal Excel'!AZ24 -> 0 | O15: ='EasyCal Excel'!BA24 -> 0 | P15: ='EasyCal Excel'!BB24 -> 0 | Q15: ='EasyCal Excel'!BS24 -> N/A | R15: ='EasyCal Excel'!BU24 -> N/A | S15: ='EasyCal Excel'!BV24 -> No | T15: ='EasyCal Excel'!BY24 -> 0 | U15: ='EasyCal Excel'!BZ24 -> 0 | V15: ='EasyCal Excel'!CA24 -> 0 | W15: ='EasyCal Excel'!CB24 -> 0 | X15: ='EasyCal Excel'!CC24 -> 0 | Y15: ='EasyCal Excel'!CD24 -> 0 | Z15: ='EasyCal Excel'!CH24 -> N/A | AA15: ='EasyCal Excel'!CL24 -> 0 | AB15: ='EasyCal Excel'!CM24 -> N/A | AC15: ='EasyCal Excel'!CO24 -> within $500,000 | AD15: ='EasyCal Excel'!CQ24 -> 0 | AE15: ='EasyCal Excel'!CR24 -> 0 | AF15: ='EasyCal Excel'!CW24 -> 0 | AG15: ='EasyCal Excel'!CX24 -> 0 | AH15: ='EasyCal Excel'!CY24 -> 0 | AI15: ='EasyCal Excel'!CZ24 -> 0 | AJ15: ='EasyCal Excel'!DA24 -> 0 | AK15: ='EasyCal Excel'!DB24 -> 0 | AL15: ='EasyCal Excel'!DC24 -> 0
A16: ='EasyCal Excel'!A25 -> 16 | B16: ='EasyCal Excel'!B25 -> 0 | C16: ='EasyCal Excel'!C25 -> Please Select | D16: ='EasyCal Excel'!F25 -> 00:00:00 | E16: ='EasyCal Excel'!G25 -> 00:00:00 | F16: ='EasyCal Excel'!L25 -> Monthly-rated | G16: ='EasyCal Excel'!O25 -> 0 | H16: ='EasyCal Excel'!P25 -> 0 | I16: ='EasyCal Excel'!AD25 -> 0 | J16: ='EasyCal Excel'!AT25 -> 0 | K16: ='EasyCal Excel'!AU25 -> 0 | L16: ='EasyCal Excel'!AV25 -> MPF | M16: ='EasyCal Excel'!AX25 -> MC -> VC | N16: ='EasyCal Excel'!AZ25 -> 0 | O16: ='EasyCal Excel'!BA25 -> 0 | P16: ='EasyCal Excel'!BB25 -> 0 | Q16: ='EasyCal Excel'!BS25 -> N/A | R16: ='EasyCal Excel'!BU25 -> N/A | S16: ='EasyCal Excel'!BV25 -> No | T16: ='EasyCal Excel'!BY25 -> 0 | U16: ='EasyCal Excel'!BZ25 -> 0 | V16: ='EasyCal Excel'!CA25 -> 0 | W16: ='EasyCal Excel'!CB25 -> 0 | X16: ='EasyCal Excel'!CC25 -> 0 | Y16: ='EasyCal Excel'!CD25 -> 0 | Z16: ='EasyCal Excel'!CH25 -> N/A | AA16: ='EasyCal Excel'!CL25 -> 0 | AB16: ='EasyCal Excel'!CM25 -> N/A | AC16: ='EasyCal Excel'!CO25 -> within $500,000 | AD16: ='EasyCal Excel'!CQ25 -> 0 | AE16: ='EasyCal Excel'!CR25 -> 0 | AF16: ='EasyCal Excel'!CW25 -> 0 | AG16: ='EasyCal Excel'!CX25 -> 0 | AH16: ='EasyCal Excel'!CY25 -> 0 | AI16: ='EasyCal Excel'!CZ25 -> 0 | AJ16: ='EasyCal Excel'!DA25 -> 0 | AK16: ='EasyCal Excel'!DB25 -> 0 | AL16: ='EasyCal Excel'!DC25 -> 0
A17: ='EasyCal Excel'!A26 -> 17 | B17: ='EasyCal Excel'!B26 -> 0 | C17: ='EasyCal Excel'!C26 -> Please Select | D17: ='EasyCal Excel'!F26 -> 00:00:00 | E17: ='EasyCal Excel'!G26 -> 00:00:00 | F17: ='EasyCal Excel'!L26 -> Monthly-rated | G17: ='EasyCal Excel'!O26 -> 0 | H17: ='EasyCal Excel'!P26 -> 0 | I17: ='EasyCal Excel'!AD26 -> 0 | J17: ='EasyCal Excel'!AT26 -> 0 | K17: ='EasyCal Excel'!AU26 -> 0 | L17: ='EasyCal Excel'!AV26 -> MPF | M17: ='EasyCal Excel'!AX26 -> MC -> VC | N17: ='EasyCal Excel'!AZ26 -> 0 | O17: ='EasyCal Excel'!BA26 -> 0 | P17: ='EasyCal Excel'!BB26 -> 0 | Q17: ='EasyCal Excel'!BS26 -> N/A | R17: ='EasyCal Excel'!BU26 -> N/A | S17: ='EasyCal Excel'!BV26 -> No | T17: ='EasyCal Excel'!BY26 -> 0 | U17: ='EasyCal Excel'!BZ26 -> 0 | V17: ='EasyCal Excel'!CA26 -> 0 | W17: ='EasyCal Excel'!CB26 -> 0 | X17: ='EasyCal Excel'!CC26 -> 0 | Y17: ='EasyCal Excel'!CD26 -> 0 | Z17: ='EasyCal Excel'!CH26 -> N/A | AA17: ='EasyCal Excel'!CL26 -> 0 | AB17: ='EasyCal Excel'!CM26 -> N/A | AC17: ='EasyCal Excel'!CO26 -> within $500,000 | AD17: ='EasyCal Excel'!CQ26 -> 0 | AE17: ='EasyCal Excel'!CR26 -> 0 | AF17: ='EasyCal Excel'!CW26 -> 0 | AG17: ='EasyCal Excel'!CX26 -> 0 | AH17: ='EasyCal Excel'!CY26 -> 0 | AI17: ='EasyCal Excel'!CZ26 -> 0 | AJ17: ='EasyCal Excel'!DA26 -> 0 | AK17: ='EasyCal Excel'!DB26 -> 0 | AL17: ='EasyCal Excel'!DC26 -> 0
A18: ='EasyCal Excel'!A27 -> 18 | B18: ='EasyCal Excel'!B27 -> 0 | C18: ='EasyCal Excel'!C27 -> Please Select | D18: ='EasyCal Excel'!F27 -> 00:00:00 | E18: ='EasyCal Excel'!G27 -> 00:00:00 | F18: ='EasyCal Excel'!L27 -> Monthly-rated | G18: ='EasyCal Excel'!O27 -> 0 | H18: ='EasyCal Excel'!P27 -> 0 | I18: ='EasyCal Excel'!AD27 -> 0 | J18: ='EasyCal Excel'!AT27 -> 0 | K18: ='EasyCal Excel'!AU27 -> 0 | L18: ='EasyCal Excel'!AV27 -> MPF | M18: ='EasyCal Excel'!AX27 -> MC -> VC | N18: ='EasyCal Excel'!AZ27 -> 0 | O18: ='EasyCal Excel'!BA27 -> 0 | P18: ='EasyCal Excel'!BB27 -> 0 | Q18: ='EasyCal Excel'!BS27 -> N/A | R18: ='EasyCal Excel'!BU27 -> N/A | S18: ='EasyCal Excel'!BV27 -> No | T18: ='EasyCal Excel'!BY27 -> 0 | U18: ='EasyCal Excel'!BZ27 -> 0 | V18: ='EasyCal Excel'!CA27 -> 0 | W18: ='EasyCal Excel'!CB27 -> 0 | X18: ='EasyCal Excel'!CC27 -> 0 | Y18: ='EasyCal Excel'!CD27 -> 0 | Z18: ='EasyCal Excel'!CH27 -> N/A | AA18: ='EasyCal Excel'!CL27 -> 0 | AB18: ='EasyCal Excel'!CM27 -> N/A | AC18: ='EasyCal Excel'!CO27 -> within $500,000 | AD18: ='EasyCal Excel'!CQ27 -> 0 | AE18: ='EasyCal Excel'!CR27 -> 0 | AF18: ='EasyCal Excel'!CW27 -> 0 | AG18: ='EasyCal Excel'!CX27 -> 0 | AH18: ='EasyCal Excel'!CY27 -> 0 | AI18: ='EasyCal Excel'!CZ27 -> 0 | AJ18: ='EasyCal Excel'!DA27 -> 0 | AK18: ='EasyCal Excel'!DB27 -> 0 | AL18: ='EasyCal Excel'!DC27 -> 0
A19: ='EasyCal Excel'!A28 -> 19 | B19: ='EasyCal Excel'!B28 -> 0 | C19: ='EasyCal Excel'!C28 -> Please Select | D19: ='EasyCal Excel'!F28 -> 00:00:00 | E19: ='EasyCal Excel'!G28 -> 00:00:00 | F19: ='EasyCal Excel'!L28 -> Monthly-rated | G19: ='EasyCal Excel'!O28 -> 0 | H19: ='EasyCal Excel'!P28 -> 0 | I19: ='EasyCal Excel'!AD28 -> 0 | J19: ='EasyCal Excel'!AT28 -> 0 | K19: ='EasyCal Excel'!AU28 -> 0 | L19: ='EasyCal Excel'!AV28 -> MPF | M19: ='EasyCal Excel'!AX28 -> MC -> VC | N19: ='EasyCal Excel'!AZ28 -> 0 | O19: ='EasyCal Excel'!BA28 -> 0 | P19: ='EasyCal Excel'!BB28 -> 0 | Q19: ='EasyCal Excel'!BS28 -> N/A | R19: ='EasyCal Excel'!BU28 -> N/A | S19: ='EasyCal Excel'!BV28 -> No | T19: ='EasyCal Excel'!BY28 -> 0 | U19: ='EasyCal Excel'!BZ28 -> 0 | V19: ='EasyCal Excel'!CA28 -> 0 | W19: ='EasyCal Excel'!CB28 -> 0 | X19: ='EasyCal Excel'!CC28 -> 0 | Y19: ='EasyCal Excel'!CD28 -> 0 | Z19: ='EasyCal Excel'!CH28 -> N/A | AA19: ='EasyCal Excel'!CL28 -> 0 | AB19: ='EasyCal Excel'!CM28 -> N/A | AC19: ='EasyCal Excel'!CO28 -> within $500,000 | AD19: ='EasyCal Excel'!CQ28 -> 0 | AE19: ='EasyCal Excel'!CR28 -> 0 | AF19: ='EasyCal Excel'!CW28 -> 0 | AG19: ='EasyCal Excel'!CX28 -> 0 | AH19: ='EasyCal Excel'!CY28 -> 0 | AI19: ='EasyCal Excel'!CZ28 -> 0 | AJ19: ='EasyCal Excel'!DA28 -> 0 | AK19: ='EasyCal Excel'!DB28 -> 0 | AL19: ='EasyCal Excel'!DC28 -> 0
A20: ='EasyCal Excel'!A29 -> 20 | B20: ='EasyCal Excel'!B29 -> 0 | C20: ='EasyCal Excel'!C29 -> Please Select | D20: ='EasyCal Excel'!F29 -> 00:00:00 | E20: ='EasyCal Excel'!G29 -> 00:00:00 | F20: ='EasyCal Excel'!L29 -> Monthly-rated | G20: ='EasyCal Excel'!O29 -> 0 | H20: ='EasyCal Excel'!P29 -> 0 | I20: ='EasyCal Excel'!AD29 -> 0 | J20: ='EasyCal Excel'!AT29 -> 0 | K20: ='EasyCal Excel'!AU29 -> 0 | L20: ='EasyCal Excel'!AV29 -> MPF | M20: ='EasyCal Excel'!AX29 -> MC -> VC | N20: ='EasyCal Excel'!AZ29 -> 0 | O20: ='EasyCal Excel'!BA29 -> 0 | P20: ='EasyCal Excel'!BB29 -> 0 | Q20: ='EasyCal Excel'!BS29 -> N/A | R20: ='EasyCal Excel'!BU29 -> N/A | S20: ='EasyCal Excel'!BV29 -> No | T20: ='EasyCal Excel'!BY29 -> 0 | U20: ='EasyCal Excel'!BZ29 -> 0 | V20: ='EasyCal Excel'!CA29 -> 0 | W20: ='EasyCal Excel'!CB29 -> 0 | X20: ='EasyCal Excel'!CC29 -> 0 | Y20: ='EasyCal Excel'!CD29 -> 0 | Z20: ='EasyCal Excel'!CH29 -> N/A | AA20: ='EasyCal Excel'!CL29 -> 0 | AB20: ='EasyCal Excel'!CM29 -> N/A | AC20: ='EasyCal Excel'!CO29 -> within $500,000 | AD20: ='EasyCal Excel'!CQ29 -> 0 | AE20: ='EasyCal Excel'!CR29 -> 0 | AF20: ='EasyCal Excel'!CW29 -> 0 | AG20: ='EasyCal Excel'!CX29 -> 0 | AH20: ='EasyCal Excel'!CY29 -> 0 | AI20: ='EasyCal Excel'!CZ29 -> 0 | AJ20: ='EasyCal Excel'!DA29 -> 0 | AK20: ='EasyCal Excel'!DB29 -> 0 | AL20: ='EasyCal Excel'!DC29 -> 0
A21: ='EasyCal Excel'!A30 -> 21 | B21: ='EasyCal Excel'!B30 -> 0 | C21: ='EasyCal Excel'!C30 -> Please Select | D21: ='EasyCal Excel'!F30 -> 00:00:00 | E21: ='EasyCal Excel'!G30 -> 00:00:00 | F21: ='EasyCal Excel'!L30 -> Monthly-rated | G21: ='EasyCal Excel'!O30 -> 0 | H21: ='EasyCal Excel'!P30 -> 0 | I21: ='EasyCal Excel'!AD30 -> 0 | J21: ='EasyCal Excel'!AT30 -> 0 | K21: ='EasyCal Excel'!AU30 -> 0 | L21: ='EasyCal Excel'!AV30 -> MPF | M21: ='EasyCal Excel'!AX30 -> MC -> VC | N21: ='EasyCal Excel'!AZ30 -> 0 | O21: ='EasyCal Excel'!BA30 -> 0 | P21: ='EasyCal Excel'!BB30 -> 0 | Q21: ='EasyCal Excel'!BS30 -> N/A | R21: ='EasyCal Excel'!BU30 -> N/A | S21: ='EasyCal Excel'!BV30 -> No | T21: ='EasyCal Excel'!BY30 -> 0 | U21: ='EasyCal Excel'!BZ30 -> 0 | V21: ='EasyCal Excel'!CA30 -> 0 | W21: ='EasyCal Excel'!CB30 -> 0 | X21: ='EasyCal Excel'!CC30 -> 0 | Y21: ='EasyCal Excel'!CD30 -> 0 | Z21: ='EasyCal Excel'!CH30 -> N/A | AA21: ='EasyCal Excel'!CL30 -> 0 | AB21: ='EasyCal Excel'!CM30 -> N/A | AC21: ='EasyCal Excel'!CO30 -> within $500,000 | AD21: ='EasyCal Excel'!CQ30 -> 0 | AE21: ='EasyCal Excel'!CR30 -> 0 | AF21: ='EasyCal Excel'!CW30 -> 0 | AG21: ='EasyCal Excel'!CX30 -> 0 | AH21: ='EasyCal Excel'!CY30 -> 0 | AI21: ='EasyCal Excel'!CZ30 -> 0 | AJ21: ='EasyCal Excel'!DA30 -> 0 | AK21: ='EasyCal Excel'!DB30 -> 0 | AL21: ='EasyCal Excel'!DC30 -> 0
A22: ='EasyCal Excel'!A31 -> 22 | B22: ='EasyCal Excel'!B31 -> 0 | C22: ='EasyCal Excel'!C31 -> Please Select | D22: ='EasyCal Excel'!F31 -> 00:00:00 | E22: ='EasyCal Excel'!G31 -> 00:00:00 | F22: ='EasyCal Excel'!L31 -> Monthly-rated | G22: ='EasyCal Excel'!O31 -> 0 | H22: ='EasyCal Excel'!P31 -> 0 | I22: ='EasyCal Excel'!AD31 -> 0 | J22: ='EasyCal Excel'!AT31 -> 0 | K22: ='EasyCal Excel'!AU31 -> 0 | L22: ='EasyCal Excel'!AV31 -> MPF | M22: ='EasyCal Excel'!AX31 -> MC -> VC | N22: ='EasyCal Excel'!AZ31 -> 0 | O22: ='EasyCal Excel'!BA31 -> 0 | P22: ='EasyCal Excel'!BB31 -> 0 | Q22: ='EasyCal Excel'!BS31 -> N/A | R22: ='EasyCal Excel'!BU31 -> N/A | S22: ='EasyCal Excel'!BV31 -> No | T22: ='EasyCal Excel'!BY31 -> 0 | U22: ='EasyCal Excel'!BZ31 -> 0 | V22: ='EasyCal Excel'!CA31 -> 0 | W22: ='EasyCal Excel'!CB31 -> 0 | X22: ='EasyCal Excel'!CC31 -> 0 | Y22: ='EasyCal Excel'!CD31 -> 0 | Z22: ='EasyCal Excel'!CH31 -> N/A | AA22: ='EasyCal Excel'!CL31 -> 0 | AB22: ='EasyCal Excel'!CM31 -> N/A | AC22: ='EasyCal Excel'!CO31 -> within $500,000 | AD22: ='EasyCal Excel'!CQ31 -> 0 | AE22: ='EasyCal Excel'!CR31 -> 0 | AF22: ='EasyCal Excel'!CW31 -> 0 | AG22: ='EasyCal Excel'!CX31 -> 0 | AH22: ='EasyCal Excel'!CY31 -> 0 | AI22: ='EasyCal Excel'!CZ31 -> 0 | AJ22: ='EasyCal Excel'!DA31 -> 0 | AK22: ='EasyCal Excel'!DB31 -> 0 | AL22: ='EasyCal Excel'!DC31 -> 0
A23: ='EasyCal Excel'!A32 -> 23 | B23: ='EasyCal Excel'!B32 -> 0 | C23: ='EasyCal Excel'!C32 -> Please Select | D23: ='EasyCal Excel'!F32 -> 00:00:00 | E23: ='EasyCal Excel'!G32 -> 00:00:00 | F23: ='EasyCal Excel'!L32 -> Monthly-rated | G23: ='EasyCal Excel'!O32 -> 0 | H23: ='EasyCal Excel'!P32 -> 0 | I23: ='EasyCal Excel'!AD32 -> 0 | J23: ='EasyCal Excel'!AT32 -> 0 | K23: ='EasyCal Excel'!AU32 -> 0 | L23: ='EasyCal Excel'!AV32 -> MPF | M23: ='EasyCal Excel'!AX32 -> MC -> VC | N23: ='EasyCal Excel'!AZ32 -> 0 | O23: ='EasyCal Excel'!BA32 -> 0 | P23: ='EasyCal Excel'!BB32 -> 0 | Q23: ='EasyCal Excel'!BS32 -> N/A | R23: ='EasyCal Excel'!BU32 -> N/A | S23: ='EasyCal Excel'!BV32 -> No | T23: ='EasyCal Excel'!BY32 -> 0 | U23: ='EasyCal Excel'!BZ32 -> 0 | V23: ='EasyCal Excel'!CA32 -> 0 | W23: ='EasyCal Excel'!CB32 -> 0 | X23: ='EasyCal Excel'!CC32 -> 0 | Y23: ='EasyCal Excel'!CD32 -> 0 | Z23: ='EasyCal Excel'!CH32 -> N/A | AA23: ='EasyCal Excel'!CL32 -> 0 | AB23: ='EasyCal Excel'!CM32 -> N/A | AC23: ='EasyCal Excel'!CO32 -> within $500,000 | AD23: ='EasyCal Excel'!CQ32 -> 0 | AE23: ='EasyCal Excel'!CR32 -> 0 | AF23: ='EasyCal Excel'!CW32 -> 0 | AG23: ='EasyCal Excel'!CX32 -> 0 | AH23: ='EasyCal Excel'!CY32 -> 0 | AI23: ='EasyCal Excel'!CZ32 -> 0 | AJ23: ='EasyCal Excel'!DA32 -> 0 | AK23: ='EasyCal Excel'!DB32 -> 0 | AL23: ='EasyCal Excel'!DC32 -> 0
A24: ='EasyCal Excel'!A33 -> 24 | B24: ='EasyCal Excel'!B33 -> 0 | C24: ='EasyCal Excel'!C33 -> Please Select | D24: ='EasyCal Excel'!F33 -> 00:00:00 | E24: ='EasyCal Excel'!G33 -> 00:00:00 | F24: ='EasyCal Excel'!L33 -> Monthly-rated | G24: ='EasyCal Excel'!O33 -> 0 | H24: ='EasyCal Excel'!P33 -> 0 | I24: ='EasyCal Excel'!AD33 -> 0 | J24: ='EasyCal Excel'!AT33 -> 0 | K24: ='EasyCal Excel'!AU33 -> 0 | L24: ='EasyCal Excel'!AV33 -> MPF | M24: ='EasyCal Excel'!AX33 -> MC -> VC | N24: ='EasyCal Excel'!AZ33 -> 0 | O24: ='EasyCal Excel'!BA33 -> 0 | P24: ='EasyCal Excel'!BB33 -> 0 | Q24: ='EasyCal Excel'!BS33 -> N/A | R24: ='EasyCal Excel'!BU33 -> N/A | S24: ='EasyCal Excel'!BV33 -> No | T24: ='EasyCal Excel'!BY33 -> 0 | U24: ='EasyCal Excel'!BZ33 -> 0 | V24: ='EasyCal Excel'!CA33 -> 0 | W24: ='EasyCal Excel'!CB33 -> 0 | X24: ='EasyCal Excel'!CC33 -> 0 | Y24: ='EasyCal Excel'!CD33 -> 0 | Z24: ='EasyCal Excel'!CH33 -> N/A | AA24: ='EasyCal Excel'!CL33 -> 0 | AB24: ='EasyCal Excel'!CM33 -> N/A | AC24: ='EasyCal Excel'!CO33 -> within $500,000 | AD24: ='EasyCal Excel'!CQ33 -> 0 | AE24: ='EasyCal Excel'!CR33 -> 0 | AF24: ='EasyCal Excel'!CW33 -> 0 | AG24: ='EasyCal Excel'!CX33 -> 0 | AH24: ='EasyCal Excel'!CY33 -> 0 | AI24: ='EasyCal Excel'!CZ33 -> 0 | AJ24: ='EasyCal Excel'!DA33 -> 0 | AK24: ='EasyCal Excel'!DB33 -> 0 | AL24: ='EasyCal Excel'!DC33 -> 0
A25: ='EasyCal Excel'!A34 -> 25 | B25: ='EasyCal Excel'!B34 -> 0 | C25: ='EasyCal Excel'!C34 -> Please Select | D25: ='EasyCal Excel'!F34 -> 00:00:00 | E25: ='EasyCal Excel'!G34 -> 00:00:00 | F25: ='EasyCal Excel'!L34 -> Monthly-rated | G25: ='EasyCal Excel'!O34 -> 0 | H25: ='EasyCal Excel'!P34 -> 0 | I25: ='EasyCal Excel'!AD34 -> 0 | J25: ='EasyCal Excel'!AT34 -> 0 | K25: ='EasyCal Excel'!AU34 -> 0 | L25: ='EasyCal Excel'!AV34 -> MPF | M25: ='EasyCal Excel'!AX34 -> MC -> VC | N25: ='EasyCal Excel'!AZ34 -> 0 | O25: ='EasyCal Excel'!BA34 -> 0 | P25: ='EasyCal Excel'!BB34 -> 0 | Q25: ='EasyCal Excel'!BS34 -> N/A | R25: ='EasyCal Excel'!BU34 -> N/A | S25: ='EasyCal Excel'!BV34 -> No | T25: ='EasyCal Excel'!BY34 -> 0 | U25: ='EasyCal Excel'!BZ34 -> 0 | V25: ='EasyCal Excel'!CA34 -> 0 | W25: ='EasyCal Excel'!CB34 -> 0 | X25: ='EasyCal Excel'!CC34 -> 0 | Y25: ='EasyCal Excel'!CD34 -> 0 | Z25: ='EasyCal Excel'!CH34 -> N/A | AA25: ='EasyCal Excel'!CL34 -> 0 | AB25: ='EasyCal Excel'!CM34 -> N/A | AC25: ='EasyCal Excel'!CO34 -> within $500,000 | AD25: ='EasyCal Excel'!CQ34 -> 0 | AE25: ='EasyCal Excel'!CR34 -> 0 | AF25: ='EasyCal Excel'!CW34 -> 0 | AG25: ='EasyCal Excel'!CX34 -> 0 | AH25: ='EasyCal Excel'!CY34 -> 0 | AI25: ='EasyCal Excel'!CZ34 -> 0 | AJ25: ='EasyCal Excel'!DA34 -> 0 | AK25: ='EasyCal Excel'!DB34 -> 0 | AL25: ='EasyCal Excel'!DC34 -> 0
A26: ='EasyCal Excel'!A35 -> 26 | B26: ='EasyCal Excel'!B35 -> 0 | C26: ='EasyCal Excel'!C35 -> Please Select | D26: ='EasyCal Excel'!F35 -> 00:00:00 | E26: ='EasyCal Excel'!G35 -> 00:00:00 | F26: ='EasyCal Excel'!L35 -> Monthly-rated | G26: ='EasyCal Excel'!O35 -> 0 | H26: ='EasyCal Excel'!P35 -> 0 | I26: ='EasyCal Excel'!AD35 -> 0 | J26: ='EasyCal Excel'!AT35 -> 0 | K26: ='EasyCal Excel'!AU35 -> 0 | L26: ='EasyCal Excel'!AV35 -> MPF | M26: ='EasyCal Excel'!AX35 -> MC -> VC | N26: ='EasyCal Excel'!AZ35 -> 0 | O26: ='EasyCal Excel'!BA35 -> 0 | P26: ='EasyCal Excel'!BB35 -> 0 | Q26: ='EasyCal Excel'!BS35 -> N/A | R26: ='EasyCal Excel'!BU35 -> N/A | S26: ='EasyCal Excel'!BV35 -> No | T26: ='EasyCal Excel'!BY35 -> 0 | U26: ='EasyCal Excel'!BZ35 -> 0 | V26: ='EasyCal Excel'!CA35 -> 0 | W26: ='EasyCal Excel'!CB35 -> 0 | X26: ='EasyCal Excel'!CC35 -> 0 | Y26: ='EasyCal Excel'!CD35 -> 0 | Z26: ='EasyCal Excel'!CH35 -> N/A | AA26: ='EasyCal Excel'!CL35 -> 0 | AB26: ='EasyCal Excel'!CM35 -> N/A | AC26: ='EasyCal Excel'!CO35 -> within $500,000 | AD26: ='EasyCal Excel'!CQ35 -> 0 | AE26: ='EasyCal Excel'!CR35 -> 0 | AF26: ='EasyCal Excel'!CW35 -> 0 | AG26: ='EasyCal Excel'!CX35 -> 0 | AH26: ='EasyCal Excel'!CY35 -> 0 | AI26: ='EasyCal Excel'!CZ35 -> 0 | AJ26: ='EasyCal Excel'!DA35 -> 0 | AK26: ='EasyCal Excel'!DB35 -> 0 | AL26: ='EasyCal Excel'!DC35 -> 0
A27: ='EasyCal Excel'!A36 -> 27 | B27: ='EasyCal Excel'!B36 -> 0 | C27: ='EasyCal Excel'!C36 -> Please Select | D27: ='EasyCal Excel'!F36 -> 00:00:00 | E27: ='EasyCal Excel'!G36 -> 00:00:00 | F27: ='EasyCal Excel'!L36 -> Monthly-rated | G27: ='EasyCal Excel'!O36 -> 0 | H27: ='EasyCal Excel'!P36 -> 0 | I27: ='EasyCal Excel'!AD36 -> 0 | J27: ='EasyCal Excel'!AT36 -> 0 | K27: ='EasyCal Excel'!AU36 -> 0 | L27: ='EasyCal Excel'!AV36 -> MPF | M27: ='EasyCal Excel'!AX36 -> MC -> VC | N27: ='EasyCal Excel'!AZ36 -> 0 | O27: ='EasyCal Excel'!BA36 -> 0 | P27: ='EasyCal Excel'!BB36 -> 0 | Q27: ='EasyCal Excel'!BS36 -> N/A | R27: ='EasyCal Excel'!BU36 -> N/A | S27: ='EasyCal Excel'!BV36 -> No | T27: ='EasyCal Excel'!BY36 -> 0 | U27: ='EasyCal Excel'!BZ36 -> 0 | V27: ='EasyCal Excel'!CA36 -> 0 | W27: ='EasyCal Excel'!CB36 -> 0 | X27: ='EasyCal Excel'!CC36 -> 0 | Y27: ='EasyCal Excel'!CD36 -> 0 | Z27: ='EasyCal Excel'!CH36 -> N/A | AA27: ='EasyCal Excel'!CL36 -> 0 | AB27: ='EasyCal Excel'!CM36 -> N/A | AC27: ='EasyCal Excel'!CO36 -> within $500,000 | AD27: ='EasyCal Excel'!CQ36 -> 0 | AE27: ='EasyCal Excel'!CR36 -> 0 | AF27: ='EasyCal Excel'!CW36 -> 0 | AG27: ='EasyCal Excel'!CX36 -> 0 | AH27: ='EasyCal Excel'!CY36 -> 0 | AI27: ='EasyCal Excel'!CZ36 -> 0 | AJ27: ='EasyCal Excel'!DA36 -> 0 | AK27: ='EasyCal Excel'!DB36 -> 0 | AL27: ='EasyCal Excel'!DC36 -> 0
A28: ='EasyCal Excel'!A37 -> 28 | B28: ='EasyCal Excel'!B37 -> 0 | C28: ='EasyCal Excel'!C37 -> Please Select | D28: ='EasyCal Excel'!F37 -> 00:00:00 | E28: ='EasyCal Excel'!G37 -> 00:00:00 | F28: ='EasyCal Excel'!L37 -> Monthly-rated | G28: ='EasyCal Excel'!O37 -> 0 | H28: ='EasyCal Excel'!P37 -> 0 | I28: ='EasyCal Excel'!AD37 -> 0 | J28: ='EasyCal Excel'!AT37 -> 0 | K28: ='EasyCal Excel'!AU37 -> 0 | L28: ='EasyCal Excel'!AV37 -> MPF | M28: ='EasyCal Excel'!AX37 -> MC -> VC | N28: ='EasyCal Excel'!AZ37 -> 0 | O28: ='EasyCal Excel'!BA37 -> 0 | P28: ='EasyCal Excel'!BB37 -> 0 | Q28: ='EasyCal Excel'!BS37 -> N/A | R28: ='EasyCal Excel'!BU37 -> N/A | S28: ='EasyCal Excel'!BV37 -> No | T28: ='EasyCal Excel'!BY37 -> 0 | U28: ='EasyCal Excel'!BZ37 -> 0 | V28: ='EasyCal Excel'!CA37 -> 0 | W28: ='EasyCal Excel'!CB37 -> 0 | X28: ='EasyCal Excel'!CC37 -> 0 | Y28: ='EasyCal Excel'!CD37 -> 0 | Z28: ='EasyCal Excel'!CH37 -> N/A | AA28: ='EasyCal Excel'!CL37 -> 0 | AB28: ='EasyCal Excel'!CM37 -> N/A | AC28: ='EasyCal Excel'!CO37 -> within $500,000 | AD28: ='EasyCal Excel'!CQ37 -> 0 | AE28: ='EasyCal Excel'!CR37 -> 0 | AF28: ='EasyCal Excel'!CW37 -> 0 | AG28: ='EasyCal Excel'!CX37 -> 0 | AH28: ='EasyCal Excel'!CY37 -> 0 | AI28: ='EasyCal Excel'!CZ37 -> 0 | AJ28: ='EasyCal Excel'!DA37 -> 0 | AK28: ='EasyCal Excel'!DB37 -> 0 | AL28: ='EasyCal Excel'!DC37 -> 0
A29: ='EasyCal Excel'!A38 -> 29 | B29: ='EasyCal Excel'!B38 -> 0 | C29: ='EasyCal Excel'!C38 -> Please Select | D29: ='EasyCal Excel'!F38 -> 00:00:00 | E29: ='EasyCal Excel'!G38 -> 00:00:00 | F29: ='EasyCal Excel'!L38 -> Monthly-rated | G29: ='EasyCal Excel'!O38 -> 0 | H29: ='EasyCal Excel'!P38 -> 0 | I29: ='EasyCal Excel'!AD38 -> 0 | J29: ='EasyCal Excel'!AT38 -> 0 | K29: ='EasyCal Excel'!AU38 -> 0 | L29: ='EasyCal Excel'!AV38 -> MPF | M29: ='EasyCal Excel'!AX38 -> MC -> VC | N29: ='EasyCal Excel'!AZ38 -> 0 | O29: ='EasyCal Excel'!BA38 -> 0 | P29: ='EasyCal Excel'!BB38 -> 0 | Q29: ='EasyCal Excel'!BS38 -> N/A | R29: ='EasyCal Excel'!BU38 -> N/A | S29: ='EasyCal Excel'!BV38 -> No | T29: ='EasyCal Excel'!BY38 -> 0 | U29: ='EasyCal Excel'!BZ38 -> 0 | V29: ='EasyCal Excel'!CA38 -> 0 | W29: ='EasyCal Excel'!CB38 -> 0 | X29: ='EasyCal Excel'!CC38 -> 0 | Y29: ='EasyCal Excel'!CD38 -> 0 | Z29: ='EasyCal Excel'!CH38 -> N/A | AA29: ='EasyCal Excel'!CL38 -> 0 | AB29: ='EasyCal Excel'!CM38 -> N/A | AC29: ='EasyCal Excel'!CO38 -> within $500,000 | AD29: ='EasyCal Excel'!CQ38 -> 0 | AE29: ='EasyCal Excel'!CR38 -> 0 | AF29: ='EasyCal Excel'!CW38 -> 0 | AG29: ='EasyCal Excel'!CX38 -> 0 | AH29: ='EasyCal Excel'!CY38 -> 0 | AI29: ='EasyCal Excel'!CZ38 -> 0 | AJ29: ='EasyCal Excel'!DA38 -> 0 | AK29: ='EasyCal Excel'!DB38 -> 0 | AL29: ='EasyCal Excel'!DC38 -> 0
A30: ='EasyCal Excel'!A39 -> 30 | B30: ='EasyCal Excel'!B39 -> 0 | C30: ='EasyCal Excel'!C39 -> Please Select | D30: ='EasyCal Excel'!F39 -> 00:00:00 | E30: ='EasyCal Excel'!G39 -> 00:00:00 | F30: ='EasyCal Excel'!L39 -> Monthly-rated | G30: ='EasyCal Excel'!O39 -> 0 | H30: ='EasyCal Excel'!P39 -> 0 | I30: ='EasyCal Excel'!AD39 -> 0 | J30: ='EasyCal Excel'!AT39 -> 0 | K30: ='EasyCal Excel'!AU39 -> 0 | L30: ='EasyCal Excel'!AV39 -> MPF | M30: ='EasyCal Excel'!AX39 -> MC -> VC | N30: ='EasyCal Excel'!AZ39 -> 0 | O30: ='EasyCal Excel'!BA39 -> 0 | P30: ='EasyCal Excel'!BB39 -> 0 | Q30: ='EasyCal Excel'!BS39 -> N/A | R30: ='EasyCal Excel'!BU39 -> N/A | S30: ='EasyCal Excel'!BV39 -> No | T30: ='EasyCal Excel'!BY39 -> 0 | U30: ='EasyCal Excel'!BZ39 -> 0 | V30: ='EasyCal Excel'!CA39 -> 0 | W30: ='EasyCal Excel'!CB39 -> 0 | X30: ='EasyCal Excel'!CC39 -> 0 | Y30: ='EasyCal Excel'!CD39 -> 0 | Z30: ='EasyCal Excel'!CH39 -> N/A | AA30: ='EasyCal Excel'!CL39 -> 0 | AB30: ='EasyCal Excel'!CM39 -> N/A | AC30: ='EasyCal Excel'!CO39 -> within $500,000 | AD30: ='EasyCal Excel'!CQ39 -> 0 | AE30: ='EasyCal Excel'!CR39 -> 0 | AF30: ='EasyCal Excel'!CW39 -> 0 | AG30: ='EasyCal Excel'!CX39 -> 0 | AH30: ='EasyCal Excel'!CY39 -> 0 | AI30: ='EasyCal Excel'!CZ39 -> 0 | AJ30: ='EasyCal Excel'!DA39 -> 0 | AK30: ='EasyCal Excel'!DB39 -> 0 | AL30: ='EasyCal Excel'!DC39 -> 0
A31: ='EasyCal Excel'!A40 -> 31 | B31: ='EasyCal Excel'!B40 -> 0 | C31: ='EasyCal Excel'!C40 -> Please Select | D31: ='EasyCal Excel'!F40 -> 00:00:00 | E31: ='EasyCal Excel'!G40 -> 00:00:00 | F31: ='EasyCal Excel'!L40 -> Monthly-rated | G31: ='EasyCal Excel'!O40 -> 0 | H31: ='EasyCal Excel'!P40 -> 0 | I31: ='EasyCal Excel'!AD40 -> 0 | J31: ='EasyCal Excel'!AT40 -> 0 | K31: ='EasyCal Excel'!AU40 -> 0 | L31: ='EasyCal Excel'!AV40 -> MPF | M31: ='EasyCal Excel'!AX40 -> MC -> VC | N31: ='EasyCal Excel'!AZ40 -> 0 | O31: ='EasyCal Excel'!BA40 -> 0 | P31: ='EasyCal Excel'!BB40 -> 0 | Q31: ='EasyCal Excel'!BS40 -> N/A | R31: ='EasyCal Excel'!BU40 -> N/A | S31: ='EasyCal Excel'!BV40 -> No | T31: ='EasyCal Excel'!BY40 -> 0 | U31: ='EasyCal Excel'!BZ40 -> 0 | V31: ='EasyCal Excel'!CA40 -> 0 | W31: ='EasyCal Excel'!CB40 -> 0 | X31: ='EasyCal Excel'!CC40 -> 0 | Y31: ='EasyCal Excel'!CD40 -> 0 | Z31: ='EasyCal Excel'!CH40 -> N/A | AA31: ='EasyCal Excel'!CL40 -> 0 | AB31: ='EasyCal Excel'!CM40 -> N/A | AC31: ='EasyCal Excel'!CO40 -> within $500,000 | AD31: ='EasyCal Excel'!CQ40 -> 0 | AE31: ='EasyCal Excel'!CR40 -> 0 | AF31: ='EasyCal Excel'!CW40 -> 0 | AG31: ='EasyCal Excel'!CX40 -> 0 | AH31: ='EasyCal Excel'!CY40 -> 0 | AI31: ='EasyCal Excel'!CZ40 -> 0 | AJ31: ='EasyCal Excel'!DA40 -> 0 | AK31: ='EasyCal Excel'!DB40 -> 0 | AL31: ='EasyCal Excel'!DC40 -> 0
A32: ='EasyCal Excel'!A41 -> 32 | B32: ='EasyCal Excel'!B41 -> 0 | C32: ='EasyCal Excel'!C41 -> Please Select | D32: ='EasyCal Excel'!F41 -> 00:00:00 | E32: ='EasyCal Excel'!G41 -> 00:00:00 | F32: ='EasyCal Excel'!L41 -> Monthly-rated | G32: ='EasyCal Excel'!O41 -> 0 | H32: ='EasyCal Excel'!P41 -> 0 | I32: ='EasyCal Excel'!AD41 -> 0 | J32: ='EasyCal Excel'!AT41 -> 0 | K32: ='EasyCal Excel'!AU41 -> 0 | L32: ='EasyCal Excel'!AV41 -> MPF | M32: ='EasyCal Excel'!AX41 -> MC -> VC | N32: ='EasyCal Excel'!AZ41 -> 0 | O32: ='EasyCal Excel'!BA41 -> 0 | P32: ='EasyCal Excel'!BB41 -> 0 | Q32: ='EasyCal Excel'!BS41 -> N/A | R32: ='EasyCal Excel'!BU41 -> N/A | S32: ='EasyCal Excel'!BV41 -> No | T32: ='EasyCal Excel'!BY41 -> 0 | U32: ='EasyCal Excel'!BZ41 -> 0 | V32: ='EasyCal Excel'!CA41 -> 0 | W32: ='EasyCal Excel'!CB41 -> 0 | X32: ='EasyCal Excel'!CC41 -> 0 | Y32: ='EasyCal Excel'!CD41 -> 0 | Z32: ='EasyCal Excel'!CH41 -> N/A | AA32: ='EasyCal Excel'!CL41 -> 0 | AB32: ='EasyCal Excel'!CM41 -> N/A | AC32: ='EasyCal Excel'!CO41 -> within $500,000 | AD32: ='EasyCal Excel'!CQ41 -> 0 | AE32: ='EasyCal Excel'!CR41 -> 0 | AF32: ='EasyCal Excel'!CW41 -> 0 | AG32: ='EasyCal Excel'!CX41 -> 0 | AH32: ='EasyCal Excel'!CY41 -> 0 | AI32: ='EasyCal Excel'!CZ41 -> 0 | AJ32: ='EasyCal Excel'!DA41 -> 0 | AK32: ='EasyCal Excel'!DB41 -> 0 | AL32: ='EasyCal Excel'!DC41 -> 0
A33: ='EasyCal Excel'!A42 -> 33 | B33: ='EasyCal Excel'!B42 -> 0 | C33: ='EasyCal Excel'!C42 -> Please Select | D33: ='EasyCal Excel'!F42 -> 00:00:00 | E33: ='EasyCal Excel'!G42 -> 00:00:00 | F33: ='EasyCal Excel'!L42 -> Monthly-rated | G33: ='EasyCal Excel'!O42 -> 0 | H33: ='EasyCal Excel'!P42 -> 0 | I33: ='EasyCal Excel'!AD42 -> 0 | J33: ='EasyCal Excel'!AT42 -> 0 | K33: ='EasyCal Excel'!AU42 -> 0 | L33: ='EasyCal Excel'!AV42 -> MPF | M33: ='EasyCal Excel'!AX42 -> MC -> VC | N33: ='EasyCal Excel'!AZ42 -> 0 | O33: ='EasyCal Excel'!BA42 -> 0 | P33: ='EasyCal Excel'!BB42 -> 0 | Q33: ='EasyCal Excel'!BS42 -> N/A | R33: ='EasyCal Excel'!BU42 -> N/A | S33: ='EasyCal Excel'!BV42 -> No | T33: ='EasyCal Excel'!BY42 -> 0 | U33: ='EasyCal Excel'!BZ42 -> 0 | V33: ='EasyCal Excel'!CA42 -> 0 | W33: ='EasyCal Excel'!CB42 -> 0 | X33: ='EasyCal Excel'!CC42 -> 0 | Y33: ='EasyCal Excel'!CD42 -> 0 | Z33: ='EasyCal Excel'!CH42 -> N/A | AA33: ='EasyCal Excel'!CL42 -> 0 | AB33: ='EasyCal Excel'!CM42 -> N/A | AC33: ='EasyCal Excel'!CO42 -> within $500,000 | AD33: ='EasyCal Excel'!CQ42 -> 0 | AE33: ='EasyCal Excel'!CR42 -> 0 | AF33: ='EasyCal Excel'!CW42 -> 0 | AG33: ='EasyCal Excel'!CX42 -> 0 | AH33: ='EasyCal Excel'!CY42 -> 0 | AI33: ='EasyCal Excel'!CZ42 -> 0 | AJ33: ='EasyCal Excel'!DA42 -> 0 | AK33: ='EasyCal Excel'!DB42 -> 0 | AL33: ='EasyCal Excel'!DC42 -> 0
A34: ='EasyCal Excel'!A43 -> 34 | B34: ='EasyCal Excel'!B43 -> 0 | C34: ='EasyCal Excel'!C43 -> Please Select | D34: ='EasyCal Excel'!F43 -> 00:00:00 | E34: ='EasyCal Excel'!G43 -> 00:00:00 | F34: ='EasyCal Excel'!L43 -> Monthly-rated | G34: ='EasyCal Excel'!O43 -> 0 | H34: ='EasyCal Excel'!P43 -> 0 | I34: ='EasyCal Excel'!AD43 -> 0 | J34: ='EasyCal Excel'!AT43 -> 0 | K34: ='EasyCal Excel'!AU43 -> 0 | L34: ='EasyCal Excel'!AV43 -> MPF | M34: ='EasyCal Excel'!AX43 -> MC -> VC | N34: ='EasyCal Excel'!AZ43 -> 0 | O34: ='EasyCal Excel'!BA43 -> 0 | P34: ='EasyCal Excel'!BB43 -> 0 | Q34: ='EasyCal Excel'!BS43 -> N/A | R34: ='EasyCal Excel'!BU43 -> N/A | S34: ='EasyCal Excel'!BV43 -> No | T34: ='EasyCal Excel'!BY43 -> 0 | U34: ='EasyCal Excel'!BZ43 -> 0 | V34: ='EasyCal Excel'!CA43 -> 0 | W34: ='EasyCal Excel'!CB43 -> 0 | X34: ='EasyCal Excel'!CC43 -> 0 | Y34: ='EasyCal Excel'!CD43 -> 0 | Z34: ='EasyCal Excel'!CH43 -> N/A | AA34: ='EasyCal Excel'!CL43 -> 0 | AB34: ='EasyCal Excel'!CM43 -> N/A | AC34: ='EasyCal Excel'!CO43 -> within $500,000 | AD34: ='EasyCal Excel'!CQ43 -> 0 | AE34: ='EasyCal Excel'!CR43 -> 0 | AF34: ='EasyCal Excel'!CW43 -> 0 | AG34: ='EasyCal Excel'!CX43 -> 0 | AH34: ='EasyCal Excel'!CY43 -> 0 | AI34: ='EasyCal Excel'!CZ43 -> 0 | AJ34: ='EasyCal Excel'!DA43 -> 0 | AK34: ='EasyCal Excel'!DB43 -> 0 | AL34: ='EasyCal Excel'!DC43 -> 0
A35: ='EasyCal Excel'!A44 -> 35 | B35: ='EasyCal Excel'!B44 -> 0 | C35: ='EasyCal Excel'!C44 -> Please Select | D35: ='EasyCal Excel'!F44 -> 00:00:00 | E35: ='EasyCal Excel'!G44 -> 00:00:00 | F35: ='EasyCal Excel'!L44 -> Monthly-rated | G35: ='EasyCal Excel'!O44 -> 0 | H35: ='EasyCal Excel'!P44 -> 0 | I35: ='EasyCal Excel'!AD44 -> 0 | J35: ='EasyCal Excel'!AT44 -> 0 | K35: ='EasyCal Excel'!AU44 -> 0 | L35: ='EasyCal Excel'!AV44 -> MPF | M35: ='EasyCal Excel'!AX44 -> MC -> VC | N35: ='EasyCal Excel'!AZ44 -> 0 | O35: ='EasyCal Excel'!BA44 -> 0 | P35: ='EasyCal Excel'!BB44 -> 0 | Q35: ='EasyCal Excel'!BS44 -> N/A | R35: ='EasyCal Excel'!BU44 -> N/A | S35: ='EasyCal Excel'!BV44 -> No | T35: ='EasyCal Excel'!BY44 -> 0 | U35: ='EasyCal Excel'!BZ44 -> 0 | V35: ='EasyCal Excel'!CA44 -> 0 | W35: ='EasyCal Excel'!CB44 -> 0 | X35: ='EasyCal Excel'!CC44 -> 0 | Y35: ='EasyCal Excel'!CD44 -> 0 | Z35: ='EasyCal Excel'!CH44 -> N/A | AA35: ='EasyCal Excel'!CL44 -> 0 | AB35: ='EasyCal Excel'!CM44 -> N/A | AC35: ='EasyCal Excel'!CO44 -> within $500,000 | AD35: ='EasyCal Excel'!CQ44 -> 0 | AE35: ='EasyCal Excel'!CR44 -> 0 | AF35: ='EasyCal Excel'!CW44 -> 0 | AG35: ='EasyCal Excel'!CX44 -> 0 | AH35: ='EasyCal Excel'!CY44 -> 0 | AI35: ='EasyCal Excel'!CZ44 -> 0 | AJ35: ='EasyCal Excel'!DA44 -> 0 | AK35: ='EasyCal Excel'!DB44 -> 0 | AL35: ='EasyCal Excel'!DC44 -> 0
A36: ='EasyCal Excel'!A45 -> 36 | B36: ='EasyCal Excel'!B45 -> 0 | C36: ='EasyCal Excel'!C45 -> Please Select | D36: ='EasyCal Excel'!F45 -> 00:00:00 | E36: ='EasyCal Excel'!G45 -> 00:00:00 | F36: ='EasyCal Excel'!L45 -> Monthly-rated | G36: ='EasyCal Excel'!O45 -> 0 | H36: ='EasyCal Excel'!P45 -> 0 | I36: ='EasyCal Excel'!AD45 -> 0 | J36: ='EasyCal Excel'!AT45 -> 0 | K36: ='EasyCal Excel'!AU45 -> 0 | L36: ='EasyCal Excel'!AV45 -> MPF | M36: ='EasyCal Excel'!AX45 -> MC -> VC | N36: ='EasyCal Excel'!AZ45 -> 0 | O36: ='EasyCal Excel'!BA45 -> 0 | P36: ='EasyCal Excel'!BB45 -> 0 | Q36: ='EasyCal Excel'!BS45 -> N/A | R36: ='EasyCal Excel'!BU45 -> N/A | S36: ='EasyCal Excel'!BV45 -> No | T36: ='EasyCal Excel'!BY45 -> 0 | U36: ='EasyCal Excel'!BZ45 -> 0 | V36: ='EasyCal Excel'!CA45 -> 0 | W36: ='EasyCal Excel'!CB45 -> 0 | X36: ='EasyCal Excel'!CC45 -> 0 | Y36: ='EasyCal Excel'!CD45 -> 0 | Z36: ='EasyCal Excel'!CH45 -> N/A | AA36: ='EasyCal Excel'!CL45 -> 0 | AB36: ='EasyCal Excel'!CM45 -> N/A | AC36: ='EasyCal Excel'!CO45 -> within $500,000 | AD36: ='EasyCal Excel'!CQ45 -> 0 | AE36: ='EasyCal Excel'!CR45 -> 0 | AF36: ='EasyCal Excel'!CW45 -> 0 | AG36: ='EasyCal Excel'!CX45 -> 0 | AH36: ='EasyCal Excel'!CY45 -> 0 | AI36: ='EasyCal Excel'!CZ45 -> 0 | AJ36: ='EasyCal Excel'!DA45 -> 0 | AK36: ='EasyCal Excel'!DB45 -> 0 | AL36: ='EasyCal Excel'!DC45 -> 0
A37: ='EasyCal Excel'!A46 -> 37 | B37: ='EasyCal Excel'!B46 -> 0 | C37: ='EasyCal Excel'!C46 -> Please Select | D37: ='EasyCal Excel'!F46 -> 00:00:00 | E37: ='EasyCal Excel'!G46 -> 00:00:00 | F37: ='EasyCal Excel'!L46 -> Monthly-rated | G37: ='EasyCal Excel'!O46 -> 0 | H37: ='EasyCal Excel'!P46 -> 0 | I37: ='EasyCal Excel'!AD46 -> 0 | J37: ='EasyCal Excel'!AT46 -> 0 | K37: ='EasyCal Excel'!AU46 -> 0 | L37: ='EasyCal Excel'!AV46 -> MPF | M37: ='EasyCal Excel'!AX46 -> MC -> VC | N37: ='EasyCal Excel'!AZ46 -> 0 | O37: ='EasyCal Excel'!BA46 -> 0 | P37: ='EasyCal Excel'!BB46 -> 0 | Q37: ='EasyCal Excel'!BS46 -> N/A | R37: ='EasyCal Excel'!BU46 -> N/A | S37: ='EasyCal Excel'!BV46 -> No | T37: ='EasyCal Excel'!BY46 -> 0 | U37: ='EasyCal Excel'!BZ46 -> 0 | V37: ='EasyCal Excel'!CA46 -> 0 | W37: ='EasyCal Excel'!CB46 -> 0 | X37: ='EasyCal Excel'!CC46 -> 0 | Y37: ='EasyCal Excel'!CD46 -> 0 | Z37: ='EasyCal Excel'!CH46 -> N/A | AA37: ='EasyCal Excel'!CL46 -> 0 | AB37: ='EasyCal Excel'!CM46 -> N/A | AC37: ='EasyCal Excel'!CO46 -> within $500,000 | AD37: ='EasyCal Excel'!CQ46 -> 0 | AE37: ='EasyCal Excel'!CR46 -> 0 | AF37: ='EasyCal Excel'!CW46 -> 0 | AG37: ='EasyCal Excel'!CX46 -> 0 | AH37: ='EasyCal Excel'!CY46 -> 0 | AI37: ='EasyCal Excel'!CZ46 -> 0 | AJ37: ='EasyCal Excel'!DA46 -> 0 | AK37: ='EasyCal Excel'!DB46 -> 0 | AL37: ='EasyCal Excel'!DC46 -> 0
A38: ='EasyCal Excel'!A47 -> 38 | B38: ='EasyCal Excel'!B47 -> 0 | C38: ='EasyCal Excel'!C47 -> Please Select | D38: ='EasyCal Excel'!F47 -> 00:00:00 | E38: ='EasyCal Excel'!G47 -> 00:00:00 | F38: ='EasyCal Excel'!L47 -> Monthly-rated | G38: ='EasyCal Excel'!O47 -> 0 | H38: ='EasyCal Excel'!P47 -> 0 | I38: ='EasyCal Excel'!AD47 -> 0 | J38: ='EasyCal Excel'!AT47 -> 0 | K38: ='EasyCal Excel'!AU47 -> 0 | L38: ='EasyCal Excel'!AV47 -> MPF | M38: ='EasyCal Excel'!AX47 -> MC -> VC | N38: ='EasyCal Excel'!AZ47 -> 0 | O38: ='EasyCal Excel'!BA47 -> 0 | P38: ='EasyCal Excel'!BB47 -> 0 | Q38: ='EasyCal Excel'!BS47 -> N/A | R38: ='EasyCal Excel'!BU47 -> N/A | S38: ='EasyCal Excel'!BV47 -> No | T38: ='EasyCal Excel'!BY47 -> 0 | U38: ='EasyCal Excel'!BZ47 -> 0 | V38: ='EasyCal Excel'!CA47 -> 0 | W38: ='EasyCal Excel'!CB47 -> 0 | X38: ='EasyCal Excel'!CC47 -> 0 | Y38: ='EasyCal Excel'!CD47 -> 0 | Z38: ='EasyCal Excel'!CH47 -> N/A | AA38: ='EasyCal Excel'!CL47 -> 0 | AB38: ='EasyCal Excel'!CM47 -> N/A | AC38: ='EasyCal Excel'!CO47 -> within $500,000 | AD38: ='EasyCal Excel'!CQ47 -> 0 | AE38: ='EasyCal Excel'!CR47 -> 0 | AF38: ='EasyCal Excel'!CW47 -> 0 | AG38: ='EasyCal Excel'!CX47 -> 0 | AH38: ='EasyCal Excel'!CY47 -> 0 | AI38: ='EasyCal Excel'!CZ47 -> 0 | AJ38: ='EasyCal Excel'!DA47 -> 0 | AK38: ='EasyCal Excel'!DB47 -> 0 | AL38: ='EasyCal Excel'!DC47 -> 0
A39: ='EasyCal Excel'!A48 -> 39 | B39: ='EasyCal Excel'!B48 -> 0 | C39: ='EasyCal Excel'!C48 -> Please Select | D39: ='EasyCal Excel'!F48 -> 00:00:00 | E39: ='EasyCal Excel'!G48 -> 00:00:00 | F39: ='EasyCal Excel'!L48 -> Monthly-rated | G39: ='EasyCal Excel'!O48 -> 0 | H39: ='EasyCal Excel'!P48 -> 0 | I39: ='EasyCal Excel'!AD48 -> 0 | J39: ='EasyCal Excel'!AT48 -> 0 | K39: ='EasyCal Excel'!AU48 -> 0 | L39: ='EasyCal Excel'!AV48 -> MPF | M39: ='EasyCal Excel'!AX48 -> MC -> VC | N39: ='EasyCal Excel'!AZ48 -> 0 | O39: ='EasyCal Excel'!BA48 -> 0 | P39: ='EasyCal Excel'!BB48 -> 0 | Q39: ='EasyCal Excel'!BS48 -> N/A | R39: ='EasyCal Excel'!BU48 -> N/A | S39: ='EasyCal Excel'!BV48 -> No | T39: ='EasyCal Excel'!BY48 -> 0 | U39: ='EasyCal Excel'!BZ48 -> 0 | V39: ='EasyCal Excel'!CA48 -> 0 | W39: ='EasyCal Excel'!CB48 -> 0 | X39: ='EasyCal Excel'!CC48 -> 0 | Y39: ='EasyCal Excel'!CD48 -> 0 | Z39: ='EasyCal Excel'!CH48 -> N/A | AA39: ='EasyCal Excel'!CL48 -> 0 | AB39: ='EasyCal Excel'!CM48 -> N/A | AC39: ='EasyCal Excel'!CO48 -> within $500,000 | AD39: ='EasyCal Excel'!CQ48 -> 0 | AE39: ='EasyCal Excel'!CR48 -> 0 | AF39: ='EasyCal Excel'!CW48 -> 0 | AG39: ='EasyCal Excel'!CX48 -> 0 | AH39: ='EasyCal Excel'!CY48 -> 0 | AI39: ='EasyCal Excel'!CZ48 -> 0 | AJ39: ='EasyCal Excel'!DA48 -> 0 | AK39: ='EasyCal Excel'!DB48 -> 0 | AL39: ='EasyCal Excel'!DC48 -> 0
A40: ='EasyCal Excel'!A49 -> 40 | B40: ='EasyCal Excel'!B49 -> 0 | C40: ='EasyCal Excel'!C49 -> Please Select | D40: ='EasyCal Excel'!F49 -> 00:00:00 | E40: ='EasyCal Excel'!G49 -> 00:00:00 | F40: ='EasyCal Excel'!L49 -> Monthly-rated | G40: ='EasyCal Excel'!O49 -> 0 | H40: ='EasyCal Excel'!P49 -> 0 | I40: ='EasyCal Excel'!AD49 -> 0 | J40: ='EasyCal Excel'!AT49 -> 0 | K40: ='EasyCal Excel'!AU49 -> 0 | L40: ='EasyCal Excel'!AV49 -> MPF | M40: ='EasyCal Excel'!AX49 -> MC -> VC | N40: ='EasyCal Excel'!AZ49 -> 0 | O40: ='EasyCal Excel'!BA49 -> 0 | P40: ='EasyCal Excel'!BB49 -> 0 | Q40: ='EasyCal Excel'!BS49 -> N/A | R40: ='EasyCal Excel'!BU49 -> N/A | S40: ='EasyCal Excel'!BV49 -> No | T40: ='EasyCal Excel'!BY49 -> 0 | U40: ='EasyCal Excel'!BZ49 -> 0 | V40: ='EasyCal Excel'!CA49 -> 0 | W40: ='EasyCal Excel'!CB49 -> 0 | X40: ='EasyCal Excel'!CC49 -> 0 | Y40: ='EasyCal Excel'!CD49 -> 0 | Z40: ='EasyCal Excel'!CH49 -> N/A | AA40: ='EasyCal Excel'!CL49 -> 0 | AB40: ='EasyCal Excel'!CM49 -> N/A | AC40: ='EasyCal Excel'!CO49 -> within $500,000 | AD40: ='EasyCal Excel'!CQ49 -> 0 | AE40: ='EasyCal Excel'!CR49 -> 0 | AF40: ='EasyCal Excel'!CW49 -> 0 | AG40: ='EasyCal Excel'!CX49 -> 0 | AH40: ='EasyCal Excel'!CY49 -> 0 | AI40: ='EasyCal Excel'!CZ49 -> 0 | AJ40: ='EasyCal Excel'!DA49 -> 0 | AK40: ='EasyCal Excel'!DB49 -> 0 | AL40: ='EasyCal Excel'!DC49 -> 0
A41: ='EasyCal Excel'!A50 -> 41 | B41: ='EasyCal Excel'!B50 -> 0 | C41: ='EasyCal Excel'!C50 -> Please Select | D41: ='EasyCal Excel'!F50 -> 00:00:00 | E41: ='EasyCal Excel'!G50 -> 00:00:00 | F41: ='EasyCal Excel'!L50 -> Monthly-rated | G41: ='EasyCal Excel'!O50 -> 0 | H41: ='EasyCal Excel'!P50 -> 0 | I41: ='EasyCal Excel'!AD50 -> 0 | J41: ='EasyCal Excel'!AT50 -> 0 | K41: ='EasyCal Excel'!AU50 -> 0 | L41: ='EasyCal Excel'!AV50 -> MPF | M41: ='EasyCal Excel'!AX50 -> MC -> VC | N41: ='EasyCal Excel'!AZ50 -> 0 | O41: ='EasyCal Excel'!BA50 -> 0 | P41: ='EasyCal Excel'!BB50 -> 0 | Q41: ='EasyCal Excel'!BS50 -> N/A | R41: ='EasyCal Excel'!BU50 -> N/A | S41: ='EasyCal Excel'!BV50 -> No | T41: ='EasyCal Excel'!BY50 -> 0 | U41: ='EasyCal Excel'!BZ50 -> 0 | V41: ='EasyCal Excel'!CA50 -> 0 | W41: ='EasyCal Excel'!CB50 -> 0 | X41: ='EasyCal Excel'!CC50 -> 0 | Y41: ='EasyCal Excel'!CD50 -> 0 | Z41: ='EasyCal Excel'!CH50 -> N/A | AA41: ='EasyCal Excel'!CL50 -> 0 | AB41: ='EasyCal Excel'!CM50 -> N/A | AC41: ='EasyCal Excel'!CO50 -> within $500,000 | AD41: ='EasyCal Excel'!CQ50 -> 0 | AE41: ='EasyCal Excel'!CR50 -> 0 | AF41: ='EasyCal Excel'!CW50 -> 0 | AG41: ='EasyCal Excel'!CX50 -> 0 | AH41: ='EasyCal Excel'!CY50 -> 0 | AI41: ='EasyCal Excel'!CZ50 -> 0 | AJ41: ='EasyCal Excel'!DA50 -> 0 | AK41: ='EasyCal Excel'!DB50 -> 0 | AL41: ='EasyCal Excel'!DC50 -> 0
A42: ='EasyCal Excel'!A51 -> 42 | B42: ='EasyCal Excel'!B51 -> 0 | C42: ='EasyCal Excel'!C51 -> Please Select | D42: ='EasyCal Excel'!F51 -> 00:00:00 | E42: ='EasyCal Excel'!G51 -> 00:00:00 | F42: ='EasyCal Excel'!L51 -> Monthly-rated | G42: ='EasyCal Excel'!O51 -> 0 | H42: ='EasyCal Excel'!P51 -> 0 | I42: ='EasyCal Excel'!AD51 -> 0 | J42: ='EasyCal Excel'!AT51 -> 0 | K42: ='EasyCal Excel'!AU51 -> 0 | L42: ='EasyCal Excel'!AV51 -> MPF | M42: ='EasyCal Excel'!AX51 -> MC -> VC | N42: ='EasyCal Excel'!AZ51 -> 0 | O42: ='EasyCal Excel'!BA51 -> 0 | P42: ='EasyCal Excel'!BB51 -> 0 | Q42: ='EasyCal Excel'!BS51 -> N/A | R42: ='EasyCal Excel'!BU51 -> N/A | S42: ='EasyCal Excel'!BV51 -> No | T42: ='EasyCal Excel'!BY51 -> 0 | U42: ='EasyCal Excel'!BZ51 -> 0 | V42: ='EasyCal Excel'!CA51 -> 0 | W42: ='EasyCal Excel'!CB51 -> 0 | X42: ='EasyCal Excel'!CC51 -> 0 | Y42: ='EasyCal Excel'!CD51 -> 0 | Z42: ='EasyCal Excel'!CH51 -> N/A | AA42: ='EasyCal Excel'!CL51 -> 0 | AB42: ='EasyCal Excel'!CM51 -> N/A | AC42: ='EasyCal Excel'!CO51 -> within $500,000 | AD42: ='EasyCal Excel'!CQ51 -> 0 | AE42: ='EasyCal Excel'!CR51 -> 0 | AF42: ='EasyCal Excel'!CW51 -> 0 | AG42: ='EasyCal Excel'!CX51 -> 0 | AH42: ='EasyCal Excel'!CY51 -> 0 | AI42: ='EasyCal Excel'!CZ51 -> 0 | AJ42: ='EasyCal Excel'!DA51 -> 0 | AK42: ='EasyCal Excel'!DB51 -> 0 | AL42: ='EasyCal Excel'!DC51 -> 0
A43: ='EasyCal Excel'!A52 -> 43 | B43: ='EasyCal Excel'!B52 -> 0 | C43: ='EasyCal Excel'!C52 -> Please Select | D43: ='EasyCal Excel'!F52 -> 00:00:00 | E43: ='EasyCal Excel'!G52 -> 00:00:00 | F43: ='EasyCal Excel'!L52 -> Monthly-rated | G43: ='EasyCal Excel'!O52 -> 0 | H43: ='EasyCal Excel'!P52 -> 0 | I43: ='EasyCal Excel'!AD52 -> 0 | J43: ='EasyCal Excel'!AT52 -> 0 | K43: ='EasyCal Excel'!AU52 -> 0 | L43: ='EasyCal Excel'!AV52 -> MPF | M43: ='EasyCal Excel'!AX52 -> MC -> VC | N43: ='EasyCal Excel'!AZ52 -> 0 | O43: ='EasyCal Excel'!BA52 -> 0 | P43: ='EasyCal Excel'!BB52 -> 0 | Q43: ='EasyCal Excel'!BS52 -> N/A | R43: ='EasyCal Excel'!BU52 -> N/A | S43: ='EasyCal Excel'!BV52 -> No | T43: ='EasyCal Excel'!BY52 -> 0 | U43: ='EasyCal Excel'!BZ52 -> 0 | V43: ='EasyCal Excel'!CA52 -> 0 | W43: ='EasyCal Excel'!CB52 -> 0 | X43: ='EasyCal Excel'!CC52 -> 0 | Y43: ='EasyCal Excel'!CD52 -> 0 | Z43: ='EasyCal Excel'!CH52 -> N/A | AA43: ='EasyCal Excel'!CL52 -> 0 | AB43: ='EasyCal Excel'!CM52 -> N/A | AC43: ='EasyCal Excel'!CO52 -> within $500,000 | AD43: ='EasyCal Excel'!CQ52 -> 0 | AE43: ='EasyCal Excel'!CR52 -> 0 | AF43: ='EasyCal Excel'!CW52 -> 0 | AG43: ='EasyCal Excel'!CX52 -> 0 | AH43: ='EasyCal Excel'!CY52 -> 0 | AI43: ='EasyCal Excel'!CZ52 -> 0 | AJ43: ='EasyCal Excel'!DA52 -> 0 | AK43: ='EasyCal Excel'!DB52 -> 0 | AL43: ='EasyCal Excel'!DC52 -> 0
A44: ='EasyCal Excel'!A53 -> 44 | B44: ='EasyCal Excel'!B53 -> 0 | C44: ='EasyCal Excel'!C53 -> Please Select | D44: ='EasyCal Excel'!F53 -> 00:00:00 | E44: ='EasyCal Excel'!G53 -> 00:00:00 | F44: ='EasyCal Excel'!L53 -> Monthly-rated | G44: ='EasyCal Excel'!O53 -> 0 | H44: ='EasyCal Excel'!P53 -> 0 | I44: ='EasyCal Excel'!AD53 -> 0 | J44: ='EasyCal Excel'!AT53 -> 0 | K44: ='EasyCal Excel'!AU53 -> 0 | L44: ='EasyCal Excel'!AV53 -> MPF | M44: ='EasyCal Excel'!AX53 -> MC -> VC | N44: ='EasyCal Excel'!AZ53 -> 0 | O44: ='EasyCal Excel'!BA53 -> 0 | P44: ='EasyCal Excel'!BB53 -> 0 | Q44: ='EasyCal Excel'!BS53 -> N/A | R44: ='EasyCal Excel'!BU53 -> N/A | S44: ='EasyCal Excel'!BV53 -> No | T44: ='EasyCal Excel'!BY53 -> 0 | U44: ='EasyCal Excel'!BZ53 -> 0 | V44: ='EasyCal Excel'!CA53 -> 0 | W44: ='EasyCal Excel'!CB53 -> 0 | X44: ='EasyCal Excel'!CC53 -> 0 | Y44: ='EasyCal Excel'!CD53 -> 0 | Z44: ='EasyCal Excel'!CH53 -> N/A | AA44: ='EasyCal Excel'!CL53 -> 0 | AB44: ='EasyCal Excel'!CM53 -> N/A | AC44: ='EasyCal Excel'!CO53 -> within $500,000 | AD44: ='EasyCal Excel'!CQ53 -> 0 | AE44: ='EasyCal Excel'!CR53 -> 0 | AF44: ='EasyCal Excel'!CW53 -> 0 | AG44: ='EasyCal Excel'!CX53 -> 0 | AH44: ='EasyCal Excel'!CY53 -> 0 | AI44: ='EasyCal Excel'!CZ53 -> 0 | AJ44: ='EasyCal Excel'!DA53 -> 0 | AK44: ='EasyCal Excel'!DB53 -> 0 | AL44: ='EasyCal Excel'!DC53 -> 0
A45: ='EasyCal Excel'!A54 -> 45 | B45: ='EasyCal Excel'!B54 -> 0 | C45: ='EasyCal Excel'!C54 -> Please Select | D45: ='EasyCal Excel'!F54 -> 00:00:00 | E45: ='EasyCal Excel'!G54 -> 00:00:00 | F45: ='EasyCal Excel'!L54 -> Monthly-rated | G45: ='EasyCal Excel'!O54 -> 0 | H45: ='EasyCal Excel'!P54 -> 0 | I45: ='EasyCal Excel'!AD54 -> 0 | J45: ='EasyCal Excel'!AT54 -> 0 | K45: ='EasyCal Excel'!AU54 -> 0 | L45: ='EasyCal Excel'!AV54 -> MPF | M45: ='EasyCal Excel'!AX54 -> MC -> VC | N45: ='EasyCal Excel'!AZ54 -> 0 | O45: ='EasyCal Excel'!BA54 -> 0 | P45: ='EasyCal Excel'!BB54 -> 0 | Q45: ='EasyCal Excel'!BS54 -> N/A | R45: ='EasyCal Excel'!BU54 -> N/A | S45: ='EasyCal Excel'!BV54 -> No | T45: ='EasyCal Excel'!BY54 -> 0 | U45: ='EasyCal Excel'!BZ54 -> 0 | V45: ='EasyCal Excel'!CA54 -> 0 | W45: ='EasyCal Excel'!CB54 -> 0 | X45: ='EasyCal Excel'!CC54 -> 0 | Y45: ='EasyCal Excel'!CD54 -> 0 | Z45: ='EasyCal Excel'!CH54 -> N/A | AA45: ='EasyCal Excel'!CL54 -> 0 | AB45: ='EasyCal Excel'!CM54 -> N/A | AC45: ='EasyCal Excel'!CO54 -> within $500,000 | AD45: ='EasyCal Excel'!CQ54 -> 0 | AE45: ='EasyCal Excel'!CR54 -> 0 | AF45: ='EasyCal Excel'!CW54 -> 0 | AG45: ='EasyCal Excel'!CX54 -> 0 | AH45: ='EasyCal Excel'!CY54 -> 0 | AI45: ='EasyCal Excel'!CZ54 -> 0 | AJ45: ='EasyCal Excel'!DA54 -> 0 | AK45: ='EasyCal Excel'!DB54 -> 0 | AL45: ='EasyCal Excel'!DC54 -> 0
A46: ='EasyCal Excel'!A55 -> 46 | B46: ='EasyCal Excel'!B55 -> 0 | C46: ='EasyCal Excel'!C55 -> Please Select | D46: ='EasyCal Excel'!F55 -> 00:00:00 | E46: ='EasyCal Excel'!G55 -> 00:00:00 | F46: ='EasyCal Excel'!L55 -> Monthly-rated | G46: ='EasyCal Excel'!O55 -> 0 | H46: ='EasyCal Excel'!P55 -> 0 | I46: ='EasyCal Excel'!AD55 -> 0 | J46: ='EasyCal Excel'!AT55 -> 0 | K46: ='EasyCal Excel'!AU55 -> 0 | L46: ='EasyCal Excel'!AV55 -> MPF | M46: ='EasyCal Excel'!AX55 -> MC -> VC | N46: ='EasyCal Excel'!AZ55 -> 0 | O46: ='EasyCal Excel'!BA55 -> 0 | P46: ='EasyCal Excel'!BB55 -> 0 | Q46: ='EasyCal Excel'!BS55 -> N/A | R46: ='EasyCal Excel'!BU55 -> N/A | S46: ='EasyCal Excel'!BV55 -> No | T46: ='EasyCal Excel'!BY55 -> 0 | U46: ='EasyCal Excel'!BZ55 -> 0 | V46: ='EasyCal Excel'!CA55 -> 0 | W46: ='EasyCal Excel'!CB55 -> 0 | X46: ='EasyCal Excel'!CC55 -> 0 | Y46: ='EasyCal Excel'!CD55 -> 0 | Z46: ='EasyCal Excel'!CH55 -> N/A | AA46: ='EasyCal Excel'!CL55 -> 0 | AB46: ='EasyCal Excel'!CM55 -> N/A | AC46: ='EasyCal Excel'!CO55 -> within $500,000 | AD46: ='EasyCal Excel'!CQ55 -> 0 | AE46: ='EasyCal Excel'!CR55 -> 0 | AF46: ='EasyCal Excel'!CW55 -> 0 | AG46: ='EasyCal Excel'!CX55 -> 0 | AH46: ='EasyCal Excel'!CY55 -> 0 | AI46: ='EasyCal Excel'!CZ55 -> 0 | AJ46: ='EasyCal Excel'!DA55 -> 0 | AK46: ='EasyCal Excel'!DB55 -> 0 | AL46: ='EasyCal Excel'!DC55 -> 0
A47: ='EasyCal Excel'!A56 -> 47 | B47: ='EasyCal Excel'!B56 -> 0 | C47: ='EasyCal Excel'!C56 -> Please Select | D47: ='EasyCal Excel'!F56 -> 00:00:00 | E47: ='EasyCal Excel'!G56 -> 00:00:00 | F47: ='EasyCal Excel'!L56 -> Monthly-rated | G47: ='EasyCal Excel'!O56 -> 0 | H47: ='EasyCal Excel'!P56 -> 0 | I47: ='EasyCal Excel'!AD56 -> 0 | J47: ='EasyCal Excel'!AT56 -> 0 | K47: ='EasyCal Excel'!AU56 -> 0 | L47: ='EasyCal Excel'!AV56 -> MPF | M47: ='EasyCal Excel'!AX56 -> MC -> VC | N47: ='EasyCal Excel'!AZ56 -> 0 | O47: ='EasyCal Excel'!BA56 -> 0 | P47: ='EasyCal Excel'!BB56 -> 0 | Q47: ='EasyCal Excel'!BS56 -> N/A | R47: ='EasyCal Excel'!BU56 -> N/A | S47: ='EasyCal Excel'!BV56 -> No | T47: ='EasyCal Excel'!BY56 -> 0 | U47: ='EasyCal Excel'!BZ56 -> 0 | V47: ='EasyCal Excel'!CA56 -> 0 | W47: ='EasyCal Excel'!CB56 -> 0 | X47: ='EasyCal Excel'!CC56 -> 0 | Y47: ='EasyCal Excel'!CD56 -> 0 | Z47: ='EasyCal Excel'!CH56 -> N/A | AA47: ='EasyCal Excel'!CL56 -> 0 | AB47: ='EasyCal Excel'!CM56 -> N/A | AC47: ='EasyCal Excel'!CO56 -> within $500,000 | AD47: ='EasyCal Excel'!CQ56 -> 0 | AE47: ='EasyCal Excel'!CR56 -> 0 | AF47: ='EasyCal Excel'!CW56 -> 0 | AG47: ='EasyCal Excel'!CX56 -> 0 | AH47: ='EasyCal Excel'!CY56 -> 0 | AI47: ='EasyCal Excel'!CZ56 -> 0 | AJ47: ='EasyCal Excel'!DA56 -> 0 | AK47: ='EasyCal Excel'!DB56 -> 0 | AL47: ='EasyCal Excel'!DC56 -> 0
A48: ='EasyCal Excel'!A57 -> 48 | B48: ='EasyCal Excel'!B57 -> 0 | C48: ='EasyCal Excel'!C57 -> Please Select | D48: ='EasyCal Excel'!F57 -> 00:00:00 | E48: ='EasyCal Excel'!G57 -> 00:00:00 | F48: ='EasyCal Excel'!L57 -> Monthly-rated | G48: ='EasyCal Excel'!O57 -> 0 | H48: ='EasyCal Excel'!P57 -> 0 | I48: ='EasyCal Excel'!AD57 -> 0 | J48: ='EasyCal Excel'!AT57 -> 0 | K48: ='EasyCal Excel'!AU57 -> 0 | L48: ='EasyCal Excel'!AV57 -> MPF | M48: ='EasyCal Excel'!AX57 -> MC -> VC | N48: ='EasyCal Excel'!AZ57 -> 0 | O48: ='EasyCal Excel'!BA57 -> 0 | P48: ='EasyCal Excel'!BB57 -> 0 | Q48: ='EasyCal Excel'!BS57 -> N/A | R48: ='EasyCal Excel'!BU57 -> N/A | S48: ='EasyCal Excel'!BV57 -> No | T48: ='EasyCal Excel'!BY57 -> 0 | U48: ='EasyCal Excel'!BZ57 -> 0 | V48: ='EasyCal Excel'!CA57 -> 0 | W48: ='EasyCal Excel'!CB57 -> 0 | X48: ='EasyCal Excel'!CC57 -> 0 | Y48: ='EasyCal Excel'!CD57 -> 0 | Z48: ='EasyCal Excel'!CH57 -> N/A | AA48: ='EasyCal Excel'!CL57 -> 0 | AB48: ='EasyCal Excel'!CM57 -> N/A | AC48: ='EasyCal Excel'!CO57 -> within $500,000 | AD48: ='EasyCal Excel'!CQ57 -> 0 | AE48: ='EasyCal Excel'!CR57 -> 0 | AF48: ='EasyCal Excel'!CW57 -> 0 | AG48: ='EasyCal Excel'!CX57 -> 0 | AH48: ='EasyCal Excel'!CY57 -> 0 | AI48: ='EasyCal Excel'!CZ57 -> 0 | AJ48: ='EasyCal Excel'!DA57 -> 0 | AK48: ='EasyCal Excel'!DB57 -> 0 | AL48: ='EasyCal Excel'!DC57 -> 0
A49: ='EasyCal Excel'!A58 -> 49 | B49: ='EasyCal Excel'!B58 -> 0 | C49: ='EasyCal Excel'!C58 -> Please Select | D49: ='EasyCal Excel'!F58 -> 00:00:00 | E49: ='EasyCal Excel'!G58 -> 00:00:00 | F49: ='EasyCal Excel'!L58 -> Monthly-rated | G49: ='EasyCal Excel'!O58 -> 0 | H49: ='EasyCal Excel'!P58 -> 0 | I49: ='EasyCal Excel'!AD58 -> 0 | J49: ='EasyCal Excel'!AT58 -> 0 | K49: ='EasyCal Excel'!AU58 -> 0 | L49: ='EasyCal Excel'!AV58 -> MPF | M49: ='EasyCal Excel'!AX58 -> MC -> VC | N49: ='EasyCal Excel'!AZ58 -> 0 | O49: ='EasyCal Excel'!BA58 -> 0 | P49: ='EasyCal Excel'!BB58 -> 0 | Q49: ='EasyCal Excel'!BS58 -> N/A | R49: ='EasyCal Excel'!BU58 -> N/A | S49: ='EasyCal Excel'!BV58 -> No | T49: ='EasyCal Excel'!BY58 -> 0 | U49: ='EasyCal Excel'!BZ58 -> 0 | V49: ='EasyCal Excel'!CA58 -> 0 | W49: ='EasyCal Excel'!CB58 -> 0 | X49: ='EasyCal Excel'!CC58 -> 0 | Y49: ='EasyCal Excel'!CD58 -> 0 | Z49: ='EasyCal Excel'!CH58 -> N/A | AA49: ='EasyCal Excel'!CL58 -> 0 | AB49: ='EasyCal Excel'!CM58 -> N/A | AC49: ='EasyCal Excel'!CO58 -> within $500,000 | AD49: ='EasyCal Excel'!CQ58 -> 0 | AE49: ='EasyCal Excel'!CR58 -> 0 | AF49: ='EasyCal Excel'!CW58 -> 0 | AG49: ='EasyCal Excel'!CX58 -> 0 | AH49: ='EasyCal Excel'!CY58 -> 0 | AI49: ='EasyCal Excel'!CZ58 -> 0 | AJ49: ='EasyCal Excel'!DA58 -> 0 | AK49: ='EasyCal Excel'!DB58 -> 0 | AL49: ='EasyCal Excel'!DC58 -> 0
A50: ='EasyCal Excel'!A59 -> 50 | B50: ='EasyCal Excel'!B59 -> 0 | C50: ='EasyCal Excel'!C59 -> Please Select | D50: ='EasyCal Excel'!F59 -> 00:00:00 | E50: ='EasyCal Excel'!G59 -> 00:00:00 | F50: ='EasyCal Excel'!L59 -> Monthly-rated | G50: ='EasyCal Excel'!O59 -> 0 | H50: ='EasyCal Excel'!P59 -> 0 | I50: ='EasyCal Excel'!AD59 -> 0 | J50: ='EasyCal Excel'!AT59 -> 0 | K50: ='EasyCal Excel'!AU59 -> 0 | L50: ='EasyCal Excel'!AV59 -> MPF | M50: ='EasyCal Excel'!AX59 -> MC -> VC | N50: ='EasyCal Excel'!AZ59 -> 0 | O50: ='EasyCal Excel'!BA59 -> 0 | P50: ='EasyCal Excel'!BB59 -> 0 | Q50: ='EasyCal Excel'!BS59 -> N/A | R50: ='EasyCal Excel'!BU59 -> N/A | S50: ='EasyCal Excel'!BV59 -> No | T50: ='EasyCal Excel'!BY59 -> 0 | U50: ='EasyCal Excel'!BZ59 -> 0 | V50: ='EasyCal Excel'!CA59 -> 0 | W50: ='EasyCal Excel'!CB59 -> 0 | X50: ='EasyCal Excel'!CC59 -> 0 | Y50: ='EasyCal Excel'!CD59 -> 0 | Z50: ='EasyCal Excel'!CH59 -> N/A | AA50: ='EasyCal Excel'!CL59 -> 0 | AB50: ='EasyCal Excel'!CM59 -> N/A | AC50: ='EasyCal Excel'!CO59 -> within $500,000 | AD50: ='EasyCal Excel'!CQ59 -> 0 | AE50: ='EasyCal Excel'!CR59 -> 0 | AF50: ='EasyCal Excel'!CW59 -> 0 | AG50: ='EasyCal Excel'!CX59 -> 0 | AH50: ='EasyCal Excel'!CY59 -> 0 | AI50: ='EasyCal Excel'!CZ59 -> 0 | AJ50: ='EasyCal Excel'!DA59 -> 0 | AK50: ='EasyCal Excel'!DB59 -> 0 | AL50: ='EasyCal Excel'!DC59 -> 0
A51: ='EasyCal Excel'!A60 -> 51 | B51: ='EasyCal Excel'!B60 -> 0 | C51: ='EasyCal Excel'!C60 -> Please Select | D51: ='EasyCal Excel'!F60 -> 00:00:00 | E51: ='EasyCal Excel'!G60 -> 00:00:00 | F51: ='EasyCal Excel'!L60 -> Monthly-rated | G51: ='EasyCal Excel'!O60 -> 0 | H51: ='EasyCal Excel'!P60 -> 0 | I51: ='EasyCal Excel'!AD60 -> 0 | J51: ='EasyCal Excel'!AT60 -> 0 | K51: ='EasyCal Excel'!AU60 -> 0 | L51: ='EasyCal Excel'!AV60 -> MPF | M51: ='EasyCal Excel'!AX60 -> MC -> VC | N51: ='EasyCal Excel'!AZ60 -> 0 | O51: ='EasyCal Excel'!BA60 -> 0 | P51: ='EasyCal Excel'!BB60 -> 0 | Q51: ='EasyCal Excel'!BS60 -> N/A | R51: ='EasyCal Excel'!BU60 -> N/A | S51: ='EasyCal Excel'!BV60 -> No | T51: ='EasyCal Excel'!BY60 -> 0 | U51: ='EasyCal Excel'!BZ60 -> 0 | V51: ='EasyCal Excel'!CA60 -> 0 | W51: ='EasyCal Excel'!CB60 -> 0 | X51: ='EasyCal Excel'!CC60 -> 0 | Y51: ='EasyCal Excel'!CD60 -> 0 | Z51: ='EasyCal Excel'!CH60 -> N/A | AA51: ='EasyCal Excel'!CL60 -> 0 | AB51: ='EasyCal Excel'!CM60 -> N/A | AC51: ='EasyCal Excel'!CO60 -> within $500,000 | AD51: ='EasyCal Excel'!CQ60 -> 0 | AE51: ='EasyCal Excel'!CR60 -> 0 | AF51: ='EasyCal Excel'!CW60 -> 0 | AG51: ='EasyCal Excel'!CX60 -> 0 | AH51: ='EasyCal Excel'!CY60 -> 0 | AI51: ='EasyCal Excel'!CZ60 -> 0 | AJ51: ='EasyCal Excel'!DA60 -> 0 | AK51: ='EasyCal Excel'!DB60 -> 0 | AL51: ='EasyCal Excel'!DC60 -> 0
A52: ='EasyCal Excel'!A61 -> 52 | B52: ='EasyCal Excel'!B61 -> 0 | C52: ='EasyCal Excel'!C61 -> Please Select | D52: ='EasyCal Excel'!F61 -> 00:00:00 | E52: ='EasyCal Excel'!G61 -> 00:00:00 | F52: ='EasyCal Excel'!L61 -> Monthly-rated | G52: ='EasyCal Excel'!O61 -> 0 | H52: ='EasyCal Excel'!P61 -> 0 | I52: ='EasyCal Excel'!AD61 -> 0 | J52: ='EasyCal Excel'!AT61 -> 0 | K52: ='EasyCal Excel'!AU61 -> 0 | L52: ='EasyCal Excel'!AV61 -> MPF | M52: ='EasyCal Excel'!AX61 -> MC -> VC | N52: ='EasyCal Excel'!AZ61 -> 0 | O52: ='EasyCal Excel'!BA61 -> 0 | P52: ='EasyCal Excel'!BB61 -> 0 | Q52: ='EasyCal Excel'!BS61 -> N/A | R52: ='EasyCal Excel'!BU61 -> N/A | S52: ='EasyCal Excel'!BV61 -> No | T52: ='EasyCal Excel'!BY61 -> 0 | U52: ='EasyCal Excel'!BZ61 -> 0 | V52: ='EasyCal Excel'!CA61 -> 0 | W52: ='EasyCal Excel'!CB61 -> 0 | X52: ='EasyCal Excel'!CC61 -> 0 | Y52: ='EasyCal Excel'!CD61 -> 0 | Z52: ='EasyCal Excel'!CH61 -> N/A | AA52: ='EasyCal Excel'!CL61 -> 0 | AB52: ='EasyCal Excel'!CM61 -> N/A | AC52: ='EasyCal Excel'!CO61 -> within $500,000 | AD52: ='EasyCal Excel'!CQ61 -> 0 | AE52: ='EasyCal Excel'!CR61 -> 0 | AF52: ='EasyCal Excel'!CW61 -> 0 | AG52: ='EasyCal Excel'!CX61 -> 0 | AH52: ='EasyCal Excel'!CY61 -> 0 | AI52: ='EasyCal Excel'!CZ61 -> 0 | AJ52: ='EasyCal Excel'!DA61 -> 0 | AK52: ='EasyCal Excel'!DB61 -> 0 | AL52: ='EasyCal Excel'!DC61 -> 0
A53: ='EasyCal Excel'!A62 -> 53 | B53: ='EasyCal Excel'!B62 -> 0 | C53: ='EasyCal Excel'!C62 -> Please Select | D53: ='EasyCal Excel'!F62 -> 00:00:00 | E53: ='EasyCal Excel'!G62 -> 00:00:00 | F53: ='EasyCal Excel'!L62 -> Monthly-rated | G53: ='EasyCal Excel'!O62 -> 0 | H53: ='EasyCal Excel'!P62 -> 0 | I53: ='EasyCal Excel'!AD62 -> 0 | J53: ='EasyCal Excel'!AT62 -> 0 | K53: ='EasyCal Excel'!AU62 -> 0 | L53: ='EasyCal Excel'!AV62 -> MPF | M53: ='EasyCal Excel'!AX62 -> MC -> VC | N53: ='EasyCal Excel'!AZ62 -> 0 | O53: ='EasyCal Excel'!BA62 -> 0 | P53: ='EasyCal Excel'!BB62 -> 0 | Q53: ='EasyCal Excel'!BS62 -> N/A | R53: ='EasyCal Excel'!BU62 -> N/A | S53: ='EasyCal Excel'!BV62 -> No | T53: ='EasyCal Excel'!BY62 -> 0 | U53: ='EasyCal Excel'!BZ62 -> 0 | V53: ='EasyCal Excel'!CA62 -> 0 | W53: ='EasyCal Excel'!CB62 -> 0 | X53: ='EasyCal Excel'!CC62 -> 0 | Y53: ='EasyCal Excel'!CD62 -> 0 | Z53: ='EasyCal Excel'!CH62 -> N/A | AA53: ='EasyCal Excel'!CL62 -> 0 | AB53: ='EasyCal Excel'!CM62 -> N/A | AC53: ='EasyCal Excel'!CO62 -> within $500,000 | AD53: ='EasyCal Excel'!CQ62 -> 0 | AE53: ='EasyCal Excel'!CR62 -> 0 | AF53: ='EasyCal Excel'!CW62 -> 0 | AG53: ='EasyCal Excel'!CX62 -> 0 | AH53: ='EasyCal Excel'!CY62 -> 0 | AI53: ='EasyCal Excel'!CZ62 -> 0 | AJ53: ='EasyCal Excel'!DA62 -> 0 | AK53: ='EasyCal Excel'!DB62 -> 0 | AL53: ='EasyCal Excel'!DC62 -> 0
A54: ='EasyCal Excel'!A63 -> 54 | B54: ='EasyCal Excel'!B63 -> 0 | C54: ='EasyCal Excel'!C63 -> Please Select | D54: ='EasyCal Excel'!F63 -> 00:00:00 | E54: ='EasyCal Excel'!G63 -> 00:00:00 | F54: ='EasyCal Excel'!L63 -> Monthly-rated | G54: ='EasyCal Excel'!O63 -> 0 | H54: ='EasyCal Excel'!P63 -> 0 | I54: ='EasyCal Excel'!AD63 -> 0 | J54: ='EasyCal Excel'!AT63 -> 0 | K54: ='EasyCal Excel'!AU63 -> 0 | L54: ='EasyCal Excel'!AV63 -> MPF | M54: ='EasyCal Excel'!AX63 -> MC -> VC | N54: ='EasyCal Excel'!AZ63 -> 0 | O54: ='EasyCal Excel'!BA63 -> 0 | P54: ='EasyCal Excel'!BB63 -> 0 | Q54: ='EasyCal Excel'!BS63 -> N/A | R54: ='EasyCal Excel'!BU63 -> N/A | S54: ='EasyCal Excel'!BV63 -> No | T54: ='EasyCal Excel'!BY63 -> 0 | U54: ='EasyCal Excel'!BZ63 -> 0 | V54: ='EasyCal Excel'!CA63 -> 0 | W54: ='EasyCal Excel'!CB63 -> 0 | X54: ='EasyCal Excel'!CC63 -> 0 | Y54: ='EasyCal Excel'!CD63 -> 0 | Z54: ='EasyCal Excel'!CH63 -> N/A | AA54: ='EasyCal Excel'!CL63 -> 0 | AB54: ='EasyCal Excel'!CM63 -> N/A | AC54: ='EasyCal Excel'!CO63 -> within $500,000 | AD54: ='EasyCal Excel'!CQ63 -> 0 | AE54: ='EasyCal Excel'!CR63 -> 0 | AF54: ='EasyCal Excel'!CW63 -> 0 | AG54: ='EasyCal Excel'!CX63 -> 0 | AH54: ='EasyCal Excel'!CY63 -> 0 | AI54: ='EasyCal Excel'!CZ63 -> 0 | AJ54: ='EasyCal Excel'!DA63 -> 0 | AK54: ='EasyCal Excel'!DB63 -> 0 | AL54: ='EasyCal Excel'!DC63 -> 0
A55: ='EasyCal Excel'!A64 -> 55 | B55: ='EasyCal Excel'!B64 -> 0 | C55: ='EasyCal Excel'!C64 -> Please Select | D55: ='EasyCal Excel'!F64 -> 00:00:00 | E55: ='EasyCal Excel'!G64 -> 00:00:00 | F55: ='EasyCal Excel'!L64 -> Monthly-rated | G55: ='EasyCal Excel'!O64 -> 0 | H55: ='EasyCal Excel'!P64 -> 0 | I55: ='EasyCal Excel'!AD64 -> 0 | J55: ='EasyCal Excel'!AT64 -> 0 | K55: ='EasyCal Excel'!AU64 -> 0 | L55: ='EasyCal Excel'!AV64 -> MPF | M55: ='EasyCal Excel'!AX64 -> MC -> VC | N55: ='EasyCal Excel'!AZ64 -> 0 | O55: ='EasyCal Excel'!BA64 -> 0 | P55: ='EasyCal Excel'!BB64 -> 0 | Q55: ='EasyCal Excel'!BS64 -> N/A | R55: ='EasyCal Excel'!BU64 -> N/A | S55: ='EasyCal Excel'!BV64 -> No | T55: ='EasyCal Excel'!BY64 -> 0 | U55: ='EasyCal Excel'!BZ64 -> 0 | V55: ='EasyCal Excel'!CA64 -> 0 | W55: ='EasyCal Excel'!CB64 -> 0 | X55: ='EasyCal Excel'!CC64 -> 0 | Y55: ='EasyCal Excel'!CD64 -> 0 | Z55: ='EasyCal Excel'!CH64 -> N/A | AA55: ='EasyCal Excel'!CL64 -> 0 | AB55: ='EasyCal Excel'!CM64 -> N/A | AC55: ='EasyCal Excel'!CO64 -> within $500,000 | AD55: ='EasyCal Excel'!CQ64 -> 0 | AE55: ='EasyCal Excel'!CR64 -> 0 | AF55: ='EasyCal Excel'!CW64 -> 0 | AG55: ='EasyCal Excel'!CX64 -> 0 | AH55: ='EasyCal Excel'!CY64 -> 0 | AI55: ='EasyCal Excel'!CZ64 -> 0 | AJ55: ='EasyCal Excel'!DA64 -> 0 | AK55: ='EasyCal Excel'!DB64 -> 0 | AL55: ='EasyCal Excel'!DC64 -> 0
A56: ='EasyCal Excel'!A65 -> 56 | B56: ='EasyCal Excel'!B65 -> 0 | C56: ='EasyCal Excel'!C65 -> Please Select | D56: ='EasyCal Excel'!F65 -> 00:00:00 | E56: ='EasyCal Excel'!G65 -> 00:00:00 | F56: ='EasyCal Excel'!L65 -> Monthly-rated | G56: ='EasyCal Excel'!O65 -> 0 | H56: ='EasyCal Excel'!P65 -> 0 | I56: ='EasyCal Excel'!AD65 -> 0 | J56: ='EasyCal Excel'!AT65 -> 0 | K56: ='EasyCal Excel'!AU65 -> 0 | L56: ='EasyCal Excel'!AV65 -> MPF | M56: ='EasyCal Excel'!AX65 -> MC -> VC | N56: ='EasyCal Excel'!AZ65 -> 0 | O56: ='EasyCal Excel'!BA65 -> 0 | P56: ='EasyCal Excel'!BB65 -> 0 | Q56: ='EasyCal Excel'!BS65 -> N/A | R56: ='EasyCal Excel'!BU65 -> N/A | S56: ='EasyCal Excel'!BV65 -> No | T56: ='EasyCal Excel'!BY65 -> 0 | U56: ='EasyCal Excel'!BZ65 -> 0 | V56: ='EasyCal Excel'!CA65 -> 0 | W56: ='EasyCal Excel'!CB65 -> 0 | X56: ='EasyCal Excel'!CC65 -> 0 | Y56: ='EasyCal Excel'!CD65 -> 0 | Z56: ='EasyCal Excel'!CH65 -> N/A | AA56: ='EasyCal Excel'!CL65 -> 0 | AB56: ='EasyCal Excel'!CM65 -> N/A | AC56: ='EasyCal Excel'!CO65 -> within $500,000 | AD56: ='EasyCal Excel'!CQ65 -> 0 | AE56: ='EasyCal Excel'!CR65 -> 0 | AF56: ='EasyCal Excel'!CW65 -> 0 | AG56: ='EasyCal Excel'!CX65 -> 0 | AH56: ='EasyCal Excel'!CY65 -> 0 | AI56: ='EasyCal Excel'!CZ65 -> 0 | AJ56: ='EasyCal Excel'!DA65 -> 0 | AK56: ='EasyCal Excel'!DB65 -> 0 | AL56: ='EasyCal Excel'!DC65 -> 0
A57: ='EasyCal Excel'!A66 -> 57 | B57: ='EasyCal Excel'!B66 -> 0 | C57: ='EasyCal Excel'!C66 -> Please Select | D57: ='EasyCal Excel'!F66 -> 00:00:00 | E57: ='EasyCal Excel'!G66 -> 00:00:00 | F57: ='EasyCal Excel'!L66 -> Monthly-rated | G57: ='EasyCal Excel'!O66 -> 0 | H57: ='EasyCal Excel'!P66 -> 0 | I57: ='EasyCal Excel'!AD66 -> 0 | J57: ='EasyCal Excel'!AT66 -> 0 | K57: ='EasyCal Excel'!AU66 -> 0 | L57: ='EasyCal Excel'!AV66 -> MPF | M57: ='EasyCal Excel'!AX66 -> MC -> VC | N57: ='EasyCal Excel'!AZ66 -> 0 | O57: ='EasyCal Excel'!BA66 -> 0 | P57: ='EasyCal Excel'!BB66 -> 0 | Q57: ='EasyCal Excel'!BS66 -> N/A | R57: ='EasyCal Excel'!BU66 -> N/A | S57: ='EasyCal Excel'!BV66 -> No | T57: ='EasyCal Excel'!BY66 -> 0 | U57: ='EasyCal Excel'!BZ66 -> 0 | V57: ='EasyCal Excel'!CA66 -> 0 | W57: ='EasyCal Excel'!CB66 -> 0 | X57: ='EasyCal Excel'!CC66 -> 0 | Y57: ='EasyCal Excel'!CD66 -> 0 | Z57: ='EasyCal Excel'!CH66 -> N/A | AA57: ='EasyCal Excel'!CL66 -> 0 | AB57: ='EasyCal Excel'!CM66 -> N/A | AC57: ='EasyCal Excel'!CO66 -> within $500,000 | AD57: ='EasyCal Excel'!CQ66 -> 0 | AE57: ='EasyCal Excel'!CR66 -> 0 | AF57: ='EasyCal Excel'!CW66 -> 0 | AG57: ='EasyCal Excel'!CX66 -> 0 | AH57: ='EasyCal Excel'!CY66 -> 0 | AI57: ='EasyCal Excel'!CZ66 -> 0 | AJ57: ='EasyCal Excel'!DA66 -> 0 | AK57: ='EasyCal Excel'!DB66 -> 0 | AL57: ='EasyCal Excel'!DC66 -> 0
A58: ='EasyCal Excel'!A67 -> 58 | B58: ='EasyCal Excel'!B67 -> 0 | C58: ='EasyCal Excel'!C67 -> Please Select | D58: ='EasyCal Excel'!F67 -> 00:00:00 | E58: ='EasyCal Excel'!G67 -> 00:00:00 | F58: ='EasyCal Excel'!L67 -> Monthly-rated | G58: ='EasyCal Excel'!O67 -> 0 | H58: ='EasyCal Excel'!P67 -> 0 | I58: ='EasyCal Excel'!AD67 -> 0 | J58: ='EasyCal Excel'!AT67 -> 0 | K58: ='EasyCal Excel'!AU67 -> 0 | L58: ='EasyCal Excel'!AV67 -> MPF | M58: ='EasyCal Excel'!AX67 -> MC -> VC | N58: ='EasyCal Excel'!AZ67 -> 0 | O58: ='EasyCal Excel'!BA67 -> 0 | P58: ='EasyCal Excel'!BB67 -> 0 | Q58: ='EasyCal Excel'!BS67 -> N/A | R58: ='EasyCal Excel'!BU67 -> N/A | S58: ='EasyCal Excel'!BV67 -> No | T58: ='EasyCal Excel'!BY67 -> 0 | U58: ='EasyCal Excel'!BZ67 -> 0 | V58: ='EasyCal Excel'!CA67 -> 0 | W58: ='EasyCal Excel'!CB67 -> 0 | X58: ='EasyCal Excel'!CC67 -> 0 | Y58: ='EasyCal Excel'!CD67 -> 0 | Z58: ='EasyCal Excel'!CH67 -> N/A | AA58: ='EasyCal Excel'!CL67 -> 0 | AB58: ='EasyCal Excel'!CM67 -> N/A | AC58: ='EasyCal Excel'!CO67 -> within $500,000 | AD58: ='EasyCal Excel'!CQ67 -> 0 | AE58: ='EasyCal Excel'!CR67 -> 0 | AF58: ='EasyCal Excel'!CW67 -> 0 | AG58: ='EasyCal Excel'!CX67 -> 0 | AH58: ='EasyCal Excel'!CY67 -> 0 | AI58: ='EasyCal Excel'!CZ67 -> 0 | AJ58: ='EasyCal Excel'!DA67 -> 0 | AK58: ='EasyCal Excel'!DB67 -> 0 | AL58: ='EasyCal Excel'!DC67 -> 0
A59: ='EasyCal Excel'!A68 -> 59 | B59: ='EasyCal Excel'!B68 -> 0 | C59: ='EasyCal Excel'!C68 -> Please Select | D59: ='EasyCal Excel'!F68 -> 00:00:00 | E59: ='EasyCal Excel'!G68 -> 00:00:00 | F59: ='EasyCal Excel'!L68 -> Monthly-rated | G59: ='EasyCal Excel'!O68 -> 0 | H59: ='EasyCal Excel'!P68 -> 0 | I59: ='EasyCal Excel'!AD68 -> 0 | J59: ='EasyCal Excel'!AT68 -> 0 | K59: ='EasyCal Excel'!AU68 -> 0 | L59: ='EasyCal Excel'!AV68 -> MPF | M59: ='EasyCal Excel'!AX68 -> MC -> VC | N59: ='EasyCal Excel'!AZ68 -> 0 | O59: ='EasyCal Excel'!BA68 -> 0 | P59: ='EasyCal Excel'!BB68 -> 0 | Q59: ='EasyCal Excel'!BS68 -> N/A | R59: ='EasyCal Excel'!BU68 -> N/A | S59: ='EasyCal Excel'!BV68 -> No | T59: ='EasyCal Excel'!BY68 -> 0 | U59: ='EasyCal Excel'!BZ68 -> 0 | V59: ='EasyCal Excel'!CA68 -> 0 | W59: ='EasyCal Excel'!CB68 -> 0 | X59: ='EasyCal Excel'!CC68 -> 0 | Y59: ='EasyCal Excel'!CD68 -> 0 | Z59: ='EasyCal Excel'!CH68 -> N/A | AA59: ='EasyCal Excel'!CL68 -> 0 | AB59: ='EasyCal Excel'!CM68 -> N/A | AC59: ='EasyCal Excel'!CO68 -> within $500,000 | AD59: ='EasyCal Excel'!CQ68 -> 0 | AE59: ='EasyCal Excel'!CR68 -> 0 | AF59: ='EasyCal Excel'!CW68 -> 0 | AG59: ='EasyCal Excel'!CX68 -> 0 | AH59: ='EasyCal Excel'!CY68 -> 0 | AI59: ='EasyCal Excel'!CZ68 -> 0 | AJ59: ='EasyCal Excel'!DA68 -> 0 | AK59: ='EasyCal Excel'!DB68 -> 0 | AL59: ='EasyCal Excel'!DC68 -> 0
A60: ='EasyCal Excel'!A69 -> 60 | B60: ='EasyCal Excel'!B69 -> 0 | C60: ='EasyCal Excel'!C69 -> Please Select | D60: ='EasyCal Excel'!F69 -> 00:00:00 | E60: ='EasyCal Excel'!G69 -> 00:00:00 | F60: ='EasyCal Excel'!L69 -> Monthly-rated | G60: ='EasyCal Excel'!O69 -> 0 | H60: ='EasyCal Excel'!P69 -> 0 | I60: ='EasyCal Excel'!AD69 -> 0 | J60: ='EasyCal Excel'!AT69 -> 0 | K60: ='EasyCal Excel'!AU69 -> 0 | L60: ='EasyCal Excel'!AV69 -> MPF | M60: ='EasyCal Excel'!AX69 -> MC -> VC | N60: ='EasyCal Excel'!AZ69 -> 0 | O60: ='EasyCal Excel'!BA69 -> 0 | P60: ='EasyCal Excel'!BB69 -> 0 | Q60: ='EasyCal Excel'!BS69 -> N/A | R60: ='EasyCal Excel'!BU69 -> N/A | S60: ='EasyCal Excel'!BV69 -> No | T60: ='EasyCal Excel'!BY69 -> 0 | U60: ='EasyCal Excel'!BZ69 -> 0 | V60: ='EasyCal Excel'!CA69 -> 0 | W60: ='EasyCal Excel'!CB69 -> 0 | X60: ='EasyCal Excel'!CC69 -> 0 | Y60: ='EasyCal Excel'!CD69 -> 0 | Z60: ='EasyCal Excel'!CH69 -> N/A | AA60: ='EasyCal Excel'!CL69 -> 0 | AB60: ='EasyCal Excel'!CM69 -> N/A | AC60: ='EasyCal Excel'!CO69 -> within $500,000 | AD60: ='EasyCal Excel'!CQ69 -> 0 | AE60: ='EasyCal Excel'!CR69 -> 0 | AF60: ='EasyCal Excel'!CW69 -> 0 | AG60: ='EasyCal Excel'!CX69 -> 0 | AH60: ='EasyCal Excel'!CY69 -> 0 | AI60: ='EasyCal Excel'!CZ69 -> 0 | AJ60: ='EasyCal Excel'!DA69 -> 0 | AK60: ='EasyCal Excel'!DB69 -> 0 | AL60: ='EasyCal Excel'!DC69 -> 0
A61: ='EasyCal Excel'!A70 -> 61 | B61: ='EasyCal Excel'!B70 -> 0 | C61: ='EasyCal Excel'!C70 -> Please Select | D61: ='EasyCal Excel'!F70 -> 00:00:00 | E61: ='EasyCal Excel'!G70 -> 00:00:00 | F61: ='EasyCal Excel'!L70 -> Monthly-rated | G61: ='EasyCal Excel'!O70 -> 0 | H61: ='EasyCal Excel'!P70 -> 0 | I61: ='EasyCal Excel'!AD70 -> 0 | J61: ='EasyCal Excel'!AT70 -> 0 | K61: ='EasyCal Excel'!AU70 -> 0 | L61: ='EasyCal Excel'!AV70 -> MPF | M61: ='EasyCal Excel'!AX70 -> MC -> VC | N61: ='EasyCal Excel'!AZ70 -> 0 | O61: ='EasyCal Excel'!BA70 -> 0 | P61: ='EasyCal Excel'!BB70 -> 0 | Q61: ='EasyCal Excel'!BS70 -> N/A | R61: ='EasyCal Excel'!BU70 -> N/A | S61: ='EasyCal Excel'!BV70 -> No | T61: ='EasyCal Excel'!BY70 -> 0 | U61: ='EasyCal Excel'!BZ70 -> 0 | V61: ='EasyCal Excel'!CA70 -> 0 | W61: ='EasyCal Excel'!CB70 -> 0 | X61: ='EasyCal Excel'!CC70 -> 0 | Y61: ='EasyCal Excel'!CD70 -> 0 | Z61: ='EasyCal Excel'!CH70 -> N/A | AA61: ='EasyCal Excel'!CL70 -> 0 | AB61: ='EasyCal Excel'!CM70 -> N/A | AC61: ='EasyCal Excel'!CO70 -> within $500,000 | AD61: ='EasyCal Excel'!CQ70 -> 0 | AE61: ='EasyCal Excel'!CR70 -> 0 | AF61: ='EasyCal Excel'!CW70 -> 0 | AG61: ='EasyCal Excel'!CX70 -> 0 | AH61: ='EasyCal Excel'!CY70 -> 0 | AI61: ='EasyCal Excel'!CZ70 -> 0 | AJ61: ='EasyCal Excel'!DA70 -> 0 | AK61: ='EasyCal Excel'!DB70 -> 0 | AL61: ='EasyCal Excel'!DC70 -> 0
A62: ='EasyCal Excel'!A71 -> 62 | B62: ='EasyCal Excel'!B71 -> 0 | C62: ='EasyCal Excel'!C71 -> Please Select | D62: ='EasyCal Excel'!F71 -> 00:00:00 | E62: ='EasyCal Excel'!G71 -> 00:00:00 | F62: ='EasyCal Excel'!L71 -> Monthly-rated | G62: ='EasyCal Excel'!O71 -> 0 | H62: ='EasyCal Excel'!P71 -> 0 | I62: ='EasyCal Excel'!AD71 -> 0 | J62: ='EasyCal Excel'!AT71 -> 0 | K62: ='EasyCal Excel'!AU71 -> 0 | L62: ='EasyCal Excel'!AV71 -> MPF | M62: ='EasyCal Excel'!AX71 -> MC -> VC | N62: ='EasyCal Excel'!AZ71 -> 0 | O62: ='EasyCal Excel'!BA71 -> 0 | P62: ='EasyCal Excel'!BB71 -> 0 | Q62: ='EasyCal Excel'!BS71 -> N/A | R62: ='EasyCal Excel'!BU71 -> N/A | S62: ='EasyCal Excel'!BV71 -> No | T62: ='EasyCal Excel'!BY71 -> 0 | U62: ='EasyCal Excel'!BZ71 -> 0 | V62: ='EasyCal Excel'!CA71 -> 0 | W62: ='EasyCal Excel'!CB71 -> 0 | X62: ='EasyCal Excel'!CC71 -> 0 | Y62: ='EasyCal Excel'!CD71 -> 0 | Z62: ='EasyCal Excel'!CH71 -> N/A | AA62: ='EasyCal Excel'!CL71 -> 0 | AB62: ='EasyCal Excel'!CM71 -> N/A | AC62: ='EasyCal Excel'!CO71 -> within $500,000 | AD62: ='EasyCal Excel'!CQ71 -> 0 | AE62: ='EasyCal Excel'!CR71 -> 0 | AF62: ='EasyCal Excel'!CW71 -> 0 | AG62: ='EasyCal Excel'!CX71 -> 0 | AH62: ='EasyCal Excel'!CY71 -> 0 | AI62: ='EasyCal Excel'!CZ71 -> 0 | AJ62: ='EasyCal Excel'!DA71 -> 0 | AK62: ='EasyCal Excel'!DB71 -> 0 | AL62: ='EasyCal Excel'!DC71 -> 0
A63: ='EasyCal Excel'!A72 -> 63 | B63: ='EasyCal Excel'!B72 -> 0 | C63: ='EasyCal Excel'!C72 -> Please Select | D63: ='EasyCal Excel'!F72 -> 00:00:00 | E63: ='EasyCal Excel'!G72 -> 00:00:00 | F63: ='EasyCal Excel'!L72 -> Monthly-rated | G63: ='EasyCal Excel'!O72 -> 0 | H63: ='EasyCal Excel'!P72 -> 0 | I63: ='EasyCal Excel'!AD72 -> 0 | J63: ='EasyCal Excel'!AT72 -> 0 | K63: ='EasyCal Excel'!AU72 -> 0 | L63: ='EasyCal Excel'!AV72 -> MPF | M63: ='EasyCal Excel'!AX72 -> MC -> VC | N63: ='EasyCal Excel'!AZ72 -> 0 | O63: ='EasyCal Excel'!BA72 -> 0 | P63: ='EasyCal Excel'!BB72 -> 0 | Q63: ='EasyCal Excel'!BS72 -> N/A | R63: ='EasyCal Excel'!BU72 -> N/A | S63: ='EasyCal Excel'!BV72 -> No | T63: ='EasyCal Excel'!BY72 -> 0 | U63: ='EasyCal Excel'!BZ72 -> 0 | V63: ='EasyCal Excel'!CA72 -> 0 | W63: ='EasyCal Excel'!CB72 -> 0 | X63: ='EasyCal Excel'!CC72 -> 0 | Y63: ='EasyCal Excel'!CD72 -> 0 | Z63: ='EasyCal Excel'!CH72 -> N/A | AA63: ='EasyCal Excel'!CL72 -> 0 | AB63: ='EasyCal Excel'!CM72 -> N/A | AC63: ='EasyCal Excel'!CO72 -> within $500,000 | AD63: ='EasyCal Excel'!CQ72 -> 0 | AE63: ='EasyCal Excel'!CR72 -> 0 | AF63: ='EasyCal Excel'!CW72 -> 0 | AG63: ='EasyCal Excel'!CX72 -> 0 | AH63: ='EasyCal Excel'!CY72 -> 0 | AI63: ='EasyCal Excel'!CZ72 -> 0 | AJ63: ='EasyCal Excel'!DA72 -> 0 | AK63: ='EasyCal Excel'!DB72 -> 0 | AL63: ='EasyCal Excel'!DC72 -> 0
A64: ='EasyCal Excel'!A73 -> 64 | B64: ='EasyCal Excel'!B73 -> 0 | C64: ='EasyCal Excel'!C73 -> Please Select | D64: ='EasyCal Excel'!F73 -> 00:00:00 | E64: ='EasyCal Excel'!G73 -> 00:00:00 | F64: ='EasyCal Excel'!L73 -> Monthly-rated | G64: ='EasyCal Excel'!O73 -> 0 | H64: ='EasyCal Excel'!P73 -> 0 | I64: ='EasyCal Excel'!AD73 -> 0 | J64: ='EasyCal Excel'!AT73 -> 0 | K64: ='EasyCal Excel'!AU73 -> 0 | L64: ='EasyCal Excel'!AV73 -> MPF | M64: ='EasyCal Excel'!AX73 -> MC -> VC | N64: ='EasyCal Excel'!AZ73 -> 0 | O64: ='EasyCal Excel'!BA73 -> 0 | P64: ='EasyCal Excel'!BB73 -> 0 | Q64: ='EasyCal Excel'!BS73 -> N/A | R64: ='EasyCal Excel'!BU73 -> N/A | S64: ='EasyCal Excel'!BV73 -> No | T64: ='EasyCal Excel'!BY73 -> 0 | U64: ='EasyCal Excel'!BZ73 -> 0 | V64: ='EasyCal Excel'!CA73 -> 0 | W64: ='EasyCal Excel'!CB73 -> 0 | X64: ='EasyCal Excel'!CC73 -> 0 | Y64: ='EasyCal Excel'!CD73 -> 0 | Z64: ='EasyCal Excel'!CH73 -> N/A | AA64: ='EasyCal Excel'!CL73 -> 0 | AB64: ='EasyCal Excel'!CM73 -> N/A | AC64: ='EasyCal Excel'!CO73 -> within $500,000 | AD64: ='EasyCal Excel'!CQ73 -> 0 | AE64: ='EasyCal Excel'!CR73 -> 0 | AF64: ='EasyCal Excel'!CW73 -> 0 | AG64: ='EasyCal Excel'!CX73 -> 0 | AH64: ='EasyCal Excel'!CY73 -> 0 | AI64: ='EasyCal Excel'!CZ73 -> 0 | AJ64: ='EasyCal Excel'!DA73 -> 0 | AK64: ='EasyCal Excel'!DB73 -> 0 | AL64: ='EasyCal Excel'!DC73 -> 0
A65: ='EasyCal Excel'!A74 -> 65 | B65: ='EasyCal Excel'!B74 -> 0 | C65: ='EasyCal Excel'!C74 -> Please Select | D65: ='EasyCal Excel'!F74 -> 00:00:00 | E65: ='EasyCal Excel'!G74 -> 00:00:00 | F65: ='EasyCal Excel'!L74 -> Monthly-rated | G65: ='EasyCal Excel'!O74 -> 0 | H65: ='EasyCal Excel'!P74 -> 0 | I65: ='EasyCal Excel'!AD74 -> 0 | J65: ='EasyCal Excel'!AT74 -> 0 | K65: ='EasyCal Excel'!AU74 -> 0 | L65: ='EasyCal Excel'!AV74 -> MPF | M65: ='EasyCal Excel'!AX74 -> MC -> VC | N65: ='EasyCal Excel'!AZ74 -> 0 | O65: ='EasyCal Excel'!BA74 -> 0 | P65: ='EasyCal Excel'!BB74 -> 0 | Q65: ='EasyCal Excel'!BS74 -> N/A | R65: ='EasyCal Excel'!BU74 -> N/A | S65: ='EasyCal Excel'!BV74 -> No | T65: ='EasyCal Excel'!BY74 -> 0 | U65: ='EasyCal Excel'!BZ74 -> 0 | V65: ='EasyCal Excel'!CA74 -> 0 | W65: ='EasyCal Excel'!CB74 -> 0 | X65: ='EasyCal Excel'!CC74 -> 0 | Y65: ='EasyCal Excel'!CD74 -> 0 | Z65: ='EasyCal Excel'!CH74 -> N/A | AA65: ='EasyCal Excel'!CL74 -> 0 | AB65: ='EasyCal Excel'!CM74 -> N/A | AC65: ='EasyCal Excel'!CO74 -> within $500,000 | AD65: ='EasyCal Excel'!CQ74 -> 0 | AE65: ='EasyCal Excel'!CR74 -> 0 | AF65: ='EasyCal Excel'!CW74 -> 0 | AG65: ='EasyCal Excel'!CX74 -> 0 | AH65: ='EasyCal Excel'!CY74 -> 0 | AI65: ='EasyCal Excel'!CZ74 -> 0 | AJ65: ='EasyCal Excel'!DA74 -> 0 | AK65: ='EasyCal Excel'!DB74 -> 0 | AL65: ='EasyCal Excel'!DC74 -> 0
A66: ='EasyCal Excel'!A75 -> 66 | B66: ='EasyCal Excel'!B75 -> 0 | C66: ='EasyCal Excel'!C75 -> Please Select | D66: ='EasyCal Excel'!F75 -> 00:00:00 | E66: ='EasyCal Excel'!G75 -> 00:00:00 | F66: ='EasyCal Excel'!L75 -> Monthly-rated | G66: ='EasyCal Excel'!O75 -> 0 | H66: ='EasyCal Excel'!P75 -> 0 | I66: ='EasyCal Excel'!AD75 -> 0 | J66: ='EasyCal Excel'!AT75 -> 0 | K66: ='EasyCal Excel'!AU75 -> 0 | L66: ='EasyCal Excel'!AV75 -> MPF | M66: ='EasyCal Excel'!AX75 -> MC -> VC | N66: ='EasyCal Excel'!AZ75 -> 0 | O66: ='EasyCal Excel'!BA75 -> 0 | P66: ='EasyCal Excel'!BB75 -> 0 | Q66: ='EasyCal Excel'!BS75 -> N/A | R66: ='EasyCal Excel'!BU75 -> N/A | S66: ='EasyCal Excel'!BV75 -> No | T66: ='EasyCal Excel'!BY75 -> 0 | U66: ='EasyCal Excel'!BZ75 -> 0 | V66: ='EasyCal Excel'!CA75 -> 0 | W66: ='EasyCal Excel'!CB75 -> 0 | X66: ='EasyCal Excel'!CC75 -> 0 | Y66: ='EasyCal Excel'!CD75 -> 0 | Z66: ='EasyCal Excel'!CH75 -> N/A | AA66: ='EasyCal Excel'!CL75 -> 0 | AB66: ='EasyCal Excel'!CM75 -> N/A | AC66: ='EasyCal Excel'!CO75 -> within $500,000 | AD66: ='EasyCal Excel'!CQ75 -> 0 | AE66: ='EasyCal Excel'!CR75 -> 0 | AF66: ='EasyCal Excel'!CW75 -> 0 | AG66: ='EasyCal Excel'!CX75 -> 0 | AH66: ='EasyCal Excel'!CY75 -> 0 | AI66: ='EasyCal Excel'!CZ75 -> 0 | AJ66: ='EasyCal Excel'!DA75 -> 0 | AK66: ='EasyCal Excel'!DB75 -> 0 | AL66: ='EasyCal Excel'!DC75 -> 0
A67: ='EasyCal Excel'!A76 -> 67 | B67: ='EasyCal Excel'!B76 -> 0 | C67: ='EasyCal Excel'!C76 -> Please Select | D67: ='EasyCal Excel'!F76 -> 00:00:00 | E67: ='EasyCal Excel'!G76 -> 00:00:00 | F67: ='EasyCal Excel'!L76 -> Monthly-rated | G67: ='EasyCal Excel'!O76 -> 0 | H67: ='EasyCal Excel'!P76 -> 0 | I67: ='EasyCal Excel'!AD76 -> 0 | J67: ='EasyCal Excel'!AT76 -> 0 | K67: ='EasyCal Excel'!AU76 -> 0 | L67: ='EasyCal Excel'!AV76 -> MPF | M67: ='EasyCal Excel'!AX76 -> MC -> VC | N67: ='EasyCal Excel'!AZ76 -> 0 | O67: ='EasyCal Excel'!BA76 -> 0 | P67: ='EasyCal Excel'!BB76 -> 0 | Q67: ='EasyCal Excel'!BS76 -> N/A | R67: ='EasyCal Excel'!BU76 -> N/A | S67: ='EasyCal Excel'!BV76 -> No | T67: ='EasyCal Excel'!BY76 -> 0 | U67: ='EasyCal Excel'!BZ76 -> 0 | V67: ='EasyCal Excel'!CA76 -> 0 | W67: ='EasyCal Excel'!CB76 -> 0 | X67: ='EasyCal Excel'!CC76 -> 0 | Y67: ='EasyCal Excel'!CD76 -> 0 | Z67: ='EasyCal Excel'!CH76 -> N/A | AA67: ='EasyCal Excel'!CL76 -> 0 | AB67: ='EasyCal Excel'!CM76 -> N/A | AC67: ='EasyCal Excel'!CO76 -> within $500,000 | AD67: ='EasyCal Excel'!CQ76 -> 0 | AE67: ='EasyCal Excel'!CR76 -> 0 | AF67: ='EasyCal Excel'!CW76 -> 0 | AG67: ='EasyCal Excel'!CX76 -> 0 | AH67: ='EasyCal Excel'!CY76 -> 0 | AI67: ='EasyCal Excel'!CZ76 -> 0 | AJ67: ='EasyCal Excel'!DA76 -> 0 | AK67: ='EasyCal Excel'!DB76 -> 0 | AL67: ='EasyCal Excel'!DC76 -> 0
A68: ='EasyCal Excel'!A77 -> 68 | B68: ='EasyCal Excel'!B77 -> 0 | C68: ='EasyCal Excel'!C77 -> Please Select | D68: ='EasyCal Excel'!F77 -> 00:00:00 | E68: ='EasyCal Excel'!G77 -> 00:00:00 | F68: ='EasyCal Excel'!L77 -> Monthly-rated | G68: ='EasyCal Excel'!O77 -> 0 | H68: ='EasyCal Excel'!P77 -> 0 | I68: ='EasyCal Excel'!AD77 -> 0 | J68: ='EasyCal Excel'!AT77 -> 0 | K68: ='EasyCal Excel'!AU77 -> 0 | L68: ='EasyCal Excel'!AV77 -> MPF | M68: ='EasyCal Excel'!AX77 -> MC -> VC | N68: ='EasyCal Excel'!AZ77 -> 0 | O68: ='EasyCal Excel'!BA77 -> 0 | P68: ='EasyCal Excel'!BB77 -> 0 | Q68: ='EasyCal Excel'!BS77 -> N/A | R68: ='EasyCal Excel'!BU77 -> N/A | S68: ='EasyCal Excel'!BV77 -> No | T68: ='EasyCal Excel'!BY77 -> 0 | U68: ='EasyCal Excel'!BZ77 -> 0 | V68: ='EasyCal Excel'!CA77 -> 0 | W68: ='EasyCal Excel'!CB77 -> 0 | X68: ='EasyCal Excel'!CC77 -> 0 | Y68: ='EasyCal Excel'!CD77 -> 0 | Z68: ='EasyCal Excel'!CH77 -> N/A | AA68: ='EasyCal Excel'!CL77 -> 0 | AB68: ='EasyCal Excel'!CM77 -> N/A | AC68: ='EasyCal Excel'!CO77 -> within $500,000 | AD68: ='EasyCal Excel'!CQ77 -> 0 | AE68: ='EasyCal Excel'!CR77 -> 0 | AF68: ='EasyCal Excel'!CW77 -> 0 | AG68: ='EasyCal Excel'!CX77 -> 0 | AH68: ='EasyCal Excel'!CY77 -> 0 | AI68: ='EasyCal Excel'!CZ77 -> 0 | AJ68: ='EasyCal Excel'!DA77 -> 0 | AK68: ='EasyCal Excel'!DB77 -> 0 | AL68: ='EasyCal Excel'!DC77 -> 0
A69: ='EasyCal Excel'!A78 -> 69 | B69: ='EasyCal Excel'!B78 -> 0 | C69: ='EasyCal Excel'!C78 -> Please Select | D69: ='EasyCal Excel'!F78 -> 00:00:00 | E69: ='EasyCal Excel'!G78 -> 00:00:00 | F69: ='EasyCal Excel'!L78 -> Monthly-rated | G69: ='EasyCal Excel'!O78 -> 0 | H69: ='EasyCal Excel'!P78 -> 0 | I69: ='EasyCal Excel'!AD78 -> 0 | J69: ='EasyCal Excel'!AT78 -> 0 | K69: ='EasyCal Excel'!AU78 -> 0 | L69: ='EasyCal Excel'!AV78 -> MPF | M69: ='EasyCal Excel'!AX78 -> MC -> VC | N69: ='EasyCal Excel'!AZ78 -> 0 | O69: ='EasyCal Excel'!BA78 -> 0 | P69: ='EasyCal Excel'!BB78 -> 0 | Q69: ='EasyCal Excel'!BS78 -> N/A | R69: ='EasyCal Excel'!BU78 -> N/A | S69: ='EasyCal Excel'!BV78 -> No | T69: ='EasyCal Excel'!BY78 -> 0 | U69: ='EasyCal Excel'!BZ78 -> 0 | V69: ='EasyCal Excel'!CA78 -> 0 | W69: ='EasyCal Excel'!CB78 -> 0 | X69: ='EasyCal Excel'!CC78 -> 0 | Y69: ='EasyCal Excel'!CD78 -> 0 | Z69: ='EasyCal Excel'!CH78 -> N/A | AA69: ='EasyCal Excel'!CL78 -> 0 | AB69: ='EasyCal Excel'!CM78 -> N/A | AC69: ='EasyCal Excel'!CO78 -> within $500,000 | AD69: ='EasyCal Excel'!CQ78 -> 0 | AE69: ='EasyCal Excel'!CR78 -> 0 | AF69: ='EasyCal Excel'!CW78 -> 0 | AG69: ='EasyCal Excel'!CX78 -> 0 | AH69: ='EasyCal Excel'!CY78 -> 0 | AI69: ='EasyCal Excel'!CZ78 -> 0 | AJ69: ='EasyCal Excel'!DA78 -> 0 | AK69: ='EasyCal Excel'!DB78 -> 0 | AL69: ='EasyCal Excel'!DC78 -> 0
A70: ='EasyCal Excel'!A79 -> 70 | B70: ='EasyCal Excel'!B79 -> 0 | C70: ='EasyCal Excel'!C79 -> Please Select | D70: ='EasyCal Excel'!F79 -> 00:00:00 | E70: ='EasyCal Excel'!G79 -> 00:00:00 | F70: ='EasyCal Excel'!L79 -> Monthly-rated | G70: ='EasyCal Excel'!O79 -> 0 | H70: ='EasyCal Excel'!P79 -> 0 | I70: ='EasyCal Excel'!AD79 -> 0 | J70: ='EasyCal Excel'!AT79 -> 0 | K70: ='EasyCal Excel'!AU79 -> 0 | L70: ='EasyCal Excel'!AV79 -> MPF | M70: ='EasyCal Excel'!AX79 -> MC -> VC | N70: ='EasyCal Excel'!AZ79 -> 0 | O70: ='EasyCal Excel'!BA79 -> 0 | P70: ='EasyCal Excel'!BB79 -> 0 | Q70: ='EasyCal Excel'!BS79 -> N/A | R70: ='EasyCal Excel'!BU79 -> N/A | S70: ='EasyCal Excel'!BV79 -> No | T70: ='EasyCal Excel'!BY79 -> 0 | U70: ='EasyCal Excel'!BZ79 -> 0 | V70: ='EasyCal Excel'!CA79 -> 0 | W70: ='EasyCal Excel'!CB79 -> 0 | X70: ='EasyCal Excel'!CC79 -> 0 | Y70: ='EasyCal Excel'!CD79 -> 0 | Z70: ='EasyCal Excel'!CH79 -> N/A | AA70: ='EasyCal Excel'!CL79 -> 0 | AB70: ='EasyCal Excel'!CM79 -> N/A | AC70: ='EasyCal Excel'!CO79 -> within $500,000 | AD70: ='EasyCal Excel'!CQ79 -> 0 | AE70: ='EasyCal Excel'!CR79 -> 0 | AF70: ='EasyCal Excel'!CW79 -> 0 | AG70: ='EasyCal Excel'!CX79 -> 0 | AH70: ='EasyCal Excel'!CY79 -> 0 | AI70: ='EasyCal Excel'!CZ79 -> 0 | AJ70: ='EasyCal Excel'!DA79 -> 0 | AK70: ='EasyCal Excel'!DB79 -> 0 | AL70: ='EasyCal Excel'!DC79 -> 0
A71: ='EasyCal Excel'!A80 -> 71 | B71: ='EasyCal Excel'!B80 -> 0 | C71: ='EasyCal Excel'!C80 -> Please Select | D71: ='EasyCal Excel'!F80 -> 00:00:00 | E71: ='EasyCal Excel'!G80 -> 00:00:00 | F71: ='EasyCal Excel'!L80 -> Monthly-rated | G71: ='EasyCal Excel'!O80 -> 0 | H71: ='EasyCal Excel'!P80 -> 0 | I71: ='EasyCal Excel'!AD80 -> 0 | J71: ='EasyCal Excel'!AT80 -> 0 | K71: ='EasyCal Excel'!AU80 -> 0 | L71: ='EasyCal Excel'!AV80 -> MPF | M71: ='EasyCal Excel'!AX80 -> MC -> VC | N71: ='EasyCal Excel'!AZ80 -> 0 | O71: ='EasyCal Excel'!BA80 -> 0 | P71: ='EasyCal Excel'!BB80 -> 0 | Q71: ='EasyCal Excel'!BS80 -> N/A | R71: ='EasyCal Excel'!BU80 -> N/A | S71: ='EasyCal Excel'!BV80 -> No | T71: ='EasyCal Excel'!BY80 -> 0 | U71: ='EasyCal Excel'!BZ80 -> 0 | V71: ='EasyCal Excel'!CA80 -> 0 | W71: ='EasyCal Excel'!CB80 -> 0 | X71: ='EasyCal Excel'!CC80 -> 0 | Y71: ='EasyCal Excel'!CD80 -> 0 | Z71: ='EasyCal Excel'!CH80 -> N/A | AA71: ='EasyCal Excel'!CL80 -> 0 | AB71: ='EasyCal Excel'!CM80 -> N/A | AC71: ='EasyCal Excel'!CO80 -> within $500,000 | AD71: ='EasyCal Excel'!CQ80 -> 0 | AE71: ='EasyCal Excel'!CR80 -> 0 | AF71: ='EasyCal Excel'!CW80 -> 0 | AG71: ='EasyCal Excel'!CX80 -> 0 | AH71: ='EasyCal Excel'!CY80 -> 0 | AI71: ='EasyCal Excel'!CZ80 -> 0 | AJ71: ='EasyCal Excel'!DA80 -> 0 | AK71: ='EasyCal Excel'!DB80 -> 0 | AL71: ='EasyCal Excel'!DC80 -> 0
A72: ='EasyCal Excel'!A81 -> 72 | B72: ='EasyCal Excel'!B81 -> 0 | C72: ='EasyCal Excel'!C81 -> Please Select | D72: ='EasyCal Excel'!F81 -> 00:00:00 | E72: ='EasyCal Excel'!G81 -> 00:00:00 | F72: ='EasyCal Excel'!L81 -> Monthly-rated | G72: ='EasyCal Excel'!O81 -> 0 | H72: ='EasyCal Excel'!P81 -> 0 | I72: ='EasyCal Excel'!AD81 -> 0 | J72: ='EasyCal Excel'!AT81 -> 0 | K72: ='EasyCal Excel'!AU81 -> 0 | L72: ='EasyCal Excel'!AV81 -> MPF | M72: ='EasyCal Excel'!AX81 -> MC -> VC | N72: ='EasyCal Excel'!AZ81 -> 0 | O72: ='EasyCal Excel'!BA81 -> 0 | P72: ='EasyCal Excel'!BB81 -> 0 | Q72: ='EasyCal Excel'!BS81 -> N/A | R72: ='EasyCal Excel'!BU81 -> N/A | S72: ='EasyCal Excel'!BV81 -> No | T72: ='EasyCal Excel'!BY81 -> 0 | U72: ='EasyCal Excel'!BZ81 -> 0 | V72: ='EasyCal Excel'!CA81 -> 0 | W72: ='EasyCal Excel'!CB81 -> 0 | X72: ='EasyCal Excel'!CC81 -> 0 | Y72: ='EasyCal Excel'!CD81 -> 0 | Z72: ='EasyCal Excel'!CH81 -> N/A | AA72: ='EasyCal Excel'!CL81 -> 0 | AB72: ='EasyCal Excel'!CM81 -> N/A | AC72: ='EasyCal Excel'!CO81 -> within $500,000 | AD72: ='EasyCal Excel'!CQ81 -> 0 | AE72: ='EasyCal Excel'!CR81 -> 0 | AF72: ='EasyCal Excel'!CW81 -> 0 | AG72: ='EasyCal Excel'!CX81 -> 0 | AH72: ='EasyCal Excel'!CY81 -> 0 | AI72: ='EasyCal Excel'!CZ81 -> 0 | AJ72: ='EasyCal Excel'!DA81 -> 0 | AK72: ='EasyCal Excel'!DB81 -> 0 | AL72: ='EasyCal Excel'!DC81 -> 0
A73: ='EasyCal Excel'!A82 -> 73 | B73: ='EasyCal Excel'!B82 -> 0 | C73: ='EasyCal Excel'!C82 -> Please Select | D73: ='EasyCal Excel'!F82 -> 00:00:00 | E73: ='EasyCal Excel'!G82 -> 00:00:00 | F73: ='EasyCal Excel'!L82 -> Monthly-rated | G73: ='EasyCal Excel'!O82 -> 0 | H73: ='EasyCal Excel'!P82 -> 0 | I73: ='EasyCal Excel'!AD82 -> 0 | J73: ='EasyCal Excel'!AT82 -> 0 | K73: ='EasyCal Excel'!AU82 -> 0 | L73: ='EasyCal Excel'!AV82 -> MPF | M73: ='EasyCal Excel'!AX82 -> MC -> VC | N73: ='EasyCal Excel'!AZ82 -> 0 | O73: ='EasyCal Excel'!BA82 -> 0 | P73: ='EasyCal Excel'!BB82 -> 0 | Q73: ='EasyCal Excel'!BS82 -> N/A | R73: ='EasyCal Excel'!BU82 -> N/A | S73: ='EasyCal Excel'!BV82 -> No | T73: ='EasyCal Excel'!BY82 -> 0 | U73: ='EasyCal Excel'!BZ82 -> 0 | V73: ='EasyCal Excel'!CA82 -> 0 | W73: ='EasyCal Excel'!CB82 -> 0 | X73: ='EasyCal Excel'!CC82 -> 0 | Y73: ='EasyCal Excel'!CD82 -> 0 | Z73: ='EasyCal Excel'!CH82 -> N/A | AA73: ='EasyCal Excel'!CL82 -> 0 | AB73: ='EasyCal Excel'!CM82 -> N/A | AC73: ='EasyCal Excel'!CO82 -> within $500,000 | AD73: ='EasyCal Excel'!CQ82 -> 0 | AE73: ='EasyCal Excel'!CR82 -> 0 | AF73: ='EasyCal Excel'!CW82 -> 0 | AG73: ='EasyCal Excel'!CX82 -> 0 | AH73: ='EasyCal Excel'!CY82 -> 0 | AI73: ='EasyCal Excel'!CZ82 -> 0 | AJ73: ='EasyCal Excel'!DA82 -> 0 | AK73: ='EasyCal Excel'!DB82 -> 0 | AL73: ='EasyCal Excel'!DC82 -> 0
A74: ='EasyCal Excel'!A83 -> 74 | B74: ='EasyCal Excel'!B83 -> 0 | C74: ='EasyCal Excel'!C83 -> Please Select | D74: ='EasyCal Excel'!F83 -> 00:00:00 | E74: ='EasyCal Excel'!G83 -> 00:00:00 | F74: ='EasyCal Excel'!L83 -> Monthly-rated | G74: ='EasyCal Excel'!O83 -> 0 | H74: ='EasyCal Excel'!P83 -> 0 | I74: ='EasyCal Excel'!AD83 -> 0 | J74: ='EasyCal Excel'!AT83 -> 0 | K74: ='EasyCal Excel'!AU83 -> 0 | L74: ='EasyCal Excel'!AV83 -> MPF | M74: ='EasyCal Excel'!AX83 -> MC -> VC | N74: ='EasyCal Excel'!AZ83 -> 0 | O74: ='EasyCal Excel'!BA83 -> 0 | P74: ='EasyCal Excel'!BB83 -> 0 | Q74: ='EasyCal Excel'!BS83 -> N/A | R74: ='EasyCal Excel'!BU83 -> N/A | S74: ='EasyCal Excel'!BV83 -> No | T74: ='EasyCal Excel'!BY83 -> 0 | U74: ='EasyCal Excel'!BZ83 -> 0 | V74: ='EasyCal Excel'!CA83 -> 0 | W74: ='EasyCal Excel'!CB83 -> 0 | X74: ='EasyCal Excel'!CC83 -> 0 | Y74: ='EasyCal Excel'!CD83 -> 0 | Z74: ='EasyCal Excel'!CH83 -> N/A | AA74: ='EasyCal Excel'!CL83 -> 0 | AB74: ='EasyCal Excel'!CM83 -> N/A | AC74: ='EasyCal Excel'!CO83 -> within $500,000 | AD74: ='EasyCal Excel'!CQ83 -> 0 | AE74: ='EasyCal Excel'!CR83 -> 0 | AF74: ='EasyCal Excel'!CW83 -> 0 | AG74: ='EasyCal Excel'!CX83 -> 0 | AH74: ='EasyCal Excel'!CY83 -> 0 | AI74: ='EasyCal Excel'!CZ83 -> 0 | AJ74: ='EasyCal Excel'!DA83 -> 0 | AK74: ='EasyCal Excel'!DB83 -> 0 | AL74: ='EasyCal Excel'!DC83 -> 0
A75: ='EasyCal Excel'!A84 -> 75 | B75: ='EasyCal Excel'!B84 -> 0 | C75: ='EasyCal Excel'!C84 -> Please Select | D75: ='EasyCal Excel'!F84 -> 00:00:00 | E75: ='EasyCal Excel'!G84 -> 00:00:00 | F75: ='EasyCal Excel'!L84 -> Monthly-rated | G75: ='EasyCal Excel'!O84 -> 0 | H75: ='EasyCal Excel'!P84 -> 0 | I75: ='EasyCal Excel'!AD84 -> 0 | J75: ='EasyCal Excel'!AT84 -> 0 | K75: ='EasyCal Excel'!AU84 -> 0 | L75: ='EasyCal Excel'!AV84 -> MPF | M75: ='EasyCal Excel'!AX84 -> MC -> VC | N75: ='EasyCal Excel'!AZ84 -> 0 | O75: ='EasyCal Excel'!BA84 -> 0 | P75: ='EasyCal Excel'!BB84 -> 0 | Q75: ='EasyCal Excel'!BS84 -> N/A | R75: ='EasyCal Excel'!BU84 -> N/A | S75: ='EasyCal Excel'!BV84 -> No | T75: ='EasyCal Excel'!BY84 -> 0 | U75: ='EasyCal Excel'!BZ84 -> 0 | V75: ='EasyCal Excel'!CA84 -> 0 | W75: ='EasyCal Excel'!CB84 -> 0 | X75: ='EasyCal Excel'!CC84 -> 0 | Y75: ='EasyCal Excel'!CD84 -> 0 | Z75: ='EasyCal Excel'!CH84 -> N/A | AA75: ='EasyCal Excel'!CL84 -> 0 | AB75: ='EasyCal Excel'!CM84 -> N/A | AC75: ='EasyCal Excel'!CO84 -> within $500,000 | AD75: ='EasyCal Excel'!CQ84 -> 0 | AE75: ='EasyCal Excel'!CR84 -> 0 | AF75: ='EasyCal Excel'!CW84 -> 0 | AG75: ='EasyCal Excel'!CX84 -> 0 | AH75: ='EasyCal Excel'!CY84 -> 0 | AI75: ='EasyCal Excel'!CZ84 -> 0 | AJ75: ='EasyCal Excel'!DA84 -> 0 | AK75: ='EasyCal Excel'!DB84 -> 0 | AL75: ='EasyCal Excel'!DC84 -> 0
A76: ='EasyCal Excel'!A85 -> 76 | B76: ='EasyCal Excel'!B85 -> 0 | C76: ='EasyCal Excel'!C85 -> Please Select | D76: ='EasyCal Excel'!F85 -> 00:00:00 | E76: ='EasyCal Excel'!G85 -> 00:00:00 | F76: ='EasyCal Excel'!L85 -> Monthly-rated | G76: ='EasyCal Excel'!O85 -> 0 | H76: ='EasyCal Excel'!P85 -> 0 | I76: ='EasyCal Excel'!AD85 -> 0 | J76: ='EasyCal Excel'!AT85 -> 0 | K76: ='EasyCal Excel'!AU85 -> 0 | L76: ='EasyCal Excel'!AV85 -> MPF | M76: ='EasyCal Excel'!AX85 -> MC -> VC | N76: ='EasyCal Excel'!AZ85 -> 0 | O76: ='EasyCal Excel'!BA85 -> 0 | P76: ='EasyCal Excel'!BB85 -> 0 | Q76: ='EasyCal Excel'!BS85 -> N/A | R76: ='EasyCal Excel'!BU85 -> N/A | S76: ='EasyCal Excel'!BV85 -> No | T76: ='EasyCal Excel'!BY85 -> 0 | U76: ='EasyCal Excel'!BZ85 -> 0 | V76: ='EasyCal Excel'!CA85 -> 0 | W76: ='EasyCal Excel'!CB85 -> 0 | X76: ='EasyCal Excel'!CC85 -> 0 | Y76: ='EasyCal Excel'!CD85 -> 0 | Z76: ='EasyCal Excel'!CH85 -> N/A | AA76: ='EasyCal Excel'!CL85 -> 0 | AB76: ='EasyCal Excel'!CM85 -> N/A | AC76: ='EasyCal Excel'!CO85 -> within $500,000 | AD76: ='EasyCal Excel'!CQ85 -> 0 | AE76: ='EasyCal Excel'!CR85 -> 0 | AF76: ='EasyCal Excel'!CW85 -> 0 | AG76: ='EasyCal Excel'!CX85 -> 0 | AH76: ='EasyCal Excel'!CY85 -> 0 | AI76: ='EasyCal Excel'!CZ85 -> 0 | AJ76: ='EasyCal Excel'!DA85 -> 0 | AK76: ='EasyCal Excel'!DB85 -> 0 | AL76: ='EasyCal Excel'!DC85 -> 0
A77: ='EasyCal Excel'!A86 -> 77 | B77: ='EasyCal Excel'!B86 -> 0 | C77: ='EasyCal Excel'!C86 -> Please Select | D77: ='EasyCal Excel'!F86 -> 00:00:00 | E77: ='EasyCal Excel'!G86 -> 00:00:00 | F77: ='EasyCal Excel'!L86 -> Monthly-rated | G77: ='EasyCal Excel'!O86 -> 0 | H77: ='EasyCal Excel'!P86 -> 0 | I77: ='EasyCal Excel'!AD86 -> 0 | J77: ='EasyCal Excel'!AT86 -> 0 | K77: ='EasyCal Excel'!AU86 -> 0 | L77: ='EasyCal Excel'!AV86 -> MPF | M77: ='EasyCal Excel'!AX86 -> MC -> VC | N77: ='EasyCal Excel'!AZ86 -> 0 | O77: ='EasyCal Excel'!BA86 -> 0 | P77: ='EasyCal Excel'!BB86 -> 0 | Q77: ='EasyCal Excel'!BS86 -> N/A | R77: ='EasyCal Excel'!BU86 -> N/A | S77: ='EasyCal Excel'!BV86 -> No | T77: ='EasyCal Excel'!BY86 -> 0 | U77: ='EasyCal Excel'!BZ86 -> 0 | V77: ='EasyCal Excel'!CA86 -> 0 | W77: ='EasyCal Excel'!CB86 -> 0 | X77: ='EasyCal Excel'!CC86 -> 0 | Y77: ='EasyCal Excel'!CD86 -> 0 | Z77: ='EasyCal Excel'!CH86 -> N/A | AA77: ='EasyCal Excel'!CL86 -> 0 | AB77: ='EasyCal Excel'!CM86 -> N/A | AC77: ='EasyCal Excel'!CO86 -> within $500,000 | AD77: ='EasyCal Excel'!CQ86 -> 0 | AE77: ='EasyCal Excel'!CR86 -> 0 | AF77: ='EasyCal Excel'!CW86 -> 0 | AG77: ='EasyCal Excel'!CX86 -> 0 | AH77: ='EasyCal Excel'!CY86 -> 0 | AI77: ='EasyCal Excel'!CZ86 -> 0 | AJ77: ='EasyCal Excel'!DA86 -> 0 | AK77: ='EasyCal Excel'!DB86 -> 0 | AL77: ='EasyCal Excel'!DC86 -> 0
A78: ='EasyCal Excel'!A87 -> 78 | B78: ='EasyCal Excel'!B87 -> 0 | C78: ='EasyCal Excel'!C87 -> Please Select | D78: ='EasyCal Excel'!F87 -> 00:00:00 | E78: ='EasyCal Excel'!G87 -> 00:00:00 | F78: ='EasyCal Excel'!L87 -> Monthly-rated | G78: ='EasyCal Excel'!O87 -> 0 | H78: ='EasyCal Excel'!P87 -> 0 | I78: ='EasyCal Excel'!AD87 -> 0 | J78: ='EasyCal Excel'!AT87 -> 0 | K78: ='EasyCal Excel'!AU87 -> 0 | L78: ='EasyCal Excel'!AV87 -> MPF | M78: ='EasyCal Excel'!AX87 -> MC -> VC | N78: ='EasyCal Excel'!AZ87 -> 0 | O78: ='EasyCal Excel'!BA87 -> 0 | P78: ='EasyCal Excel'!BB87 -> 0 | Q78: ='EasyCal Excel'!BS87 -> N/A | R78: ='EasyCal Excel'!BU87 -> N/A | S78: ='EasyCal Excel'!BV87 -> No | T78: ='EasyCal Excel'!BY87 -> 0 | U78: ='EasyCal Excel'!BZ87 -> 0 | V78: ='EasyCal Excel'!CA87 -> 0 | W78: ='EasyCal Excel'!CB87 -> 0 | X78: ='EasyCal Excel'!CC87 -> 0 | Y78: ='EasyCal Excel'!CD87 -> 0 | Z78: ='EasyCal Excel'!CH87 -> N/A | AA78: ='EasyCal Excel'!CL87 -> 0 | AB78: ='EasyCal Excel'!CM87 -> N/A | AC78: ='EasyCal Excel'!CO87 -> within $500,000 | AD78: ='EasyCal Excel'!CQ87 -> 0 | AE78: ='EasyCal Excel'!CR87 -> 0 | AF78: ='EasyCal Excel'!CW87 -> 0 | AG78: ='EasyCal Excel'!CX87 -> 0 | AH78: ='EasyCal Excel'!CY87 -> 0 | AI78: ='EasyCal Excel'!CZ87 -> 0 | AJ78: ='EasyCal Excel'!DA87 -> 0 | AK78: ='EasyCal Excel'!DB87 -> 0 | AL78: ='EasyCal Excel'!DC87 -> 0
A79: ='EasyCal Excel'!A88 -> 79 | B79: ='EasyCal Excel'!B88 -> 0 | C79: ='EasyCal Excel'!C88 -> Please Select | D79: ='EasyCal Excel'!F88 -> 00:00:00 | E79: ='EasyCal Excel'!G88 -> 00:00:00 | F79: ='EasyCal Excel'!L88 -> Monthly-rated | G79: ='EasyCal Excel'!O88 -> 0 | H79: ='EasyCal Excel'!P88 -> 0 | I79: ='EasyCal Excel'!AD88 -> 0 | J79: ='EasyCal Excel'!AT88 -> 0 | K79: ='EasyCal Excel'!AU88 -> 0 | L79: ='EasyCal Excel'!AV88 -> MPF | M79: ='EasyCal Excel'!AX88 -> MC -> VC | N79: ='EasyCal Excel'!AZ88 -> 0 | O79: ='EasyCal Excel'!BA88 -> 0 | P79: ='EasyCal Excel'!BB88 -> 0 | Q79: ='EasyCal Excel'!BS88 -> N/A | R79: ='EasyCal Excel'!BU88 -> N/A | S79: ='EasyCal Excel'!BV88 -> No | T79: ='EasyCal Excel'!BY88 -> 0 | U79: ='EasyCal Excel'!BZ88 -> 0 | V79: ='EasyCal Excel'!CA88 -> 0 | W79: ='EasyCal Excel'!CB88 -> 0 | X79: ='EasyCal Excel'!CC88 -> 0 | Y79: ='EasyCal Excel'!CD88 -> 0 | Z79: ='EasyCal Excel'!CH88 -> N/A | AA79: ='EasyCal Excel'!CL88 -> 0 | AB79: ='EasyCal Excel'!CM88 -> N/A | AC79: ='EasyCal Excel'!CO88 -> within $500,000 | AD79: ='EasyCal Excel'!CQ88 -> 0 | AE79: ='EasyCal Excel'!CR88 -> 0 | AF79: ='EasyCal Excel'!CW88 -> 0 | AG79: ='EasyCal Excel'!CX88 -> 0 | AH79: ='EasyCal Excel'!CY88 -> 0 | AI79: ='EasyCal Excel'!CZ88 -> 0 | AJ79: ='EasyCal Excel'!DA88 -> 0 | AK79: ='EasyCal Excel'!DB88 -> 0 | AL79: ='EasyCal Excel'!DC88 -> 0
A80: ='EasyCal Excel'!A89 -> 80 | B80: ='EasyCal Excel'!B89 -> 0 | C80: ='EasyCal Excel'!C89 -> Please Select | D80: ='EasyCal Excel'!F89 -> 00:00:00 | E80: ='EasyCal Excel'!G89 -> 00:00:00 | F80: ='EasyCal Excel'!L89 -> Monthly-rated | G80: ='EasyCal Excel'!O89 -> 0 | H80: ='EasyCal Excel'!P89 -> 0 | I80: ='EasyCal Excel'!AD89 -> 0 | J80: ='EasyCal Excel'!AT89 -> 0 | K80: ='EasyCal Excel'!AU89 -> 0 | L80: ='EasyCal Excel'!AV89 -> MPF | M80: ='EasyCal Excel'!AX89 -> MC -> VC | N80: ='EasyCal Excel'!AZ89 -> 0 | O80: ='EasyCal Excel'!BA89 -> 0 | P80: ='EasyCal Excel'!BB89 -> 0 | Q80: ='EasyCal Excel'!BS89 -> N/A | R80: ='EasyCal Excel'!BU89 -> N/A | S80: ='EasyCal Excel'!BV89 -> No | T80: ='EasyCal Excel'!BY89 -> 0 | U80: ='EasyCal Excel'!BZ89 -> 0 | V80: ='EasyCal Excel'!CA89 -> 0 | W80: ='EasyCal Excel'!CB89 -> 0 | X80: ='EasyCal Excel'!CC89 -> 0 | Y80: ='EasyCal Excel'!CD89 -> 0 | Z80: ='EasyCal Excel'!CH89 -> N/A | AA80: ='EasyCal Excel'!CL89 -> 0 | AB80: ='EasyCal Excel'!CM89 -> N/A | AC80: ='EasyCal Excel'!CO89 -> within $500,000 | AD80: ='EasyCal Excel'!CQ89 -> 0 | AE80: ='EasyCal Excel'!CR89 -> 0 | AF80: ='EasyCal Excel'!CW89 -> 0 | AG80: ='EasyCal Excel'!CX89 -> 0 | AH80: ='EasyCal Excel'!CY89 -> 0 | AI80: ='EasyCal Excel'!CZ89 -> 0 | AJ80: ='EasyCal Excel'!DA89 -> 0 | AK80: ='EasyCal Excel'!DB89 -> 0 | AL80: ='EasyCal Excel'!DC89 -> 0
A81: ='EasyCal Excel'!A90 -> 81 | B81: ='EasyCal Excel'!B90 -> 0 | C81: ='EasyCal Excel'!C90 -> Please Select | D81: ='EasyCal Excel'!F90 -> 00:00:00 | E81: ='EasyCal Excel'!G90 -> 00:00:00 | F81: ='EasyCal Excel'!L90 -> Monthly-rated | G81: ='EasyCal Excel'!O90 -> 0 | H81: ='EasyCal Excel'!P90 -> 0 | I81: ='EasyCal Excel'!AD90 -> 0 | J81: ='EasyCal Excel'!AT90 -> 0 | K81: ='EasyCal Excel'!AU90 -> 0 | L81: ='EasyCal Excel'!AV90 -> MPF | M81: ='EasyCal Excel'!AX90 -> MC -> VC | N81: ='EasyCal Excel'!AZ90 -> 0 | O81: ='EasyCal Excel'!BA90 -> 0 | P81: ='EasyCal Excel'!BB90 -> 0 | Q81: ='EasyCal Excel'!BS90 -> N/A | R81: ='EasyCal Excel'!BU90 -> N/A | S81: ='EasyCal Excel'!BV90 -> No | T81: ='EasyCal Excel'!BY90 -> 0 | U81: ='EasyCal Excel'!BZ90 -> 0 | V81: ='EasyCal Excel'!CA90 -> 0 | W81: ='EasyCal Excel'!CB90 -> 0 | X81: ='EasyCal Excel'!CC90 -> 0 | Y81: ='EasyCal Excel'!CD90 -> 0 | Z81: ='EasyCal Excel'!CH90 -> N/A | AA81: ='EasyCal Excel'!CL90 -> 0 | AB81: ='EasyCal Excel'!CM90 -> N/A | AC81: ='EasyCal Excel'!CO90 -> within $500,000 | AD81: ='EasyCal Excel'!CQ90 -> 0 | AE81: ='EasyCal Excel'!CR90 -> 0 | AF81: ='EasyCal Excel'!CW90 -> 0 | AG81: ='EasyCal Excel'!CX90 -> 0 | AH81: ='EasyCal Excel'!CY90 -> 0 | AI81: ='EasyCal Excel'!CZ90 -> 0 | AJ81: ='EasyCal Excel'!DA90 -> 0 | AK81: ='EasyCal Excel'!DB90 -> 0 | AL81: ='EasyCal Excel'!DC90 -> 0
A82: ='EasyCal Excel'!A91 -> 82 | B82: ='EasyCal Excel'!B91 -> 0 | C82: ='EasyCal Excel'!C91 -> Please Select | D82: ='EasyCal Excel'!F91 -> 00:00:00 | E82: ='EasyCal Excel'!G91 -> 00:00:00 | F82: ='EasyCal Excel'!L91 -> Monthly-rated | G82: ='EasyCal Excel'!O91 -> 0 | H82: ='EasyCal Excel'!P91 -> 0 | I82: ='EasyCal Excel'!AD91 -> 0 | J82: ='EasyCal Excel'!AT91 -> 0 | K82: ='EasyCal Excel'!AU91 -> 0 | L82: ='EasyCal Excel'!AV91 -> MPF | M82: ='EasyCal Excel'!AX91 -> MC -> VC | N82: ='EasyCal Excel'!AZ91 -> 0 | O82: ='EasyCal Excel'!BA91 -> 0 | P82: ='EasyCal Excel'!BB91 -> 0 | Q82: ='EasyCal Excel'!BS91 -> N/A | R82: ='EasyCal Excel'!BU91 -> N/A | S82: ='EasyCal Excel'!BV91 -> No | T82: ='EasyCal Excel'!BY91 -> 0 | U82: ='EasyCal Excel'!BZ91 -> 0 | V82: ='EasyCal Excel'!CA91 -> 0 | W82: ='EasyCal Excel'!CB91 -> 0 | X82: ='EasyCal Excel'!CC91 -> 0 | Y82: ='EasyCal Excel'!CD91 -> 0 | Z82: ='EasyCal Excel'!CH91 -> N/A | AA82: ='EasyCal Excel'!CL91 -> 0 | AB82: ='EasyCal Excel'!CM91 -> N/A | AC82: ='EasyCal Excel'!CO91 -> within $500,000 | AD82: ='EasyCal Excel'!CQ91 -> 0 | AE82: ='EasyCal Excel'!CR91 -> 0 | AF82: ='EasyCal Excel'!CW91 -> 0 | AG82: ='EasyCal Excel'!CX91 -> 0 | AH82: ='EasyCal Excel'!CY91 -> 0 | AI82: ='EasyCal Excel'!CZ91 -> 0 | AJ82: ='EasyCal Excel'!DA91 -> 0 | AK82: ='EasyCal Excel'!DB91 -> 0 | AL82: ='EasyCal Excel'!DC91 -> 0
A83: ='EasyCal Excel'!A92 -> 83 | B83: ='EasyCal Excel'!B92 -> 0 | C83: ='EasyCal Excel'!C92 -> Please Select | D83: ='EasyCal Excel'!F92 -> 00:00:00 | E83: ='EasyCal Excel'!G92 -> 00:00:00 | F83: ='EasyCal Excel'!L92 -> Monthly-rated | G83: ='EasyCal Excel'!O92 -> 0 | H83: ='EasyCal Excel'!P92 -> 0 | I83: ='EasyCal Excel'!AD92 -> 0 | J83: ='EasyCal Excel'!AT92 -> 0 | K83: ='EasyCal Excel'!AU92 -> 0 | L83: ='EasyCal Excel'!AV92 -> MPF | M83: ='EasyCal Excel'!AX92 -> MC -> VC | N83: ='EasyCal Excel'!AZ92 -> 0 | O83: ='EasyCal Excel'!BA92 -> 0 | P83: ='EasyCal Excel'!BB92 -> 0 | Q83: ='EasyCal Excel'!BS92 -> N/A | R83: ='EasyCal Excel'!BU92 -> N/A | S83: ='EasyCal Excel'!BV92 -> No | T83: ='EasyCal Excel'!BY92 -> 0 | U83: ='EasyCal Excel'!BZ92 -> 0 | V83: ='EasyCal Excel'!CA92 -> 0 | W83: ='EasyCal Excel'!CB92 -> 0 | X83: ='EasyCal Excel'!CC92 -> 0 | Y83: ='EasyCal Excel'!CD92 -> 0 | Z83: ='EasyCal Excel'!CH92 -> N/A | AA83: ='EasyCal Excel'!CL92 -> 0 | AB83: ='EasyCal Excel'!CM92 -> N/A | AC83: ='EasyCal Excel'!CO92 -> within $500,000 | AD83: ='EasyCal Excel'!CQ92 -> 0 | AE83: ='EasyCal Excel'!CR92 -> 0 | AF83: ='EasyCal Excel'!CW92 -> 0 | AG83: ='EasyCal Excel'!CX92 -> 0 | AH83: ='EasyCal Excel'!CY92 -> 0 | AI83: ='EasyCal Excel'!CZ92 -> 0 | AJ83: ='EasyCal Excel'!DA92 -> 0 | AK83: ='EasyCal Excel'!DB92 -> 0 | AL83: ='EasyCal Excel'!DC92 -> 0
A84: ='EasyCal Excel'!A93 -> 84 | B84: ='EasyCal Excel'!B93 -> 0 | C84: ='EasyCal Excel'!C93 -> Please Select | D84: ='EasyCal Excel'!F93 -> 00:00:00 | E84: ='EasyCal Excel'!G93 -> 00:00:00 | F84: ='EasyCal Excel'!L93 -> Monthly-rated | G84: ='EasyCal Excel'!O93 -> 0 | H84: ='EasyCal Excel'!P93 -> 0 | I84: ='EasyCal Excel'!AD93 -> 0 | J84: ='EasyCal Excel'!AT93 -> 0 | K84: ='EasyCal Excel'!AU93 -> 0 | L84: ='EasyCal Excel'!AV93 -> MPF | M84: ='EasyCal Excel'!AX93 -> MC -> VC | N84: ='EasyCal Excel'!AZ93 -> 0 | O84: ='EasyCal Excel'!BA93 -> 0 | P84: ='EasyCal Excel'!BB93 -> 0 | Q84: ='EasyCal Excel'!BS93 -> N/A | R84: ='EasyCal Excel'!BU93 -> N/A | S84: ='EasyCal Excel'!BV93 -> No | T84: ='EasyCal Excel'!BY93 -> 0 | U84: ='EasyCal Excel'!BZ93 -> 0 | V84: ='EasyCal Excel'!CA93 -> 0 | W84: ='EasyCal Excel'!CB93 -> 0 | X84: ='EasyCal Excel'!CC93 -> 0 | Y84: ='EasyCal Excel'!CD93 -> 0 | Z84: ='EasyCal Excel'!CH93 -> N/A | AA84: ='EasyCal Excel'!CL93 -> 0 | AB84: ='EasyCal Excel'!CM93 -> N/A | AC84: ='EasyCal Excel'!CO93 -> within $500,000 | AD84: ='EasyCal Excel'!CQ93 -> 0 | AE84: ='EasyCal Excel'!CR93 -> 0 | AF84: ='EasyCal Excel'!CW93 -> 0 | AG84: ='EasyCal Excel'!CX93 -> 0 | AH84: ='EasyCal Excel'!CY93 -> 0 | AI84: ='EasyCal Excel'!CZ93 -> 0 | AJ84: ='EasyCal Excel'!DA93 -> 0 | AK84: ='EasyCal Excel'!DB93 -> 0 | AL84: ='EasyCal Excel'!DC93 -> 0
A85: ='EasyCal Excel'!A94 -> 85 | B85: ='EasyCal Excel'!B94 -> 0 | C85: ='EasyCal Excel'!C94 -> Please Select | D85: ='EasyCal Excel'!F94 -> 00:00:00 | E85: ='EasyCal Excel'!G94 -> 00:00:00 | F85: ='EasyCal Excel'!L94 -> Monthly-rated | G85: ='EasyCal Excel'!O94 -> 0 | H85: ='EasyCal Excel'!P94 -> 0 | I85: ='EasyCal Excel'!AD94 -> 0 | J85: ='EasyCal Excel'!AT94 -> 0 | K85: ='EasyCal Excel'!AU94 -> 0 | L85: ='EasyCal Excel'!AV94 -> MPF | M85: ='EasyCal Excel'!AX94 -> MC -> VC | N85: ='EasyCal Excel'!AZ94 -> 0 | O85: ='EasyCal Excel'!BA94 -> 0 | P85: ='EasyCal Excel'!BB94 -> 0 | Q85: ='EasyCal Excel'!BS94 -> N/A | R85: ='EasyCal Excel'!BU94 -> N/A | S85: ='EasyCal Excel'!BV94 -> No | T85: ='EasyCal Excel'!BY94 -> 0 | U85: ='EasyCal Excel'!BZ94 -> 0 | V85: ='EasyCal Excel'!CA94 -> 0 | W85: ='EasyCal Excel'!CB94 -> 0 | X85: ='EasyCal Excel'!CC94 -> 0 | Y85: ='EasyCal Excel'!CD94 -> 0 | Z85: ='EasyCal Excel'!CH94 -> N/A | AA85: ='EasyCal Excel'!CL94 -> 0 | AB85: ='EasyCal Excel'!CM94 -> N/A | AC85: ='EasyCal Excel'!CO94 -> within $500,000 | AD85: ='EasyCal Excel'!CQ94 -> 0 | AE85: ='EasyCal Excel'!CR94 -> 0 | AF85: ='EasyCal Excel'!CW94 -> 0 | AG85: ='EasyCal Excel'!CX94 -> 0 | AH85: ='EasyCal Excel'!CY94 -> 0 | AI85: ='EasyCal Excel'!CZ94 -> 0 | AJ85: ='EasyCal Excel'!DA94 -> 0 | AK85: ='EasyCal Excel'!DB94 -> 0 | AL85: ='EasyCal Excel'!DC94 -> 0
A86: ='EasyCal Excel'!A95 -> 86 | B86: ='EasyCal Excel'!B95 -> 0 | C86: ='EasyCal Excel'!C95 -> Please Select | D86: ='EasyCal Excel'!F95 -> 00:00:00 | E86: ='EasyCal Excel'!G95 -> 00:00:00 | F86: ='EasyCal Excel'!L95 -> Monthly-rated | G86: ='EasyCal Excel'!O95 -> 0 | H86: ='EasyCal Excel'!P95 -> 0 | I86: ='EasyCal Excel'!AD95 -> 0 | J86: ='EasyCal Excel'!AT95 -> 0 | K86: ='EasyCal Excel'!AU95 -> 0 | L86: ='EasyCal Excel'!AV95 -> MPF | M86: ='EasyCal Excel'!AX95 -> MC -> VC | N86: ='EasyCal Excel'!AZ95 -> 0 | O86: ='EasyCal Excel'!BA95 -> 0 | P86: ='EasyCal Excel'!BB95 -> 0 | Q86: ='EasyCal Excel'!BS95 -> N/A | R86: ='EasyCal Excel'!BU95 -> N/A | S86: ='EasyCal Excel'!BV95 -> No | T86: ='EasyCal Excel'!BY95 -> 0 | U86: ='EasyCal Excel'!BZ95 -> 0 | V86: ='EasyCal Excel'!CA95 -> 0 | W86: ='EasyCal Excel'!CB95 -> 0 | X86: ='EasyCal Excel'!CC95 -> 0 | Y86: ='EasyCal Excel'!CD95 -> 0 | Z86: ='EasyCal Excel'!CH95 -> N/A | AA86: ='EasyCal Excel'!CL95 -> 0 | AB86: ='EasyCal Excel'!CM95 -> N/A | AC86: ='EasyCal Excel'!CO95 -> within $500,000 | AD86: ='EasyCal Excel'!CQ95 -> 0 | AE86: ='EasyCal Excel'!CR95 -> 0 | AF86: ='EasyCal Excel'!CW95 -> 0 | AG86: ='EasyCal Excel'!CX95 -> 0 | AH86: ='EasyCal Excel'!CY95 -> 0 | AI86: ='EasyCal Excel'!CZ95 -> 0 | AJ86: ='EasyCal Excel'!DA95 -> 0 | AK86: ='EasyCal Excel'!DB95 -> 0 | AL86: ='EasyCal Excel'!DC95 -> 0
A87: ='EasyCal Excel'!A96 -> 87 | B87: ='EasyCal Excel'!B96 -> 0 | C87: ='EasyCal Excel'!C96 -> Please Select | D87: ='EasyCal Excel'!F96 -> 00:00:00 | E87: ='EasyCal Excel'!G96 -> 00:00:00 | F87: ='EasyCal Excel'!L96 -> Monthly-rated | G87: ='EasyCal Excel'!O96 -> 0 | H87: ='EasyCal Excel'!P96 -> 0 | I87: ='EasyCal Excel'!AD96 -> 0 | J87: ='EasyCal Excel'!AT96 -> 0 | K87: ='EasyCal Excel'!AU96 -> 0 | L87: ='EasyCal Excel'!AV96 -> MPF | M87: ='EasyCal Excel'!AX96 -> MC -> VC | N87: ='EasyCal Excel'!AZ96 -> 0 | O87: ='EasyCal Excel'!BA96 -> 0 | P87: ='EasyCal Excel'!BB96 -> 0 | Q87: ='EasyCal Excel'!BS96 -> N/A | R87: ='EasyCal Excel'!BU96 -> N/A | S87: ='EasyCal Excel'!BV96 -> No | T87: ='EasyCal Excel'!BY96 -> 0 | U87: ='EasyCal Excel'!BZ96 -> 0 | V87: ='EasyCal Excel'!CA96 -> 0 | W87: ='EasyCal Excel'!CB96 -> 0 | X87: ='EasyCal Excel'!CC96 -> 0 | Y87: ='EasyCal Excel'!CD96 -> 0 | Z87: ='EasyCal Excel'!CH96 -> N/A | AA87: ='EasyCal Excel'!CL96 -> 0 | AB87: ='EasyCal Excel'!CM96 -> N/A | AC87: ='EasyCal Excel'!CO96 -> within $500,000 | AD87: ='EasyCal Excel'!CQ96 -> 0 | AE87: ='EasyCal Excel'!CR96 -> 0 | AF87: ='EasyCal Excel'!CW96 -> 0 | AG87: ='EasyCal Excel'!CX96 -> 0 | AH87: ='EasyCal Excel'!CY96 -> 0 | AI87: ='EasyCal Excel'!CZ96 -> 0 | AJ87: ='EasyCal Excel'!DA96 -> 0 | AK87: ='EasyCal Excel'!DB96 -> 0 | AL87: ='EasyCal Excel'!DC96 -> 0
A88: ='EasyCal Excel'!A97 -> 88 | B88: ='EasyCal Excel'!B97 -> 0 | C88: ='EasyCal Excel'!C97 -> Please Select | D88: ='EasyCal Excel'!F97 -> 00:00:00 | E88: ='EasyCal Excel'!G97 -> 00:00:00 | F88: ='EasyCal Excel'!L97 -> Monthly-rated | G88: ='EasyCal Excel'!O97 -> 0 | H88: ='EasyCal Excel'!P97 -> 0 | I88: ='EasyCal Excel'!AD97 -> 0 | J88: ='EasyCal Excel'!AT97 -> 0 | K88: ='EasyCal Excel'!AU97 -> 0 | L88: ='EasyCal Excel'!AV97 -> MPF | M88: ='EasyCal Excel'!AX97 -> MC -> VC | N88: ='EasyCal Excel'!AZ97 -> 0 | O88: ='EasyCal Excel'!BA97 -> 0 | P88: ='EasyCal Excel'!BB97 -> 0 | Q88: ='EasyCal Excel'!BS97 -> N/A | R88: ='EasyCal Excel'!BU97 -> N/A | S88: ='EasyCal Excel'!BV97 -> No | T88: ='EasyCal Excel'!BY97 -> 0 | U88: ='EasyCal Excel'!BZ97 -> 0 | V88: ='EasyCal Excel'!CA97 -> 0 | W88: ='EasyCal Excel'!CB97 -> 0 | X88: ='EasyCal Excel'!CC97 -> 0 | Y88: ='EasyCal Excel'!CD97 -> 0 | Z88: ='EasyCal Excel'!CH97 -> N/A | AA88: ='EasyCal Excel'!CL97 -> 0 | AB88: ='EasyCal Excel'!CM97 -> N/A | AC88: ='EasyCal Excel'!CO97 -> within $500,000 | AD88: ='EasyCal Excel'!CQ97 -> 0 | AE88: ='EasyCal Excel'!CR97 -> 0 | AF88: ='EasyCal Excel'!CW97 -> 0 | AG88: ='EasyCal Excel'!CX97 -> 0 | AH88: ='EasyCal Excel'!CY97 -> 0 | AI88: ='EasyCal Excel'!CZ97 -> 0 | AJ88: ='EasyCal Excel'!DA97 -> 0 | AK88: ='EasyCal Excel'!DB97 -> 0 | AL88: ='EasyCal Excel'!DC97 -> 0
A89: ='EasyCal Excel'!A98 -> 89 | B89: ='EasyCal Excel'!B98 -> 0 | C89: ='EasyCal Excel'!C98 -> Please Select | D89: ='EasyCal Excel'!F98 -> 00:00:00 | E89: ='EasyCal Excel'!G98 -> 00:00:00 | F89: ='EasyCal Excel'!L98 -> Monthly-rated | G89: ='EasyCal Excel'!O98 -> 0 | H89: ='EasyCal Excel'!P98 -> 0 | I89: ='EasyCal Excel'!AD98 -> 0 | J89: ='EasyCal Excel'!AT98 -> 0 | K89: ='EasyCal Excel'!AU98 -> 0 | L89: ='EasyCal Excel'!AV98 -> MPF | M89: ='EasyCal Excel'!AX98 -> MC -> VC | N89: ='EasyCal Excel'!AZ98 -> 0 | O89: ='EasyCal Excel'!BA98 -> 0 | P89: ='EasyCal Excel'!BB98 -> 0 | Q89: ='EasyCal Excel'!BS98 -> N/A | R89: ='EasyCal Excel'!BU98 -> N/A | S89: ='EasyCal Excel'!BV98 -> No | T89: ='EasyCal Excel'!BY98 -> 0 | U89: ='EasyCal Excel'!BZ98 -> 0 | V89: ='EasyCal Excel'!CA98 -> 0 | W89: ='EasyCal Excel'!CB98 -> 0 | X89: ='EasyCal Excel'!CC98 -> 0 | Y89: ='EasyCal Excel'!CD98 -> 0 | Z89: ='EasyCal Excel'!CH98 -> N/A | AA89: ='EasyCal Excel'!CL98 -> 0 | AB89: ='EasyCal Excel'!CM98 -> N/A | AC89: ='EasyCal Excel'!CO98 -> within $500,000 | AD89: ='EasyCal Excel'!CQ98 -> 0 | AE89: ='EasyCal Excel'!CR98 -> 0 | AF89: ='EasyCal Excel'!CW98 -> 0 | AG89: ='EasyCal Excel'!CX98 -> 0 | AH89: ='EasyCal Excel'!CY98 -> 0 | AI89: ='EasyCal Excel'!CZ98 -> 0 | AJ89: ='EasyCal Excel'!DA98 -> 0 | AK89: ='EasyCal Excel'!DB98 -> 0 | AL89: ='EasyCal Excel'!DC98 -> 0
A90: ='EasyCal Excel'!A99 -> 90 | B90: ='EasyCal Excel'!B99 -> 0 | C90: ='EasyCal Excel'!C99 -> Please Select | D90: ='EasyCal Excel'!F99 -> 00:00:00 | E90: ='EasyCal Excel'!G99 -> 00:00:00 | F90: ='EasyCal Excel'!L99 -> Monthly-rated | G90: ='EasyCal Excel'!O99 -> 0 | H90: ='EasyCal Excel'!P99 -> 0 | I90: ='EasyCal Excel'!AD99 -> 0 | J90: ='EasyCal Excel'!AT99 -> 0 | K90: ='EasyCal Excel'!AU99 -> 0 | L90: ='EasyCal Excel'!AV99 -> MPF | M90: ='EasyCal Excel'!AX99 -> MC -> VC | N90: ='EasyCal Excel'!AZ99 -> 0 | O90: ='EasyCal Excel'!BA99 -> 0 | P90: ='EasyCal Excel'!BB99 -> 0 | Q90: ='EasyCal Excel'!BS99 -> N/A | R90: ='EasyCal Excel'!BU99 -> N/A | S90: ='EasyCal Excel'!BV99 -> No | T90: ='EasyCal Excel'!BY99 -> 0 | U90: ='EasyCal Excel'!BZ99 -> 0 | V90: ='EasyCal Excel'!CA99 -> 0 | W90: ='EasyCal Excel'!CB99 -> 0 | X90: ='EasyCal Excel'!CC99 -> 0 | Y90: ='EasyCal Excel'!CD99 -> 0 | Z90: ='EasyCal Excel'!CH99 -> N/A | AA90: ='EasyCal Excel'!CL99 -> 0 | AB90: ='EasyCal Excel'!CM99 -> N/A | AC90: ='EasyCal Excel'!CO99 -> within $500,000 | AD90: ='EasyCal Excel'!CQ99 -> 0 | AE90: ='EasyCal Excel'!CR99 -> 0 | AF90: ='EasyCal Excel'!CW99 -> 0 | AG90: ='EasyCal Excel'!CX99 -> 0 | AH90: ='EasyCal Excel'!CY99 -> 0 | AI90: ='EasyCal Excel'!CZ99 -> 0 | AJ90: ='EasyCal Excel'!DA99 -> 0 | AK90: ='EasyCal Excel'!DB99 -> 0 | AL90: ='EasyCal Excel'!DC99 -> 0
A91: ='EasyCal Excel'!A100 -> 91 | B91: ='EasyCal Excel'!B100 -> 0 | C91: ='EasyCal Excel'!C100 -> Please Select | D91: ='EasyCal Excel'!F100 -> 00:00:00 | E91: ='EasyCal Excel'!G100 -> 00:00:00 | F91: ='EasyCal Excel'!L100 -> Monthly-rated | G91: ='EasyCal Excel'!O100 -> 0 | H91: ='EasyCal Excel'!P100 -> 0 | I91: ='EasyCal Excel'!AD100 -> 0 | J91: ='EasyCal Excel'!AT100 -> 0 | K91: ='EasyCal Excel'!AU100 -> 0 | L91: ='EasyCal Excel'!AV100 -> MPF | M91: ='EasyCal Excel'!AX100 -> MC -> VC | N91: ='EasyCal Excel'!AZ100 -> 0 | O91: ='EasyCal Excel'!BA100 -> 0 | P91: ='EasyCal Excel'!BB100 -> 0 | Q91: ='EasyCal Excel'!BS100 -> N/A | R91: ='EasyCal Excel'!BU100 -> N/A | S91: ='EasyCal Excel'!BV100 -> No | T91: ='EasyCal Excel'!BY100 -> 0 | U91: ='EasyCal Excel'!BZ100 -> 0 | V91: ='EasyCal Excel'!CA100 -> 0 | W91: ='EasyCal Excel'!CB100 -> 0 | X91: ='EasyCal Excel'!CC100 -> 0 | Y91: ='EasyCal Excel'!CD100 -> 0 | Z91: ='EasyCal Excel'!CH100 -> N/A | AA91: ='EasyCal Excel'!CL100 -> 0 | AB91: ='EasyCal Excel'!CM100 -> N/A | AC91: ='EasyCal Excel'!CO100 -> within $500,000 | AD91: ='EasyCal Excel'!CQ100 -> 0 | AE91: ='EasyCal Excel'!CR100 -> 0 | AF91: ='EasyCal Excel'!CW100 -> 0 | AG91: ='EasyCal Excel'!CX100 -> 0 | AH91: ='EasyCal Excel'!CY100 -> 0 | AI91: ='EasyCal Excel'!CZ100 -> 0 | AJ91: ='EasyCal Excel'!DA100 -> 0 | AK91: ='EasyCal Excel'!DB100 -> 0 | AL91: ='EasyCal Excel'!DC100 -> 0
A92: ='EasyCal Excel'!A101 -> 92 | B92: ='EasyCal Excel'!B101 -> 0 | C92: ='EasyCal Excel'!C101 -> Please Select | D92: ='EasyCal Excel'!F101 -> 00:00:00 | E92: ='EasyCal Excel'!G101 -> 00:00:00 | F92: ='EasyCal Excel'!L101 -> Monthly-rated | G92: ='EasyCal Excel'!O101 -> 0 | H92: ='EasyCal Excel'!P101 -> 0 | I92: ='EasyCal Excel'!AD101 -> 0 | J92: ='EasyCal Excel'!AT101 -> 0 | K92: ='EasyCal Excel'!AU101 -> 0 | L92: ='EasyCal Excel'!AV101 -> MPF | M92: ='EasyCal Excel'!AX101 -> MC -> VC | N92: ='EasyCal Excel'!AZ101 -> 0 | O92: ='EasyCal Excel'!BA101 -> 0 | P92: ='EasyCal Excel'!BB101 -> 0 | Q92: ='EasyCal Excel'!BS101 -> N/A | R92: ='EasyCal Excel'!BU101 -> N/A | S92: ='EasyCal Excel'!BV101 -> No | T92: ='EasyCal Excel'!BY101 -> 0 | U92: ='EasyCal Excel'!BZ101 -> 0 | V92: ='EasyCal Excel'!CA101 -> 0 | W92: ='EasyCal Excel'!CB101 -> 0 | X92: ='EasyCal Excel'!CC101 -> 0 | Y92: ='EasyCal Excel'!CD101 -> 0 | Z92: ='EasyCal Excel'!CH101 -> N/A | AA92: ='EasyCal Excel'!CL101 -> 0 | AB92: ='EasyCal Excel'!CM101 -> N/A | AC92: ='EasyCal Excel'!CO101 -> within $500,000 | AD92: ='EasyCal Excel'!CQ101 -> 0 | AE92: ='EasyCal Excel'!CR101 -> 0 | AF92: ='EasyCal Excel'!CW101 -> 0 | AG92: ='EasyCal Excel'!CX101 -> 0 | AH92: ='EasyCal Excel'!CY101 -> 0 | AI92: ='EasyCal Excel'!CZ101 -> 0 | AJ92: ='EasyCal Excel'!DA101 -> 0 | AK92: ='EasyCal Excel'!DB101 -> 0 | AL92: ='EasyCal Excel'!DC101 -> 0
A93: ='EasyCal Excel'!A102 -> 93 | B93: ='EasyCal Excel'!B102 -> 0 | C93: ='EasyCal Excel'!C102 -> Please Select | D93: ='EasyCal Excel'!F102 -> 00:00:00 | E93: ='EasyCal Excel'!G102 -> 00:00:00 | F93: ='EasyCal Excel'!L102 -> Monthly-rated | G93: ='EasyCal Excel'!O102 -> 0 | H93: ='EasyCal Excel'!P102 -> 0 | I93: ='EasyCal Excel'!AD102 -> 0 | J93: ='EasyCal Excel'!AT102 -> 0 | K93: ='EasyCal Excel'!AU102 -> 0 | L93: ='EasyCal Excel'!AV102 -> MPF | M93: ='EasyCal Excel'!AX102 -> MC -> VC | N93: ='EasyCal Excel'!AZ102 -> 0 | O93: ='EasyCal Excel'!BA102 -> 0 | P93: ='EasyCal Excel'!BB102 -> 0 | Q93: ='EasyCal Excel'!BS102 -> N/A | R93: ='EasyCal Excel'!BU102 -> N/A | S93: ='EasyCal Excel'!BV102 -> No | T93: ='EasyCal Excel'!BY102 -> 0 | U93: ='EasyCal Excel'!BZ102 -> 0 | V93: ='EasyCal Excel'!CA102 -> 0 | W93: ='EasyCal Excel'!CB102 -> 0 | X93: ='EasyCal Excel'!CC102 -> 0 | Y93: ='EasyCal Excel'!CD102 -> 0 | Z93: ='EasyCal Excel'!CH102 -> N/A | AA93: ='EasyCal Excel'!CL102 -> 0 | AB93: ='EasyCal Excel'!CM102 -> N/A | AC93: ='EasyCal Excel'!CO102 -> within $500,000 | AD93: ='EasyCal Excel'!CQ102 -> 0 | AE93: ='EasyCal Excel'!CR102 -> 0 | AF93: ='EasyCal Excel'!CW102 -> 0 | AG93: ='EasyCal Excel'!CX102 -> 0 | AH93: ='EasyCal Excel'!CY102 -> 0 | AI93: ='EasyCal Excel'!CZ102 -> 0 | AJ93: ='EasyCal Excel'!DA102 -> 0 | AK93: ='EasyCal Excel'!DB102 -> 0 | AL93: ='EasyCal Excel'!DC102 -> 0
A94: ='EasyCal Excel'!A103 -> 94 | B94: ='EasyCal Excel'!B103 -> 0 | C94: ='EasyCal Excel'!C103 -> Please Select | D94: ='EasyCal Excel'!F103 -> 00:00:00 | E94: ='EasyCal Excel'!G103 -> 00:00:00 | F94: ='EasyCal Excel'!L103 -> Monthly-rated | G94: ='EasyCal Excel'!O103 -> 0 | H94: ='EasyCal Excel'!P103 -> 0 | I94: ='EasyCal Excel'!AD103 -> 0 | J94: ='EasyCal Excel'!AT103 -> 0 | K94: ='EasyCal Excel'!AU103 -> 0 | L94: ='EasyCal Excel'!AV103 -> MPF | M94: ='EasyCal Excel'!AX103 -> MC -> VC | N94: ='EasyCal Excel'!AZ103 -> 0 | O94: ='EasyCal Excel'!BA103 -> 0 | P94: ='EasyCal Excel'!BB103 -> 0 | Q94: ='EasyCal Excel'!BS103 -> N/A | R94: ='EasyCal Excel'!BU103 -> N/A | S94: ='EasyCal Excel'!BV103 -> No | T94: ='EasyCal Excel'!BY103 -> 0 | U94: ='EasyCal Excel'!BZ103 -> 0 | V94: ='EasyCal Excel'!CA103 -> 0 | W94: ='EasyCal Excel'!CB103 -> 0 | X94: ='EasyCal Excel'!CC103 -> 0 | Y94: ='EasyCal Excel'!CD103 -> 0 | Z94: ='EasyCal Excel'!CH103 -> N/A | AA94: ='EasyCal Excel'!CL103 -> 0 | AB94: ='EasyCal Excel'!CM103 -> N/A | AC94: ='EasyCal Excel'!CO103 -> within $500,000 | AD94: ='EasyCal Excel'!CQ103 -> 0 | AE94: ='EasyCal Excel'!CR103 -> 0 | AF94: ='EasyCal Excel'!CW103 -> 0 | AG94: ='EasyCal Excel'!CX103 -> 0 | AH94: ='EasyCal Excel'!CY103 -> 0 | AI94: ='EasyCal Excel'!CZ103 -> 0 | AJ94: ='EasyCal Excel'!DA103 -> 0 | AK94: ='EasyCal Excel'!DB103 -> 0 | AL94: ='EasyCal Excel'!DC103 -> 0
A95: ='EasyCal Excel'!A104 -> 95 | B95: ='EasyCal Excel'!B104 -> 0 | C95: ='EasyCal Excel'!C104 -> Please Select | D95: ='EasyCal Excel'!F104 -> 00:00:00 | E95: ='EasyCal Excel'!G104 -> 00:00:00 | F95: ='EasyCal Excel'!L104 -> Monthly-rated | G95: ='EasyCal Excel'!O104 -> 0 | H95: ='EasyCal Excel'!P104 -> 0 | I95: ='EasyCal Excel'!AD104 -> 0 | J95: ='EasyCal Excel'!AT104 -> 0 | K95: ='EasyCal Excel'!AU104 -> 0 | L95: ='EasyCal Excel'!AV104 -> MPF | M95: ='EasyCal Excel'!AX104 -> MC -> VC | N95: ='EasyCal Excel'!AZ104 -> 0 | O95: ='EasyCal Excel'!BA104 -> 0 | P95: ='EasyCal Excel'!BB104 -> 0 | Q95: ='EasyCal Excel'!BS104 -> N/A | R95: ='EasyCal Excel'!BU104 -> N/A | S95: ='EasyCal Excel'!BV104 -> No | T95: ='EasyCal Excel'!BY104 -> 0 | U95: ='EasyCal Excel'!BZ104 -> 0 | V95: ='EasyCal Excel'!CA104 -> 0 | W95: ='EasyCal Excel'!CB104 -> 0 | X95: ='EasyCal Excel'!CC104 -> 0 | Y95: ='EasyCal Excel'!CD104 -> 0 | Z95: ='EasyCal Excel'!CH104 -> N/A | AA95: ='EasyCal Excel'!CL104 -> 0 | AB95: ='EasyCal Excel'!CM104 -> N/A | AC95: ='EasyCal Excel'!CO104 -> within $500,000 | AD95: ='EasyCal Excel'!CQ104 -> 0 | AE95: ='EasyCal Excel'!CR104 -> 0 | AF95: ='EasyCal Excel'!CW104 -> 0 | AG95: ='EasyCal Excel'!CX104 -> 0 | AH95: ='EasyCal Excel'!CY104 -> 0 | AI95: ='EasyCal Excel'!CZ104 -> 0 | AJ95: ='EasyCal Excel'!DA104 -> 0 | AK95: ='EasyCal Excel'!DB104 -> 0 | AL95: ='EasyCal Excel'!DC104 -> 0
A96: ='EasyCal Excel'!A105 -> 96 | B96: ='EasyCal Excel'!B105 -> 0 | C96: ='EasyCal Excel'!C105 -> Please Select | D96: ='EasyCal Excel'!F105 -> 00:00:00 | E96: ='EasyCal Excel'!G105 -> 00:00:00 | F96: ='EasyCal Excel'!L105 -> Monthly-rated | G96: ='EasyCal Excel'!O105 -> 0 | H96: ='EasyCal Excel'!P105 -> 0 | I96: ='EasyCal Excel'!AD105 -> 0 | J96: ='EasyCal Excel'!AT105 -> 0 | K96: ='EasyCal Excel'!AU105 -> 0 | L96: ='EasyCal Excel'!AV105 -> MPF | M96: ='EasyCal Excel'!AX105 -> MC -> VC | N96: ='EasyCal Excel'!AZ105 -> 0 | O96: ='EasyCal Excel'!BA105 -> 0 | P96: ='EasyCal Excel'!BB105 -> 0 | Q96: ='EasyCal Excel'!BS105 -> N/A | R96: ='EasyCal Excel'!BU105 -> N/A | S96: ='EasyCal Excel'!BV105 -> No | T96: ='EasyCal Excel'!BY105 -> 0 | U96: ='EasyCal Excel'!BZ105 -> 0 | V96: ='EasyCal Excel'!CA105 -> 0 | W96: ='EasyCal Excel'!CB105 -> 0 | X96: ='EasyCal Excel'!CC105 -> 0 | Y96: ='EasyCal Excel'!CD105 -> 0 | Z96: ='EasyCal Excel'!CH105 -> N/A | AA96: ='EasyCal Excel'!CL105 -> 0 | AB96: ='EasyCal Excel'!CM105 -> N/A | AC96: ='EasyCal Excel'!CO105 -> within $500,000 | AD96: ='EasyCal Excel'!CQ105 -> 0 | AE96: ='EasyCal Excel'!CR105 -> 0 | AF96: ='EasyCal Excel'!CW105 -> 0 | AG96: ='EasyCal Excel'!CX105 -> 0 | AH96: ='EasyCal Excel'!CY105 -> 0 | AI96: ='EasyCal Excel'!CZ105 -> 0 | AJ96: ='EasyCal Excel'!DA105 -> 0 | AK96: ='EasyCal Excel'!DB105 -> 0 | AL96: ='EasyCal Excel'!DC105 -> 0
A97: ='EasyCal Excel'!A106 -> 97 | B97: ='EasyCal Excel'!B106 -> 0 | C97: ='EasyCal Excel'!C106 -> Please Select | D97: ='EasyCal Excel'!F106 -> 00:00:00 | E97: ='EasyCal Excel'!G106 -> 00:00:00 | F97: ='EasyCal Excel'!L106 -> Monthly-rated | G97: ='EasyCal Excel'!O106 -> 0 | H97: ='EasyCal Excel'!P106 -> 0 | I97: ='EasyCal Excel'!AD106 -> 0 | J97: ='EasyCal Excel'!AT106 -> 0 | K97: ='EasyCal Excel'!AU106 -> 0 | L97: ='EasyCal Excel'!AV106 -> MPF | M97: ='EasyCal Excel'!AX106 -> MC -> VC | N97: ='EasyCal Excel'!AZ106 -> 0 | O97: ='EasyCal Excel'!BA106 -> 0 | P97: ='EasyCal Excel'!BB106 -> 0 | Q97: ='EasyCal Excel'!BS106 -> N/A | R97: ='EasyCal Excel'!BU106 -> N/A | S97: ='EasyCal Excel'!BV106 -> No | T97: ='EasyCal Excel'!BY106 -> 0 | U97: ='EasyCal Excel'!BZ106 -> 0 | V97: ='EasyCal Excel'!CA106 -> 0 | W97: ='EasyCal Excel'!CB106 -> 0 | X97: ='EasyCal Excel'!CC106 -> 0 | Y97: ='EasyCal Excel'!CD106 -> 0 | Z97: ='EasyCal Excel'!CH106 -> N/A | AA97: ='EasyCal Excel'!CL106 -> 0 | AB97: ='EasyCal Excel'!CM106 -> N/A | AC97: ='EasyCal Excel'!CO106 -> within $500,000 | AD97: ='EasyCal Excel'!CQ106 -> 0 | AE97: ='EasyCal Excel'!CR106 -> 0 | AF97: ='EasyCal Excel'!CW106 -> 0 | AG97: ='EasyCal Excel'!CX106 -> 0 | AH97: ='EasyCal Excel'!CY106 -> 0 | AI97: ='EasyCal Excel'!CZ106 -> 0 | AJ97: ='EasyCal Excel'!DA106 -> 0 | AK97: ='EasyCal Excel'!DB106 -> 0 | AL97: ='EasyCal Excel'!DC106 -> 0
A98: ='EasyCal Excel'!A107 -> 98 | B98: ='EasyCal Excel'!B107 -> 0 | C98: ='EasyCal Excel'!C107 -> Please Select | D98: ='EasyCal Excel'!F107 -> 00:00:00 | E98: ='EasyCal Excel'!G107 -> 00:00:00 | F98: ='EasyCal Excel'!L107 -> Monthly-rated | G98: ='EasyCal Excel'!O107 -> 0 | H98: ='EasyCal Excel'!P107 -> 0 | I98: ='EasyCal Excel'!AD107 -> 0 | J98: ='EasyCal Excel'!AT107 -> 0 | K98: ='EasyCal Excel'!AU107 -> 0 | L98: ='EasyCal Excel'!AV107 -> MPF | M98: ='EasyCal Excel'!AX107 -> MC -> VC | N98: ='EasyCal Excel'!AZ107 -> 0 | O98: ='EasyCal Excel'!BA107 -> 0 | P98: ='EasyCal Excel'!BB107 -> 0 | Q98: ='EasyCal Excel'!BS107 -> N/A | R98: ='EasyCal Excel'!BU107 -> N/A | S98: ='EasyCal Excel'!BV107 -> No | T98: ='EasyCal Excel'!BY107 -> 0 | U98: ='EasyCal Excel'!BZ107 -> 0 | V98: ='EasyCal Excel'!CA107 -> 0 | W98: ='EasyCal Excel'!CB107 -> 0 | X98: ='EasyCal Excel'!CC107 -> 0 | Y98: ='EasyCal Excel'!CD107 -> 0 | Z98: ='EasyCal Excel'!CH107 -> N/A | AA98: ='EasyCal Excel'!CL107 -> 0 | AB98: ='EasyCal Excel'!CM107 -> N/A | AC98: ='EasyCal Excel'!CO107 -> within $500,000 | AD98: ='EasyCal Excel'!CQ107 -> 0 | AE98: ='EasyCal Excel'!CR107 -> 0 | AF98: ='EasyCal Excel'!CW107 -> 0 | AG98: ='EasyCal Excel'!CX107 -> 0 | AH98: ='EasyCal Excel'!CY107 -> 0 | AI98: ='EasyCal Excel'!CZ107 -> 0 | AJ98: ='EasyCal Excel'!DA107 -> 0 | AK98: ='EasyCal Excel'!DB107 -> 0 | AL98: ='EasyCal Excel'!DC107 -> 0
A99: ='EasyCal Excel'!A108 -> 99 | B99: ='EasyCal Excel'!B108 -> 0 | C99: ='EasyCal Excel'!C108 -> Please Select | D99: ='EasyCal Excel'!F108 -> 00:00:00 | E99: ='EasyCal Excel'!G108 -> 00:00:00 | F99: ='EasyCal Excel'!L108 -> Monthly-rated | G99: ='EasyCal Excel'!O108 -> 0 | H99: ='EasyCal Excel'!P108 -> 0 | I99: ='EasyCal Excel'!AD108 -> 0 | J99: ='EasyCal Excel'!AT108 -> 0 | K99: ='EasyCal Excel'!AU108 -> 0 | L99: ='EasyCal Excel'!AV108 -> MPF | M99: ='EasyCal Excel'!AX108 -> MC -> VC | N99: ='EasyCal Excel'!AZ108 -> 0 | O99: ='EasyCal Excel'!BA108 -> 0 | P99: ='EasyCal Excel'!BB108 -> 0 | Q99: ='EasyCal Excel'!BS108 -> N/A | R99: ='EasyCal Excel'!BU108 -> N/A | S99: ='EasyCal Excel'!BV108 -> No | T99: ='EasyCal Excel'!BY108 -> 0 | U99: ='EasyCal Excel'!BZ108 -> 0 | V99: ='EasyCal Excel'!CA108 -> 0 | W99: ='EasyCal Excel'!CB108 -> 0 | X99: ='EasyCal Excel'!CC108 -> 0 | Y99: ='EasyCal Excel'!CD108 -> 0 | Z99: ='EasyCal Excel'!CH108 -> N/A | AA99: ='EasyCal Excel'!CL108 -> 0 | AB99: ='EasyCal Excel'!CM108 -> N/A | AC99: ='EasyCal Excel'!CO108 -> within $500,000 | AD99: ='EasyCal Excel'!CQ108 -> 0 | AE99: ='EasyCal Excel'!CR108 -> 0 | AF99: ='EasyCal Excel'!CW108 -> 0 | AG99: ='EasyCal Excel'!CX108 -> 0 | AH99: ='EasyCal Excel'!CY108 -> 0 | AI99: ='EasyCal Excel'!CZ108 -> 0 | AJ99: ='EasyCal Excel'!DA108 -> 0 | AK99: ='EasyCal Excel'!DB108 -> 0 | AL99: ='EasyCal Excel'!DC108 -> 0
A100: ='EasyCal Excel'!A109 -> 0 | B100: ='EasyCal Excel'!B109 -> 0 | C100: ='EasyCal Excel'!C109 -> 0 | D100: ='EasyCal Excel'!F109 -> 00:00:00 | E100: ='EasyCal Excel'!G109 -> 00:00:00 | F100: ='EasyCal Excel'!L109 -> 0 | G100: ='EasyCal Excel'!O109 -> 0 | H100: ='EasyCal Excel'!P109 -> 0 | I100: ='EasyCal Excel'!AD109 -> 0 | J100: ='EasyCal Excel'!AT109 -> 0 | K100: ='EasyCal Excel'!AU109 -> 0 | L100: ='EasyCal Excel'!AV109 -> 0 | M100: ='EasyCal Excel'!AX109 -> 0 | N100: ='EasyCal Excel'!AZ109 -> 0 | O100: ='EasyCal Excel'!BA109 -> 0 | P100: ='EasyCal Excel'!BB109 -> 0 | Q100: ='EasyCal Excel'!BS109 -> 0 | R100: ='EasyCal Excel'!BU109 -> 0 | S100: ='EasyCal Excel'!BV109 -> 0 | T100: ='EasyCal Excel'!BY109 -> 0 | U100: ='EasyCal Excel'!BZ109 -> 0 | V100: ='EasyCal Excel'!CA109 -> 0 | W100: ='EasyCal Excel'!CB109 -> 0 | X100: ='EasyCal Excel'!CC109 -> 0 | Y100: ='EasyCal Excel'!CD109 -> 0 | Z100: ='EasyCal Excel'!CH109 -> 0 | AA100: ='EasyCal Excel'!CL109 -> 0 | AB100: ='EasyCal Excel'!CM109 -> 0 | AC100: ='EasyCal Excel'!CO109 -> Total: | AD100: ='EasyCal Excel'!CQ109 -> 0 | AE100: ='EasyCal Excel'!CR109 -> 0 | AF100: ='EasyCal Excel'!CW109 -> 0 | AG100: ='EasyCal Excel'!CX109 -> 0 | AH100: ='EasyCal Excel'!CY109 -> 0 | AI100: ='EasyCal Excel'!CZ109 -> 0 | AJ100: ='EasyCal Excel'!DA109 -> 0 | AK100: ='EasyCal Excel'!DB109 -> 0 | AL100: ='EasyCal Excel'!DC109 -> 0

Sheet Points to Note
D1: Updated date : 28 May, 2025
A3: In tandem with the abolition of the offsetting arrangement under the Mandatory Provident Fund (MPF) System on 1 May 2025, the Labour Department launches the Subsidy Scheme for Abolition of MPF Offsetting Arrangement (SSA).
A6: SSA shares out employers' expenses on severance payment (SP) / long service payment (LSP) in respect of their Employees' employment period on or after 1 May 2025 onwards (i.e. the post- Transition portion of SP / LSP) by providing employers with subsidies for 25 years. The subsidy ratio will be progressively reduced on a year-on-year basis over the subsidy period with a view to helping employers gradually adapt to the policy change.
A10: The online calculating tool“EasyCal”( | B10: https://www.offsettingsubsidy.gov.hk/tc/calculator.html | C10: ) aims at assisting employers to calculate the SP/LSP expenses (for up to five employees) after the
A11: abolition of MPF offsetting, as well as estimating the amount of subsidy under SSA. The "EasyCal Excel” (this calculating tool) offers a convenient method for employers to calculate corresponding entitlements and subsidy amount for numerous employees (up to 99 employees). For details of the calculations, please visit "EasyCal" online calculating tool.
A14: Notes：
A16:  For the sake of IT security, users shall only download the EasyCal Excel from TransitionEase Portal, and should not use any EasyCal Excel downloaded from other websites or received from other channels. The Labour Department accepts no liability for any losses, damages, costs or expenses howsoever arising from the download or use of the EasyCal Excel.
A19:  Users are recommended to check the version of the EasyCal Excel, or download the EasyCal Excel from TransitionEase Portal so as to ensure the EasyCal Excel to be used is the most updated version.
A21: l Please open this calculating tool with MS Excel 2019 or newer version.
A23:  This calculating tool operates on the basis of the relevant provisions of the Employment and Retirement Schemes Legislation (Offsetting Arrangement) (Amendment) Ordinance 2022, data inputted by users and certain assumptions of circumstances. The computation steps and results generated are for initial reference and demonstration purposes only. Users are required to take into account the employment terms and conditions, as well as the actual employment situation of the employee concerned in order to calculate relevant statutory entitlements of the employee accurately.
A27:  This calculating tool assumes that the whole employment period of the employee(s) is/are covered by MPF system. If the whole or part of the employment period is/are not covered by MPF system (e.g. the employment period after which the employee reaches age 65), the calculation results provided by this calculating tool may be different from the actual situation.
A30: l The Labour Department accepts no liability for any losses, damages, costs or expenses howsoever arising from the use of or inability to use this calculating tool or use of or reliance upon any information or material provided by this calculating tool. The information generated by this calculating tool should neither be used in any legal proceedings nor be regarded as evidence in pursuing any claims.
A34: l Rounding of figures: figures may not add up to the total due to rounding down (except the part of calculating the Government subsidy, truncation is used).
A36: l This calculating tool will not check against the logic of inputted values. Users must pay attention to inputting correct figures/values.
A38: l Please avoid copying and pasting values into the cells of this calculating tool direct as this may bypass the built-in validation rules.
A40: l Figures inputted in the "EasyCal" Excel worksheet will be automatically saved in the“View by sorting or filtering”worksheet for users to conduct sorting or filtering functions.
A42: l Remarks for calculation：
A43: - The relevant date of termination of employment of the employee must fall between 1 May 2025 and 30 April 2050 (both dates inclusive).
A44: - According to the Employment Ordinance, an employee must be employed under a continuous contract for not less than 24 months before the relevant date in relation to the termination of employment in order to be eligible for SP.
A46: - According to the Employment Ordinance, an employee must be employed under a continuous contract for not less than 5 years before the relevant date in relation to the termination of employment in order to be eligible for LSP.
A48: - According to the Employment Ordinance, in calculation of SP / LSP for monthly rated employees, the wage rate immediately preceding the “transition date” / wage rate immediately preceding the termination of employment shall not exceed $22,500; for non-monthly rated employees, the amount shall not exceed 2/3 of $22,500 (i.e. $15,000).
A50: - According to the Employment Ordinance, the maximum payment of SP / LSP is $390,000. For the Employees' SP / LSP entitlement exceeds $390,000, the amount in excess will be deducted from the post- transition portion.
A52: - For employees participating Occupational Retirement Schemes (ORS), calculation of "carved-out benefits" and “remaining benefits” are as follows:
A53: “Carved-out benefits”: Final average monthly relevant income (currently cap at $30,000) × Years of service with ORS benefits (only years of service on or after 1 December 2000 will count) × 5% × 12
A54: “Remaining benefits”: Vested benefits of employer’s ORS contributions – “carved-out benefits”
A56:  The relevant provisions of the laws concerned remain the sole authority for calculation of the statutory entitlements.
A57: ̶

Sheet EasyCal Excel
A2: "EasyCal" Excel (Calculating SP/LSP after the abolition of MPF offsetting arrangement and Government Subsidy)
A3: Effective date of Abolition of MPF Offsetting Arrangement ("transition date") : 1/5/2025 | E3: 2025-05-01 | F3: Part I - Employees' Information | AD3: Part II - Calculating the amount of employees' SP/LSP entitlement | CO3: Part III - Calculating the amount of Government subsidy | CY3: Part IV - Conclusion
A4: Serial number | B4: Name of employees | C4: Calculating Severance Payment (SP) / Long Service Payment (LSP) | F4: (1) Commencement date of employment | G4: (2) Relevant date in relation to the termination of employment | L4: (3) Monthly-rated employee / Non monthly-rated employee | O4: (4) Wage rate immediately preceding the "transition date" For monthly-rated employee: Please input the last full month's wages or the average monthly wages over the last 12 months immediately preceding the "transition date" For non-monthly rated employee: Please input 18 days' wages chosen out of the last 30 normal working days or 18 times the average daily wages over the last 12 months immediately preceding the "transition date" | P4: (5) Wage rate immediately preceding the termination of employment For monthly-rated employee: Please input the last full month's wages or the average monthly wages over the 12 months immediately preceding the termination of employment. For non-monthly rated employee: Please input the 18 days' wages chosen out of the last 30 normal working days or 18 times the average daily wages over the last 12 months immediately preceding the termination of employment. | Q4: 遣散費／長期服務金轉制前部分的計算： | AD4: (6) The amount of pre- transition portion of SP/LSP | AT4: (7) The amount of post- transition portion of SP/LSP | AU4: (8) The employees' SP / LSP entitlement | AV4: (9) The employees enrolled in Mandatory Provident Fund (MPF) Scheme / Occupational Retirement Schemes (ORS)? | AX4: (10) Please choose one option below for the SP/LSP offsetting sequence: MPF: First offset by accured benefits of employer's MPF mandatory contributions, then by accured benefits of employer's MPF voluntary contributions (and other voluntary benefits, if any) (MC->VC) or vice versa (VC->MC) ORS: First offset by "Carved-out benefits" of employer's ORS contributions, then by "Remaining benefits" (and other voluntary benefits, if any) (MC->VC) or vice versa (VC->MC) | AZ4: Applicable to MPF | BA4: Applicable to ORS | BV4: (16) Have you provided below benefits for offsetting the employees' SP/LSP? MPF: The accrued benefits of employer's MPF voluntary contributions/ Gratuities based on employees' years of service/ Non-MPF exempted ORS benefits ORS: "Remaining benefits"/ Gratuities based on employees' years of service/ Non-MPF exempted ORS benefits | BY4: Applicable to MPF | CB4: Applicable to ORS | CE4: 遣散費／長服金的「對沖」安排 | CH4: (23) The amount of pre- transition portion of SP/LSP payable after offsetting | CL4: (24) The amount of post- transition portion of SP/LSP payable after offsetting | CM4: (25) The total amount of SP/LSP payable to the employee after offsetting | CO4: (26) The accumulated amount of post- transition portion of SP/LSP payable to all employees in the subsidy year | CQ4: (27) Year N after the abolition of MPF offsetting arrangement | CR4: (28) Subsidy ratio for Employers in respect of post-transition portion of SP/LSP | CW4: (29) The amount of Government subsidy in respect of post-transition portion of SP/LSP | CX4: (30) The amount of post- transition portion of SP/LSP payable under the subsidy scheme | CY4: (31) The employees' SP/LSP entitlement | CZ4: (32) The amount of benefits used for offsetting | DA4: (33) The amount of SP/LSP payable after offsetting | DB4: (34) The amount of Government subsidy | DC4: (35) The amount of SP/LSP payable after netting off the amount of Government subsidy
D5: Ensures C8 prompts for a valid selection and assigns numeric values (1, 2) for specific options, defaulting to 0 for invalid or unselected states. | E5: 取消「對沖」安排的生效日期（轉制日） | Q5: I （轉制前的工資） （以$22,500為上限） | R5: ratio | S5: no. of year | V5: no. of working day | Y5: no. of years | AB5: N?/O? | AC5: （轉制日前的服務年資） | AE5: ii （終止僱傭合約前的工資） （以$22,500為上限） | AF5: ratio | AH5: no. of year | AK5: no. of working day | AN5: no. of years | AQ5: N?/O? | AR5: （轉制日後的服務年資） | AZ5: (11) The amount of accrued benefits of employer's MPF mandatory contributions upon termination of employment used to offset pre-transition portion of SP/LSP | BA5: (12) Vested benefits of employer's ORS contributions for offsetting | BB5: (13) The employees' final average monthly relevant income | BC5: ii （最終每月平均有關入息） （以$30,000為上限） | BF5: no. of year | BI5: no. of working day | BL5: no. of years | BO5: N?/O? | BP5: （享有職業退休計劃利益的服務年數） | BQ5: 0.05 | BR5: 12 | BS5: (14) "Carved-out benefits" (can only be used to offset the employees' pre-transition portion of SP/LSP) | BT5: (15)「利益餘額」： | BU5: (15) "Remaining benefits" (can be used to offset pre- or post-transition portion of SP/LSP) | BX5: K+AV+AX | BY5: (17) The accrued benefits of employer's MPF voluntary contributions used for offsetting | BZ5: (18) Gratuities based on employees' years of service used for offsetting | CA5: (19) Non-MPF exempted ORS benefits used for offsetting | CB5: (20) "Remaining benefits" used for offsetting | CC5: (21) Gratuities based on employees' years of service used for offsetting | CD5: (22) Non-MPF exempted ORS benefits used for offsetting | CF5: 僱主強積金 強制性供款的累算權益 | CG5: 剔除款項： | CI5: 剩餘的僱主強積金自願性供款累算權益／酬金／非強積金豁免的職業退休計劃利益總額 | CK5: 經「對沖」轉制前部分後 剩餘的僱主強積金自願性供款累算權益／酬金／非強積金豁免的職業退休計劃利益總額 | CN5: 適用/不適用 取消強積金「對沖」安排資助計劃 0/N/A = Not applicable 1 =applicable | CP5: 每年遣散費／長服金支出總額 | CS5: 可獲得的資助比率 | CT5: 可獲得的資助金額 | CU5: 「封頂」金額 | CV5: 超出「封頂」金額的餘額
C6: Input required | F6: Input required | G6: Input required | L6: Input required | O6: Input required | P6: Input required | AV6: Input required | AX6: Input required | AZ6: Input required | BA6: Input required | BB6: Input required | BV6: Input required | BY6: Input required | BZ6: Input required | CA6: Input required | CB6: Input required | CC6: Input required | CD6: Input required | CO6: Input required
A7: Example 1 | B7: XX Chan | C7: SP | D7: =_xlfn.IFS( OR(C7="", C7="Pls select"), 0, C7=Pulldown!$F$2, 1, C7=Pulldown!$F$3, 2, TRUE, 0) -> 1 | E7: =$E$3 -> 2025-05-01 | F7: 2020-01-01 | G7: 2026-05-01 | H7: =_xlfn.IFS( AND(F7<>"", G7<>"", G7<F7), "Invalid Date Order", AND(F7="", G7=""), "Input Required", AND(F7="", G7<>""), IF(G7<E7, "Date Before Transition", "Invalid: F11 Missing"), OR(F7="", G7=""), "Input Required", G7<E7, "Date Before Transition", AND(D7=1, DATEDIF(F7, G7+1, "y")>=2), "1-valid", AND(D7=1, DATEDIF(F7, G7+1, "y")<2), "1-invalid", AND(D7=2, DATEDIF(F7, G7+1, "y")>=5), "2-valid", AND(D7=2, DATEDIF(F7, G7+1, "y")<5), "2-invalid", TRUE, "Invalid Category" ) -> 1-valid | I7: =_xlfn.IFS( $H7="1-valid", 1, $H7="2-valid", 2, $H7="Input Required", 3, $H7="Date Before Transition", 4, TRUE, 0 ) -> 1 | J7: =_xlfn.IFS( OR(F7="",G7=""),"Input Required", $F7>=$E7,"轉制日後開始受僱", $E7>$F7,"轉制日前開始受僱", TRUE,"Invalid Category" ) -> 轉制日前開始受僱 | K7: =_xlfn.IFS( $J7="轉制日前開始受僱", 1, $J7="轉制日後開始受僱", 2, TRUE, 0 ) -> 1 | L7: Monthly-rated | M7: =_xlfn.IFS($L7=Pulldown!$C$1,22500,$L7=Pulldown!$C$2,15000) -> 22500 | N7: =_xlfn.IFS($L7=Pulldown!$C$1,2/3,$L7=Pulldown!$C$2,1) -> 0.6666666667 | O7: 10000 | P7: 18000 | Q7: =IF(OR(I7=1, I7=2), IF(K7=0, "", IF(K7=1, IF(OR(M7="N/A", O7="N/A"), "N/A", IF(OR(M7="", O7=""), "", MIN(M7, O7))), IF(K7=2, "N/A", ""))), "") -> 10000 | R7: =$N7 -> 0.6666666667 | S7: =IF(OR(I7=1, I7=2), IF((F7<=E7),(DATEDIF(F7,E7,"Y")),"N/A"), "") -> 5 | T7: =IF(OR(I7=1, I7=2), IF(F7>E7, F7, F7), "") -> 2020-01-01 | U7: =IF(OR(I7=1, I7=2), IF(F7>E7, E7-1, E7-1), "") -> 2025-04-30 | V7: =IF(OR(I7=1, I7=2), IF(F7>E7, "N/A", E7-DATE(YEAR(F7)+S7, MONTH(F7), DAY(F7))), "") -> 120 | W7: =IF(OR(I7=1, I7=2), IF(F7>E7, DATE(YEAR(E7), MONTH(F7), DAY(F7)), DATE(YEAR(F7)+S7, MONTH(F7), DAY(F7))), "") -> 2025-01-01 | X7: =IF(OR(I7=1, I7=2), IF(F7>E7, E7-1, E7-1), "") -> 2025-04-30 | Y7: =IF(OR(I7=1, I7=2), IF(F7>E7, "N/A", DATE(YEAR(W7)+1, MONTH(W7), DAY(W7))-W7), "") -> 365 | Z7: =IF(OR(I7=1, I7=2), IF(F7>E7, DATE(YEAR(E7), MONTH(F7), DAY(F7)), DATE(YEAR(F7)+S7, MONTH(F7), DAY(F7))), "") -> 2025-01-01 | AA7: =IF(OR(I7=1, I7=2), IF(F7>E7, DATE(YEAR(W7)+1, MONTH(W7), DAY(W7))-1, DATE(YEAR(W7)+1, MONTH(W7), DAY(W7))-1), "") -> 2025-12-31 | AB7: =IF(OR(S7="N/A", V7="N/A", Y7="N/A"), "N/A", IF(OR(S7="", V7="", Y7="", Y7=0), "", V7/Y7)) -> 0.3287671233 | AC7: =IF(AB7="N/A", "N/A", IF(AB7="", "", S7 + AB7)) -> 5.328767123 | AD7: =IF(OR(Q7="N/A", R7="N/A", AC7="N/A"), "N/A", IF(OR(Q7="", R7="", AC7=""), 0, ROUND(MIN(390000, Q7*R7*AC7), 2))) -> 35525.11 | AE7: =IF(OR(I7=1, I7=2), IF(K7=0, "", IF(OR(K7=1, K7=2), IF(OR(M7="N/A", P7="N/A"), "N/A", IF(OR(M7="", P7=""), "", MIN(M7, P7))), "")), "") -> 18000 | AF7: =$N7 -> 0.6666666667 | AG7: =IF(E7>F7,E7,F7) -> 2025-05-01 | AH7: =IF(OR(I7=1, I7=2), IF(F7<=E7, DATEDIF(E7, G7, "Y"), DATEDIF(F7, G7, "Y")), "") -> 1 | AI7: =IF(OR(I7=1, I7=2), IF(F7<=E7, E7, F7), "") -> 2025-05-01 | AJ7: =IF(OR(I7=1, I7=2), G7, "") -> 2026-05-01 | AK7: =IF(OR(I7=1, I7=2), IF(F7<=E7, G7-DATE(YEAR(E7)+AH7, MONTH(E7), DAY(E7)), G7-DATE(YEAR(F7)+AH7, MONTH(F7), DAY(F7)))+1, "") -> 1 | AL7: =IF(OR(I7=1, I7=2), IF(F7<=E7, DATE(YEAR(E7)+AH7, MONTH(E7), DAY(E7)), DATE(YEAR(F7)+AH7, MONTH(F7), DAY(F7))), "") -> 2026-05-01 | AM7: =IF(OR(I7=1, I7=2), G7, "") -> 2026-05-01 | AN7: =IF(OR(I7=1, I7=2), IF(F7<=E7, DATE(YEAR(E7)+AH7+1, MONTH(E7), DAY(E7))-DATE(YEAR(E7)+AH7, MONTH(E7), DAY(E7)), DATE(YEAR(F7)+AH7+1, MONTH(F7), DAY(F7))-DATE(YEAR(F7)+AH7, MONTH(F7), DAY(F7))), "") -> 365 | AO7: =IF(OR(I7=1, I7=2), IF(F7<=E7, DATE(YEAR(E7)+AH7, MONTH(E7), DAY(E7)), DATE(YEAR(F7)+AH7, MONTH(F7), DAY(F7))), "") -> 2026-05-01 | AP7: =IF(OR(I7=1, I7=2), IF(F7<=E7, DATE(YEAR(E7)+AH7+1, MONTH(E7), DAY(E7)), DATE(YEAR(F7)+AH7+1, MONTH(F7), DAY(F7)))-1, "") -> 2027-04-30 | AQ7: =IF(OR(AH7="N/A", AK7="N/A", AN7="N/A"), "N/A", IF(OR(AH7="", AK7="", AN7="", AN7=0), "", AK7/AN7)) -> 0.002739726027 | AR7: =IF(AQ7="N/A", "N/A", IF(AQ7="", "", AH7 + AQ7)) -> 1.002739726 | AS7: =IF(OR(AE7="N/A", AF7="N/A", AR7="N/A"), "N/A", IF(OR(AE7="", AF7="", AR7=""), 0, ROUND(MIN(390000, AE7*AF7*AR7),2))) -> 12032.88 | AT7: =IF(AD7="N/A", AS7, IFERROR(IF(AD7+AS7>=390000, 390000-AD7, AS7), AS7)) -> 12032.88 | AU7: =IFERROR(ROUNDDOWN(MIN(SUM(AD7, AS7), 390000), 2), 0) -> 47557.99 | AV7: MPF | AW7: =_xlfn.IFS(AV7="",0,AV7=Pulldown!$B$2,1,AV7=Pulldown!$B$3,2) -> 1 | AX7: MC -> VC | AY7: =_xlfn.IFS(AX7="",0,AX7=Pulldown!$G$1,1,AX7=Pulldown!$G$2,2) -> 1 | AZ7: 150000 | BA7: 0 | BB7: 0 | BC7: =IF(AW7=1, "N/A", IF(BB7="", 0, MIN(30000, BB7))) -> N/A | BD7: =IF(AW7=1,"N/A",(MAX("1/12/2000",F7))) -> N/A | BE7: =IF(AW7=1,"N/A",G7) -> N/A | BF7: =IF(AW7=1, "N/A", IF(AW7=2, IFERROR(IF(OR(NOT(ISNUMBER(BD7)), NOT(ISNUMBER(BE7)), BD7<DATE(1900,1,1), BE7<DATE(1900,1,1), BE7<BD7), "N/A", DATEDIF(BD7, BE7, "Y")), "N/A"), "")) -> N/A | BG7: =IF(AW7=1, "N/A", IF(AW7=2, BD7, "")) -> N/A | BH7: =IF(AW7=1, "N/A", IF(AW7=2, DATE(YEAR(BE7), MONTH(BD7), DAY(BD7)-1), "")) -> N/A | BI7: =IF(AW7=1, "N/A", IF(AW7=2, IFERROR(IF(OR(NOT(ISNUMBER(BD7)), NOT(ISNUMBER(BE7)), BD7<DATE(1900,1,1), BE7<DATE(1900,1,1), BE7<BD7), "N/A", BE7 - DATE(YEAR(BD7) + BF7, MONTH(BD7), DAY(BD7)) + 1), "N/A"), "")) -> N/A | BJ7: =IF(AW7=1, "N/A", IF(AW7=2, IFERROR(IF(OR(NOT(ISNUMBER(BD7)), NOT(ISNUMBER(BE7)), BD7<DATE(1900,1,1), BE7<DATE(1900,1,1), BE7<BD7), "N/A", DATE(YEAR(BD7) +BF7, MONTH(BD7), DAY(BD7))), "N/A"), "")) -> N/A | BK7: =IF(AW7=1, "N/A", IF(AW7=2, BE7, "")) -> N/A | BL7: =IF(AW7=1, "N/A", IF(AW7=2, IF(OR(NOT(ISNUMBER(BD7)), NOT(ISNUMBER(BE7)), BD7<DATE(1900,1,1), BE7<DATE(1900,1,1), BE7<BD7, BF7="N/A", BF7="", NOT(ISNUMBER(BF7))), "N/A", IFERROR( IF(AND(ISNUMBER(DATE(YEAR(BD7)+BF7+1, MONTH(BD7), DAY(BD7)-1)), ISNUMBER(DATE(YEAR(BD7)+BF7, MONTH(BD7), DAY(BD7)))), DATE(YEAR(BD7)+BF7+1, MONTH(BD7), DAY(BD7)-1) - DATE(YEAR(BD7)+BF7, MONTH(BD7), DAY(BD7)) + 1, "N/A"), "N/A")), "")) -> N/A | BM7: =IF(AW7=1, "N/A", IF(AW7=2, IFERROR(IF(OR(NOT(ISNUMBER(BD7)), NOT(ISNUMBER(BE7)), BD7<DATE(1900,1,1), BE7<DATE(1900,1,1), BE7<BD7), "N/A", DATE(YEAR(BD7) + BF7, MONTH(BD7), DAY(BD7))), "N/A"), "")) -> N/A | BN7: =IF(AW7=1, "N/A", IF(AW7=2, IF(OR(NOT(ISNUMBER(BD7)), NOT(ISNUMBER(BE7)), BD7<DATE(1900,1,1), BE7<DATE(1900,1,1), BE7<BD7, BF7="N/A", BF7="", NOT(ISNUMBER(BF7))), "N/A", IFERROR( IF(ISNUMBER(DATE(YEAR(BD7)+BF7+1, MONTH(BD7), DAY(BD7)-1)), DATE(YEAR(BD7)+BF7+1, MONTH(BD7), DAY(BD7)-1), "N/A"), "N/A")), "")) -> N/A | BO7: =IF($AW7=1, "N/A", IF($AW7=2, IF(OR(NOT(ISNUMBER(BD7)), NOT(ISNUMBER(BE7)), BD7<DATE(1900,1,1), BE7<DATE(1900,1,1), BE7<BD7, BF7="N/A", BF7="", NOT(ISNUMBER(BF7)), BI7="N/A", NOT(ISNUMBER(BI7)), BL7="N/A", NOT(ISNUMBER(BL7)), BL7=0), "N/A", IFERROR(BI7/BL7, "N/A")), "")) -> N/A | BP7: =IF($AW7=1, "N/A", IF($AW7=2, IF(OR(NOT(ISNUMBER(BD7)), NOT(ISNUMBER(BE7)), BD7<DATE(1900,1,1), BE7<DATE(1900,1,1), BE7<BD7, BF7="N/A", BF7="", NOT(ISNUMBER(BF7)), BO7="N/A", NOT(ISNUMBER(BO7))), "N/A", IFERROR(BF7+BO7, "N/A")), "")) -> N/A | BQ7: =IF($AW7=1,"N/A",($BQ$5)) -> N/A | BR7: =IF($AW7=1,"N/A",($BR$5)) -> N/A | BS7: =IF($AW7=1, "N/A", IF($AW7=2, IF(OR(NOT(ISNUMBER(BD7)), NOT(ISNUMBER(BE7)), BD7<DATE(1900,1,1), BE7<DATE(1900,1,1), BE7<BD7, BF7="N/A", BF7="", NOT(ISNUMBER(BF7)), BP7="N/A", NOT(ISNUMBER(BP7)), NOT(ISNUMBER(BA7)), NOT(ISNUMBER(BC7)), NOT(ISNUMBER(BQ7)), NOT(ISNUMBER(BR7))), "N/A", IFERROR(MIN(ROUND(BA7,2), ROUND(BC7*BP7*BQ7*BR7,2)), "N/A")), "")) -> N/A | BT7: =IF($AW7=1, "N/A", IF($AW7=2, IF(OR(NOT(ISNUMBER(BD7)), NOT(ISNUMBER(BE7)), BD7<DATE(1900,1,1), BE7<DATE(1900,1,1), BE7<BD7, BF7="N/A", BF7="", NOT(ISNUMBER(BF7)), BS7="N/A", NOT(ISNUMBER(BS7)), NOT(ISNUMBER(BA7))), "N/A", IF(BA7="", 0, IFERROR(BA7 - ROUNDDOWN(BS7,2), "N/A"))), "")) -> N/A | BU7: =IF(ISNA(INDIRECT("BT" & ROW())), "N/A", INDIRECT("BT" & ROW())) -> N/A | BV7: No | BW7: =_xlfn.IFS(BV7="",0,BV7=Pulldown!$H$1,1,BV7=Pulldown!$H$2,2) -> 2 | BX7: =CONCATENATE(K7,AW7,AY7) -> 111 | BY7: 0 | BZ7: 0 | CA7: 0 | CB7: 0 | CC7: 0 | CD7: 0 | CE7: =IF((AD7="N/A"),"N/A",(MIN(390000,AD7))) -> 35525.11 | CF7: =IF($AW7=1, IF($AD7="N/A", "N/A", IF($AZ7="", 0, $AZ7)), "N/A") -> 150000 | CG7: =IF($AW7=2,(IF((AD7="N/A"),"N/A",(BS7))),"N/A") -> N/A | CH7: =IFERROR( _xlfn.IFS( BW7=2, IFERROR( _xlfn.IFS( OR(BX7="211", BX7="212", BX7="221", BX7="222"), "N/A", AND(ISTEXT(BX7), BX7="111", AW7=1), MAX(0, IF(CE7-CF7>0, IF(CE7-CF7-0>0, IF(CE7-CF7-0-0>0, CE7-CF7-0-0-0, 0), 0), 0)), AND(ISTEXT(BX7), BX7="112", AW7=1), MAX(0, IF(CE7-0>0, IF(CE7-0-0>0, IF(CE7-0-0-0>0, CE7-0-0-0-CF7, 0), 0), 0)), AND(ISTEXT(BX7), BX7="121", AW7=2), MAX(0, IF(CE7-CG7>0, IF(CE7-CG7-0>0, IF(CE7-CG7-0-0>0, CE7-CG7-0-0-0, 0), 0), 0)), AND(ISTEXT(BX7), BX7="122", AW7=2), MAX(0, IF(CE7-0>0, IF(CE7-0-0>0, IF(CE7-0-0-0>0, CE7-0-0-0-CG7, 0), 0), 0)), TRUE, "N/A" ), "N/A" ), BW7=1, IFERROR( _xlfn.IFS( OR(BX7="211", BX7="212", BX7="221", BX7="222"), "N/A", AND(ISTEXT(BX7), BX7="111", AW7=1), MAX(0, IF(CE7-CF7>0, IF(CE7-CF7-IF(OR(ISBLANK(BY7), NOT(ISNUMBER(BY7))), 0, BY7)>0, IF(CE7-CF7-IF(OR(ISBLANK(BY7), NOT(ISNUMBER(BY7))), 0, BY7)-IF(OR(ISBLANK(BZ7), NOT(ISNUMBER(BZ7))), 0, BZ7)>0, CE7-CF7-IF(OR(ISBLANK(BY7), NOT(ISNUMBER(BY7))), 0, BY7)-IF(OR(ISBLANK(BZ7), NOT(ISNUMBER(BZ7))), 0, BZ7)-IF(OR(ISBLANK(CA7), NOT(ISNUMBER(CA7))), 0, CA7), 0), 0), 0)), AND(ISTEXT(BX7), BX7="112", AW7=1), MAX(0, IF(CE7-IF(OR(ISBLANK(BY7), NOT(ISNUMBER(BY7))), 0, BY7)>0, IF(CE7-IF(OR(ISBLANK(BY7), NOT(ISNUMBER(BY7))), 0, BY7)-IF(OR(ISBLANK(BZ7), NOT(ISNUMBER(BZ7))), 0, BZ7)>0, IF(CE7-IF(OR(ISBLANK(BY7), NOT(ISNUMBER(BY7))), 0, BY7)-IF(OR(ISBLANK(BZ7), NOT(ISNUMBER(BZ7))), 0, BZ7)-IF(OR(ISBLANK(CA7), NOT(ISNUMBER(CA7))), 0, CA7)>0, CE7-IF(OR(ISBLANK(BY7), NOT(ISNUMBER(BY7))), 0, BY7)-IF(OR(ISBLANK(BZ7), NOT(ISNUMBER(BZ7))), 0, BZ7)-IF(OR(ISBLANK(CA7), NOT(ISNUMBER(CA7))), 0, CA7)-CF7, 0), 0), 0)), AND(ISTEXT(BX7), BX7="121", AW7=2), MAX(0, IF(CE7-CG7>0, IF(CE7-CG7-IF(OR(ISBLANK(CB7), NOT(ISNUMBER(CB7))), 0, CB7)>0, IF(CE7-CG7-IF(OR(ISBLANK(CB7), NOT(ISNUMBER(CB7))), 0, CB7)-IF(OR(ISBLANK(CC7), NOT(ISNUMBER(CC7))), 0, CC7)>0, CE7-CG7-IF(OR(ISBLANK(CB7), NOT(ISNUMBER(CB7))), 0, CB7)-IF(OR(ISBLANK(CC7), NOT(ISNUMBER(CC7))), 0, CC7)-IF(OR(ISBLANK(CD7), NOT(ISNUMBER(CD7))), 0, CD7), 0), 0), 0)), AND(ISTEXT(BX7), BX7="122", AW7=2), MAX(0, IF(CE7-IF(OR(ISBLANK(CB7), NOT(ISNUMBER(CB7))), 0, CB7)>0, IF(CE7-IF(OR(ISBLANK(CB7), NOT(ISNUMBER(CB7))), 0, CB7)-IF(OR(ISBLANK(CC7), NOT(ISNUMBER(CC7))), 0, CC7)>0, IF(CE7-IF(OR(ISBLANK(CB7), NOT(ISNUMBER(CB7))), 0, CB7)-IF(OR(ISBLANK(CC7), NOT(ISNUMBER(CC7))), 0, CC7)-IF(OR(ISBLANK(CD7), NOT(ISNUMBER(CD7))), 0, CD7)>0, CE7-IF(OR(ISBLANK(CB7), NOT(ISNUMBER(CB7))), 0, CB7)-IF(OR(ISBLANK(CC7), NOT(ISNUMBER(CC7))), 0, CC7)-IF(OR(ISBLANK(CD7), NOT(ISNUMBER(CD7))), 0, CD7)-CG7, 0), 0), 0)), TRUE, "N/A" ), "N/A" ), TRUE, "N/A" ), "Calculation error" ) -> 0 | CI7: =IFERROR( _xlfn.IFS( BW7=2, IFERROR( _xlfn.IFS( OR(BX7="211", BX7="212", BX7="221", BX7="222"), "N/A", AND(ISTEXT(BX7), BX7="111", AW7=1), 0-MIN(0,MAX(CE7-CF7,0))+ 0-MIN(0,MAX(CE7-CF7-0,0))+ 0-MIN(0,MAX(CE7-CF7-0-0,0)), AND(ISTEXT(BX7), BX7="112", AW7=1), 0-MIN(0,MAX(CE7,0))+ 0-MIN(0,MAX(CE7-0,0))+ 0-MIN(0,MAX(CE7-0-0,0)), AND(ISTEXT(BX7), BX7="121", AW7=2), 0-MIN(0,MAX(CE7-CG7,0))+ 0-MIN(0,MAX(CE7-CG7-0,0))+ 0-MIN(0,MAX(CE7-CG7-0-0,0)), AND(ISTEXT(BX7), BX7="122", AW7=2), 0-MIN(0,MAX(CE7,0))+ 0-MIN(0,MAX(CE7-0,0))+ 0-MIN(0,MAX(CE7-0-0,0)), TRUE, "Invalid case" ), "Calculation error" ), BW7=1, IFERROR( _xlfn.IFS( OR(BX7="211", BX7="212", BX7="221", BX7="222"), "N/A", AND(ISTEXT(BX7), BX7="111", AW7=1), IF(ISBLANK(BY7), 0, BY7)-MIN(IF(ISBLANK(BY7), 0, BY7),MAX(CE7-CF7,0))+ IF(ISBLANK(BZ7), 0, BZ7)-MIN(IF(ISBLANK(BZ7), 0, BZ7),MAX(CE7-CF7-IF(ISBLANK(BY7), 0, BY7),0))+ IF(ISBLANK(CA7), 0, CA7)-MIN(IF(ISBLANK(CA7), 0, CA7),MAX(CE7-CF7-IF(ISBLANK(BY7), 0, BY7)-IF(ISBLANK(BZ7), 0, BZ7),0)), AND(ISTEXT(BX7), BX7="112", AW7=1), IF(ISBLANK(BY7), 0, BY7)-MIN(IF(ISBLANK(BY7), 0, BY7),MAX(CE7,0))+ IF(ISBLANK(BZ7), 0, BZ7)-MIN(IF(ISBLANK(BZ7), 0, BZ7),MAX(CE7-IF(ISBLANK(BY7), 0, BY7),0))+ IF(ISBLANK(CA7), 0, CA7)-MIN(IF(ISBLANK(CA7), 0, CA7),MAX(CE7-IF(ISBLANK(BY7), 0, BY7)-IF(ISBLANK(BZ7), 0, BZ7),0)), AND(ISTEXT(BX7), BX7="121", AW7=2), IF(ISBLANK(CB7), 0, CB7)-MIN(IF(ISBLANK(CB7), 0, CB7),MAX(CE7-CG7,0))+ IF(ISBLANK(CC7), 0, CC7)-MIN(IF(ISBLANK(CC7), 0, CC7),MAX(CE7-CG7-IF(ISBLANK(CB7), 0, CB7),0))+ IF(ISBLANK(CD7), 0, CD7)-MIN(IF(ISBLANK(CD7), 0, CD7),MAX(CE7-CG7-IF(ISBLANK(CB7), 0, CB7)-IF(ISBLANK(CC7), 0, CC7),0)), AND(ISTEXT(BX7), BX7="122", AW7=2), IF(ISBLANK(CB7), 0, CB7)-MIN(IF(ISBLANK(CB7), 0, CB7),MAX(CE7,0))+ IF(ISBLANK(CC7), 0, CC7)-MIN(IF(ISBLANK(CC7), 0, CC7),MAX(CE7-IF(ISBLANK(CB7), 0, CB7),0))+ IF(ISBLANK(CD7), 0, CD7)-MIN(IF(ISBLANK(CD7), 0, CD7),MAX(CE7-IF(ISBLANK(CB7), 0, CB7)-IF(ISBLANK(CC7), 0, CC7),0)), TRUE, "Invalid case" ), "Calculation error" ), TRUE, "Invalid BW" ), "Calculation error" ) -> 0 | CJ7: =IF((CE7="N/A"),AS7,(MIN(AS7,390000-CE7))) -> 12032.88 | CK7: =IFERROR( _xlfn.IFS( BW7=2, IFERROR( _xlfn.IFS( ISNUMBER(CI7), IF(OR(ISBLANK(CI7), NOT(ISNUMBER(CI7))), 0, CI7), AW7=1, 0 + 0 + 0, AW7=2, 0 + 0 + 0 ), "Calculation error" ), BW7=1, IFERROR( _xlfn.IFS( ISNUMBER(CI7), IF(OR(ISBLANK(CI7), NOT(ISNUMBER(CI7))), 0, CI7), AW7=1, IF(ISBLANK(BY7), 0, BY7) + IF(ISBLANK(BZ7), 0, BZ7) + IF(ISBLANK(CA7), 0, CA7), AW7=2, IF(ISBLANK(CB7), 0, CB7) + IF(ISBLANK(CC7), 0, CC7) + IF(ISBLANK(CD7), 0, CD7) ), "Calculation error" ), TRUE, "Invalid BW" ), "Calculation error" ) -> 0 | CL7: =IFERROR( _xlfn.IFS( CK7>=CJ7, 0, CK7<CJ7, CJ7-CK7 ), "Calculation error") -> 12032.88 | CM7: =IFERROR( IF(OR(I7=1,I7=2), SUM(CH7,CL7), "N/A"), "Calculation error") -> 12032.88 | CN7: =IF(AND(ISNUMBER(CM7), CM7>0), 1, 0) -> 1 | CO7: within $500,000 | CP7: =_xlfn.IFS(CO7=Pulldown!$A$1,1,CO7=Pulldown!$A$2,2) -> 1 | CQ7: =IF(G7="", 0, IF(OR(E7="", G7<E7), "Invalid", DATEDIF(E7, G7, "Y") + 1)) -> 2 | CR7: =_xlfn.IFS( NOT(OR(CP7=1, CP7=2)), 0%, ISERROR(MATCH(CQ7, Subsidy!$A$2:$A$26, 0)), 0%, CP7=1, VLOOKUP(CQ7, Subsidy!$A$2:$G$26, 6, 0), CP7=2, VLOOKUP(CQ7, Subsidy!$A$2:$G$26, 7, 0) ) -> 50% or the amount in excess of the cap of 3,000 (whichever is more) | CS7: =_xlfn.IFS( NOT(OR(CP7=1, CP7=2)), 0%, ISERROR(MATCH(CQ7, Subsidy!$A$2:$A$26, 0)), 0%, CP7=1, VLOOKUP(CQ7, Subsidy!$A$2:$D$26, 2, 0), CP7=2, VLOOKUP(CQ7, Subsidy!$A$2:$D$26, 4, 0) ) -> 0.5 | CT7: =IFERROR(ROUNDDOWN((CL7*CS7),2), 0) -> 6016.44 | CU7: =_xlfn.IFS( NOT(OR(CP7=1, CP7=2)), 0, ISERROR(MATCH(CQ7, Subsidy!$A$2:$A$26, 0)), 0, CP7=2, "N/A", AND(CP7=1, CQ7<=9), VLOOKUP(CQ7, Subsidy!$A$2:$D$26, 3, 0), TRUE, 0 ) -> 3000 | CV7: =IF(AND(CP7=1, CQ7<=9, NOT(ISERROR(MATCH(CQ7, Subsidy!$A$2:$A$26, 0)))), IFERROR(IF(CL7-CU7<0, "Invalid Case", CL7-CU7), 0), 0) -> 9032.88 | CW7: =MAX(CT7, CV7) -> 9032.88 | CX7: =IFERROR(CL7-CW7, 0) -> 3000 | CY7: =IFERROR(ROUNDDOWN(MIN(SUM(AD7, AS7), 390000), 2), 0) -> 47557.99 | CZ7: =CY7-DA7 -> 35525.11 | DA7: =SUM(CH7,CL7) -> 12032.88 | DB7: =CW7 -> 9032.88 | DC7: =DA7-DB7 -> 3000
A8: Example 2 | B8: XX Lee | C8: SP | D8: =_xlfn.IFS( OR(C8="", C8="Pls select"), 0, C8=Pulldown!$F$2, 1, C8=Pulldown!$F$3, 2, TRUE, 0) -> 1 | E8: =$E$3 -> 2025-05-01 | F8: 2020-01-01 | G8: 2028-06-30 | H8: =_xlfn.IFS( AND(F8<>"", G8<>"", G8<F8), "Invalid Date Order", AND(F8="", G8=""), "Input Required", AND(F8="", G8<>""), IF(G8<E8, "Date Before Transition", "Invalid: F11 Missing"), OR(F8="", G8=""), "Input Required", G8<E8, "Date Before Transition", AND(D8=1, DATEDIF(F8, G8+1, "y")>=2), "1-valid", AND(D8=1, DATEDIF(F8, G8+1, "y")<2), "1-invalid", AND(D8=2, DATEDIF(F8, G8+1, "y")>=5), "2-valid", AND(D8=2, DATEDIF(F8, G8+1, "y")<5), "2-invalid", TRUE, "Invalid Category" ) -> 1-valid | I8: =_xlfn.IFS( $H8="1-valid", 1, $H8="2-valid", 2, $H8="Input Required", 3, $H8="Date Before Transition", 4, TRUE, 0 ) -> 1 | J8: =_xlfn.IFS( OR(F8="",G8=""),"Input Required", $F8>=$E8,"轉制日後開始受僱", $E8>$F8,"轉制日前開始受僱", TRUE,"Invalid Category" ) -> 轉制日前開始受僱 | K8: =_xlfn.IFS( $J8="轉制日前開始受僱", 1, $J8="轉制日後開始受僱", 2, TRUE, 0 ) -> 1 | L8: Monthly-rated | M8: =_xlfn.IFS($L8=Pulldown!$C$1,22500,$L8=Pulldown!$C$2,15000) -> 22500 | N8: =_xlfn.IFS($L8=Pulldown!$C$1,2/3,$L8=Pulldown!$C$2,1) -> 0.6666666667 | O8: 12000 | P8: 22000 | Q8: 12000 | R8: =$N8 -> 0.6666666667 | S8: 5 | T8: 2020-01-01 | U8: 2025-04-30 | V8: 120 | W8: 2025-01-01 | X8: 2025-04-30 | Y8: 365 | Z8: 2025-01-01 | AA8: 2025-12-31 | AB8: 0.3287671233 | AC8: 5.328767123 | AD8: =IF(OR(Q8="N/A", R8="N/A", AC8="N/A"), "N/A", IF(OR(Q8="", R8="", AC8=""), 0, ROUND(MIN(390000, Q8*R8*AC8), 2))) -> 42630.14 | AE8: 22000 | AF8: =$N8 -> 0.6666666667 | AG8: 2025-05-01 | AH8: 3 | AI8: 2025-05-01 | AJ8: 2028-06-30 | AK8: 61 | AL8: 2028-05-01 | AM8: 2028-06-30 | AN8: 365 | AO8: 2028-05-01 | AP8: 2029-04-30 | AQ8: 0.1671232877 | AR8: 3.167123288 | AS8: =IF(OR(AE8="N/A", AF8="N/A", AR8="N/A"), "N/A", IF(OR(AE8="", AF8="", AR8=""), 0, ROUND(MIN(390000, AE8*AF8*AR8),2))) -> 46451.14 | AT8: 46451.14 | AU8: 89081.28 | AV8: ORS | AW8: =_xlfn.IFS(AV8="",0,AV8=Pulldown!$B$2,1,AV8=Pulldown!$B$3,2) -> 2 | AX8: MC -> VC | AY8: =_xlfn.IFS(AX8="",0,AX8=Pulldown!$G$1,1,AX8=Pulldown!$G$2,2) -> 1 | AZ8: 0 | BA8: 100000 | BB8: 20000 | BC8: 20000 | BD8: 2020-01-01 | BE8: 2028-06-30 | BF8: 8 | BG8: 2020-01-01 | BH8: 2027-12-31 | BI8: 182 | BJ8: 2028-01-01 | BK8: 2028-06-30 | BL8: 366 | BM8: 2028-01-01 | BN8: 2028-12-31 | BO8: 0.4972677596 | BP8: 8.49726776 | BQ8: =IF($AW8=1,"N/A",($BQ$5)) -> 0.05 | BR8: =IF($AW8=1,"N/A",($BR$5)) -> 12 | BS8: =IF($AW8=1, "N/A", IF($AW8=2, IF(OR(NOT(ISNUMBER(BD8)), NOT(ISNUMBER(BE8)), BD8<DATE(1900,1,1), BE8<DATE(1900,1,1), BE8<BD8, BF8="N/A", BF8="", NOT(ISNUMBER(BF8)), BP8="N/A", NOT(ISNUMBER(BP8)), NOT(ISNUMBER(BA8)), NOT(ISNUMBER(BC8)), NOT(ISNUMBER(BQ8)), NOT(ISNUMBER(BR8))), "N/A", IFERROR(MIN(ROUND(BA8,2), ROUND(BC8*BP8*BQ8*BR8,2)), "N/A")), "")) -> 100000 | BT8: 0 | BU8: =IF(ISNA(INDIRECT("BT" & ROW())), "N/A", INDIRECT("BT" & ROW())) -> 0 | BV8: No | BW8: =_xlfn.IFS(BV8="",0,BV8=Pulldown!$H$1,1,BV8=Pulldown!$H$2,2) -> 2 | BX8: 121 | BY8: 0 | BZ8: 0 | CA8: 0 | CB8: 0 | CC8: 0 | CD8: 0 | CE8: 42630.14 | CF8: =IF($AW8=1, IF($AD8="N/A", "N/A", IF($AZ8="", 0, $AZ8)), "N/A") -> N/A | CG8: 100000 | CH8: =IFERROR( _xlfn.IFS( BW8=2, IFERROR( _xlfn.IFS( OR(BX8="211", BX8="212", BX8="221", BX8="222"), "N/A", AND(ISTEXT(BX8), BX8="111", AW8=1), MAX(0, IF(CE8-CF8>0, IF(CE8-CF8-0>0, IF(CE8-CF8-0-0>0, CE8-CF8-0-0-0, 0), 0), 0)), AND(ISTEXT(BX8), BX8="112", AW8=1), MAX(0, IF(CE8-0>0, IF(CE8-0-0>0, IF(CE8-0-0-0>0, CE8-0-0-0-CF8, 0), 0), 0)), AND(ISTEXT(BX8), BX8="121", AW8=2), MAX(0, IF(CE8-CG8>0, IF(CE8-CG8-0>0, IF(CE8-CG8-0-0>0, CE8-CG8-0-0-0, 0), 0), 0)), AND(ISTEXT(BX8), BX8="122", AW8=2), MAX(0, IF(CE8-0>0, IF(CE8-0-0>0, IF(CE8-0-0-0>0, CE8-0-0-0-CG8, 0), 0), 0)), TRUE, "N/A" ), "N/A" ), BW8=1, IFERROR( _xlfn.IFS( OR(BX8="211", BX8="212", BX8="221", BX8="222"), "N/A", AND(ISTEXT(BX8), BX8="111", AW8=1), MAX(0, IF(CE8-CF8>0, IF(CE8-CF8-IF(OR(ISBLANK(BY8), NOT(ISNUMBER(BY8))), 0, BY8)>0, IF(CE8-CF8-IF(OR(ISBLANK(BY8), NOT(ISNUMBER(BY8))), 0, BY8)-IF(OR(ISBLANK(BZ8), NOT(ISNUMBER(BZ8))), 0, BZ8)>0, CE8-CF8-IF(OR(ISBLANK(BY8), NOT(ISNUMBER(BY8))), 0, BY8)-IF(OR(ISBLANK(BZ8), NOT(ISNUMBER(BZ8))), 0, BZ8)-IF(OR(ISBLANK(CA8), NOT(ISNUMBER(CA8))), 0, CA8), 0), 0), 0)), AND(ISTEXT(BX8), BX8="112", AW8=1), MAX(0, IF(CE8-IF(OR(ISBLANK(BY8), NOT(ISNUMBER(BY8))), 0, BY8)>0, IF(CE8-IF(OR(ISBLANK(BY8), NOT(ISNUMBER(BY8))), 0, BY8)-IF(OR(ISBLANK(BZ8), NOT(ISNUMBER(BZ8))), 0, BZ8)>0, IF(CE8-IF(OR(ISBLANK(BY8), NOT(ISNUMBER(BY8))), 0, BY8)-IF(OR(ISBLANK(BZ8), NOT(ISNUMBER(BZ8))), 0, BZ8)-IF(OR(ISBLANK(CA8), NOT(ISNUMBER(CA8))), 0, CA8)>0, CE8-IF(OR(ISBLANK(BY8), NOT(ISNUMBER(BY8))), 0, BY8)-IF(OR(ISBLANK(BZ8), NOT(ISNUMBER(BZ8))), 0, BZ8)-IF(OR(ISBLANK(CA8), NOT(ISNUMBER(CA8))), 0, CA8)-CF8, 0), 0), 0)), AND(ISTEXT(BX8), BX8="121", AW8=2), MAX(0, IF(CE8-CG8>0, IF(CE8-CG8-IF(OR(ISBLANK(CB8), NOT(ISNUMBER(CB8))), 0, CB8)>0, IF(CE8-CG8-IF(OR(ISBLANK(CB8), NOT(ISNUMBER(CB8))), 0, CB8)-IF(OR(ISBLANK(CC8), NOT(ISNUMBER(CC8))), 0, CC8)>0, CE8-CG8-IF(OR(ISBLANK(CB8), NOT(ISNUMBER(CB8))), 0, CB8)-IF(OR(ISBLANK(CC8), NOT(ISNUMBER(CC8))), 0, CC8)-IF(OR(ISBLANK(CD8), NOT(ISNUMBER(CD8))), 0, CD8), 0), 0), 0)), AND(ISTEXT(BX8), BX8="122", AW8=2), MAX(0, IF(CE8-IF(OR(ISBLANK(CB8), NOT(ISNUMBER(CB8))), 0, CB8)>0, IF(CE8-IF(OR(ISBLANK(CB8), NOT(ISNUMBER(CB8))), 0, CB8)-IF(OR(ISBLANK(CC8), NOT(ISNUMBER(CC8))), 0, CC8)>0, IF(CE8-IF(OR(ISBLANK(CB8), NOT(ISNUMBER(CB8))), 0, CB8)-IF(OR(ISBLANK(CC8), NOT(ISNUMBER(CC8))), 0, CC8)-IF(OR(ISBLANK(CD8), NOT(ISNUMBER(CD8))), 0, CD8)>0, CE8-IF(OR(ISBLANK(CB8), NOT(ISNUMBER(CB8))), 0, CB8)-IF(OR(ISBLANK(CC8), NOT(ISNUMBER(CC8))), 0, CC8)-IF(OR(ISBLANK(CD8), NOT(ISNUMBER(CD8))), 0, CD8)-CG8, 0), 0), 0)), TRUE, "N/A" ), "N/A" ), TRUE, "N/A" ), "Calculation error" ) -> 0 | CI8: =IFERROR( _xlfn.IFS( BW8=2, IFERROR( _xlfn.IFS( OR(BX8="211", BX8="212", BX8="221", BX8="222"), "N/A", AND(ISTEXT(BX8), BX8="111", AW8=1), 0-MIN(0,MAX(CE8-CF8,0))+ 0-MIN(0,MAX(CE8-CF8-0,0))+ 0-MIN(0,MAX(CE8-CF8-0-0,0)), AND(ISTEXT(BX8), BX8="112", AW8=1), 0-MIN(0,MAX(CE8,0))+ 0-MIN(0,MAX(CE8-0,0))+ 0-MIN(0,MAX(CE8-0-0,0)), AND(ISTEXT(BX8), BX8="121", AW8=2), 0-MIN(0,MAX(CE8-CG8,0))+ 0-MIN(0,MAX(CE8-CG8-0,0))+ 0-MIN(0,MAX(CE8-CG8-0-0,0)), AND(ISTEXT(BX8), BX8="122", AW8=2), 0-MIN(0,MAX(CE8,0))+ 0-MIN(0,MAX(CE8-0,0))+ 0-MIN(0,MAX(CE8-0-0,0)), TRUE, "Invalid case" ), "Calculation error" ), BW8=1, IFERROR( _xlfn.IFS( OR(BX8="211", BX8="212", BX8="221", BX8="222"), "N/A", AND(ISTEXT(BX8), BX8="111", AW8=1), IF(ISBLANK(BY8), 0, BY8)-MIN(IF(ISBLANK(BY8), 0, BY8),MAX(CE8-CF8,0))+ IF(ISBLANK(BZ8), 0, BZ8)-MIN(IF(ISBLANK(BZ8), 0, BZ8),MAX(CE8-CF8-IF(ISBLANK(BY8), 0, BY8),0))+ IF(ISBLANK(CA8), 0, CA8)-MIN(IF(ISBLANK(CA8), 0, CA8),MAX(CE8-CF8-IF(ISBLANK(BY8), 0, BY8)-IF(ISBLANK(BZ8), 0, BZ8),0)), AND(ISTEXT(BX8), BX8="112", AW8=1), IF(ISBLANK(BY8), 0, BY8)-MIN(IF(ISBLANK(BY8), 0, BY8),MAX(CE8,0))+ IF(ISBLANK(BZ8), 0, BZ8)-MIN(IF(ISBLANK(BZ8), 0, BZ8),MAX(CE8-IF(ISBLANK(BY8), 0, BY8),0))+ IF(ISBLANK(CA8), 0, CA8)-MIN(IF(ISBLANK(CA8), 0, CA8),MAX(CE8-IF(ISBLANK(BY8), 0, BY8)-IF(ISBLANK(BZ8), 0, BZ8),0)), AND(ISTEXT(BX8), BX8="121", AW8=2), IF(ISBLANK(CB8), 0, CB8)-MIN(IF(ISBLANK(CB8), 0, CB8),MAX(CE8-CG8,0))+ IF(ISBLANK(CC8), 0, CC8)-MIN(IF(ISBLANK(CC8), 0, CC8),MAX(CE8-CG8-IF(ISBLANK(CB8), 0, CB8),0))+ IF(ISBLANK(CD8), 0, CD8)-MIN(IF(ISBLANK(CD8), 0, CD8),MAX(CE8-CG8-IF(ISBLANK(CB8), 0, CB8)-IF(ISBLANK(CC8), 0, CC8),0)), AND(ISTEXT(BX8), BX8="122", AW8=2), IF(ISBLANK(CB8), 0, CB8)-MIN(IF(ISBLANK(CB8), 0, CB8),MAX(CE8,0))+ IF(ISBLANK(CC8), 0, CC8)-MIN(IF(ISBLANK(CC8), 0, CC8),MAX(CE8-IF(ISBLANK(CB8), 0, CB8),0))+ IF(ISBLANK(CD8), 0, CD8)-MIN(IF(ISBLANK(CD8), 0, CD8),MAX(CE8-IF(ISBLANK(CB8), 0, CB8)-IF(ISBLANK(CC8), 0, CC8),0)), TRUE, "Invalid case" ), "Calculation error" ), TRUE, "Invalid BW" ), "Calculation error" ) -> 0 | CJ8: 46451.14 | CK8: =IFERROR( _xlfn.IFS( BW8=2, IFERROR( _xlfn.IFS( ISNUMBER(CI8), IF(OR(ISBLANK(CI8), NOT(ISNUMBER(CI8))), 0, CI8), AW8=1, 0 + 0 + 0, AW8=2, 0 + 0 + 0 ), "Calculation error" ), BW8=1, IFERROR( _xlfn.IFS( ISNUMBER(CI8), IF(OR(ISBLANK(CI8), NOT(ISNUMBER(CI8))), 0, CI8), AW8=1, IF(ISBLANK(BY8), 0, BY8) + IF(ISBLANK(BZ8), 0, BZ8) + IF(ISBLANK(CA8), 0, CA8), AW8=2, IF(ISBLANK(CB8), 0, CB8) + IF(ISBLANK(CC8), 0, CC8) + IF(ISBLANK(CD8), 0, CD8) ), "Calculation error" ), TRUE, "Invalid BW" ), "Calculation error" ) -> 0 | CL8: =IFERROR( _xlfn.IFS( CK8>=CJ8, 0, CK8<CJ8, CJ8-CK8 ), "Calculation error") -> 46451.14 | CM8: 46451.14 | CN8: 1 | CO8: within $500,000 | CP8: =_xlfn.IFS(CO8=Pulldown!$A$1,1,CO8=Pulldown!$A$2,2) -> 1 | CQ8: 4 | CR8: =_xlfn.IFS( NOT(OR(CP8=1, CP8=2)), 0%, ISERROR(MATCH(CQ8, Subsidy!$A$2:$A$26, 0)), 0%, CP8=1, VLOOKUP(CQ8, Subsidy!$A$2:$G$26, 6, 0), CP8=2, VLOOKUP(CQ8, Subsidy!$A$2:$G$26, 7, 0) ) -> 45% or the amount in excess of the cap of 25,000 (whichever is more) | CS8: =_xlfn.IFS( NOT(OR(CP8=1, CP8=2)), 0%, ISERROR(MATCH(CQ8, Subsidy!$A$2:$A$26, 0)), 0%, CP8=1, VLOOKUP(CQ8, Subsidy!$A$2:$D$26, 2, 0), CP8=2, VLOOKUP(CQ8, Subsidy!$A$2:$D$26, 4, 0) ) -> 0.45 | CT8: 20903.01 | CU8: =_xlfn.IFS( NOT(OR(CP8=1, CP8=2)), 0, ISERROR(MATCH(CQ8, Subsidy!$A$2:$A$26, 0)), 0, CP8=2, "N/A", AND(CP8=1, CQ8<=9), VLOOKUP(CQ8, Subsidy!$A$2:$D$26, 3, 0), TRUE, 0 ) -> 25000 | CV8: =IF(AND(CP8=1, CQ8<=9, NOT(ISERROR(MATCH(CQ8, Subsidy!$A$2:$A$26, 0)))), IFERROR(IF(CL8-CU8<0, "Invalid Case", CL8-CU8), 0), 0) -> 21451.14 | CW8: 21451.14 | CX8: 25000 | CY8: 89081.28 | CZ8: 42630.14 | DA8: 46451.14 | DB8: 21451.14 | DC8: 25000
A10: 1 | C10: Please Select | D10: =_xlfn.IFS( OR(C10="", C10="Pls select"), 0, C10=Pulldown!$F$2, 1, C10=Pulldown!$F$3, 2, TRUE, 0) -> 0 | E10: =$E$3 -> 2025-05-01 | H10: =_xlfn.IFS( AND(F10<>"", G10<>"", G10<F10), "Invalid Date Order", AND(F10="", G10=""), "Input Required", AND(F10="", G10<>""), IF(G10<E10, "Date Before Transition", "Invalid: F11 Missing"), OR(F10="", G10=""), "Input Required", G10<E10, "Date Before Transition", AND(D10=1, DATEDIF(F10, G10+1, "y")>=2), "1-valid", AND(D10=1, DATEDIF(F10, G10+1, "y")<2), "1-invalid", AND(D10=2, DATEDIF(F10, G10+1, "y")>=5), "2-valid", AND(D10=2, DATEDIF(F10, G10+1, "y")<5), "2-invalid", TRUE, "Invalid Category" ) -> Input Required | I10: =_xlfn.IFS( $H10="1-valid", 1, $H10="2-valid", 2, $H10="Input Required", 3, $H10="Date Before Transition", 4, TRUE, 0 ) -> 3 | J10: =_xlfn.IFS( OR(F10="",G10=""),"Input Required", $F10>=$E10,"轉制日後開始受僱", $E10>$F10,"轉制日前開始受僱", TRUE,"Invalid Category" ) -> Input Required | K10: =_xlfn.IFS( $J10="轉制日前開始受僱", 1, $J10="轉制日後開始受僱", 2, TRUE, 0 ) -> 0 | L10: Monthly-rated | M10: =_xlfn.IFS($L10=Pulldown!$C$1,22500,$L10=Pulldown!$C$2,15000) -> 22500 | N10: =_xlfn.IFS($L10=Pulldown!$C$1,2/3,$L10=Pulldown!$C$2,1) -> 0.6666666667 | O10: 0 | P10: 0 | Q10: =IF(OR(I10=1, I10=2), IF(K10=0, "", IF(K10=1, IF(OR(M10="N/A", O10="N/A"), "N/A", IF(OR(M10="", O10=""), "", MIN(M10, O10))), IF(K10=2, "N/A", ""))), "") ->  | R10: 0.6666666667 | S10: =IF(OR(I10=1, I10=2), IF((F10<=E10),(DATEDIF(F10,E10,"Y")),"N/A"), "") ->  | T10: =IF(OR(I10=1, I10=2), IF(F10>E10, F10, F10), "") ->  | U10: =IF(OR(I10=1, I10=2), IF(F10>E10, E10-1, E10-1), "") ->  | V10: =IF(OR(I10=1, I10=2), IF(F10>E10, "N/A", E10-DATE(YEAR(F10)+S10, MONTH(F10), DAY(F10))), "") ->  | W10: =IF(OR(I10=1, I10=2), IF(F10>E10, DATE(YEAR(E10), MONTH(F10), DAY(F10)), DATE(YEAR(F10)+S10, MONTH(F10), DAY(F10))), "") ->  | X10: =IF(OR(I10=1, I10=2), IF(F10>E10, E10-1, E10-1), "") ->  | Y10: =IF(OR(I10=1, I10=2), IF(F10>E10, "N/A", DATE(YEAR(W10)+1, MONTH(W10), DAY(W10))-W10), "") ->  | Z10: =IF(OR(I10=1, I10=2), IF(F10>E10, DATE(YEAR(E10), MONTH(F10), DAY(F10)), DATE(YEAR(F10)+S10, MONTH(F10), DAY(F10))), "") ->  | AA10: =IF(OR(I10=1, I10=2), IF(F10>E10, DATE(YEAR(W10)+1, MONTH(W10), DAY(W10))-1, DATE(YEAR(W10)+1, MONTH(W10), DAY(W10))-1), "") ->  | AB10: =IF(OR(S10="N/A", V10="N/A", Y10="N/A"), "N/A", IF(OR(S10="", V10="", Y10="", Y10=0), "", V10/Y10)) ->  | AC10: =IF(AB10="N/A", "N/A", IF(AB10="", "", S10 + AB10)) ->  | AD10: =IF(OR(Q10="N/A", R10="N/A", AC10="N/A"), "N/A", IF(OR(Q10="", R10="", AC10=""), 0, ROUND(MIN(390000, Q10*R10*AC10), 2))) -> 0 | AE10: =IF(OR(I10=1, I10=2), IF(K10=0, "", IF(OR(K10=1, K10=2), IF(OR(M10="N/A", P10="N/A"), "N/A", IF(OR(M10="", P10=""), "", MIN(M10, P10))), "")), "") ->  | AF10: 0.6666666667 | AG10: =IF(E10>F10,E10,F10) -> 2025-05-01 | AH10: =IF(OR(I10=1, I10=2), IF(F10<=E10, DATEDIF(E10, G10, "Y"), DATEDIF(F10, G10, "Y")), "") ->  | AI10: =IF(OR(I10=1, I10=2), IF(F10<=E10, E10, F10), "") ->  | AJ10: =IF(OR(I10=1, I10=2), G10, "") ->  | AK10: =IF(OR(I10=1, I10=2), IF(F10<=E10, G10-DATE(YEAR(E10)+AH10, MONTH(E10), DAY(E10)), G10-DATE(YEAR(F10)+AH10, MONTH(F10), DAY(F10)))+1, "") ->  | AL10: =IF(OR(I10=1, I10=2), IF(F10<=E10, DATE(YEAR(E10)+AH10, MONTH(E10), DAY(E10)), DATE(YEAR(F10)+AH10, MONTH(F10), DAY(F10))), "") ->  | AM10: =IF(OR(I10=1, I10=2), G10, "") ->  | AN10: =IF(OR(I10=1, I10=2), IF(F10<=E10, DATE(YEAR(E10)+AH10+1, MONTH(E10), DAY(E10))-DATE(YEAR(E10)+AH10, MONTH(E10), DAY(E10)), DATE(YEAR(F10)+AH10+1, MONTH(F10), DAY(F10))-DATE(YEAR(F10)+AH10, MONTH(F10), DAY(F10))), "") ->  | AO10: =IF(OR(I10=1, I10=2), IF(F10<=E10, DATE(YEAR(E10)+AH10, MONTH(E10), DAY(E10)), DATE(YEAR(F10)+AH10, MONTH(F10), DAY(F10))), "") ->  | AP10: =IF(OR(I10=1, I10=2), IF(F10<=E10, DATE(YEAR(E10)+AH10+1, MONTH(E10), DAY(E10)), DATE(YEAR(F10)+AH10+1, MONTH(F10), DAY(F10)))-1, "") ->  | AQ10: =IF(OR(AH10="N/A", AK10="N/A", AN10="N/A"), "N/A", IF(OR(AH10="", AK10="", AN10="", AN10=0), "", AK10/AN10)) ->  | AR10: =IF(AQ10="N/A", "N/A", IF(AQ10="", "", AH10 + AQ10)) ->  | AS10: =IF(OR(AE10="N/A", AF10="N/A", AR10="N/A"), "N/A", IF(OR(AE10="", AF10="", AR10=""), 0, ROUND(MIN(390000, AE10*AF10*AR10),2))) -> 0 | AT10: =IF(AD10="N/A", AS10, IFERROR(IF(AD10+AS10>=390000, 390000-AD10, AS10), AS10)) -> 0 | AU10: =IFERROR(ROUNDDOWN(MIN(SUM(AD10, AS10), 390000), 2), 0) -> 0 | AV10: MPF | AW10: =_xlfn.IFS(AV10="",0,AV10=Pulldown!$B$2,1,AV10=Pulldown!$B$3,2) -> 1 | AX10: MC -> VC | AY10: =_xlfn.IFS(AX10="",0,AX10=Pulldown!$G$1,1,AX10=Pulldown!$G$2,2) -> 1 | AZ10: 0 | BA10: 0 | BB10: 0 | BC10: =IF(AW10=1, "N/A", IF(BB10="", 0, MIN(30000, BB10))) -> N/A | BD10: =IF(AW10=1,"N/A",(MAX("1/12/2000",F10))) -> N/A | BE10: =IF(AW10=1,"N/A",G10) -> N/A | BF10: =IF(AW10=1, "N/A", IF(AW10=2, IFERROR(IF(OR(NOT(ISNUMBER(BD10)), NOT(ISNUMBER(BE10)), BD10<DATE(1900,1,1), BE10<DATE(1900,1,1), BE10<BD10), "N/A", DATEDIF(BD10, BE10, "Y")), "N/A"), "")) -> N/A | BG10: =IF(AW10=1, "N/A", IF(AW10=2, BD10, "")) -> N/A | BH10: =IF(AW10=1, "N/A", IF(AW10=2, DATE(YEAR(BE10), MONTH(BD10), DAY(BD10)-1), "")) -> N/A | BI10: =IF(AW10=1, "N/A", IF(AW10=2, IFERROR(IF(OR(NOT(ISNUMBER(BD10)), NOT(ISNUMBER(BE10)), BD10<DATE(1900,1,1), BE10<DATE(1900,1,1), BE10<BD10), "N/A", BE10 - DATE(YEAR(BD10) + BF10, MONTH(BD10), DAY(BD10)) + 1), "N/A"), "")) -> N/A | BJ10: =IF(AW10=1, "N/A", IF(AW10=2, IFERROR(IF(OR(NOT(ISNUMBER(BD10)), NOT(ISNUMBER(BE10)), BD10<DATE(1900,1,1), BE10<DATE(1900,1,1), BE10<BD10), "N/A", DATE(YEAR(BD10) +BF10, MONTH(BD10), DAY(BD10))), "N/A"), "")) -> N/A | BK10: =IF(AW10=1, "N/A", IF(AW10=2, BE10, "")) -> N/A | BL10: =IF(AW10=1, "N/A", IF(AW10=2, IF(OR(NOT(ISNUMBER(BD10)), NOT(ISNUMBER(BE10)), BD10<DATE(1900,1,1), BE10<DATE(1900,1,1), BE10<BD10, BF10="N/A", BF10="", NOT(ISNUMBER(BF10))), "N/A", IFERROR( IF(AND(ISNUMBER(DATE(YEAR(BD10)+BF10+1, MONTH(BD10), DAY(BD10)-1)), ISNUMBER(DATE(YEAR(BD10)+BF10, MONTH(BD10), DAY(BD10)))), DATE(YEAR(BD10)+BF10+1, MONTH(BD10), DAY(BD10)-1) - DATE(YEAR(BD10)+BF10, MONTH(BD10), DAY(BD10)) + 1, "N/A"), "N/A")), "")) -> N/A | BM10: =IF(AW10=1, "N/A", IF(AW10=2, IFERROR(IF(OR(NOT(ISNUMBER(BD10)), NOT(ISNUMBER(BE10)), BD10<DATE(1900,1,1), BE10<DATE(1900,1,1), BE10<BD10), "N/A", DATE(YEAR(BD10) + BF10, MONTH(BD10), DAY(BD10))), "N/A"), "")) -> N/A | BN10: =IF(AW10=1, "N/A", IF(AW10=2, IF(OR(NOT(ISNUMBER(BD10)), NOT(ISNUMBER(BE10)), BD10<DATE(1900,1,1), BE10<DATE(1900,1,1), BE10<BD10, BF10="N/A", BF10="", NOT(ISNUMBER(BF10))), "N/A", IFERROR( IF(ISNUMBER(DATE(YEAR(BD10)+BF10+1, MONTH(BD10), DAY(BD10)-1)), DATE(YEAR(BD10)+BF10+1, MONTH(BD10), DAY(BD10)-1), "N/A"), "N/A")), "")) -> N/A | BO10: =IF($AW10=1, "N/A", IF($AW10=2, IF(OR(NOT(ISNUMBER(BD10)), NOT(ISNUMBER(BE10)), BD10<DATE(1900,1,1), BE10<DATE(1900,1,1), BE10<BD10, BF10="N/A", BF10="", NOT(ISNUMBER(BF10)), BI10="N/A", NOT(ISNUMBER(BI10)), BL10="N/A", NOT(ISNUMBER(BL10)), BL10=0), "N/A", IFERROR(BI10/BL10, "N/A")), "")) -> N/A | BP10: =IF($AW10=1, "N/A", IF($AW10=2, IF(OR(NOT(ISNUMBER(BD10)), NOT(ISNUMBER(BE10)), BD10<DATE(1900,1,1), BE10<DATE(1900,1,1), BE10<BD10, BF10="N/A", BF10="", NOT(ISNUMBER(BF10)), BO10="N/A", NOT(ISNUMBER(BO10))), "N/A", IFERROR(BF10+BO10, "N/A")), "")) -> N/A | BQ10: N/A | BR10: N/A | BS10: =IF($AW10=1, "N/A", IF($AW10=2, IF(OR(NOT(ISNUMBER(BD10)), NOT(ISNUMBER(BE10)), BD10<DATE(1900,1,1), BE10<DATE(1900,1,1), BE10<BD10, BF10="N/A", BF10="", NOT(ISNUMBER(BF10)), BP10="N/A", NOT(ISNUMBER(BP10)), NOT(ISNUMBER(BA10)), NOT(ISNUMBER(BC10)), NOT(ISNUMBER(BQ10)), NOT(ISNUMBER(BR10))), "N/A", IFERROR(MIN(ROUND(BA10,2), ROUND(BC10*BP10*BQ10*BR10,2)), "N/A")), "")) -> N/A | BT10: =IF($AW10=1, "N/A", IF($AW10=2, IF(OR(NOT(ISNUMBER(BD10)), NOT(ISNUMBER(BE10)), BD10<DATE(1900,1,1), BE10<DATE(1900,1,1), BE10<BD10, BF10="N/A", BF10="", NOT(ISNUMBER(BF10)), BS10="N/A", NOT(ISNUMBER(BS10)), NOT(ISNUMBER(BA10))), "N/A", IF(BA10="", 0, IFERROR(BA10 - ROUNDDOWN(BS10,2), "N/A"))), "")) -> N/A | BU10: =IF(ISNA(INDIRECT("BT" & ROW())), "N/A", INDIRECT("BT" & ROW())) -> N/A | BV10: No | BW10: =_xlfn.IFS(BV10="",0,BV10=Pulldown!$H$1,1,BV10=Pulldown!$H$2,2) -> 2 | BX10: =CONCATENATE(K10,AW10,AY10) -> 011 | BY10: 0 | BZ10: 0 | CA10: 0 | CB10: 0 | CC10: 0 | CD10: 0 | CE10: =IF((AD10="N/A"),"N/A",(MIN(390000,AD10))) -> 0 | CF10: 0 | CG10: =IF($AW10=2,(IF((AD10="N/A"),"N/A",(BS10))),"N/A") -> N/A | CH10: =IFERROR( _xlfn.IFS( BW10=2, IFERROR( _xlfn.IFS( OR(BX10="211", BX10="212", BX10="221", BX10="222"), "N/A", AND(ISTEXT(BX10), BX10="111", AW10=1), MAX(0, IF(CE10-CF10>0, IF(CE10-CF10-0>0, IF(CE10-CF10-0-0>0, CE10-CF10-0-0-0, 0), 0), 0)), AND(ISTEXT(BX10), BX10="112", AW10=1), MAX(0, IF(CE10-0>0, IF(CE10-0-0>0, IF(CE10-0-0-0>0, CE10-0-0-0-CF10, 0), 0), 0)), AND(ISTEXT(BX10), BX10="121", AW10=2), MAX(0, IF(CE10-CG10>0, IF(CE10-CG10-0>0, IF(CE10-CG10-0-0>0, CE10-CG10-0-0-0, 0), 0), 0)), AND(ISTEXT(BX10), BX10="122", AW10=2), MAX(0, IF(CE10-0>0, IF(CE10-0-0>0, IF(CE10-0-0-0>0, CE10-0-0-0-CG10, 0), 0), 0)), TRUE, "N/A" ), "N/A" ), BW10=1, IFERROR( _xlfn.IFS( OR(BX10="211", BX10="212", BX10="221", BX10="222"), "N/A", AND(ISTEXT(BX10), BX10="111", AW10=1), MAX(0, IF(CE10-CF10>0, IF(CE10-CF10-IF(OR(ISBLANK(BY10), NOT(ISNUMBER(BY10))), 0, BY10)>0, IF(CE10-CF10-IF(OR(ISBLANK(BY10), NOT(ISNUMBER(BY10))), 0, BY10)-IF(OR(ISBLANK(BZ10), NOT(ISNUMBER(BZ10))), 0, BZ10)>0, CE10-CF10-IF(OR(ISBLANK(BY10), NOT(ISNUMBER(BY10))), 0, BY10)-IF(OR(ISBLANK(BZ10), NOT(ISNUMBER(BZ10))), 0, BZ10)-IF(OR(ISBLANK(CA10), NOT(ISNUMBER(CA10))), 0, CA10), 0), 0), 0)), AND(ISTEXT(BX10), BX10="112", AW10=1), MAX(0, IF(CE10-IF(OR(ISBLANK(BY10), NOT(ISNUMBER(BY10))), 0, BY10)>0, IF(CE10-IF(OR(ISBLANK(BY10), NOT(ISNUMBER(BY10))), 0, BY10)-IF(OR(ISBLANK(BZ10), NOT(ISNUMBER(BZ10))), 0, BZ10)>0, IF(CE10-IF(OR(ISBLANK(BY10), NOT(ISNUMBER(BY10))), 0, BY10)-IF(OR(ISBLANK(BZ10), NOT(ISNUMBER(BZ10))), 0, BZ10)-IF(OR(ISBLANK(CA10), NOT(ISNUMBER(CA10))), 0, CA10)>0, CE10-IF(OR(ISBLANK(BY10), NOT(ISNUMBER(BY10))), 0, BY10)-IF(OR(ISBLANK(BZ10), NOT(ISNUMBER(BZ10))), 0, BZ10)-IF(OR(ISBLANK(CA10), NOT(ISNUMBER(CA10))), 0, CA10)-CF10, 0), 0), 0)), AND(ISTEXT(BX10), BX10="121", AW10=2), MAX(0, IF(CE10-CG10>0, IF(CE10-CG10-IF(OR(ISBLANK(CB10), NOT(ISNUMBER(CB10))), 0, CB10)>0, IF(CE10-CG10-IF(OR(ISBLANK(CB10), NOT(ISNUMBER(CB10))), 0, CB10)-IF(OR(ISBLANK(CC10), NOT(ISNUMBER(CC10))), 0, CC10)>0, CE10-CG10-IF(OR(ISBLANK(CB10), NOT(ISNUMBER(CB10))), 0, CB10)-IF(OR(ISBLANK(CC10), NOT(ISNUMBER(CC10))), 0, CC10)-IF(OR(ISBLANK(CD10), NOT(ISNUMBER(CD10))), 0, CD10), 0), 0), 0)), AND(ISTEXT(BX10), BX10="122", AW10=2), MAX(0, IF(CE10-IF(OR(ISBLANK(CB10), NOT(ISNUMBER(CB10))), 0, CB10)>0, IF(CE10-IF(OR(ISBLANK(CB10), NOT(ISNUMBER(CB10))), 0, CB10)-IF(OR(ISBLANK(CC10), NOT(ISNUMBER(CC10))), 0, CC10)>0, IF(CE10-IF(OR(ISBLANK(CB10), NOT(ISNUMBER(CB10))), 0, CB10)-IF(OR(ISBLANK(CC10), NOT(ISNUMBER(CC10))), 0, CC10)-IF(OR(ISBLANK(CD10), NOT(ISNUMBER(CD10))), 0, CD10)>0, CE10-IF(OR(ISBLANK(CB10), NOT(ISNUMBER(CB10))), 0, CB10)-IF(OR(ISBLANK(CC10), NOT(ISNUMBER(CC10))), 0, CC10)-IF(OR(ISBLANK(CD10), NOT(ISNUMBER(CD10))), 0, CD10)-CG10, 0), 0), 0)), TRUE, "N/A" ), "N/A" ), TRUE, "N/A" ), "Calculation error" ) -> N/A | CI10: =IFERROR( _xlfn.IFS( BW10=2, IFERROR( _xlfn.IFS( OR(BX10="211", BX10="212", BX10="221", BX10="222"), "N/A", AND(ISTEXT(BX10), BX10="111", AW10=1), 0-MIN(0,MAX(CE10-CF10,0))+ 0-MIN(0,MAX(CE10-CF10-0,0))+ 0-MIN(0,MAX(CE10-CF10-0-0,0)), AND(ISTEXT(BX10), BX10="112", AW10=1), 0-MIN(0,MAX(CE10,0))+ 0-MIN(0,MAX(CE10-0,0))+ 0-MIN(0,MAX(CE10-0-0,0)), AND(ISTEXT(BX10), BX10="121", AW10=2), 0-MIN(0,MAX(CE10-CG10,0))+ 0-MIN(0,MAX(CE10-CG10-0,0))+ 0-MIN(0,MAX(CE10-CG10-0-0,0)), AND(ISTEXT(BX10), BX10="122", AW10=2), 0-MIN(0,MAX(CE10,0))+ 0-MIN(0,MAX(CE10-0,0))+ 0-MIN(0,MAX(CE10-0-0,0)), TRUE, "Invalid case" ), "Calculation error" ), BW10=1, IFERROR( _xlfn.IFS( OR(BX10="211", BX10="212", BX10="221", BX10="222"), "N/A", AND(ISTEXT(BX10), BX10="111", AW10=1), IF(ISBLANK(BY10), 0, BY10)-MIN(IF(ISBLANK(BY10), 0, BY10),MAX(CE10-CF10,0))+ IF(ISBLANK(BZ10), 0, BZ10)-MIN(IF(ISBLANK(BZ10), 0, BZ10),MAX(CE10-CF10-IF(ISBLANK(BY10), 0, BY10),0))+ IF(ISBLANK(CA10), 0, CA10)-MIN(IF(ISBLANK(CA10), 0, CA10),MAX(CE10-CF10-IF(ISBLANK(BY10), 0, BY10)-IF(ISBLANK(BZ10), 0, BZ10),0)), AND(ISTEXT(BX10), BX10="112", AW10=1), IF(ISBLANK(BY10), 0, BY10)-MIN(IF(ISBLANK(BY10), 0, BY10),MAX(CE10,0))+ IF(ISBLANK(BZ10), 0, BZ10)-MIN(IF(ISBLANK(BZ10), 0, BZ10),MAX(CE10-IF(ISBLANK(BY10), 0, BY10),0))+ IF(ISBLANK(CA10), 0, CA10)-MIN(IF(ISBLANK(CA10), 0, CA10),MAX(CE10-IF(ISBLANK(BY10), 0, BY10)-IF(ISBLANK(BZ10), 0, BZ10),0)), AND(ISTEXT(BX10), BX10="121", AW10=2), IF(ISBLANK(CB10), 0, CB10)-MIN(IF(ISBLANK(CB10), 0, CB10),MAX(CE10-CG10,0))+ IF(ISBLANK(CC10), 0, CC10)-MIN(IF(ISBLANK(CC10), 0, CC10),MAX(CE10-CG10-IF(ISBLANK(CB10), 0, CB10),0))+ IF(ISBLANK(CD10), 0, CD10)-MIN(IF(ISBLANK(CD10), 0, CD10),MAX(CE10-CG10-IF(ISBLANK(CB10), 0, CB10)-IF(ISBLANK(CC10), 0, CC10),0)), AND(ISTEXT(BX10), BX10="122", AW10=2), IF(ISBLANK(CB10), 0, CB10)-MIN(IF(ISBLANK(CB10), 0, CB10),MAX(CE10,0))+ IF(ISBLANK(CC10), 0, CC10)-MIN(IF(ISBLANK(CC10), 0, CC10),MAX(CE10-IF(ISBLANK(CB10), 0, CB10),0))+ IF(ISBLANK(CD10), 0, CD10)-MIN(IF(ISBLANK(CD10), 0, CD10),MAX(CE10-IF(ISBLANK(CB10), 0, CB10)-IF(ISBLANK(CC10), 0, CC10),0)), TRUE, "Invalid case" ), "Calculation error" ), TRUE, "Invalid BW" ), "Calculation error" ) -> Invalid case | CJ10: =IF((CE10="N/A"),AS10,(MIN(AS10,390000-CE10))) -> 0 | CK10: =IFERROR( _xlfn.IFS( BW10=2, IFERROR( _xlfn.IFS( ISNUMBER(CI10), IF(OR(ISBLANK(CI10), NOT(ISNUMBER(CI10))), 0, CI10), AW10=1, 0 + 0 + 0, AW10=2, 0 + 0 + 0 ), "Calculation error" ), BW10=1, IFERROR( _xlfn.IFS( ISNUMBER(CI10), IF(OR(ISBLANK(CI10), NOT(ISNUMBER(CI10))), 0, CI10), AW10=1, IF(ISBLANK(BY10), 0, BY10) + IF(ISBLANK(BZ10), 0, BZ10) + IF(ISBLANK(CA10), 0, CA10), AW10=2, IF(ISBLANK(CB10), 0, CB10) + IF(ISBLANK(CC10), 0, CC10) + IF(ISBLANK(CD10), 0, CD10) ), "Calculation error" ), TRUE, "Invalid BW" ), "Calculation error" ) -> 0 | CL10: =IFERROR( _xlfn.IFS( CK10>=CJ10, 0, CK10<CJ10, CJ10-CK10 ), "Calculation error") -> 0 | CM10: =IFERROR( IF(OR(I10=1,I10=2), SUM(CH10,CL10), "N/A"), "Calculation error") -> N/A | CN10: =IF(AND(ISNUMBER(CM10), CM10>0), 1, 0) -> 0 | CO10: within $500,000 | CP10: =_xlfn.IFS(CO10=Pulldown!$A$1,1,CO10=Pulldown!$A$2,2) -> 1 | CQ10: =IF(G10="", 0, IF(OR(E10="", G10<E10), "Invalid", DATEDIF(E10, G10, "Y") + 1)) -> 0 | CR10: =_xlfn.IFS( NOT(OR(CP10=1, CP10=2)), 0%, ISERROR(MATCH(CQ10, Subsidy!$A$2:$A$26, 0)), 0%, CP10=1, VLOOKUP(CQ10, Subsidy!$A$2:$G$26, 6, 0), CP10=2, VLOOKUP(CQ10, Subsidy!$A$2:$G$26, 7, 0) ) -> 0 | CS10: =_xlfn.IFS( NOT(OR(CP10=1, CP10=2)), 0%, ISERROR(MATCH(CQ10, Subsidy!$A$2:$A$26, 0)), 0%, CP10=1, VLOOKUP(CQ10, Subsidy!$A$2:$D$26, 2, 0), CP10=2, VLOOKUP(CQ10, Subsidy!$A$2:$D$26, 4, 0) ) -> 0 | CT10: =IFERROR(ROUNDDOWN((CL10*CS10),2), 0) -> 0 | CU10: =_xlfn.IFS( NOT(OR(CP10=1, CP10=2)), 0, ISERROR(MATCH(CQ10, Subsidy!$A$2:$A$26, 0)), 0, CP10=2, "N/A", AND(CP10=1, CQ10<=9), VLOOKUP(CQ10, Subsidy!$A$2:$D$26, 3, 0), TRUE, 0 ) -> 0 | CV10: =IF(AND(CP10=1, CQ10<=9, NOT(ISERROR(MATCH(CQ10, Subsidy!$A$2:$A$26, 0)))), IFERROR(IF(CL10-CU10<0, "Invalid Case", CL10-CU10), 0), 0) -> 0 | CW10: =MAX(CT10, CV10) -> 0 | CX10: =IFERROR(CL10-CW10, 0) -> 0 | CY10: =IFERROR(ROUNDDOWN(MIN(SUM(AD10, AS10), 390000), 2), 0) -> 0 | CZ10: =CY10-DA10 -> 0 | DA10: =SUM(CH10,CL10) -> 0 | DB10: =CW10 -> 0 | DC10: =DA10-DB10 -> 0
A11: 2 | C11: Please Select | D11: =_xlfn.IFS( OR(C11="", C11="Pls select"), 0, C11=Pulldown!$F$2, 1, C11=Pulldown!$F$3, 2, TRUE, 0) -> 0 | E11: =$E$3 -> 2025-05-01 | H11: =_xlfn.IFS( AND(F11<>"", G11<>"", G11<F11), "Invalid Date Order", AND(F11="", G11=""), "Input Required", AND(F11="", G11<>""), IF(G11<E11, "Date Before Transition", "Invalid: F11 Missing"), OR(F11="", G11=""), "Input Required", G11<E11, "Date Before Transition", AND(D11=1, DATEDIF(F11, G11+1, "y")>=2), "1-valid", AND(D11=1, DATEDIF(F11, G11+1, "y")<2), "1-invalid", AND(D11=2, DATEDIF(F11, G11+1, "y")>=5), "2-valid", AND(D11=2, DATEDIF(F11, G11+1, "y")<5), "2-invalid", TRUE, "Invalid Category" ) -> Input Required | I11: =_xlfn.IFS( $H11="1-valid", 1, $H11="2-valid", 2, $H11="Input Required", 3, $H11="Date Before Transition", 4, TRUE, 0 ) -> 3 | J11: =_xlfn.IFS( OR(F11="",G11=""),"Input Required", $F11>=$E11,"轉制日後開始受僱", $E11>$F11,"轉制日前開始受僱", TRUE,"Invalid Category" ) -> Input Required | K11: =_xlfn.IFS( $J11="轉制日前開始受僱", 1, $J11="轉制日後開始受僱", 2, TRUE, 0 ) -> 0 | L11: Monthly-rated | M11: =_xlfn.IFS($L11=Pulldown!$C$1,22500,$L11=Pulldown!$C$2,15000) -> 22500 | N11: =_xlfn.IFS($L11=Pulldown!$C$1,2/3,$L11=Pulldown!$C$2,1) -> 0.6666666667 | O11: 0 | P11: 0 | R11: 0.6666666667 | AD11: =IF(OR(Q11="N/A", R11="N/A", AC11="N/A"), "N/A", IF(OR(Q11="", R11="", AC11=""), 0, ROUND(MIN(390000, Q11*R11*AC11), 2))) -> 0 | AF11: 0.6666666667 | AG11: 2025-05-01 | AS11: =IF(OR(AE11="N/A", AF11="N/A", AR11="N/A"), "N/A", IF(OR(AE11="", AF11="", AR11=""), 0, ROUND(MIN(390000, AE11*AF11*AR11),2))) -> 0 | AT11: 0 | AU11: 0 | AV11: MPF | AW11: =_xlfn.IFS(AV11="",0,AV11=Pulldown!$B$2,1,AV11=Pulldown!$B$3,2) -> 1 | AX11: MC -> VC | AY11: =_xlfn.IFS(AX11="",0,AX11=Pulldown!$G$1,1,AX11=Pulldown!$G$2,2) -> 1 | AZ11: 0 | BA11: 0 | BB11: 0 | BC11: N/A | BD11: N/A | BE11: N/A | BF11: N/A | BG11: N/A | BH11: N/A | BI11: N/A | BJ11: N/A | BK11: N/A | BL11: N/A | BM11: N/A | BN11: N/A | BO11: N/A | BP11: N/A | BQ11: N/A | BR11: N/A | BS11: =IF($AW11=1, "N/A", IF($AW11=2, IF(OR(NOT(ISNUMBER(BD11)), NOT(ISNUMBER(BE11)), BD11<DATE(1900,1,1), BE11<DATE(1900,1,1), BE11<BD11, BF11="N/A", BF11="", NOT(ISNUMBER(BF11)), BP11="N/A", NOT(ISNUMBER(BP11)), NOT(ISNUMBER(BA11)), NOT(ISNUMBER(BC11)), NOT(ISNUMBER(BQ11)), NOT(ISNUMBER(BR11))), "N/A", IFERROR(MIN(ROUND(BA11,2), ROUND(BC11*BP11*BQ11*BR11,2)), "N/A")), "")) -> N/A | BT11: N/A | BU11: =IF(ISNA(INDIRECT("BT" & ROW())), "N/A", INDIRECT("BT" & ROW())) -> N/A | BV11: No | BW11: =_xlfn.IFS(BV11="",0,BV11=Pulldown!$H$1,1,BV11=Pulldown!$H$2,2) -> 2 | BX11: 011 | BY11: 0 | BZ11: 0 | CA11: 0 | CB11: 0 | CC11: 0 | CD11: 0 | CE11: 0 | CF11: 0 | CG11: N/A | CH11: =IFERROR( _xlfn.IFS( BW11=2, IFERROR( _xlfn.IFS( OR(BX11="211", BX11="212", BX11="221", BX11="222"), "N/A", AND(ISTEXT(BX11), BX11="111", AW11=1), MAX(0, IF(CE11-CF11>0, IF(CE11-CF11-0>0, IF(CE11-CF11-0-0>0, CE11-CF11-0-0-0, 0), 0), 0)), AND(ISTEXT(BX11), BX11="112", AW11=1), MAX(0, IF(CE11-0>0, IF(CE11-0-0>0, IF(CE11-0-0-0>0, CE11-0-0-0-CF11, 0), 0), 0)), AND(ISTEXT(BX11), BX11="121", AW11=2), MAX(0, IF(CE11-CG11>0, IF(CE11-CG11-0>0, IF(CE11-CG11-0-0>0, CE11-CG11-0-0-0, 0), 0), 0)), AND(ISTEXT(BX11), BX11="122", AW11=2), MAX(0, IF(CE11-0>0, IF(CE11-0-0>0, IF(CE11-0-0-0>0, CE11-0-0-0-CG11, 0), 0), 0)), TRUE, "N/A" ), "N/A" ), BW11=1, IFERROR( _xlfn.IFS( OR(BX11="211", BX11="212", BX11="221", BX11="222"), "N/A", AND(ISTEXT(BX11), BX11="111", AW11=1), MAX(0, IF(CE11-CF11>0, IF(CE11-CF11-IF(OR(ISBLANK(BY11), NOT(ISNUMBER(BY11))), 0, BY11)>0, IF(CE11-CF11-IF(OR(ISBLANK(BY11), NOT(ISNUMBER(BY11))), 0, BY11)-IF(OR(ISBLANK(BZ11), NOT(ISNUMBER(BZ11))), 0, BZ11)>0, CE11-CF11-IF(OR(ISBLANK(BY11), NOT(ISNUMBER(BY11))), 0, BY11)-IF(OR(ISBLANK(BZ11), NOT(ISNUMBER(BZ11))), 0, BZ11)-IF(OR(ISBLANK(CA11), NOT(ISNUMBER(CA11))), 0, CA11), 0), 0), 0)), AND(ISTEXT(BX11), BX11="112", AW11=1), MAX(0, IF(CE11-IF(OR(ISBLANK(BY11), NOT(ISNUMBER(BY11))), 0, BY11)>0, IF(CE11-IF(OR(ISBLANK(BY11), NOT(ISNUMBER(BY11))), 0, BY11)-IF(OR(ISBLANK(BZ11), NOT(ISNUMBER(BZ11))), 0, BZ11)>0, IF(CE11-IF(OR(ISBLANK(BY11), NOT(ISNUMBER(BY11))), 0, BY11)-IF(OR(ISBLANK(BZ11), NOT(ISNUMBER(BZ11))), 0, BZ11)-IF(OR(ISBLANK(CA11), NOT(ISNUMBER(CA11))), 0, CA11)>0, CE11-IF(OR(ISBLANK(BY11), NOT(ISNUMBER(BY11))), 0, BY11)-IF(OR(ISBLANK(BZ11), NOT(ISNUMBER(BZ11))), 0, BZ11)-IF(OR(ISBLANK(CA11), NOT(ISNUMBER(CA11))), 0, CA11)-CF11, 0), 0), 0)), AND(ISTEXT(BX11), BX11="121", AW11=2), MAX(0, IF(CE11-CG11>0, IF(CE11-CG11-IF(OR(ISBLANK(CB11), NOT(ISNUMBER(CB11))), 0, CB11)>0, IF(CE11-CG11-IF(OR(ISBLANK(CB11), NOT(ISNUMBER(CB11))), 0, CB11)-IF(OR(ISBLANK(CC11), NOT(ISNUMBER(CC11))), 0, CC11)>0, CE11-CG11-IF(OR(ISBLANK(CB11), NOT(ISNUMBER(CB11))), 0, CB11)-IF(OR(ISBLANK(CC11), NOT(ISNUMBER(CC11))), 0, CC11)-IF(OR(ISBLANK(CD11), NOT(ISNUMBER(CD11))), 0, CD11), 0), 0), 0)), AND(ISTEXT(BX11), BX11="122", AW11=2), MAX(0, IF(CE11-IF(OR(ISBLANK(CB11), NOT(ISNUMBER(CB11))), 0, CB11)>0, IF(CE11-IF(OR(ISBLANK(CB11), NOT(ISNUMBER(CB11))), 0, CB11)-IF(OR(ISBLANK(CC11), NOT(ISNUMBER(CC11))), 0, CC11)>0, IF(CE11-IF(OR(ISBLANK(CB11), NOT(ISNUMBER(CB11))), 0, CB11)-IF(OR(ISBLANK(CC11), NOT(ISNUMBER(CC11))), 0, CC11)-IF(OR(ISBLANK(CD11), NOT(ISNUMBER(CD11))), 0, CD11)>0, CE11-IF(OR(ISBLANK(CB11), NOT(ISNUMBER(CB11))), 0, CB11)-IF(OR(ISBLANK(CC11), NOT(ISNUMBER(CC11))), 0, CC11)-IF(OR(ISBLANK(CD11), NOT(ISNUMBER(CD11))), 0, CD11)-CG11, 0), 0), 0)), TRUE, "N/A" ), "N/A" ), TRUE, "N/A" ), "Calculation error" ) -> N/A | CI11: =IFERROR( _xlfn.IFS( BW11=2, IFERROR( _xlfn.IFS( OR(BX11="211", BX11="212", BX11="221", BX11="222"), "N/A", AND(ISTEXT(BX11), BX11="111", AW11=1), 0-MIN(0,MAX(CE11-CF11,0))+ 0-MIN(0,MAX(CE11-CF11-0,0))+ 0-MIN(0,MAX(CE11-CF11-0-0,0)), AND(ISTEXT(BX11), BX11="112", AW11=1), 0-MIN(0,MAX(CE11,0))+ 0-MIN(0,MAX(CE11-0,0))+ 0-MIN(0,MAX(CE11-0-0,0)), AND(ISTEXT(BX11), BX11="121", AW11=2), 0-MIN(0,MAX(CE11-CG11,0))+ 0-MIN(0,MAX(CE11-CG11-0,0))+ 0-MIN(0,MAX(CE11-CG11-0-0,0)), AND(ISTEXT(BX11), BX11="122", AW11=2), 0-MIN(0,MAX(CE11,0))+ 0-MIN(0,MAX(CE11-0,0))+ 0-MIN(0,MAX(CE11-0-0,0)), TRUE, "Invalid case" ), "Calculation error" ), BW11=1, IFERROR( _xlfn.IFS( OR(BX11="211", BX11="212", BX11="221", BX11="222"), "N/A", AND(ISTEXT(BX11), BX11="111", AW11=1), IF(ISBLANK(BY11), 0, BY11)-MIN(IF(ISBLANK(BY11), 0, BY11),MAX(CE11-CF11,0))+ IF(ISBLANK(BZ11), 0, BZ11)-MIN(IF(ISBLANK(BZ11), 0, BZ11),MAX(CE11-CF11-IF(ISBLANK(BY11), 0, BY11),0))+ IF(ISBLANK(CA11), 0, CA11)-MIN(IF(ISBLANK(CA11), 0, CA11),MAX(CE11-CF11-IF(ISBLANK(BY11), 0, BY11)-IF(ISBLANK(BZ11), 0, BZ11),0)), AND(ISTEXT(BX11), BX11="112", AW11=1), IF(ISBLANK(BY11), 0, BY11)-MIN(IF(ISBLANK(BY11), 0, BY11),MAX(CE11,0))+ IF(ISBLANK(BZ11), 0, BZ11)-MIN(IF(ISBLANK(BZ11), 0, BZ11),MAX(CE11-IF(ISBLANK(BY11), 0, BY11),0))+ IF(ISBLANK(CA11), 0, CA11)-MIN(IF(ISBLANK(CA11), 0, CA11),MAX(CE11-IF(ISBLANK(BY11), 0, BY11)-IF(ISBLANK(BZ11), 0, BZ11),0)), AND(ISTEXT(BX11), BX11="121", AW11=2), IF(ISBLANK(CB11), 0, CB11)-MIN(IF(ISBLANK(CB11), 0, CB11),MAX(CE11-CG11,0))+ IF(ISBLANK(CC11), 0, CC11)-MIN(IF(ISBLANK(CC11), 0, CC11),MAX(CE11-CG11-IF(ISBLANK(CB11), 0, CB11),0))+ IF(ISBLANK(CD11), 0, CD11)-MIN(IF(ISBLANK(CD11), 0, CD11),MAX(CE11-CG11-IF(ISBLANK(CB11), 0, CB11)-IF(ISBLANK(CC11), 0, CC11),0)), AND(ISTEXT(BX11), BX11="122", AW11=2), IF(ISBLANK(CB11), 0, CB11)-MIN(IF(ISBLANK(CB11), 0, CB11),MAX(CE11,0))+ IF(ISBLANK(CC11), 0, CC11)-MIN(IF(ISBLANK(CC11), 0, CC11),MAX(CE11-IF(ISBLANK(CB11), 0, CB11),0))+ IF(ISBLANK(CD11), 0, CD11)-MIN(IF(ISBLANK(CD11), 0, CD11),MAX(CE11-IF(ISBLANK(CB11), 0, CB11)-IF(ISBLANK(CC11), 0, CC11),0)), TRUE, "Invalid case" ), "Calculation error" ), TRUE, "Invalid BW" ), "Calculation error" ) -> Invalid case | CJ11: 0 | CK11: =IFERROR( _xlfn.IFS( BW11=2, IFERROR( _xlfn.IFS( ISNUMBER(CI11), IF(OR(ISBLANK(CI11), NOT(ISNUMBER(CI11))), 0, CI11), AW11=1, 0 + 0 + 0, AW11=2, 0 + 0 + 0 ), "Calculation error" ), BW11=1, IFERROR( _xlfn.IFS( ISNUMBER(CI11), IF(OR(ISBLANK(CI11), NOT(ISNUMBER(CI11))), 0, CI11), AW11=1, IF(ISBLANK(BY11), 0, BY11) + IF(ISBLANK(BZ11), 0, BZ11) + IF(ISBLANK(CA11), 0, CA11), AW11=2, IF(ISBLANK(CB11), 0, CB11) + IF(ISBLANK(CC11), 0, CC11) + IF(ISBLANK(CD11), 0, CD11) ), "Calculation error" ), TRUE, "Invalid BW" ), "Calculation error" ) -> 0 | CL11: =IFERROR( _xlfn.IFS( CK11>=CJ11, 0, CK11<CJ11, CJ11-CK11 ), "Calculation error") -> 0 | CM11: N/A | CN11: 0 | CO11: within $500,000 | CP11: =_xlfn.IFS(CO11=Pulldown!$A$1,1,CO11=Pulldown!$A$2,2) -> 1 | CQ11: 0 | CR11: =_xlfn.IFS( NOT(OR(CP11=1, CP11=2)), 0%, ISERROR(MATCH(CQ11, Subsidy!$A$2:$A$26, 0)), 0%, CP11=1, VLOOKUP(CQ11, Subsidy!$A$2:$G$26, 6, 0), CP11=2, VLOOKUP(CQ11, Subsidy!$A$2:$G$26, 7, 0) ) -> 0 | CS11: =_xlfn.IFS( NOT(OR(CP11=1, CP11=2)), 0%, ISERROR(MATCH(CQ11, Subsidy!$A$2:$A$26, 0)), 0%, CP11=1, VLOOKUP(CQ11, Subsidy!$A$2:$D$26, 2, 0), CP11=2, VLOOKUP(CQ11, Subsidy!$A$2:$D$26, 4, 0) ) -> 0 | CT11: 0 | CU11: =_xlfn.IFS( NOT(OR(CP11=1, CP11=2)), 0, ISERROR(MATCH(CQ11, Subsidy!$A$2:$A$26, 0)), 0, CP11=2, "N/A", AND(CP11=1, CQ11<=9), VLOOKUP(CQ11, Subsidy!$A$2:$D$26, 3, 0), TRUE, 0 ) -> 0 | CV11: =IF(AND(CP11=1, CQ11<=9, NOT(ISERROR(MATCH(CQ11, Subsidy!$A$2:$A$26, 0)))), IFERROR(IF(CL11-CU11<0, "Invalid Case", CL11-CU11), 0), 0) -> 0 | CW11: 0 | CX11: 0 | CY11: 0 | CZ11: 0 | DA11: 0 | DB11: 0 | DC11: 0
A12: 3 | C12: Please Select | D12: =_xlfn.IFS( OR(C12="", C12="Pls select"), 0, C12=Pulldown!$F$2, 1, C12=Pulldown!$F$3, 2, TRUE, 0) -> 0 | E12: 2025-05-01 | H12: =_xlfn.IFS( AND(F12<>"", G12<>"", G12<F12), "Invalid Date Order", AND(F12="", G12=""), "Input Required", AND(F12="", G12<>""), IF(G12<E12, "Date Before Transition", "Invalid: F11 Missing"), OR(F12="", G12=""), "Input Required", G12<E12, "Date Before Transition", AND(D12=1, DATEDIF(F12, G12+1, "y")>=2), "1-valid", AND(D12=1, DATEDIF(F12, G12+1, "y")<2), "1-invalid", AND(D12=2, DATEDIF(F12, G12+1, "y")>=5), "2-valid", AND(D12=2, DATEDIF(F12, G12+1, "y")<5), "2-invalid", TRUE, "Invalid Category" ) -> Input Required | I12: =_xlfn.IFS( $H12="1-valid", 1, $H12="2-valid", 2, $H12="Input Required", 3, $H12="Date Before Transition", 4, TRUE, 0 ) -> 3 | J12: =_xlfn.IFS( OR(F12="",G12=""),"Input Required", $F12>=$E12,"轉制日後開始受僱", $E12>$F12,"轉制日前開始受僱", TRUE,"Invalid Category" ) -> Input Required | K12: =_xlfn.IFS( $J12="轉制日前開始受僱", 1, $J12="轉制日後開始受僱", 2, TRUE, 0 ) -> 0 | L12: Monthly-rated | M12: =_xlfn.IFS($L12=Pulldown!$C$1,22500,$L12=Pulldown!$C$2,15000) -> 22500 | N12: =_xlfn.IFS($L12=Pulldown!$C$1,2/3,$L12=Pulldown!$C$2,1) -> 0.6666666667 | O12: 0 | P12: 0 | Q12: =IF(OR(I12=1, I12=2), IF(K12=0, "", IF(K12=1, IF(OR(M12="N/A", O12="N/A"), "N/A", IF(OR(M12="", O12=""), "", MIN(M12, O12))), IF(K12=2, "N/A", ""))), "") ->  | R12: 0.6666666667 | S12: =IF(OR(I12=1, I12=2), IF((F12<=E12),(DATEDIF(F12,E12,"Y")),"N/A"), "") ->  | T12: =IF(OR(I12=1, I12=2), IF(F12>E12, F12, F12), "") ->  | U12: =IF(OR(I12=1, I12=2), IF(F12>E12, E12-1, E12-1), "") ->  | V12: =IF(OR(I12=1, I12=2), IF(F12>E12, "N/A", E12-DATE(YEAR(F12)+S12, MONTH(F12), DAY(F12))), "") ->  | W12: =IF(OR(I12=1, I12=2), IF(F12>E12, DATE(YEAR(E12), MONTH(F12), DAY(F12)), DATE(YEAR(F12)+S12, MONTH(F12), DAY(F12))), "") ->  | X12: =IF(OR(I12=1, I12=2), IF(F12>E12, E12-1, E12-1), "") ->  | Y12: =IF(OR(I12=1, I12=2), IF(F12>E12, "N/A", DATE(YEAR(W12)+1, MONTH(W12), DAY(W12))-W12), "") ->  | Z12: =IF(OR(I12=1, I12=2), IF(F12>E12, DATE(YEAR(E12), MONTH(F12), DAY(F12)), DATE(YEAR(F12)+S12, MONTH(F12), DAY(F12))), "") ->  | AA12: =IF(OR(I12=1, I12=2), IF(F12>E12, DATE(YEAR(W12)+1, MONTH(W12), DAY(W12))-1, DATE(YEAR(W12)+1, MONTH(W12), DAY(W12))-1), "") ->  | AB12: =IF(OR(S12="N/A", V12="N/A", Y12="N/A"), "N/A", IF(OR(S12="", V12="", Y12="", Y12=0), "", V12/Y12)) ->  | AC12: =IF(AB12="N/A", "N/A", IF(AB12="", "", S12 + AB12)) ->  | AD12: 0 | AE12: =IF(OR(I12=1, I12=2), IF(K12=0, "", IF(OR(K12=1, K12=2), IF(OR(M12="N/A", P12="N/A"), "N/A", IF(OR(M12="", P12=""), "", MIN(M12, P12))), "")), "") ->  | AF12: 0.6666666667 | AG12: =IF(E12>F12,E12,F12) -> 2025-05-01 | AH12: =IF(OR(I12=1, I12=2), IF(F12<=E12, DATEDIF(E12, G12, "Y"), DATEDIF(F12, G12, "Y")), "") ->  | AI12: =IF(OR(I12=1, I12=2), IF(F12<=E12, E12, F12), "") ->  | AJ12: =IF(OR(I12=1, I12=2), G12, "") ->  | AK12: =IF(OR(I12=1, I12=2), IF(F12<=E12, G12-DATE(YEAR(E12)+AH12, MONTH(E12), DAY(E12)), G12-DATE(YEAR(F12)+AH12, MONTH(F12), DAY(F12)))+1, "") ->  | AL12: =IF(OR(I12=1, I12=2), IF(F12<=E12, DATE(YEAR(E12)+AH12, MONTH(E12), DAY(E12)), DATE(YEAR(F12)+AH12, MONTH(F12), DAY(F12))), "") ->  | AM12: =IF(OR(I12=1, I12=2), G12, "") ->  | AN12: =IF(OR(I12=1, I12=2), IF(F12<=E12, DATE(YEAR(E12)+AH12+1, MONTH(E12), DAY(E12))-DATE(YEAR(E12)+AH12, MONTH(E12), DAY(E12)), DATE(YEAR(F12)+AH12+1, MONTH(F12), DAY(F12))-DATE(YEAR(F12)+AH12, MONTH(F12), DAY(F12))), "") ->  | AO12: =IF(OR(I12=1, I12=2), IF(F12<=E12, DATE(YEAR(E12)+AH12, MONTH(E12), DAY(E12)), DATE(YEAR(F12)+AH12, MONTH(F12), DAY(F12))), "") ->  | AP12: =IF(OR(I12=1, I12=2), IF(F12<=E12, DATE(YEAR(E12)+AH12+1, MONTH(E12), DAY(E12)), DATE(YEAR(F12)+AH12+1, MONTH(F12), DAY(F12)))-1, "") ->  | AQ12: =IF(OR(AH12="N/A", AK12="N/A", AN12="N/A"), "N/A", IF(OR(AH12="", AK12="", AN12="", AN12=0), "", AK12/AN12)) ->  | AR12: =IF(AQ12="N/A", "N/A", IF(AQ12="", "", AH12 + AQ12)) ->  | AS12: 0 | AT12: =IF(AD12="N/A", AS12, IFERROR(IF(AD12+AS12>=390000, 390000-AD12, AS12), AS12)) -> 0 | AU12: =IFERROR(ROUNDDOWN(MIN(SUM(AD12, AS12), 390000), 2), 0) -> 0 | AV12: MPF | AW12: =_xlfn.IFS(AV12="",0,AV12=Pulldown!$B$2,1,AV12=Pulldown!$B$3,2) -> 1 | AX12: MC -> VC | AY12: =_xlfn.IFS(AX12="",0,AX12=Pulldown!$G$1,1,AX12=Pulldown!$G$2,2) -> 1 | AZ12: 0 | BA12: 0 | BB12: 0 | BC12: =IF(AW12=1, "N/A", IF(BB12="", 0, MIN(30000, BB12))) -> N/A | BD12: =IF(AW12=1,"N/A",(MAX("1/12/2000",F12))) -> N/A | BE12: =IF(AW12=1,"N/A",G12) -> N/A | BF12: =IF(AW12=1, "N/A", IF(AW12=2, IFERROR(IF(OR(NOT(ISNUMBER(BD12)), NOT(ISNUMBER(BE12)), BD12<DATE(1900,1,1), BE12<DATE(1900,1,1), BE12<BD12), "N/A", DATEDIF(BD12, BE12, "Y")), "N/A"), "")) -> N/A | BG12: =IF(AW12=1, "N/A", IF(AW12=2, BD12, "")) -> N/A | BH12: =IF(AW12=1, "N/A", IF(AW12=2, DATE(YEAR(BE12), MONTH(BD12), DAY(BD12)-1), "")) -> N/A | BI12: =IF(AW12=1, "N/A", IF(AW12=2, IFERROR(IF(OR(NOT(ISNUMBER(BD12)), NOT(ISNUMBER(BE12)), BD12<DATE(1900,1,1), BE12<DATE(1900,1,1), BE12<BD12), "N/A", BE12 - DATE(YEAR(BD12) + BF12, MONTH(BD12), DAY(BD12)) + 1), "N/A"), "")) -> N/A | BJ12: =IF(AW12=1, "N/A", IF(AW12=2, IFERROR(IF(OR(NOT(ISNUMBER(BD12)), NOT(ISNUMBER(BE12)), BD12<DATE(1900,1,1), BE12<DATE(1900,1,1), BE12<BD12), "N/A", DATE(YEAR(BD12) +BF12, MONTH(BD12), DAY(BD12))), "N/A"), "")) -> N/A | BK12: =IF(AW12=1, "N/A", IF(AW12=2, BE12, "")) -> N/A | BL12: =IF(AW12=1, "N/A", IF(AW12=2, IF(OR(NOT(ISNUMBER(BD12)), NOT(ISNUMBER(BE12)), BD12<DATE(1900,1,1), BE12<DATE(1900,1,1), BE12<BD12, BF12="N/A", BF12="", NOT(ISNUMBER(BF12))), "N/A", IFERROR( IF(AND(ISNUMBER(DATE(YEAR(BD12)+BF12+1, MONTH(BD12), DAY(BD12)-1)), ISNUMBER(DATE(YEAR(BD12)+BF12, MONTH(BD12), DAY(BD12)))), DATE(YEAR(BD12)+BF12+1, MONTH(BD12), DAY(BD12)-1) - DATE(YEAR(BD12)+BF12, MONTH(BD12), DAY(BD12)) + 1, "N/A"), "N/A")), "")) -> N/A | BM12: =IF(AW12=1, "N/A", IF(AW12=2, IFERROR(IF(OR(NOT(ISNUMBER(BD12)), NOT(ISNUMBER(BE12)), BD12<DATE(1900,1,1), BE12<DATE(1900,1,1), BE12<BD12), "N/A", DATE(YEAR(BD12) + BF12, MONTH(BD12), DAY(BD12))), "N/A"), "")) -> N/A | BN12: =IF(AW12=1, "N/A", IF(AW12=2, IF(OR(NOT(ISNUMBER(BD12)), NOT(ISNUMBER(BE12)), BD12<DATE(1900,1,1), BE12<DATE(1900,1,1), BE12<BD12, BF12="N/A", BF12="", NOT(ISNUMBER(BF12))), "N/A", IFERROR( IF(ISNUMBER(DATE(YEAR(BD12)+BF12+1, MONTH(BD12), DAY(BD12)-1)), DATE(YEAR(BD12)+BF12+1, MONTH(BD12), DAY(BD12)-1), "N/A"), "N/A")), "")) -> N/A | BO12: =IF($AW12=1, "N/A", IF($AW12=2, IF(OR(NOT(ISNUMBER(BD12)), NOT(ISNUMBER(BE12)), BD12<DATE(1900,1,1), BE12<DATE(1900,1,1), BE12<BD12, BF12="N/A", BF12="", NOT(ISNUMBER(BF12)), BI12="N/A", NOT(ISNUMBER(BI12)), BL12="N/A", NOT(ISNUMBER(BL12)), BL12=0), "N/A", IFERROR(BI12/BL12, "N/A")), "")) -> N/A | BP12: =IF($AW12=1, "N/A", IF($AW12=2, IF(OR(NOT(ISNUMBER(BD12)), NOT(ISNUMBER(BE12)), BD12<DATE(1900,1,1), BE12<DATE(1900,1,1), BE12<BD12, BF12="N/A", BF12="", NOT(ISNUMBER(BF12)), BO12="N/A", NOT(ISNUMBER(BO12))), "N/A", IFERROR(BF12+BO12, "N/A")), "")) -> N/A | BQ12: N/A | BR12: N/A | BS12: N/A | BT12: =IF($AW12=1, "N/A", IF($AW12=2, IF(OR(NOT(ISNUMBER(BD12)), NOT(ISNUMBER(BE12)), BD12<DATE(1900,1,1), BE12<DATE(1900,1,1), BE12<BD12, BF12="N/A", BF12="", NOT(ISNUMBER(BF12)), BS12="N/A", NOT(ISNUMBER(BS12)), NOT(ISNUMBER(BA12))), "N/A", IF(BA12="", 0, IFERROR(BA12 - ROUNDDOWN(BS12,2), "N/A"))), "")) -> N/A | BU12: =IF(ISNA(INDIRECT("BT" & ROW())), "N/A", INDIRECT("BT" & ROW())) -> N/A | BV12: No | BW12: =_xlfn.IFS(BV12="",0,BV12=Pulldown!$H$1,1,BV12=Pulldown!$H$2,2) -> 2 | BX12: =CONCATENATE(K12,AW12,AY12) -> 011 | BY12: 0 | BZ12: 0 | CA12: 0 | CB12: 0 | CC12: 0 | CD12: 0 | CE12: =IF((AD12="N/A"),"N/A",(MIN(390000,AD12))) -> 0 | CF12: 0 | CG12: =IF($AW12=2,(IF((AD12="N/A"),"N/A",(BS12))),"N/A") -> N/A | CH12: =IFERROR( _xlfn.IFS( BW12=2, IFERROR( _xlfn.IFS( OR(BX12="211", BX12="212", BX12="221", BX12="222"), "N/A", AND(ISTEXT(BX12), BX12="111", AW12=1), MAX(0, IF(CE12-CF12>0, IF(CE12-CF12-0>0, IF(CE12-CF12-0-0>0, CE12-CF12-0-0-0, 0), 0), 0)), AND(ISTEXT(BX12), BX12="112", AW12=1), MAX(0, IF(CE12-0>0, IF(CE12-0-0>0, IF(CE12-0-0-0>0, CE12-0-0-0-CF12, 0), 0), 0)), AND(ISTEXT(BX12), BX12="121", AW12=2), MAX(0, IF(CE12-CG12>0, IF(CE12-CG12-0>0, IF(CE12-CG12-0-0>0, CE12-CG12-0-0-0, 0), 0), 0)), AND(ISTEXT(BX12), BX12="122", AW12=2), MAX(0, IF(CE12-0>0, IF(CE12-0-0>0, IF(CE12-0-0-0>0, CE12-0-0-0-CG12, 0), 0), 0)), TRUE, "N/A" ), "N/A" ), BW12=1, IFERROR( _xlfn.IFS( OR(BX12="211", BX12="212", BX12="221", BX12="222"), "N/A", AND(ISTEXT(BX12), BX12="111", AW12=1), MAX(0, IF(CE12-CF12>0, IF(CE12-CF12-IF(OR(ISBLANK(BY12), NOT(ISNUMBER(BY12))), 0, BY12)>0, IF(CE12-CF12-IF(OR(ISBLANK(BY12), NOT(ISNUMBER(BY12))), 0, BY12)-IF(OR(ISBLANK(BZ12), NOT(ISNUMBER(BZ12))), 0, BZ12)>0, CE12-CF12-IF(OR(ISBLANK(BY12), NOT(ISNUMBER(BY12))), 0, BY12)-IF(OR(ISBLANK(BZ12), NOT(ISNUMBER(BZ12))), 0, BZ12)-IF(OR(ISBLANK(CA12), NOT(ISNUMBER(CA12))), 0, CA12), 0), 0), 0)), AND(ISTEXT(BX12), BX12="112", AW12=1), MAX(0, IF(CE12-IF(OR(ISBLANK(BY12), NOT(ISNUMBER(BY12))), 0, BY12)>0, IF(CE12-IF(OR(ISBLANK(BY12), NOT(ISNUMBER(BY12))), 0, BY12)-IF(OR(ISBLANK(BZ12), NOT(ISNUMBER(BZ12))), 0, BZ12)>0, IF(CE12-IF(OR(ISBLANK(BY12), NOT(ISNUMBER(BY12))), 0, BY12)-IF(OR(ISBLANK(BZ12), NOT(ISNUMBER(BZ12))), 0, BZ12)-IF(OR(ISBLANK(CA12), NOT(ISNUMBER(CA12))), 0, CA12)>0, CE12-IF(OR(ISBLANK(BY12), NOT(ISNUMBER(BY12))), 0, BY12)-IF(OR(ISBLANK(BZ12), NOT(ISNUMBER(BZ12))), 0, BZ12)-IF(OR(ISBLANK(CA12), NOT(ISNUMBER(CA12))), 0, CA12)-CF12, 0), 0), 0)), AND(ISTEXT(BX12), BX12="121", AW12=2), MAX(0, IF(CE12-CG12>0, IF(CE12-CG12-IF(OR(ISBLANK(CB12), NOT(ISNUMBER(CB12))), 0, CB12)>0, IF(CE12-CG12-IF(OR(ISBLANK(CB12), NOT(ISNUMBER(CB12))), 0, CB12)-IF(OR(ISBLANK(CC12), NOT(ISNUMBER(CC12))), 0, CC12)>0, CE12-CG12-IF(OR(ISBLANK(CB12), NOT(ISNUMBER(CB12))), 0, CB12)-IF(OR(ISBLANK(CC12), NOT(ISNUMBER(CC12))), 0, CC12)-IF(OR(ISBLANK(CD12), NOT(ISNUMBER(CD12))), 0, CD12), 0), 0), 0)), AND(ISTEXT(BX12), BX12="122", AW12=2), MAX(0, IF(CE12-IF(OR(ISBLANK(CB12), NOT(ISNUMBER(CB12))), 0, CB12)>0, IF(CE12-IF(OR(ISBLANK(CB12), NOT(ISNUMBER(CB12))), 0, CB12)-IF(OR(ISBLANK(CC12), NOT(ISNUMBER(CC12))), 0, CC12)>0, IF(CE12-IF(OR(ISBLANK(CB12), NOT(ISNUMBER(CB12))), 0, CB12)-IF(OR(ISBLANK(CC12), NOT(ISNUMBER(CC12))), 0, CC12)-IF(OR(ISBLANK(CD12), NOT(ISNUMBER(CD12))), 0, CD12)>0, CE12-IF(OR(ISBLANK(CB12), NOT(ISNUMBER(CB12))), 0, CB12)-IF(OR(ISBLANK(CC12), NOT(ISNUMBER(CC12))), 0, CC12)-IF(OR(ISBLANK(CD12), NOT(ISNUMBER(CD12))), 0, CD12)-CG12, 0), 0), 0)), TRUE, "N/A" ), "N/A" ), TRUE, "N/A" ), "Calculation error" ) -> N/A | CI12: =IFERROR( _xlfn.IFS( BW12=2, IFERROR( _xlfn.IFS( OR(BX12="211", BX12="212", BX12="221", BX12="222"), "N/A", AND(ISTEXT(BX12), BX12="111", AW12=1), 0-MIN(0,MAX(CE12-CF12,0))+ 0-MIN(0,MAX(CE12-CF12-0,0))+ 0-MIN(0,MAX(CE12-CF12-0-0,0)), AND(ISTEXT(BX12), BX12="112", AW12=1), 0-MIN(0,MAX(CE12,0))+ 0-MIN(0,MAX(CE12-0,0))+ 0-MIN(0,MAX(CE12-0-0,0)), AND(ISTEXT(BX12), BX12="121", AW12=2), 0-MIN(0,MAX(CE12-CG12,0))+ 0-MIN(0,MAX(CE12-CG12-0,0))+ 0-MIN(0,MAX(CE12-CG12-0-0,0)), AND(ISTEXT(BX12), BX12="122", AW12=2), 0-MIN(0,MAX(CE12,0))+ 0-MIN(0,MAX(CE12-0,0))+ 0-MIN(0,MAX(CE12-0-0,0)), TRUE, "Invalid case" ), "Calculation error" ), BW12=1, IFERROR( _xlfn.IFS( OR(BX12="211", BX12="212", BX12="221", BX12="222"), "N/A", AND(ISTEXT(BX12), BX12="111", AW12=1), IF(ISBLANK(BY12), 0, BY12)-MIN(IF(ISBLANK(BY12), 0, BY12),MAX(CE12-CF12,0))+ IF(ISBLANK(BZ12), 0, BZ12)-MIN(IF(ISBLANK(BZ12), 0, BZ12),MAX(CE12-CF12-IF(ISBLANK(BY12), 0, BY12),0))+ IF(ISBLANK(CA12), 0, CA12)-MIN(IF(ISBLANK(CA12), 0, CA12),MAX(CE12-CF12-IF(ISBLANK(BY12), 0, BY12)-IF(ISBLANK(BZ12), 0, BZ12),0)), AND(ISTEXT(BX12), BX12="112", AW12=1), IF(ISBLANK(BY12), 0, BY12)-MIN(IF(ISBLANK(BY12), 0, BY12),MAX(CE12,0))+ IF(ISBLANK(BZ12), 0, BZ12)-MIN(IF(ISBLANK(BZ12), 0, BZ12),MAX(CE12-IF(ISBLANK(BY12), 0, BY12),0))+ IF(ISBLANK(CA12), 0, CA12)-MIN(IF(ISBLANK(CA12), 0, CA12),MAX(CE12-IF(ISBLANK(BY12), 0, BY12)-IF(ISBLANK(BZ12), 0, BZ12),0)), AND(ISTEXT(BX12), BX12="121", AW12=2), IF(ISBLANK(CB12), 0, CB12)-MIN(IF(ISBLANK(CB12), 0, CB12),MAX(CE12-CG12,0))+ IF(ISBLANK(CC12), 0, CC12)-MIN(IF(ISBLANK(CC12), 0, CC12),MAX(CE12-CG12-IF(ISBLANK(CB12), 0, CB12),0))+ IF(ISBLANK(CD12), 0, CD12)-MIN(IF(ISBLANK(CD12), 0, CD12),MAX(CE12-CG12-IF(ISBLANK(CB12), 0, CB12)-IF(ISBLANK(CC12), 0, CC12),0)), AND(ISTEXT(BX12), BX12="122", AW12=2), IF(ISBLANK(CB12), 0, CB12)-MIN(IF(ISBLANK(CB12), 0, CB12),MAX(CE12,0))+ IF(ISBLANK(CC12), 0, CC12)-MIN(IF(ISBLANK(CC12), 0, CC12),MAX(CE12-IF(ISBLANK(CB12), 0, CB12),0))+ IF(ISBLANK(CD12), 0, CD12)-MIN(IF(ISBLANK(CD12), 0, CD12),MAX(CE12-IF(ISBLANK(CB12), 0, CB12)-IF(ISBLANK(CC12), 0, CC12),0)), TRUE, "Invalid case" ), "Calculation error" ), TRUE, "Invalid BW" ), "Calculation error" ) -> Invalid case | CJ12: =IF((CE12="N/A"),AS12,(MIN(AS12,390000-CE12))) -> 0 | CK12: =IFERROR( _xlfn.IFS( BW12=2, IFERROR( _xlfn.IFS( ISNUMBER(CI12), IF(OR(ISBLANK(CI12), NOT(ISNUMBER(CI12))), 0, CI12), AW12=1, 0 + 0 + 0, AW12=2, 0 + 0 + 0 ), "Calculation error" ), BW12=1, IFERROR( _xlfn.IFS( ISNUMBER(CI12), IF(OR(ISBLANK(CI12), NOT(ISNUMBER(CI12))), 0, CI12), AW12=1, IF(ISBLANK(BY12), 0, BY12) + IF(ISBLANK(BZ12), 0, BZ12) + IF(ISBLANK(CA12), 0, CA12), AW12=2, IF(ISBLANK(CB12), 0, CB12) + IF(ISBLANK(CC12), 0, CC12) + IF(ISBLANK(CD12), 0, CD12) ), "Calculation error" ), TRUE, "Invalid BW" ), "Calculation error" ) -> 0 | CL12: =IFERROR( _xlfn.IFS( CK12>=CJ12, 0, CK12<CJ12, CJ12-CK12 ), "Calculation error") -> 0 | CM12: =IFERROR( IF(OR(I12=1,I12=2), SUM(CH12,CL12), "N/A"), "Calculation error") -> N/A | CN12: =IF(AND(ISNUMBER(CM12), CM12>0), 1, 0) -> 0 | CO12: within $500,000 | CP12: =_xlfn.IFS(CO12=Pulldown!$A$1,1,CO12=Pulldown!$A$2,2) -> 1 | CQ12: =IF(G12="", 0, IF(OR(E12="", G12<E12), "Invalid", DATEDIF(E12, G12, "Y") + 1)) -> 0 | CR12: =_xlfn.IFS( NOT(OR(CP12=1, CP12=2)), 0%, ISERROR(MATCH(CQ12, Subsidy!$A$2:$A$26, 0)), 0%, CP12=1, VLOOKUP(CQ12, Subsidy!$A$2:$G$26, 6, 0), CP12=2, VLOOKUP(CQ12, Subsidy!$A$2:$G$26, 7, 0) ) -> 0 | CS12: =_xlfn.IFS( NOT(OR(CP12=1, CP12=2)), 0%, ISERROR(MATCH(CQ12, Subsidy!$A$2:$A$26, 0)), 0%, CP12=1, VLOOKUP(CQ12, Subsidy!$A$2:$D$26, 2, 0), CP12=2, VLOOKUP(CQ12, Subsidy!$A$2:$D$26, 4, 0) ) -> 0 | CT12: =IFERROR(ROUNDDOWN((CL12*CS12),2), 0) -> 0 | CU12: =_xlfn.IFS( NOT(OR(CP12=1, CP12=2)), 0, ISERROR(MATCH(CQ12, Subsidy!$A$2:$A$26, 0)), 0, CP12=2, "N/A", AND(CP12=1, CQ12<=9), VLOOKUP(CQ12, Subsidy!$A$2:$D$26, 3, 0), TRUE, 0 ) -> 0 | CV12: =IF(AND(CP12=1, CQ12<=9, NOT(ISERROR(MATCH(CQ12, Subsidy!$A$2:$A$26, 0)))), IFERROR(IF(CL12-CU12<0, "Invalid Case", CL12-CU12), 0), 0) -> 0 | CW12: =MAX(CT12, CV12) -> 0 | CX12: =IFERROR(CL12-CW12, 0) -> 0 | CY12: =IFERROR(ROUNDDOWN(MIN(SUM(AD12, AS12), 390000), 2), 0) -> 0 | CZ12: =CY12-DA12 -> 0 | DA12: =SUM(CH12,CL12) -> 0 | DB12: =CW12 -> 0 | DC12: =DA12-DB12 -> 0
A13: 4 | C13: Please Select | D13: =_xlfn.IFS( OR(C13="", C13="Pls select"), 0, C13=Pulldown!$F$2, 1, C13=Pulldown!$F$3, 2, TRUE, 0) -> 0 | E13: 2025-05-01 | H13: =_xlfn.IFS( AND(F13<>"", G13<>"", G13<F13), "Invalid Date Order", AND(F13="", G13=""), "Input Required", AND(F13="", G13<>""), IF(G13<E13, "Date Before Transition", "Invalid: F11 Missing"), OR(F13="", G13=""), "Input Required", G13<E13, "Date Before Transition", AND(D13=1, DATEDIF(F13, G13+1, "y")>=2), "1-valid", AND(D13=1, DATEDIF(F13, G13+1, "y")<2), "1-invalid", AND(D13=2, DATEDIF(F13, G13+1, "y")>=5), "2-valid", AND(D13=2, DATEDIF(F13, G13+1, "y")<5), "2-invalid", TRUE, "Invalid Category" ) -> Input Required | I13: =_xlfn.IFS( $H13="1-valid", 1, $H13="2-valid", 2, $H13="Input Required", 3, $H13="Date Before Transition", 4, TRUE, 0 ) -> 3 | J13: =_xlfn.IFS( OR(F13="",G13=""),"Input Required", $F13>=$E13,"轉制日後開始受僱", $E13>$F13,"轉制日前開始受僱", TRUE,"Invalid Category" ) -> Input Required | K13: =_xlfn.IFS( $J13="轉制日前開始受僱", 1, $J13="轉制日後開始受僱", 2, TRUE, 0 ) -> 0 | L13: Monthly-rated | M13: =_xlfn.IFS($L13=Pulldown!$C$1,22500,$L13=Pulldown!$C$2,15000) -> 22500 | N13: =_xlfn.IFS($L13=Pulldown!$C$1,2/3,$L13=Pulldown!$C$2,1) -> 0.6666666667 | O13: 0 | P13: 0 | R13: 0.6666666667 | AD13: 0 | AF13: 0.6666666667 | AG13: 2025-05-01 | AS13: 0 | AT13: 0 | AU13: 0 | AV13: MPF | AW13: =_xlfn.IFS(AV13="",0,AV13=Pulldown!$B$2,1,AV13=Pulldown!$B$3,2) -> 1 | AX13: MC -> VC | AY13: =_xlfn.IFS(AX13="",0,AX13=Pulldown!$G$1,1,AX13=Pulldown!$G$2,2) -> 1 | AZ13: 0 | BA13: 0 | BB13: 0 | BC13: N/A | BD13: N/A | BE13: N/A | BF13: N/A | BG13: N/A | BH13: N/A | BI13: N/A | BJ13: N/A | BK13: N/A | BL13: N/A | BM13: N/A | BN13: N/A | BO13: N/A | BP13: N/A | BQ13: N/A | BR13: N/A | BS13: N/A | BT13: N/A | BU13: =IF(ISNA(INDIRECT("BT" & ROW())), "N/A", INDIRECT("BT" & ROW())) -> N/A | BV13: No | BW13: =_xlfn.IFS(BV13="",0,BV13=Pulldown!$H$1,1,BV13=Pulldown!$H$2,2) -> 2 | BX13: 011 | BY13: 0 | BZ13: 0 | CA13: 0 | CB13: 0 | CC13: 0 | CD13: 0 | CE13: 0 | CF13: 0 | CG13: N/A | CH13: =IFERROR( _xlfn.IFS( BW13=2, IFERROR( _xlfn.IFS( OR(BX13="211", BX13="212", BX13="221", BX13="222"), "N/A", AND(ISTEXT(BX13), BX13="111", AW13=1), MAX(0, IF(CE13-CF13>0, IF(CE13-CF13-0>0, IF(CE13-CF13-0-0>0, CE13-CF13-0-0-0, 0), 0), 0)), AND(ISTEXT(BX13), BX13="112", AW13=1), MAX(0, IF(CE13-0>0, IF(CE13-0-0>0, IF(CE13-0-0-0>0, CE13-0-0-0-CF13, 0), 0), 0)), AND(ISTEXT(BX13), BX13="121", AW13=2), MAX(0, IF(CE13-CG13>0, IF(CE13-CG13-0>0, IF(CE13-CG13-0-0>0, CE13-CG13-0-0-0, 0), 0), 0)), AND(ISTEXT(BX13), BX13="122", AW13=2), MAX(0, IF(CE13-0>0, IF(CE13-0-0>0, IF(CE13-0-0-0>0, CE13-0-0-0-CG13, 0), 0), 0)), TRUE, "N/A" ), "N/A" ), BW13=1, IFERROR( _xlfn.IFS( OR(BX13="211", BX13="212", BX13="221", BX13="222"), "N/A", AND(ISTEXT(BX13), BX13="111", AW13=1), MAX(0, IF(CE13-CF13>0, IF(CE13-CF13-IF(OR(ISBLANK(BY13), NOT(ISNUMBER(BY13))), 0, BY13)>0, IF(CE13-CF13-IF(OR(ISBLANK(BY13), NOT(ISNUMBER(BY13))), 0, BY13)-IF(OR(ISBLANK(BZ13), NOT(ISNUMBER(BZ13))), 0, BZ13)>0, CE13-CF13-IF(OR(ISBLANK(BY13), NOT(ISNUMBER(BY13))), 0, BY13)-IF(OR(ISBLANK(BZ13), NOT(ISNUMBER(BZ13))), 0, BZ13)-IF(OR(ISBLANK(CA13), NOT(ISNUMBER(CA13))), 0, CA13), 0), 0), 0)), AND(ISTEXT(BX13), BX13="112", AW13=1), MAX(0, IF(CE13-IF(OR(ISBLANK(BY13), NOT(ISNUMBER(BY13))), 0, BY13)>0, IF(CE13-IF(OR(ISBLANK(BY13), NOT(ISNUMBER(BY13))), 0, BY13)-IF(OR(ISBLANK(BZ13), NOT(ISNUMBER(BZ13))), 0, BZ13)>0, IF(CE13-IF(OR(ISBLANK(BY13), NOT(ISNUMBER(BY13))), 0, BY13)-IF(OR(ISBLANK(BZ13), NOT(ISNUMBER(BZ13))), 0, BZ13)-IF(OR(ISBLANK(CA13), NOT(ISNUMBER(CA13))), 0, CA13)>0, CE13-IF(OR(ISBLANK(BY13), NOT(ISNUMBER(BY13))), 0, BY13)-IF(OR(ISBLANK(BZ13), NOT(ISNUMBER(BZ13))), 0, BZ13)-IF(OR(ISBLANK(CA13), NOT(ISNUMBER(CA13))), 0, CA13)-CF13, 0), 0), 0)), AND(ISTEXT(BX13), BX13="121", AW13=2), MAX(0, IF(CE13-CG13>0, IF(CE13-CG13-IF(OR(ISBLANK(CB13), NOT(ISNUMBER(CB13))), 0, CB13)>0, IF(CE13-CG13-IF(OR(ISBLANK(CB13), NOT(ISNUMBER(CB13))), 0, CB13)-IF(OR(ISBLANK(CC13), NOT(ISNUMBER(CC13))), 0, CC13)>0, CE13-CG13-IF(OR(ISBLANK(CB13), NOT(ISNUMBER(CB13))), 0, CB13)-IF(OR(ISBLANK(CC13), NOT(ISNUMBER(CC13))), 0, CC13)-IF(OR(ISBLANK(CD13), NOT(ISNUMBER(CD13))), 0, CD13), 0), 0), 0)), AND(ISTEXT(BX13), BX13="122", AW13=2), MAX(0, IF(CE13-IF(OR(ISBLANK(CB13), NOT(ISNUMBER(CB13))), 0, CB13)>0, IF(CE13-IF(OR(ISBLANK(CB13), NOT(ISNUMBER(CB13))), 0, CB13)-IF(OR(ISBLANK(CC13), NOT(ISNUMBER(CC13))), 0, CC13)>0, IF(CE13-IF(OR(ISBLANK(CB13), NOT(ISNUMBER(CB13))), 0, CB13)-IF(OR(ISBLANK(CC13), NOT(ISNUMBER(CC13))), 0, CC13)-IF(OR(ISBLANK(CD13), NOT(ISNUMBER(CD13))), 0, CD13)>0, CE13-IF(OR(ISBLANK(CB13), NOT(ISNUMBER(CB13))), 0, CB13)-IF(OR(ISBLANK(CC13), NOT(ISNUMBER(CC13))), 0, CC13)-IF(OR(ISBLANK(CD13), NOT(ISNUMBER(CD13))), 0, CD13)-CG13, 0), 0), 0)), TRUE, "N/A" ), "N/A" ), TRUE, "N/A" ), "Calculation error" ) -> N/A | CI13: =IFERROR( _xlfn.IFS( BW13=2, IFERROR( _xlfn.IFS( OR(BX13="211", BX13="212", BX13="221", BX13="222"), "N/A", AND(ISTEXT(BX13), BX13="111", AW13=1), 0-MIN(0,MAX(CE13-CF13,0))+ 0-MIN(0,MAX(CE13-CF13-0,0))+ 0-MIN(0,MAX(CE13-CF13-0-0,0)), AND(ISTEXT(BX13), BX13="112", AW13=1), 0-MIN(0,MAX(CE13,0))+ 0-MIN(0,MAX(CE13-0,0))+ 0-MIN(0,MAX(CE13-0-0,0)), AND(ISTEXT(BX13), BX13="121", AW13=2), 0-MIN(0,MAX(CE13-CG13,0))+ 0-MIN(0,MAX(CE13-CG13-0,0))+ 0-MIN(0,MAX(CE13-CG13-0-0,0)), AND(ISTEXT(BX13), BX13="122", AW13=2), 0-MIN(0,MAX(CE13,0))+ 0-MIN(0,MAX(CE13-0,0))+ 0-MIN(0,MAX(CE13-0-0,0)), TRUE, "Invalid case" ), "Calculation error" ), BW13=1, IFERROR( _xlfn.IFS( OR(BX13="211", BX13="212", BX13="221", BX13="222"), "N/A", AND(ISTEXT(BX13), BX13="111", AW13=1), IF(ISBLANK(BY13), 0, BY13)-MIN(IF(ISBLANK(BY13), 0, BY13),MAX(CE13-CF13,0))+ IF(ISBLANK(BZ13), 0, BZ13)-MIN(IF(ISBLANK(BZ13), 0, BZ13),MAX(CE13-CF13-IF(ISBLANK(BY13), 0, BY13),0))+ IF(ISBLANK(CA13), 0, CA13)-MIN(IF(ISBLANK(CA13), 0, CA13),MAX(CE13-CF13-IF(ISBLANK(BY13), 0, BY13)-IF(ISBLANK(BZ13), 0, BZ13),0)), AND(ISTEXT(BX13), BX13="112", AW13=1), IF(ISBLANK(BY13), 0, BY13)-MIN(IF(ISBLANK(BY13), 0, BY13),MAX(CE13,0))+ IF(ISBLANK(BZ13), 0, BZ13)-MIN(IF(ISBLANK(BZ13), 0, BZ13),MAX(CE13-IF(ISBLANK(BY13), 0, BY13),0))+ IF(ISBLANK(CA13), 0, CA13)-MIN(IF(ISBLANK(CA13), 0, CA13),MAX(CE13-IF(ISBLANK(BY13), 0, BY13)-IF(ISBLANK(BZ13), 0, BZ13),0)), AND(ISTEXT(BX13), BX13="121", AW13=2), IF(ISBLANK(CB13), 0, CB13)-MIN(IF(ISBLANK(CB13), 0, CB13),MAX(CE13-CG13,0))+ IF(ISBLANK(CC13), 0, CC13)-MIN(IF(ISBLANK(CC13), 0, CC13),MAX(CE13-CG13-IF(ISBLANK(CB13), 0, CB13),0))+ IF(ISBLANK(CD13), 0, CD13)-MIN(IF(ISBLANK(CD13), 0, CD13),MAX(CE13-CG13-IF(ISBLANK(CB13), 0, CB13)-IF(ISBLANK(CC13), 0, CC13),0)), AND(ISTEXT(BX13), BX13="122", AW13=2), IF(ISBLANK(CB13), 0, CB13)-MIN(IF(ISBLANK(CB13), 0, CB13),MAX(CE13,0))+ IF(ISBLANK(CC13), 0, CC13)-MIN(IF(ISBLANK(CC13), 0, CC13),MAX(CE13-IF(ISBLANK(CB13), 0, CB13),0))+ IF(ISBLANK(CD13), 0, CD13)-MIN(IF(ISBLANK(CD13), 0, CD13),MAX(CE13-IF(ISBLANK(CB13), 0, CB13)-IF(ISBLANK(CC13), 0, CC13),0)), TRUE, "Invalid case" ), "Calculation error" ), TRUE, "Invalid BW" ), "Calculation error" ) -> Invalid case | CJ13: 0 | CK13: =IFERROR( _xlfn.IFS( BW13=2, IFERROR( _xlfn.IFS( ISNUMBER(CI13), IF(OR(ISBLANK(CI13), NOT(ISNUMBER(CI13))), 0, CI13), AW13=1, 0 + 0 + 0, AW13=2, 0 + 0 + 0 ), "Calculation error" ), BW13=1, IFERROR( _xlfn.IFS( ISNUMBER(CI13), IF(OR(ISBLANK(CI13), NOT(ISNUMBER(CI13))), 0, CI13), AW13=1, IF(ISBLANK(BY13), 0, BY13) + IF(ISBLANK(BZ13), 0, BZ13) + IF(ISBLANK(CA13), 0, CA13), AW13=2, IF(ISBLANK(CB13), 0, CB13) + IF(ISBLANK(CC13), 0, CC13) + IF(ISBLANK(CD13), 0, CD13) ), "Calculation error" ), TRUE, "Invalid BW" ), "Calculation error" ) -> 0 | CL13: =IFERROR( _xlfn.IFS( CK13>=CJ13, 0, CK13<CJ13, CJ13-CK13 ), "Calculation error") -> 0 | CM13: N/A | CN13: 0 | CO13: within $500,000 | CP13: =_xlfn.IFS(CO13=Pulldown!$A$1,1,CO13=Pulldown!$A$2,2) -> 1 | CQ13: 0 | CR13: =_xlfn.IFS( NOT(OR(CP13=1, CP13=2)), 0%, ISERROR(MATCH(CQ13, Subsidy!$A$2:$A$26, 0)), 0%, CP13=1, VLOOKUP(CQ13, Subsidy!$A$2:$G$26, 6, 0), CP13=2, VLOOKUP(CQ13, Subsidy!$A$2:$G$26, 7, 0) ) -> 0 | CS13: =_xlfn.IFS( NOT(OR(CP13=1, CP13=2)), 0%, ISERROR(MATCH(CQ13, Subsidy!$A$2:$A$26, 0)), 0%, CP13=1, VLOOKUP(CQ13, Subsidy!$A$2:$D$26, 2, 0), CP13=2, VLOOKUP(CQ13, Subsidy!$A$2:$D$26, 4, 0) ) -> 0 | CT13: 0 | CU13: =_xlfn.IFS( NOT(OR(CP13=1, CP13=2)), 0, ISERROR(MATCH(CQ13, Subsidy!$A$2:$A$26, 0)), 0, CP13=2, "N/A", AND(CP13=1, CQ13<=9), VLOOKUP(CQ13, Subsidy!$A$2:$D$26, 3, 0), TRUE, 0 ) -> 0 | CV13: =IF(AND(CP13=1, CQ13<=9, NOT(ISERROR(MATCH(CQ13, Subsidy!$A$2:$A$26, 0)))), IFERROR(IF(CL13-CU13<0, "Invalid Case", CL13-CU13), 0), 0) -> 0 | CW13: 0 | CX13: 0 | CY13: 0 | CZ13: 0 | DA13: 0 | DB13: 0 | DC13: 0
A14: 5 | C14: Please Select | D14: =_xlfn.IFS( OR(C14="", C14="Pls select"), 0, C14=Pulldown!$F$2, 1, C14=Pulldown!$F$3, 2, TRUE, 0) -> 0 | E14: 2025-05-01 | H14: =_xlfn.IFS( AND(F14<>"", G14<>"", G14<F14), "Invalid Date Order", AND(F14="", G14=""), "Input Required", AND(F14="", G14<>""), IF(G14<E14, "Date Before Transition", "Invalid: F11 Missing"), OR(F14="", G14=""), "Input Required", G14<E14, "Date Before Transition", AND(D14=1, DATEDIF(F14, G14+1, "y")>=2), "1-valid", AND(D14=1, DATEDIF(F14, G14+1, "y")<2), "1-invalid", AND(D14=2, DATEDIF(F14, G14+1, "y")>=5), "2-valid", AND(D14=2, DATEDIF(F14, G14+1, "y")<5), "2-invalid", TRUE, "Invalid Category" ) -> Input Required | I14: =_xlfn.IFS( $H14="1-valid", 1, $H14="2-valid", 2, $H14="Input Required", 3, $H14="Date Before Transition", 4, TRUE, 0 ) -> 3 | J14: =_xlfn.IFS( OR(F14="",G14=""),"Input Required", $F14>=$E14,"轉制日後開始受僱", $E14>$F14,"轉制日前開始受僱", TRUE,"Invalid Category" ) -> Input Required | K14: =_xlfn.IFS( $J14="轉制日前開始受僱", 1, $J14="轉制日後開始受僱", 2, TRUE, 0 ) -> 0 | L14: Monthly-rated | M14: =_xlfn.IFS($L14=Pulldown!$C$1,22500,$L14=Pulldown!$C$2,15000) -> 22500 | N14: =_xlfn.IFS($L14=Pulldown!$C$1,2/3,$L14=Pulldown!$C$2,1) -> 0.6666666667 | O14: 0 | P14: 0 | R14: 0.6666666667 | AD14: 0 | AF14: 0.6666666667 | AG14: 2025-05-01 | AS14: 0 | AT14: 0 | AU14: 0 | AV14: MPF | AW14: =_xlfn.IFS(AV14="",0,AV14=Pulldown!$B$2,1,AV14=Pulldown!$B$3,2) -> 1 | AX14: MC -> VC | AY14: =_xlfn.IFS(AX14="",0,AX14=Pulldown!$G$1,1,AX14=Pulldown!$G$2,2) -> 1 | AZ14: 0 | BA14: 0 | BB14: 0 | BC14: N/A | BD14: N/A | BE14: N/A | BF14: N/A | BG14: N/A | BH14: N/A | BI14: N/A | BJ14: N/A | BK14: N/A | BL14: N/A | BM14: N/A | BN14: N/A | BO14: N/A | BP14: N/A | BQ14: N/A | BR14: N/A | BS14: N/A | BT14: N/A | BU14: =IF(ISNA(INDIRECT("BT" & ROW())), "N/A", INDIRECT("BT" & ROW())) -> N/A | BV14: No | BW14: =_xlfn.IFS(BV14="",0,BV14=Pulldown!$H$1,1,BV14=Pulldown!$H$2,2) -> 2 | BX14: 011 | BY14: 0 | BZ14: 0 | CA14: 0 | CB14: 0 | CC14: 0 | CD14: 0 | CE14: 0 | CF14: 0 | CG14: N/A | CH14: =IFERROR( _xlfn.IFS( BW14=2, IFERROR( _xlfn.IFS( OR(BX14="211", BX14="212", BX14="221", BX14="222"), "N/A", AND(ISTEXT(BX14), BX14="111", AW14=1), MAX(0, IF(CE14-CF14>0, IF(CE14-CF14-0>0, IF(CE14-CF14-0-0>0, CE14-CF14-0-0-0, 0), 0), 0)), AND(ISTEXT(BX14), BX14="112", AW14=1), MAX(0, IF(CE14-0>0, IF(CE14-0-0>0, IF(CE14-0-0-0>0, CE14-0-0-0-CF14, 0), 0), 0)), AND(ISTEXT(BX14), BX14="121", AW14=2), MAX(0, IF(CE14-CG14>0, IF(CE14-CG14-0>0, IF(CE14-CG14-0-0>0, CE14-CG14-0-0-0, 0), 0), 0)), AND(ISTEXT(BX14), BX14="122", AW14=2), MAX(0, IF(CE14-0>0, IF(CE14-0-0>0, IF(CE14-0-0-0>0, CE14-0-0-0-CG14, 0), 0), 0)), TRUE, "N/A" ), "N/A" ), BW14=1, IFERROR( _xlfn.IFS( OR(BX14="211", BX14="212", BX14="221", BX14="222"), "N/A", AND(ISTEXT(BX14), BX14="111", AW14=1), MAX(0, IF(CE14-CF14>0, IF(CE14-CF14-IF(OR(ISBLANK(BY14), NOT(ISNUMBER(BY14))), 0, BY14)>0, IF(CE14-CF14-IF(OR(ISBLANK(BY14), NOT(ISNUMBER(BY14))), 0, BY14)-IF(OR(ISBLANK(BZ14), NOT(ISNUMBER(BZ14))), 0, BZ14)>0, CE14-CF14-IF(OR(ISBLANK(BY14), NOT(ISNUMBER(BY14))), 0, BY14)-IF(OR(ISBLANK(BZ14), NOT(ISNUMBER(BZ14))), 0, BZ14)-IF(OR(ISBLANK(CA14), NOT(ISNUMBER(CA14))), 0, CA14), 0), 0), 0)), AND(ISTEXT(BX14), BX14="112", AW14=1), MAX(0, IF(CE14-IF(OR(ISBLANK(BY14), NOT(ISNUMBER(BY14))), 0, BY14)>0, IF(CE14-IF(OR(ISBLANK(BY14), NOT(ISNUMBER(BY14))), 0, BY14)-IF(OR(ISBLANK(BZ14), NOT(ISNUMBER(BZ14))), 0, BZ14)>0, IF(CE14-IF(OR(ISBLANK(BY14), NOT(ISNUMBER(BY14))), 0, BY14)-IF(OR(ISBLANK(BZ14), NOT(ISNUMBER(BZ14))), 0, BZ14)-IF(OR(ISBLANK(CA14), NOT(ISNUMBER(CA14))), 0, CA14)>0, CE14-IF(OR(ISBLANK(BY14), NOT(ISNUMBER(BY14))), 0, BY14)-IF(OR(ISBLANK(BZ14), NOT(ISNUMBER(BZ14))), 0, BZ14)-IF(OR(ISBLANK(CA14), NOT(ISNUMBER(CA14))), 0, CA14)-CF14, 0), 0), 0)), AND(ISTEXT(BX14), BX14="121", AW14=2), MAX(0, IF(CE14-CG14>0, IF(CE14-CG14-IF(OR(ISBLANK(CB14), NOT(ISNUMBER(CB14))), 0, CB14)>0, IF(CE14-CG14-IF(OR(ISBLANK(CB14), NOT(ISNUMBER(CB14))), 0, CB14)-IF(OR(ISBLANK(CC14), NOT(ISNUMBER(CC14))), 0, CC14)>0, CE14-CG14-IF(OR(ISBLANK(CB14), NOT(ISNUMBER(CB14))), 0, CB14)-IF(OR(ISBLANK(CC14), NOT(ISNUMBER(CC14))), 0, CC14)-IF(OR(ISBLANK(CD14), NOT(ISNUMBER(CD14))), 0, CD14), 0), 0), 0)), AND(ISTEXT(BX14), BX14="122", AW14=2), MAX(0, IF(CE14-IF(OR(ISBLANK(CB14), NOT(ISNUMBER(CB14))), 0, CB14)>0, IF(CE14-IF(OR(ISBLANK(CB14), NOT(ISNUMBER(CB14))), 0, CB14)-IF(OR(ISBLANK(CC14), NOT(ISNUMBER(CC14))), 0, CC14)>0, IF(CE14-IF(OR(ISBLANK(CB14), NOT(ISNUMBER(CB14))), 0, CB14)-IF(OR(ISBLANK(CC14), NOT(ISNUMBER(CC14))), 0, CC14)-IF(OR(ISBLANK(CD14), NOT(ISNUMBER(CD14))), 0, CD14)>0, CE14-IF(OR(ISBLANK(CB14), NOT(ISNUMBER(CB14))), 0, CB14)-IF(OR(ISBLANK(CC14), NOT(ISNUMBER(CC14))), 0, CC14)-IF(OR(ISBLANK(CD14), NOT(ISNUMBER(CD14))), 0, CD14)-CG14, 0), 0), 0)), TRUE, "N/A" ), "N/A" ), TRUE, "N/A" ), "Calculation error" ) -> N/A | CI14: =IFERROR( _xlfn.IFS( BW14=2, IFERROR( _xlfn.IFS( OR(BX14="211", BX14="212", BX14="221", BX14="222"), "N/A", AND(ISTEXT(BX14), BX14="111", AW14=1), 0-MIN(0,MAX(CE14-CF14,0))+ 0-MIN(0,MAX(CE14-CF14-0,0))+ 0-MIN(0,MAX(CE14-CF14-0-0,0)), AND(ISTEXT(BX14), BX14="112", AW14=1), 0-MIN(0,MAX(CE14,0))+ 0-MIN(0,MAX(CE14-0,0))+ 0-MIN(0,MAX(CE14-0-0,0)), AND(ISTEXT(BX14), BX14="121", AW14=2), 0-MIN(0,MAX(CE14-CG14,0))+ 0-MIN(0,MAX(CE14-CG14-0,0))+ 0-MIN(0,MAX(CE14-CG14-0-0,0)), AND(ISTEXT(BX14), BX14="122", AW14=2), 0-MIN(0,MAX(CE14,0))+ 0-MIN(0,MAX(CE14-0,0))+ 0-MIN(0,MAX(CE14-0-0,0)), TRUE, "Invalid case" ), "Calculation error" ), BW14=1, IFERROR( _xlfn.IFS( OR(BX14="211", BX14="212", BX14="221", BX14="222"), "N/A", AND(ISTEXT(BX14), BX14="111", AW14=1), IF(ISBLANK(BY14), 0, BY14)-MIN(IF(ISBLANK(BY14), 0, BY14),MAX(CE14-CF14,0))+ IF(ISBLANK(BZ14), 0, BZ14)-MIN(IF(ISBLANK(BZ14), 0, BZ14),MAX(CE14-CF14-IF(ISBLANK(BY14), 0, BY14),0))+ IF(ISBLANK(CA14), 0, CA14)-MIN(IF(ISBLANK(CA14), 0, CA14),MAX(CE14-CF14-IF(ISBLANK(BY14), 0, BY14)-IF(ISBLANK(BZ14), 0, BZ14),0)), AND(ISTEXT(BX14), BX14="112", AW14=1), IF(ISBLANK(BY14), 0, BY14)-MIN(IF(ISBLANK(BY14), 0, BY14),MAX(CE14,0))+ IF(ISBLANK(BZ14), 0, BZ14)-MIN(IF(ISBLANK(BZ14), 0, BZ14),MAX(CE14-IF(ISBLANK(BY14), 0, BY14),0))+ IF(ISBLANK(CA14), 0, CA14)-MIN(IF(ISBLANK(CA14), 0, CA14),MAX(CE14-IF(ISBLANK(BY14), 0, BY14)-IF(ISBLANK(BZ14), 0, BZ14),0)), AND(ISTEXT(BX14), BX14="121", AW14=2), IF(ISBLANK(CB14), 0, CB14)-MIN(IF(ISBLANK(CB14), 0, CB14),MAX(CE14-CG14,0))+ IF(ISBLANK(CC14), 0, CC14)-MIN(IF(ISBLANK(CC14), 0, CC14),MAX(CE14-CG14-IF(ISBLANK(CB14), 0, CB14),0))+ IF(ISBLANK(CD14), 0, CD14)-MIN(IF(ISBLANK(CD14), 0, CD14),MAX(CE14-CG14-IF(ISBLANK(CB14), 0, CB14)-IF(ISBLANK(CC14), 0, CC14),0)), AND(ISTEXT(BX14), BX14="122", AW14=2), IF(ISBLANK(CB14), 0, CB14)-MIN(IF(ISBLANK(CB14), 0, CB14),MAX(CE14,0))+ IF(ISBLANK(CC14), 0, CC14)-MIN(IF(ISBLANK(CC14), 0, CC14),MAX(CE14-IF(ISBLANK(CB14), 0, CB14),0))+ IF(ISBLANK(CD14), 0, CD14)-MIN(IF(ISBLANK(CD14), 0, CD14),MAX(CE14-IF(ISBLANK(CB14), 0, CB14)-IF(ISBLANK(CC14), 0, CC14),0)), TRUE, "Invalid case" ), "Calculation error" ), TRUE, "Invalid BW" ), "Calculation error" ) -> Invalid case | CJ14: 0 | CK14: =IFERROR( _xlfn.IFS( BW14=2, IFERROR( _xlfn.IFS( ISNUMBER(CI14), IF(OR(ISBLANK(CI14), NOT(ISNUMBER(CI14))), 0, CI14), AW14=1, 0 + 0 + 0, AW14=2, 0 + 0 + 0 ), "Calculation error" ), BW14=1, IFERROR( _xlfn.IFS( ISNUMBER(CI14), IF(OR(ISBLANK(CI14), NOT(ISNUMBER(CI14))), 0, CI14), AW14=1, IF(ISBLANK(BY14), 0, BY14) + IF(ISBLANK(BZ14), 0, BZ14) + IF(ISBLANK(CA14), 0, CA14), AW14=2, IF(ISBLANK(CB14), 0, CB14) + IF(ISBLANK(CC14), 0, CC14) + IF(ISBLANK(CD14), 0, CD14) ), "Calculation error" ), TRUE, "Invalid BW" ), "Calculation error" ) -> 0 | CL14: =IFERROR( _xlfn.IFS( CK14>=CJ14, 0, CK14<CJ14, CJ14-CK14 ), "Calculation error") -> 0 | CM14: N/A | CN14: 0 | CO14: within $500,000 | CP14: =_xlfn.IFS(CO14=Pulldown!$A$1,1,CO14=Pulldown!$A$2,2) -> 1 | CQ14: 0 | CR14: =_xlfn.IFS( NOT(OR(CP14=1, CP14=2)), 0%, ISERROR(MATCH(CQ14, Subsidy!$A$2:$A$26, 0)), 0%, CP14=1, VLOOKUP(CQ14, Subsidy!$A$2:$G$26, 6, 0), CP14=2, VLOOKUP(CQ14, Subsidy!$A$2:$G$26, 7, 0) ) -> 0 | CS14: =_xlfn.IFS( NOT(OR(CP14=1, CP14=2)), 0%, ISERROR(MATCH(CQ14, Subsidy!$A$2:$A$26, 0)), 0%, CP14=1, VLOOKUP(CQ14, Subsidy!$A$2:$D$26, 2, 0), CP14=2, VLOOKUP(CQ14, Subsidy!$A$2:$D$26, 4, 0) ) -> 0 | CT14: 0 | CU14: =_xlfn.IFS( NOT(OR(CP14=1, CP14=2)), 0, ISERROR(MATCH(CQ14, Subsidy!$A$2:$A$26, 0)), 0, CP14=2, "N/A", AND(CP14=1, CQ14<=9), VLOOKUP(CQ14, Subsidy!$A$2:$D$26, 3, 0), TRUE, 0 ) -> 0 | CV14: =IF(AND(CP14=1, CQ14<=9, NOT(ISERROR(MATCH(CQ14, Subsidy!$A$2:$A$26, 0)))), IFERROR(IF(CL14-CU14<0, "Invalid Case", CL14-CU14), 0), 0) -> 0 | CW14: 0 | CX14: 0 | CY14: 0 | CZ14: 0 | DA14: 0 | DB14: 0 | DC14: 0
A15: 6 | C15: Please Select | D15: =_xlfn.IFS( OR(C15="", C15="Pls select"), 0, C15=Pulldown!$F$2, 1, C15=Pulldown!$F$3, 2, TRUE, 0) -> 0 | E15: 2025-05-01 | H15: =_xlfn.IFS( AND(F15<>"", G15<>"", G15<F15), "Invalid Date Order", AND(F15="", G15=""), "Input Required", AND(F15="", G15<>""), IF(G15<E15, "Date Before Transition", "Invalid: F11 Missing"), OR(F15="", G15=""), "Input Required", G15<E15, "Date Before Transition", AND(D15=1, DATEDIF(F15, G15+1, "y")>=2), "1-valid", AND(D15=1, DATEDIF(F15, G15+1, "y")<2), "1-invalid", AND(D15=2, DATEDIF(F15, G15+1, "y")>=5), "2-valid", AND(D15=2, DATEDIF(F15, G15+1, "y")<5), "2-invalid", TRUE, "Invalid Category" ) -> Input Required | I15: =_xlfn.IFS( $H15="1-valid", 1, $H15="2-valid", 2, $H15="Input Required", 3, $H15="Date Before Transition", 4, TRUE, 0 ) -> 3 | J15: =_xlfn.IFS( OR(F15="",G15=""),"Input Required", $F15>=$E15,"轉制日後開始受僱", $E15>$F15,"轉制日前開始受僱", TRUE,"Invalid Category" ) -> Input Required | K15: =_xlfn.IFS( $J15="轉制日前開始受僱", 1, $J15="轉制日後開始受僱", 2, TRUE, 0 ) -> 0 | L15: Monthly-rated | M15: =_xlfn.IFS($L15=Pulldown!$C$1,22500,$L15=Pulldown!$C$2,15000) -> 22500 | N15: =_xlfn.IFS($L15=Pulldown!$C$1,2/3,$L15=Pulldown!$C$2,1) -> 0.6666666667 | O15: 0 | P15: 0 | R15: 0.6666666667 | AD15: 0 | AF15: 0.6666666667 | AG15: 2025-05-01 | AS15: 0 | AT15: 0 | AU15: 0 | AV15: MPF | AW15: =_xlfn.IFS(AV15="",0,AV15=Pulldown!$B$2,1,AV15=Pulldown!$B$3,2) -> 1 | AX15: MC -> VC | AY15: =_xlfn.IFS(AX15="",0,AX15=Pulldown!$G$1,1,AX15=Pulldown!$G$2,2) -> 1 | AZ15: 0 | BA15: 0 | BB15: 0 | BC15: N/A | BD15: N/A | BE15: N/A | BF15: N/A | BG15: N/A | BH15: N/A | BI15: N/A | BJ15: N/A | BK15: N/A | BL15: N/A | BM15: N/A | BN15: N/A | BO15: N/A | BP15: N/A | BQ15: N/A | BR15: N/A | BS15: N/A | BT15: N/A | BU15: =IF(ISNA(INDIRECT("BT" & ROW())), "N/A", INDIRECT("BT" & ROW())) -> N/A | BV15: No | BW15: =_xlfn.IFS(BV15="",0,BV15=Pulldown!$H$1,1,BV15=Pulldown!$H$2,2) -> 2 | BX15: 011 | BY15: 0 | BZ15: 0 | CA15: 0 | CB15: 0 | CC15: 0 | CD15: 0 | CE15: 0 | CF15: 0 | CG15: N/A | CH15: =IFERROR( _xlfn.IFS( BW15=2, IFERROR( _xlfn.IFS( OR(BX15="211", BX15="212", BX15="221", BX15="222"), "N/A", AND(ISTEXT(BX15), BX15="111", AW15=1), MAX(0, IF(CE15-CF15>0, IF(CE15-CF15-0>0, IF(CE15-CF15-0-0>0, CE15-CF15-0-0-0, 0), 0), 0)), AND(ISTEXT(BX15), BX15="112", AW15=1), MAX(0, IF(CE15-0>0, IF(CE15-0-0>0, IF(CE15-0-0-0>0, CE15-0-0-0-CF15, 0), 0), 0)), AND(ISTEXT(BX15), BX15="121", AW15=2), MAX(0, IF(CE15-CG15>0, IF(CE15-CG15-0>0, IF(CE15-CG15-0-0>0, CE15-CG15-0-0-0, 0), 0), 0)), AND(ISTEXT(BX15), BX15="122", AW15=2), MAX(0, IF(CE15-0>0, IF(CE15-0-0>0, IF(CE15-0-0-0>0, CE15-0-0-0-CG15, 0), 0), 0)), TRUE, "N/A" ), "N/A" ), BW15=1, IFERROR( _xlfn.IFS( OR(BX15="211", BX15="212", BX15="221", BX15="222"), "N/A", AND(ISTEXT(BX15), BX15="111", AW15=1), MAX(0, IF(CE15-CF15>0, IF(CE15-CF15-IF(OR(ISBLANK(BY15), NOT(ISNUMBER(BY15))), 0, BY15)>0, IF(CE15-CF15-IF(OR(ISBLANK(BY15), NOT(ISNUMBER(BY15))), 0, BY15)-IF(OR(ISBLANK(BZ15), NOT(ISNUMBER(BZ15))), 0, BZ15)>0, CE15-CF15-IF(OR(ISBLANK(BY15), NOT(ISNUMBER(BY15))), 0, BY15)-IF(OR(ISBLANK(BZ15), NOT(ISNUMBER(BZ15))), 0, BZ15)-IF(OR(ISBLANK(CA15), NOT(ISNUMBER(CA15))), 0, CA15), 0), 0), 0)), AND(ISTEXT(BX15), BX15="112", AW15=1), MAX(0, IF(CE15-IF(OR(ISBLANK(BY15), NOT(ISNUMBER(BY15))), 0, BY15)>0, IF(CE15-IF(OR(ISBLANK(BY15), NOT(ISNUMBER(BY15))), 0, BY15)-IF(OR(ISBLANK(BZ15), NOT(ISNUMBER(BZ15))), 0, BZ15)>0, IF(CE15-IF(OR(ISBLANK(BY15), NOT(ISNUMBER(BY15))), 0, BY15)-IF(OR(ISBLANK(BZ15), NOT(ISNUMBER(BZ15))), 0, BZ15)-IF(OR(ISBLANK(CA15), NOT(ISNUMBER(CA15))), 0, CA15)>0, CE15-IF(OR(ISBLANK(BY15), NOT(ISNUMBER(BY15))), 0, BY15)-IF(OR(ISBLANK(BZ15), NOT(ISNUMBER(BZ15))), 0, BZ15)-IF(OR(ISBLANK(CA15), NOT(ISNUMBER(CA15))), 0, CA15)-CF15, 0), 0), 0)), AND(ISTEXT(BX15), BX15="121", AW15=2), MAX(0, IF(CE15-CG15>0, IF(CE15-CG15-IF(OR(ISBLANK(CB15), NOT(ISNUMBER(CB15))), 0, CB15)>0, IF(CE15-CG15-IF(OR(ISBLANK(CB15), NOT(ISNUMBER(CB15))), 0, CB15)-IF(OR(ISBLANK(CC15), NOT(ISNUMBER(CC15))), 0, CC15)>0, CE15-CG15-IF(OR(ISBLANK(CB15), NOT(ISNUMBER(CB15))), 0, CB15)-IF(OR(ISBLANK(CC15), NOT(ISNUMBER(CC15))), 0, CC15)-IF(OR(ISBLANK(CD15), NOT(ISNUMBER(CD15))), 0, CD15), 0), 0), 0)), AND(ISTEXT(BX15), BX15="122", AW15=2), MAX(0, IF(CE15-IF(OR(ISBLANK(CB15), NOT(ISNUMBER(CB15))), 0, CB15)>0, IF(CE15-IF(OR(ISBLANK(CB15), NOT(ISNUMBER(CB15))), 0, CB15)-IF(OR(ISBLANK(CC15), NOT(ISNUMBER(CC15))), 0, CC15)>0, IF(CE15-IF(OR(ISBLANK(CB15), NOT(ISNUMBER(CB15))), 0, CB15)-IF(OR(ISBLANK(CC15), NOT(ISNUMBER(CC15))), 0, CC15)-IF(OR(ISBLANK(CD15), NOT(ISNUMBER(CD15))), 0, CD15)>0, CE15-IF(OR(ISBLANK(CB15), NOT(ISNUMBER(CB15))), 0, CB15)-IF(OR(ISBLANK(CC15), NOT(ISNUMBER(CC15))), 0, CC15)-IF(OR(ISBLANK(CD15), NOT(ISNUMBER(CD15))), 0, CD15)-CG15, 0), 0), 0)), TRUE, "N/A" ), "N/A" ), TRUE, "N/A" ), "Calculation error" ) -> N/A | CI15: =IFERROR( _xlfn.IFS( BW15=2, IFERROR( _xlfn.IFS( OR(BX15="211", BX15="212", BX15="221", BX15="222"), "N/A", AND(ISTEXT(BX15), BX15="111", AW15=1), 0-MIN(0,MAX(CE15-CF15,0))+ 0-MIN(0,MAX(CE15-CF15-0,0))+ 0-MIN(0,MAX(CE15-CF15-0-0,0)), AND(ISTEXT(BX15), BX15="112", AW15=1), 0-MIN(0,MAX(CE15,0))+ 0-MIN(0,MAX(CE15-0,0))+ 0-MIN(0,MAX(CE15-0-0,0)), AND(ISTEXT(BX15), BX15="121", AW15=2), 0-MIN(0,MAX(CE15-CG15,0))+ 0-MIN(0,MAX(CE15-CG15-0,0))+ 0-MIN(0,MAX(CE15-CG15-0-0,0)), AND(ISTEXT(BX15), BX15="122", AW15=2), 0-MIN(0,MAX(CE15,0))+ 0-MIN(0,MAX(CE15-0,0))+ 0-MIN(0,MAX(CE15-0-0,0)), TRUE, "Invalid case" ), "Calculation error" ), BW15=1, IFERROR( _xlfn.IFS( OR(BX15="211", BX15="212", BX15="221", BX15="222"), "N/A", AND(ISTEXT(BX15), BX15="111", AW15=1), IF(ISBLANK(BY15), 0, BY15)-MIN(IF(ISBLANK(BY15), 0, BY15),MAX(CE15-CF15,0))+ IF(ISBLANK(BZ15), 0, BZ15)-MIN(IF(ISBLANK(BZ15), 0, BZ15),MAX(CE15-CF15-IF(ISBLANK(BY15), 0, BY15),0))+ IF(ISBLANK(CA15), 0, CA15)-MIN(IF(ISBLANK(CA15), 0, CA15),MAX(CE15-CF15-IF(ISBLANK(BY15), 0, BY15)-IF(ISBLANK(BZ15), 0, BZ15),0)), AND(ISTEXT(BX15), BX15="112", AW15=1), IF(ISBLANK(BY15), 0, BY15)-MIN(IF(ISBLANK(BY15), 0, BY15),MAX(CE15,0))+ IF(ISBLANK(BZ15), 0, BZ15)-MIN(IF(ISBLANK(BZ15), 0, BZ15),MAX(CE15-IF(ISBLANK(BY15), 0, BY15),0))+ IF(ISBLANK(CA15), 0, CA15)-MIN(IF(ISBLANK(CA15), 0, CA15),MAX(CE15-IF(ISBLANK(BY15), 0, BY15)-IF(ISBLANK(BZ15), 0, BZ15),0)), AND(ISTEXT(BX15), BX15="121", AW15=2), IF(ISBLANK(CB15), 0, CB15)-MIN(IF(ISBLANK(CB15), 0, CB15),MAX(CE15-CG15,0))+ IF(ISBLANK(CC15), 0, CC15)-MIN(IF(ISBLANK(CC15), 0, CC15),MAX(CE15-CG15-IF(ISBLANK(CB15), 0, CB15),0))+ IF(ISBLANK(CD15), 0, CD15)-MIN(IF(ISBLANK(CD15), 0, CD15),MAX(CE15-CG15-IF(ISBLANK(CB15), 0, CB15)-IF(ISBLANK(CC15), 0, CC15),0)), AND(ISTEXT(BX15), BX15="122", AW15=2), IF(ISBLANK(CB15), 0, CB15)-MIN(IF(ISBLANK(CB15), 0, CB15),MAX(CE15,0))+ IF(ISBLANK(CC15), 0, CC15)-MIN(IF(ISBLANK(CC15), 0, CC15),MAX(CE15-IF(ISBLANK(CB15), 0, CB15),0))+ IF(ISBLANK(CD15), 0, CD15)-MIN(IF(ISBLANK(CD15), 0, CD15),MAX(CE15-IF(ISBLANK(CB15), 0, CB15)-IF(ISBLANK(CC15), 0, CC15),0)), TRUE, "Invalid case" ), "Calculation error" ), TRUE, "Invalid BW" ), "Calculation error" ) -> Invalid case | CJ15: 0 | CK15: =IFERROR( _xlfn.IFS( BW15=2, IFERROR( _xlfn.IFS( ISNUMBER(CI15), IF(OR(ISBLANK(CI15), NOT(ISNUMBER(CI15))), 0, CI15), AW15=1, 0 + 0 + 0, AW15=2, 0 + 0 + 0 ), "Calculation error" ), BW15=1, IFERROR( _xlfn.IFS( ISNUMBER(CI15), IF(OR(ISBLANK(CI15), NOT(ISNUMBER(CI15))), 0, CI15), AW15=1, IF(ISBLANK(BY15), 0, BY15) + IF(ISBLANK(BZ15), 0, BZ15) + IF(ISBLANK(CA15), 0, CA15), AW15=2, IF(ISBLANK(CB15), 0, CB15) + IF(ISBLANK(CC15), 0, CC15) + IF(ISBLANK(CD15), 0, CD15) ), "Calculation error" ), TRUE, "Invalid BW" ), "Calculation error" ) -> 0 | CL15: =IFERROR( _xlfn.IFS( CK15>=CJ15, 0, CK15<CJ15, CJ15-CK15 ), "Calculation error") -> 0 | CM15: N/A | CN15: 0 | CO15: within $500,000 | CP15: =_xlfn.IFS(CO15=Pulldown!$A$1,1,CO15=Pulldown!$A$2,2) -> 1 | CQ15: 0 | CR15: =_xlfn.IFS( NOT(OR(CP15=1, CP15=2)), 0%, ISERROR(MATCH(CQ15, Subsidy!$A$2:$A$26, 0)), 0%, CP15=1, VLOOKUP(CQ15, Subsidy!$A$2:$G$26, 6, 0), CP15=2, VLOOKUP(CQ15, Subsidy!$A$2:$G$26, 7, 0) ) -> 0 | CS15: =_xlfn.IFS( NOT(OR(CP15=1, CP15=2)), 0%, ISERROR(MATCH(CQ15, Subsidy!$A$2:$A$26, 0)), 0%, CP15=1, VLOOKUP(CQ15, Subsidy!$A$2:$D$26, 2, 0), CP15=2, VLOOKUP(CQ15, Subsidy!$A$2:$D$26, 4, 0) ) -> 0 | CT15: 0 | CU15: =_xlfn.IFS( NOT(OR(CP15=1, CP15=2)), 0, ISERROR(MATCH(CQ15, Subsidy!$A$2:$A$26, 0)), 0, CP15=2, "N/A", AND(CP15=1, CQ15<=9), VLOOKUP(CQ15, Subsidy!$A$2:$D$26, 3, 0), TRUE, 0 ) -> 0 | CV15: =IF(AND(CP15=1, CQ15<=9, NOT(ISERROR(MATCH(CQ15, Subsidy!$A$2:$A$26, 0)))), IFERROR(IF(CL15-CU15<0, "Invalid Case", CL15-CU15), 0), 0) -> 0 | CW15: 0 | CX15: 0 | CY15: 0 | CZ15: 0 | DA15: 0 | DB15: 0 | DC15: 0
A16: 7 | C16: Please Select | D16: =_xlfn.IFS( OR(C16="", C16="Pls select"), 0, C16=Pulldown!$F$2, 1, C16=Pulldown!$F$3, 2, TRUE, 0) -> 0 | E16: 2025-05-01 | H16: =_xlfn.IFS( AND(F16<>"", G16<>"", G16<F16), "Invalid Date Order", AND(F16="", G16=""), "Input Required", AND(F16="", G16<>""), IF(G16<E16, "Date Before Transition", "Invalid: F11 Missing"), OR(F16="", G16=""), "Input Required", G16<E16, "Date Before Transition", AND(D16=1, DATEDIF(F16, G16+1, "y")>=2), "1-valid", AND(D16=1, DATEDIF(F16, G16+1, "y")<2), "1-invalid", AND(D16=2, DATEDIF(F16, G16+1, "y")>=5), "2-valid", AND(D16=2, DATEDIF(F16, G16+1, "y")<5), "2-invalid", TRUE, "Invalid Category" ) -> Input Required | I16: =_xlfn.IFS( $H16="1-valid", 1, $H16="2-valid", 2, $H16="Input Required", 3, $H16="Date Before Transition", 4, TRUE, 0 ) -> 3 | J16: =_xlfn.IFS( OR(F16="",G16=""),"Input Required", $F16>=$E16,"轉制日後開始受僱", $E16>$F16,"轉制日前開始受僱", TRUE,"Invalid Category" ) -> Input Required | K16: =_xlfn.IFS( $J16="轉制日前開始受僱", 1, $J16="轉制日後開始受僱", 2, TRUE, 0 ) -> 0 | L16: Monthly-rated | M16: =_xlfn.IFS($L16=Pulldown!$C$1,22500,$L16=Pulldown!$C$2,15000) -> 22500 | N16: =_xlfn.IFS($L16=Pulldown!$C$1,2/3,$L16=Pulldown!$C$2,1) -> 0.6666666667 | O16: 0 | P16: 0 | R16: 0.6666666667 | AD16: 0 | AF16: 0.6666666667 | AG16: 2025-05-01 | AS16: 0 | AT16: 0 | AU16: 0 | AV16: MPF | AW16: =_xlfn.IFS(AV16="",0,AV16=Pulldown!$B$2,1,AV16=Pulldown!$B$3,2) -> 1 | AX16: MC -> VC | AY16: =_xlfn.IFS(AX16="",0,AX16=Pulldown!$G$1,1,AX16=Pulldown!$G$2,2) -> 1 | AZ16: 0 | BA16: 0 | BB16: 0 | BC16: N/A | BD16: N/A | BE16: N/A | BF16: N/A | BG16: N/A | BH16: N/A | BI16: N/A | BJ16: N/A | BK16: N/A | BL16: N/A | BM16: N/A | BN16: N/A | BO16: N/A | BP16: N/A | BQ16: N/A | BR16: N/A | BS16: N/A | BT16: N/A | BU16: =IF(ISNA(INDIRECT("BT" & ROW())), "N/A", INDIRECT("BT" & ROW())) -> N/A | BV16: No | BW16: =_xlfn.IFS(BV16="",0,BV16=Pulldown!$H$1,1,BV16=Pulldown!$H$2,2) -> 2 | BX16: 011 | BY16: 0 | BZ16: 0 | CA16: 0 | CB16: 0 | CC16: 0 | CD16: 0 | CE16: 0 | CF16: 0 | CG16: N/A | CH16: =IFERROR( _xlfn.IFS( BW16=2, IFERROR( _xlfn.IFS( OR(BX16="211", BX16="212", BX16="221", BX16="222"), "N/A", AND(ISTEXT(BX16), BX16="111", AW16=1), MAX(0, IF(CE16-CF16>0, IF(CE16-CF16-0>0, IF(CE16-CF16-0-0>0, CE16-CF16-0-0-0, 0), 0), 0)), AND(ISTEXT(BX16), BX16="112", AW16=1), MAX(0, IF(CE16-0>0, IF(CE16-0-0>0, IF(CE16-0-0-0>0, CE16-0-0-0-CF16, 0), 0), 0)), AND(ISTEXT(BX16), BX16="121", AW16=2), MAX(0, IF(CE16-CG16>0, IF(CE16-CG16-0>0, IF(CE16-CG16-0-0>0, CE16-CG16-0-0-0, 0), 0), 0)), AND(ISTEXT(BX16), BX16="122", AW16=2), MAX(0, IF(CE16-0>0, IF(CE16-0-0>0, IF(CE16-0-0-0>0, CE16-0-0-0-CG16, 0), 0), 0)), TRUE, "N/A" ), "N/A" ), BW16=1, IFERROR( _xlfn.IFS( OR(BX16="211", BX16="212", BX16="221", BX16="222"), "N/A", AND(ISTEXT(BX16), BX16="111", AW16=1), MAX(0, IF(CE16-CF16>0, IF(CE16-CF16-IF(OR(ISBLANK(BY16), NOT(ISNUMBER(BY16))), 0, BY16)>0, IF(CE16-CF16-IF(OR(ISBLANK(BY16), NOT(ISNUMBER(BY16))), 0, BY16)-IF(OR(ISBLANK(BZ16), NOT(ISNUMBER(BZ16))), 0, BZ16)>0, CE16-CF16-IF(OR(ISBLANK(BY16), NOT(ISNUMBER(BY16))), 0, BY16)-IF(OR(ISBLANK(BZ16), NOT(ISNUMBER(BZ16))), 0, BZ16)-IF(OR(ISBLANK(CA16), NOT(ISNUMBER(CA16))), 0, CA16), 0), 0), 0)), AND(ISTEXT(BX16), BX16="112", AW16=1), MAX(0, IF(CE16-IF(OR(ISBLANK(BY16), NOT(ISNUMBER(BY16))), 0, BY16)>0, IF(CE16-IF(OR(ISBLANK(BY16), NOT(ISNUMBER(BY16))), 0, BY16)-IF(OR(ISBLANK(BZ16), NOT(ISNUMBER(BZ16))), 0, BZ16)>0, IF(CE16-IF(OR(ISBLANK(BY16), NOT(ISNUMBER(BY16))), 0, BY16)-IF(OR(ISBLANK(BZ16), NOT(ISNUMBER(BZ16))), 0, BZ16)-IF(OR(ISBLANK(CA16), NOT(ISNUMBER(CA16))), 0, CA16)>0, CE16-IF(OR(ISBLANK(BY16), NOT(ISNUMBER(BY16))), 0, BY16)-IF(OR(ISBLANK(BZ16), NOT(ISNUMBER(BZ16))), 0, BZ16)-IF(OR(ISBLANK(CA16), NOT(ISNUMBER(CA16))), 0, CA16)-CF16, 0), 0), 0)), AND(ISTEXT(BX16), BX16="121", AW16=2), MAX(0, IF(CE16-CG16>0, IF(CE16-CG16-IF(OR(ISBLANK(CB16), NOT(ISNUMBER(CB16))), 0, CB16)>0, IF(CE16-CG16-IF(OR(ISBLANK(CB16), NOT(ISNUMBER(CB16))), 0, CB16)-IF(OR(ISBLANK(CC16), NOT(ISNUMBER(CC16))), 0, CC16)>0, CE16-CG16-IF(OR(ISBLANK(CB16), NOT(ISNUMBER(CB16))), 0, CB16)-IF(OR(ISBLANK(CC16), NOT(ISNUMBER(CC16))), 0, CC16)-IF(OR(ISBLANK(CD16), NOT(ISNUMBER(CD16))), 0, CD16), 0), 0), 0)), AND(ISTEXT(BX16), BX16="122", AW16=2), MAX(0, IF(CE16-IF(OR(ISBLANK(CB16), NOT(ISNUMBER(CB16))), 0, CB16)>0, IF(CE16-IF(OR(ISBLANK(CB16), NOT(ISNUMBER(CB16))), 0, CB16)-IF(OR(ISBLANK(CC16), NOT(ISNUMBER(CC16))), 0, CC16)>0, IF(CE16-IF(OR(ISBLANK(CB16), NOT(ISNUMBER(CB16))), 0, CB16)-IF(OR(ISBLANK(CC16), NOT(ISNUMBER(CC16))), 0, CC16)-IF(OR(ISBLANK(CD16), NOT(ISNUMBER(CD16))), 0, CD16)>0, CE16-IF(OR(ISBLANK(CB16), NOT(ISNUMBER(CB16))), 0, CB16)-IF(OR(ISBLANK(CC16), NOT(ISNUMBER(CC16))), 0, CC16)-IF(OR(ISBLANK(CD16), NOT(ISNUMBER(CD16))), 0, CD16)-CG16, 0), 0), 0)), TRUE, "N/A" ), "N/A" ), TRUE, "N/A" ), "Calculation error" ) -> N/A | CI16: =IFERROR( _xlfn.IFS( BW16=2, IFERROR( _xlfn.IFS( OR(BX16="211", BX16="212", BX16="221", BX16="222"), "N/A", AND(ISTEXT(BX16), BX16="111", AW16=1), 0-MIN(0,MAX(CE16-CF16,0))+ 0-MIN(0,MAX(CE16-CF16-0,0))+ 0-MIN(0,MAX(CE16-CF16-0-0,0)), AND(ISTEXT(BX16), BX16="112", AW16=1), 0-MIN(0,MAX(CE16,0))+ 0-MIN(0,MAX(CE16-0,0))+ 0-MIN(0,MAX(CE16-0-0,0)), AND(ISTEXT(BX16), BX16="121", AW16=2), 0-MIN(0,MAX(CE16-CG16,0))+ 0-MIN(0,MAX(CE16-CG16-0,0))+ 0-MIN(0,MAX(CE16-CG16-0-0,0)), AND(ISTEXT(BX16), BX16="122", AW16=2), 0-MIN(0,MAX(CE16,0))+ 0-MIN(0,MAX(CE16-0,0))+ 0-MIN(0,MAX(CE16-0-0,0)), TRUE, "Invalid case" ), "Calculation error" ), BW16=1, IFERROR( _xlfn.IFS( OR(BX16="211", BX16="212", BX16="221", BX16="222"), "N/A", AND(ISTEXT(BX16), BX16="111", AW16=1), IF(ISBLANK(BY16), 0, BY16)-MIN(IF(ISBLANK(BY16), 0, BY16),MAX(CE16-CF16,0))+ IF(ISBLANK(BZ16), 0, BZ16)-MIN(IF(ISBLANK(BZ16), 0, BZ16),MAX(CE16-CF16-IF(ISBLANK(BY16), 0, BY16),0))+ IF(ISBLANK(CA16), 0, CA16)-MIN(IF(ISBLANK(CA16), 0, CA16),MAX(CE16-CF16-IF(ISBLANK(BY16), 0, BY16)-IF(ISBLANK(BZ16), 0, BZ16),0)), AND(ISTEXT(BX16), BX16="112", AW16=1), IF(ISBLANK(BY16), 0, BY16)-MIN(IF(ISBLANK(BY16), 0, BY16),MAX(CE16,0))+ IF(ISBLANK(BZ16), 0, BZ16)-MIN(IF(ISBLANK(BZ16), 0, BZ16),MAX(CE16-IF(ISBLANK(BY16), 0, BY16),0))+ IF(ISBLANK(CA16), 0, CA16)-MIN(IF(ISBLANK(CA16), 0, CA16),MAX(CE16-IF(ISBLANK(BY16), 0, BY16)-IF(ISBLANK(BZ16), 0, BZ16),0)), AND(ISTEXT(BX16), BX16="121", AW16=2), IF(ISBLANK(CB16), 0, CB16)-MIN(IF(ISBLANK(CB16), 0, CB16),MAX(CE16-CG16,0))+ IF(ISBLANK(CC16), 0, CC16)-MIN(IF(ISBLANK(CC16), 0, CC16),MAX(CE16-CG16-IF(ISBLANK(CB16), 0, CB16),0))+ IF(ISBLANK(CD16), 0, CD16)-MIN(IF(ISBLANK(CD16), 0, CD16),MAX(CE16-CG16-IF(ISBLANK(CB16), 0, CB16)-IF(ISBLANK(CC16), 0, CC16),0)), AND(ISTEXT(BX16), BX16="122", AW16=2), IF(ISBLANK(CB16), 0, CB16)-MIN(IF(ISBLANK(CB16), 0, CB16),MAX(CE16,0))+ IF(ISBLANK(CC16), 0, CC16)-MIN(IF(ISBLANK(CC16), 0, CC16),MAX(CE16-IF(ISBLANK(CB16), 0, CB16),0))+ IF(ISBLANK(CD16), 0, CD16)-MIN(IF(ISBLANK(CD16), 0, CD16),MAX(CE16-IF(ISBLANK(CB16), 0, CB16)-IF(ISBLANK(CC16), 0, CC16),0)), TRUE, "Invalid case" ), "Calculation error" ), TRUE, "Invalid BW" ), "Calculation error" ) -> Invalid case | CJ16: 0 | CK16: =IFERROR( _xlfn.IFS( BW16=2, IFERROR( _xlfn.IFS( ISNUMBER(CI16), IF(OR(ISBLANK(CI16), NOT(ISNUMBER(CI16))), 0, CI16), AW16=1, 0 + 0 + 0, AW16=2, 0 + 0 + 0 ), "Calculation error" ), BW16=1, IFERROR( _xlfn.IFS( ISNUMBER(CI16), IF(OR(ISBLANK(CI16), NOT(ISNUMBER(CI16))), 0, CI16), AW16=1, IF(ISBLANK(BY16), 0, BY16) + IF(ISBLANK(BZ16), 0, BZ16) + IF(ISBLANK(CA16), 0, CA16), AW16=2, IF(ISBLANK(CB16), 0, CB16) + IF(ISBLANK(CC16), 0, CC16) + IF(ISBLANK(CD16), 0, CD16) ), "Calculation error" ), TRUE, "Invalid BW" ), "Calculation error" ) -> 0 | CL16: =IFERROR( _xlfn.IFS( CK16>=CJ16, 0, CK16<CJ16, CJ16-CK16 ), "Calculation error") -> 0 | CM16: N/A | CN16: 0 | CO16: within $500,000 | CP16: =_xlfn.IFS(CO16=Pulldown!$A$1,1,CO16=Pulldown!$A$2,2) -> 1 | CQ16: 0 | CR16: =_xlfn.IFS( NOT(OR(CP16=1, CP16=2)), 0%, ISERROR(MATCH(CQ16, Subsidy!$A$2:$A$26, 0)), 0%, CP16=1, VLOOKUP(CQ16, Subsidy!$A$2:$G$26, 6, 0), CP16=2, VLOOKUP(CQ16, Subsidy!$A$2:$G$26, 7, 0) ) -> 0 | CS16: =_xlfn.IFS( NOT(OR(CP16=1, CP16=2)), 0%, ISERROR(MATCH(CQ16, Subsidy!$A$2:$A$26, 0)), 0%, CP16=1, VLOOKUP(CQ16, Subsidy!$A$2:$D$26, 2, 0), CP16=2, VLOOKUP(CQ16, Subsidy!$A$2:$D$26, 4, 0) ) -> 0 | CT16: 0 | CU16: =_xlfn.IFS( NOT(OR(CP16=1, CP16=2)), 0, ISERROR(MATCH(CQ16, Subsidy!$A$2:$A$26, 0)), 0, CP16=2, "N/A", AND(CP16=1, CQ16<=9), VLOOKUP(CQ16, Subsidy!$A$2:$D$26, 3, 0), TRUE, 0 ) -> 0 | CV16: =IF(AND(CP16=1, CQ16<=9, NOT(ISERROR(MATCH(CQ16, Subsidy!$A$2:$A$26, 0)))), IFERROR(IF(CL16-CU16<0, "Invalid Case", CL16-CU16), 0), 0) -> 0 | CW16: 0 | CX16: 0 | CY16: 0 | CZ16: 0 | DA16: 0 | DB16: 0 | DC16: 0
A17: 8 | C17: Please Select | D17: =_xlfn.IFS( OR(C17="", C17="Pls select"), 0, C17=Pulldown!$F$2, 1, C17=Pulldown!$F$3, 2, TRUE, 0) -> 0 | E17: 2025-05-01 | H17: =_xlfn.IFS( AND(F17<>"", G17<>"", G17<F17), "Invalid Date Order", AND(F17="", G17=""), "Input Required", AND(F17="", G17<>""), IF(G17<E17, "Date Before Transition", "Invalid: F11 Missing"), OR(F17="", G17=""), "Input Required", G17<E17, "Date Before Transition", AND(D17=1, DATEDIF(F17, G17+1, "y")>=2), "1-valid", AND(D17=1, DATEDIF(F17, G17+1, "y")<2), "1-invalid", AND(D17=2, DATEDIF(F17, G17+1, "y")>=5), "2-valid", AND(D17=2, DATEDIF(F17, G17+1, "y")<5), "2-invalid", TRUE, "Invalid Category" ) -> Input Required | I17: =_xlfn.IFS( $H17="1-valid", 1, $H17="2-valid", 2, $H17="Input Required", 3, $H17="Date Before Transition", 4, TRUE, 0 ) -> 3 | J17: =_xlfn.IFS( OR(F17="",G17=""),"Input Required", $F17>=$E17,"轉制日後開始受僱", $E17>$F17,"轉制日前開始受僱", TRUE,"Invalid Category" ) -> Input Required | K17: =_xlfn.IFS( $J17="轉制日前開始受僱", 1, $J17="轉制日後開始受僱", 2, TRUE, 0 ) -> 0 | L17: Monthly-rated | M17: =_xlfn.IFS($L17=Pulldown!$C$1,22500,$L17=Pulldown!$C$2,15000) -> 22500 | N17: =_xlfn.IFS($L17=Pulldown!$C$1,2/3,$L17=Pulldown!$C$2,1) -> 0.6666666667 | O17: 0 | P17: 0 | R17: 0.6666666667 | AD17: 0 | AF17: 0.6666666667 | AG17: 2025-05-01 | AS17: 0 | AT17: 0 | AU17: 0 | AV17: MPF | AW17: =_xlfn.IFS(AV17="",0,AV17=Pulldown!$B$2,1,AV17=Pulldown!$B$3,2) -> 1 | AX17: MC -> VC | AY17: =_xlfn.IFS(AX17="",0,AX17=Pulldown!$G$1,1,AX17=Pulldown!$G$2,2) -> 1 | AZ17: 0 | BA17: 0 | BB17: 0 | BC17: N/A | BD17: N/A | BE17: N/A | BF17: N/A | BG17: N/A | BH17: N/A | BI17: N/A | BJ17: N/A | BK17: N/A | BL17: N/A | BM17: N/A | BN17: N/A | BO17: N/A | BP17: N/A | BQ17: N/A | BR17: N/A | BS17: N/A | BT17: N/A | BU17: =IF(ISNA(INDIRECT("BT" & ROW())), "N/A", INDIRECT("BT" & ROW())) -> N/A | BV17: No | BW17: =_xlfn.IFS(BV17="",0,BV17=Pulldown!$H$1,1,BV17=Pulldown!$H$2,2) -> 2 | BX17: 011 | BY17: 0 | BZ17: 0 | CA17: 0 | CB17: 0 | CC17: 0 | CD17: 0 | CE17: 0 | CF17: 0 | CG17: N/A | CH17: =IFERROR( _xlfn.IFS( BW17=2, IFERROR( _xlfn.IFS( OR(BX17="211", BX17="212", BX17="221", BX17="222"), "N/A", AND(ISTEXT(BX17), BX17="111", AW17=1), MAX(0, IF(CE17-CF17>0, IF(CE17-CF17-0>0, IF(CE17-CF17-0-0>0, CE17-CF17-0-0-0, 0), 0), 0)), AND(ISTEXT(BX17), BX17="112", AW17=1), MAX(0, IF(CE17-0>0, IF(CE17-0-0>0, IF(CE17-0-0-0>0, CE17-0-0-0-CF17, 0), 0), 0)), AND(ISTEXT(BX17), BX17="121", AW17=2), MAX(0, IF(CE17-CG17>0, IF(CE17-CG17-0>0, IF(CE17-CG17-0-0>0, CE17-CG17-0-0-0, 0), 0), 0)), AND(ISTEXT(BX17), BX17="122", AW17=2), MAX(0, IF(CE17-0>0, IF(CE17-0-0>0, IF(CE17-0-0-0>0, CE17-0-0-0-CG17, 0), 0), 0)), TRUE, "N/A" ), "N/A" ), BW17=1, IFERROR( _xlfn.IFS( OR(BX17="211", BX17="212", BX17="221", BX17="222"), "N/A", AND(ISTEXT(BX17), BX17="111", AW17=1), MAX(0, IF(CE17-CF17>0, IF(CE17-CF17-IF(OR(ISBLANK(BY17), NOT(ISNUMBER(BY17))), 0, BY17)>0, IF(CE17-CF17-IF(OR(ISBLANK(BY17), NOT(ISNUMBER(BY17))), 0, BY17)-IF(OR(ISBLANK(BZ17), NOT(ISNUMBER(BZ17))), 0, BZ17)>0, CE17-CF17-IF(OR(ISBLANK(BY17), NOT(ISNUMBER(BY17))), 0, BY17)-IF(OR(ISBLANK(BZ17), NOT(ISNUMBER(BZ17))), 0, BZ17)-IF(OR(ISBLANK(CA17), NOT(ISNUMBER(CA17))), 0, CA17), 0), 0), 0)), AND(ISTEXT(BX17), BX17="112", AW17=1), MAX(0, IF(CE17-IF(OR(ISBLANK(BY17), NOT(ISNUMBER(BY17))), 0, BY17)>0, IF(CE17-IF(OR(ISBLANK(BY17), NOT(ISNUMBER(BY17))), 0, BY17)-IF(OR(ISBLANK(BZ17), NOT(ISNUMBER(BZ17))), 0, BZ17)>0, IF(CE17-IF(OR(ISBLANK(BY17), NOT(ISNUMBER(BY17))), 0, BY17)-IF(OR(ISBLANK(BZ17), NOT(ISNUMBER(BZ17))), 0, BZ17)-IF(OR(ISBLANK(CA17), NOT(ISNUMBER(CA17))), 0, CA17)>0, CE17-IF(OR(ISBLANK(BY17), NOT(ISNUMBER(BY17))), 0, BY17)-IF(OR(ISBLANK(BZ17), NOT(ISNUMBER(BZ17))), 0, BZ17)-IF(OR(ISBLANK(CA17), NOT(ISNUMBER(CA17))), 0, CA17)-CF17, 0), 0), 0)), AND(ISTEXT(BX17), BX17="121", AW17=2), MAX(0, IF(CE17-CG17>0, IF(CE17-CG17-IF(OR(ISBLANK(CB17), NOT(ISNUMBER(CB17))), 0, CB17)>0, IF(CE17-CG17-IF(OR(ISBLANK(CB17), NOT(ISNUMBER(CB17))), 0, CB17)-IF(OR(ISBLANK(CC17), NOT(ISNUMBER(CC17))), 0, CC17)>0, CE17-CG17-IF(OR(ISBLANK(CB17), NOT(ISNUMBER(CB17))), 0, CB17)-IF(OR(ISBLANK(CC17), NOT(ISNUMBER(CC17))), 0, CC17)-IF(OR(ISBLANK(CD17), NOT(ISNUMBER(CD17))), 0, CD17), 0), 0), 0)), AND(ISTEXT(BX17), BX17="122", AW17=2), MAX(0, IF(CE17-IF(OR(ISBLANK(CB17), NOT(ISNUMBER(CB17))), 0, CB17)>0, IF(CE17-IF(OR(ISBLANK(CB17), NOT(ISNUMBER(CB17))), 0, CB17)-IF(OR(ISBLANK(CC17), NOT(ISNUMBER(CC17))), 0, CC17)>0, IF(CE17-IF(OR(ISBLANK(CB17), NOT(ISNUMBER(CB17))), 0, CB17)-IF(OR(ISBLANK(CC17), NOT(ISNUMBER(CC17))), 0, CC17)-IF(OR(ISBLANK(CD17), NOT(ISNUMBER(CD17))), 0, CD17)>0, CE17-IF(OR(ISBLANK(CB17), NOT(ISNUMBER(CB17))), 0, CB17)-IF(OR(ISBLANK(CC17), NOT(ISNUMBER(CC17))), 0, CC17)-IF(OR(ISBLANK(CD17), NOT(ISNUMBER(CD17))), 0, CD17)-CG17, 0), 0), 0)), TRUE, "N/A" ), "N/A" ), TRUE, "N/A" ), "Calculation error" ) -> N/A | CI17: =IFERROR( _xlfn.IFS( BW17=2, IFERROR( _xlfn.IFS( OR(BX17="211", BX17="212", BX17="221", BX17="222"), "N/A", AND(ISTEXT(BX17), BX17="111", AW17=1), 0-MIN(0,MAX(CE17-CF17,0))+ 0-MIN(0,MAX(CE17-CF17-0,0))+ 0-MIN(0,MAX(CE17-CF17-0-0,0)), AND(ISTEXT(BX17), BX17="112", AW17=1), 0-MIN(0,MAX(CE17,0))+ 0-MIN(0,MAX(CE17-0,0))+ 0-MIN(0,MAX(CE17-0-0,0)), AND(ISTEXT(BX17), BX17="121", AW17=2), 0-MIN(0,MAX(CE17-CG17,0))+ 0-MIN(0,MAX(CE17-CG17-0,0))+ 0-MIN(0,MAX(CE17-CG17-0-0,0)), AND(ISTEXT(BX17), BX17="122", AW17=2), 0-MIN(0,MAX(CE17,0))+ 0-MIN(0,MAX(CE17-0,0))+ 0-MIN(0,MAX(CE17-0-0,0)), TRUE, "Invalid case" ), "Calculation error" ), BW17=1, IFERROR( _xlfn.IFS( OR(BX17="211", BX17="212", BX17="221", BX17="222"), "N/A", AND(ISTEXT(BX17), BX17="111", AW17=1), IF(ISBLANK(BY17), 0, BY17)-MIN(IF(ISBLANK(BY17), 0, BY17),MAX(CE17-CF17,0))+ IF(ISBLANK(BZ17), 0, BZ17)-MIN(IF(ISBLANK(BZ17), 0, BZ17),MAX(CE17-CF17-IF(ISBLANK(BY17), 0, BY17),0))+ IF(ISBLANK(CA17), 0, CA17)-MIN(IF(ISBLANK(CA17), 0, CA17),MAX(CE17-CF17-IF(ISBLANK(BY17), 0, BY17)-IF(ISBLANK(BZ17), 0, BZ17),0)), AND(ISTEXT(BX17), BX17="112", AW17=1), IF(ISBLANK(BY17), 0, BY17)-MIN(IF(ISBLANK(BY17), 0, BY17),MAX(CE17,0))+ IF(ISBLANK(BZ17), 0, BZ17)-MIN(IF(ISBLANK(BZ17), 0, BZ17),MAX(CE17-IF(ISBLANK(BY17), 0, BY17),0))+ IF(ISBLANK(CA17), 0, CA17)-MIN(IF(ISBLANK(CA17), 0, CA17),MAX(CE17-IF(ISBLANK(BY17), 0, BY17)-IF(ISBLANK(BZ17), 0, BZ17),0)), AND(ISTEXT(BX17), BX17="121", AW17=2), IF(ISBLANK(CB17), 0, CB17)-MIN(IF(ISBLANK(CB17), 0, CB17),MAX(CE17-CG17,0))+ IF(ISBLANK(CC17), 0, CC17)-MIN(IF(ISBLANK(CC17), 0, CC17),MAX(CE17-CG17-IF(ISBLANK(CB17), 0, CB17),0))+ IF(ISBLANK(CD17), 0, CD17)-MIN(IF(ISBLANK(CD17), 0, CD17),MAX(CE17-CG17-IF(ISBLANK(CB17), 0, CB17)-IF(ISBLANK(CC17), 0, CC17),0)), AND(ISTEXT(BX17), BX17="122", AW17=2), IF(ISBLANK(CB17), 0, CB17)-MIN(IF(ISBLANK(CB17), 0, CB17),MAX(CE17,0))+ IF(ISBLANK(CC17), 0, CC17)-MIN(IF(ISBLANK(CC17), 0, CC17),MAX(CE17-IF(ISBLANK(CB17), 0, CB17),0))+ IF(ISBLANK(CD17), 0, CD17)-MIN(IF(ISBLANK(CD17), 0, CD17),MAX(CE17-IF(ISBLANK(CB17), 0, CB17)-IF(ISBLANK(CC17), 0, CC17),0)), TRUE, "Invalid case" ), "Calculation error" ), TRUE, "Invalid BW" ), "Calculation error" ) -> Invalid case | CJ17: 0 | CK17: =IFERROR( _xlfn.IFS( BW17=2, IFERROR( _xlfn.IFS( ISNUMBER(CI17), IF(OR(ISBLANK(CI17), NOT(ISNUMBER(CI17))), 0, CI17), AW17=1, 0 + 0 + 0, AW17=2, 0 + 0 + 0 ), "Calculation error" ), BW17=1, IFERROR( _xlfn.IFS( ISNUMBER(CI17), IF(OR(ISBLANK(CI17), NOT(ISNUMBER(CI17))), 0, CI17), AW17=1, IF(ISBLANK(BY17), 0, BY17) + IF(ISBLANK(BZ17), 0, BZ17) + IF(ISBLANK(CA17), 0, CA17), AW17=2, IF(ISBLANK(CB17), 0, CB17) + IF(ISBLANK(CC17), 0, CC17) + IF(ISBLANK(CD17), 0, CD17) ), "Calculation error" ), TRUE, "Invalid BW" ), "Calculation error" ) -> 0 | CL17: =IFERROR( _xlfn.IFS( CK17>=CJ17, 0, CK17<CJ17, CJ17-CK17 ), "Calculation error") -> 0 | CM17: N/A | CN17: 0 | CO17: within $500,000 | CP17: =_xlfn.IFS(CO17=Pulldown!$A$1,1,CO17=Pulldown!$A$2,2) -> 1 | CQ17: 0 | CR17: =_xlfn.IFS( NOT(OR(CP17=1, CP17=2)), 0%, ISERROR(MATCH(CQ17, Subsidy!$A$2:$A$26, 0)), 0%, CP17=1, VLOOKUP(CQ17, Subsidy!$A$2:$G$26, 6, 0), CP17=2, VLOOKUP(CQ17, Subsidy!$A$2:$G$26, 7, 0) ) -> 0 | CS17: =_xlfn.IFS( NOT(OR(CP17=1, CP17=2)), 0%, ISERROR(MATCH(CQ17, Subsidy!$A$2:$A$26, 0)), 0%, CP17=1, VLOOKUP(CQ17, Subsidy!$A$2:$D$26, 2, 0), CP17=2, VLOOKUP(CQ17, Subsidy!$A$2:$D$26, 4, 0) ) -> 0 | CT17: 0 | CU17: =_xlfn.IFS( NOT(OR(CP17=1, CP17=2)), 0, ISERROR(MATCH(CQ17, Subsidy!$A$2:$A$26, 0)), 0, CP17=2, "N/A", AND(CP17=1, CQ17<=9), VLOOKUP(CQ17, Subsidy!$A$2:$D$26, 3, 0), TRUE, 0 ) -> 0 | CV17: =IF(AND(CP17=1, CQ17<=9, NOT(ISERROR(MATCH(CQ17, Subsidy!$A$2:$A$26, 0)))), IFERROR(CL17-CU17, 0), 0) -> 0 | CW17: 0 | CX17: 0 | CY17: 0 | CZ17: 0 | DA17: 0 | DB17: 0 | DC17: 0
A18: 9 | C18: Please Select | D18: =_xlfn.IFS( OR(C18="", C18="Pls select"), 0, C18=Pulldown!$F$2, 1, C18=Pulldown!$F$3, 2, TRUE, 0) -> 0 | E18: 2025-05-01 | H18: =_xlfn.IFS( AND(F18<>"", G18<>"", G18<F18), "Invalid Date Order", AND(F18="", G18=""), "Input Required", AND(F18="", G18<>""), IF(G18<E18, "Date Before Transition", "Invalid: F11 Missing"), OR(F18="", G18=""), "Input Required", G18<E18, "Date Before Transition", AND(D18=1, DATEDIF(F18, G18+1, "y")>=2), "1-valid", AND(D18=1, DATEDIF(F18, G18+1, "y")<2), "1-invalid", AND(D18=2, DATEDIF(F18, G18+1, "y")>=5), "2-valid", AND(D18=2, DATEDIF(F18, G18+1, "y")<5), "2-invalid", TRUE, "Invalid Category" ) -> Input Required | I18: =_xlfn.IFS( $H18="1-valid", 1, $H18="2-valid", 2, $H18="Input Required", 3, $H18="Date Before Transition", 4, TRUE, 0 ) -> 3 | J18: =_xlfn.IFS( OR(F18="",G18=""),"Input Required", $F18>=$E18,"轉制日後開始受僱", $E18>$F18,"轉制日前開始受僱", TRUE,"Invalid Category" ) -> Input Required | K18: =_xlfn.IFS( $J18="轉制日前開始受僱", 1, $J18="轉制日後開始受僱", 2, TRUE, 0 ) -> 0 | L18: Monthly-rated | M18: =_xlfn.IFS($L18=Pulldown!$C$1,22500,$L18=Pulldown!$C$2,15000) -> 22500 | N18: =_xlfn.IFS($L18=Pulldown!$C$1,2/3,$L18=Pulldown!$C$2,1) -> 0.6666666667 | O18: 0 | P18: 0 | R18: 0.6666666667 | AD18: 0 | AF18: 0.6666666667 | AG18: 2025-05-01 | AS18: 0 | AT18: 0 | AU18: 0 | AV18: MPF | AW18: =_xlfn.IFS(AV18="",0,AV18=Pulldown!$B$2,1,AV18=Pulldown!$B$3,2) -> 1 | AX18: MC -> VC | AY18: =_xlfn.IFS(AX18="",0,AX18=Pulldown!$G$1,1,AX18=Pulldown!$G$2,2) -> 1 | AZ18: 0 | BA18: 0 | BB18: 0 | BC18: N/A | BD18: N/A | BE18: N/A | BF18: N/A | BG18: N/A | BH18: N/A | BI18: N/A | BJ18: N/A | BK18: N/A | BL18: N/A | BM18: N/A | BN18: N/A | BO18: N/A | BP18: N/A | BQ18: N/A | BR18: N/A | BS18: N/A | BT18: N/A | BU18: =IF(ISNA(INDIRECT("BT" & ROW())), "N/A", INDIRECT("BT" & ROW())) -> N/A | BV18: No | BW18: =_xlfn.IFS(BV18="",0,BV18=Pulldown!$H$1,1,BV18=Pulldown!$H$2,2) -> 2 | BX18: 011 | BY18: 0 | BZ18: 0 | CA18: 0 | CB18: 0 | CC18: 0 | CD18: 0 | CE18: 0 | CF18: 0 | CG18: N/A | CH18: =IFERROR( _xlfn.IFS( BW18=2, IFERROR( _xlfn.IFS( OR(BX18="211", BX18="212", BX18="221", BX18="222"), "N/A", AND(ISTEXT(BX18), BX18="111", AW18=1), MAX(0, IF(CE18-CF18>0, IF(CE18-CF18-0>0, IF(CE18-CF18-0-0>0, CE18-CF18-0-0-0, 0), 0), 0)), AND(ISTEXT(BX18), BX18="112", AW18=1), MAX(0, IF(CE18-0>0, IF(CE18-0-0>0, IF(CE18-0-0-0>0, CE18-0-0-0-CF18, 0), 0), 0)), AND(ISTEXT(BX18), BX18="121", AW18=2), MAX(0, IF(CE18-CG18>0, IF(CE18-CG18-0>0, IF(CE18-CG18-0-0>0, CE18-CG18-0-0-0, 0), 0), 0)), AND(ISTEXT(BX18), BX18="122", AW18=2), MAX(0, IF(CE18-0>0, IF(CE18-0-0>0, IF(CE18-0-0-0>0, CE18-0-0-0-CG18, 0), 0), 0)), TRUE, "N/A" ), "N/A" ), BW18=1, IFERROR( _xlfn.IFS( OR(BX18="211", BX18="212", BX18="221", BX18="222"), "N/A", AND(ISTEXT(BX18), BX18="111", AW18=1), MAX(0, IF(CE18-CF18>0, IF(CE18-CF18-IF(OR(ISBLANK(BY18), NOT(ISNUMBER(BY18))), 0, BY18)>0, IF(CE18-CF18-IF(OR(ISBLANK(BY18), NOT(ISNUMBER(BY18))), 0, BY18)-IF(OR(ISBLANK(BZ18), NOT(ISNUMBER(BZ18))), 0, BZ18)>0, CE18-CF18-IF(OR(ISBLANK(BY18), NOT(ISNUMBER(BY18))), 0, BY18)-IF(OR(ISBLANK(BZ18), NOT(ISNUMBER(BZ18))), 0, BZ18)-IF(OR(ISBLANK(CA18), NOT(ISNUMBER(CA18))), 0, CA18), 0), 0), 0)), AND(ISTEXT(BX18), BX18="112", AW18=1), MAX(0, IF(CE18-IF(OR(ISBLANK(BY18), NOT(ISNUMBER(BY18))), 0, BY18)>0, IF(CE18-IF(OR(ISBLANK(BY18), NOT(ISNUMBER(BY18))), 0, BY18)-IF(OR(ISBLANK(BZ18), NOT(ISNUMBER(BZ18))), 0, BZ18)>0, IF(CE18-IF(OR(ISBLANK(BY18), NOT(ISNUMBER(BY18))), 0, BY18)-IF(OR(ISBLANK(BZ18), NOT(ISNUMBER(BZ18))), 0, BZ18)-IF(OR(ISBLANK(CA18), NOT(ISNUMBER(CA18))), 0, CA18)>0, CE18-IF(OR(ISBLANK(BY18), NOT(ISNUMBER(BY18))), 0, BY18)-IF(OR(ISBLANK(BZ18), NOT(ISNUMBER(BZ18))), 0, BZ18)-IF(OR(ISBLANK(CA18), NOT(ISNUMBER(CA18))), 0, CA18)-CF18, 0), 0), 0)), AND(ISTEXT(BX18), BX18="121", AW18=2), MAX(0, IF(CE18-CG18>0, IF(CE18-CG18-IF(OR(ISBLANK(CB18), NOT(ISNUMBER(CB18))), 0, CB18)>0, IF(CE18-CG18-IF(OR(ISBLANK(CB18), NOT(ISNUMBER(CB18))), 0, CB18)-IF(OR(ISBLANK(CC18), NOT(ISNUMBER(CC18))), 0, CC18)>0, CE18-CG18-IF(OR(ISBLANK(CB18), NOT(ISNUMBER(CB18))), 0, CB18)-IF(OR(ISBLANK(CC18), NOT(ISNUMBER(CC18))), 0, CC18)-IF(OR(ISBLANK(CD18), NOT(ISNUMBER(CD18))), 0, CD18), 0), 0), 0)), AND(ISTEXT(BX18), BX18="122", AW18=2), MAX(0, IF(CE18-IF(OR(ISBLANK(CB18), NOT(ISNUMBER(CB18))), 0, CB18)>0, IF(CE18-IF(OR(ISBLANK(CB18), NOT(ISNUMBER(CB18))), 0, CB18)-IF(OR(ISBLANK(CC18), NOT(ISNUMBER(CC18))), 0, CC18)>0, IF(CE18-IF(OR(ISBLANK(CB18), NOT(ISNUMBER(CB18))), 0, CB18)-IF(OR(ISBLANK(CC18), NOT(ISNUMBER(CC18))), 0, CC18)-IF(OR(ISBLANK(CD18), NOT(ISNUMBER(CD18))), 0, CD18)>0, CE18-IF(OR(ISBLANK(CB18), NOT(ISNUMBER(CB18))), 0, CB18)-IF(OR(ISBLANK(CC18), NOT(ISNUMBER(CC18))), 0, CC18)-IF(OR(ISBLANK(CD18), NOT(ISNUMBER(CD18))), 0, CD18)-CG18, 0), 0), 0)), TRUE, "N/A" ), "N/A" ), TRUE, "N/A" ), "Calculation error" ) -> N/A | CI18: =IFERROR( _xlfn.IFS( BW18=2, IFERROR( _xlfn.IFS( OR(BX18="211", BX18="212", BX18="221", BX18="222"), "N/A", AND(ISTEXT(BX18), BX18="111", AW18=1), 0-MIN(0,MAX(CE18-CF18,0))+ 0-MIN(0,MAX(CE18-CF18-0,0))+ 0-MIN(0,MAX(CE18-CF18-0-0,0)), AND(ISTEXT(BX18), BX18="112", AW18=1), 0-MIN(0,MAX(CE18,0))+ 0-MIN(0,MAX(CE18-0,0))+ 0-MIN(0,MAX(CE18-0-0,0)), AND(ISTEXT(BX18), BX18="121", AW18=2), 0-MIN(0,MAX(CE18-CG18,0))+ 0-MIN(0,MAX(CE18-CG18-0,0))+ 0-MIN(0,MAX(CE18-CG18-0-0,0)), AND(ISTEXT(BX18), BX18="122", AW18=2), 0-MIN(0,MAX(CE18,0))+ 0-MIN(0,MAX(CE18-0,0))+ 0-MIN(0,MAX(CE18-0-0,0)), TRUE, "Invalid case" ), "Calculation error" ), BW18=1, IFERROR( _xlfn.IFS( OR(BX18="211", BX18="212", BX18="221", BX18="222"), "N/A", AND(ISTEXT(BX18), BX18="111", AW18=1), IF(ISBLANK(BY18), 0, BY18)-MIN(IF(ISBLANK(BY18), 0, BY18),MAX(CE18-CF18,0))+ IF(ISBLANK(BZ18), 0, BZ18)-MIN(IF(ISBLANK(BZ18), 0, BZ18),MAX(CE18-CF18-IF(ISBLANK(BY18), 0, BY18),0))+ IF(ISBLANK(CA18), 0, CA18)-MIN(IF(ISBLANK(CA18), 0, CA18),MAX(CE18-CF18-IF(ISBLANK(BY18), 0, BY18)-IF(ISBLANK(BZ18), 0, BZ18),0)), AND(ISTEXT(BX18), BX18="112", AW18=1), IF(ISBLANK(BY18), 0, BY18)-MIN(IF(ISBLANK(BY18), 0, BY18),MAX(CE18,0))+ IF(ISBLANK(BZ18), 0, BZ18)-MIN(IF(ISBLANK(BZ18), 0, BZ18),MAX(CE18-IF(ISBLANK(BY18), 0, BY18),0))+ IF(ISBLANK(CA18), 0, CA18)-MIN(IF(ISBLANK(CA18), 0, CA18),MAX(CE18-IF(ISBLANK(BY18), 0, BY18)-IF(ISBLANK(BZ18), 0, BZ18),0)), AND(ISTEXT(BX18), BX18="121", AW18=2), IF(ISBLANK(CB18), 0, CB18)-MIN(IF(ISBLANK(CB18), 0, CB18),MAX(CE18-CG18,0))+ IF(ISBLANK(CC18), 0, CC18)-MIN(IF(ISBLANK(CC18), 0, CC18),MAX(CE18-CG18-IF(ISBLANK(CB18), 0, CB18),0))+ IF(ISBLANK(CD18), 0, CD18)-MIN(IF(ISBLANK(CD18), 0, CD18),MAX(CE18-CG18-IF(ISBLANK(CB18), 0, CB18)-IF(ISBLANK(CC18), 0, CC18),0)), AND(ISTEXT(BX18), BX18="122", AW18=2), IF(ISBLANK(CB18), 0, CB18)-MIN(IF(ISBLANK(CB18), 0, CB18),MAX(CE18,0))+ IF(ISBLANK(CC18), 0, CC18)-MIN(IF(ISBLANK(CC18), 0, CC18),MAX(CE18-IF(ISBLANK(CB18), 0, CB18),0))+ IF(ISBLANK(CD18), 0, CD18)-MIN(IF(ISBLANK(CD18), 0, CD18),MAX(CE18-IF(ISBLANK(CB18), 0, CB18)-IF(ISBLANK(CC18), 0, CC18),0)), TRUE, "Invalid case" ), "Calculation error" ), TRUE, "Invalid BW" ), "Calculation error" ) -> Invalid case | CJ18: 0 | CK18: =IFERROR( _xlfn.IFS( BW18=2, IFERROR( _xlfn.IFS( ISNUMBER(CI18), IF(OR(ISBLANK(CI18), NOT(ISNUMBER(CI18))), 0, CI18), AW18=1, 0 + 0 + 0, AW18=2, 0 + 0 + 0 ), "Calculation error" ), BW18=1, IFERROR( _xlfn.IFS( ISNUMBER(CI18), IF(OR(ISBLANK(CI18), NOT(ISNUMBER(CI18))), 0, CI18), AW18=1, IF(ISBLANK(BY18), 0, BY18) + IF(ISBLANK(BZ18), 0, BZ18) + IF(ISBLANK(CA18), 0, CA18), AW18=2, IF(ISBLANK(CB18), 0, CB18) + IF(ISBLANK(CC18), 0, CC18) + IF(ISBLANK(CD18), 0, CD18) ), "Calculation error" ), TRUE, "Invalid BW" ), "Calculation error" ) -> 0 | CL18: =IFERROR( _xlfn.IFS( CK18>=CJ18, 0, CK18<CJ18, CJ18-CK18 ), "Calculation error") -> 0 | CM18: N/A | CN18: 0 | CO18: within $500,000 | CP18: =_xlfn.IFS(CO18=Pulldown!$A$1,1,CO18=Pulldown!$A$2,2) -> 1 | CQ18: 0 | CR18: =_xlfn.IFS( NOT(OR(CP18=1, CP18=2)), 0%, ISERROR(MATCH(CQ18, Subsidy!$A$2:$A$26, 0)), 0%, CP18=1, VLOOKUP(CQ18, Subsidy!$A$2:$G$26, 6, 0), CP18=2, VLOOKUP(CQ18, Subsidy!$A$2:$G$26, 7, 0) ) -> 0 | CS18: =_xlfn.IFS( NOT(OR(CP18=1, CP18=2)), 0%, ISERROR(MATCH(CQ18, Subsidy!$A$2:$A$26, 0)), 0%, CP18=1, VLOOKUP(CQ18, Subsidy!$A$2:$D$26, 2, 0), CP18=2, VLOOKUP(CQ18, Subsidy!$A$2:$D$26, 4, 0) ) -> 0 | CT18: 0 | CU18: =_xlfn.IFS( NOT(OR(CP18=1, CP18=2)), 0, ISERROR(MATCH(CQ18, Subsidy!$A$2:$A$26, 0)), 0, CP18=2, "N/A", AND(CP18=1, CQ18<=9), VLOOKUP(CQ18, Subsidy!$A$2:$D$26, 3, 0), TRUE, 0 ) -> 0 | CV18: =IF(AND(CP18=1, CQ18<=9, NOT(ISERROR(MATCH(CQ18, Subsidy!$A$2:$A$26, 0)))), IFERROR(CL18-CU18, 0), 0) -> 0 | CW18: 0 | CX18: 0 | CY18: 0 | CZ18: 0 | DA18: 0 | DB18: 0 | DC18: 0
A19: 10 | C19: Please Select | D19: =_xlfn.IFS( OR(C19="", C19="Pls select"), 0, C19=Pulldown!$F$2, 1, C19=Pulldown!$F$3, 2, TRUE, 0) -> 0 | E19: 2025-05-01 | H19: =_xlfn.IFS( AND(F19<>"", G19<>"", G19<F19), "Invalid Date Order", AND(F19="", G19=""), "Input Required", AND(F19="", G19<>""), IF(G19<E19, "Date Before Transition", "Invalid: F11 Missing"), OR(F19="", G19=""), "Input Required", G19<E19, "Date Before Transition", AND(D19=1, DATEDIF(F19, G19+1, "y")>=2), "1-valid", AND(D19=1, DATEDIF(F19, G19+1, "y")<2), "1-invalid", AND(D19=2, DATEDIF(F19, G19+1, "y")>=5), "2-valid", AND(D19=2, DATEDIF(F19, G19+1, "y")<5), "2-invalid", TRUE, "Invalid Category" ) -> Input Required | I19: =_xlfn.IFS( $H19="1-valid", 1, $H19="2-valid", 2, $H19="Input Required", 3, $H19="Date Before Transition", 4, TRUE, 0 ) -> 3 | J19: =_xlfn.IFS( OR(F19="",G19=""),"Input Required", $F19>=$E19,"轉制日後開始受僱", $E19>$F19,"轉制日前開始受僱", TRUE,"Invalid Category" ) -> Input Required | K19: =_xlfn.IFS( $J19="轉制日前開始受僱", 1, $J19="轉制日後開始受僱", 2, TRUE, 0 ) -> 0 | L19: Monthly-rated | M19: =_xlfn.IFS($L19=Pulldown!$C$1,22500,$L19=Pulldown!$C$2,15000) -> 22500 | N19: =_xlfn.IFS($L19=Pulldown!$C$1,2/3,$L19=Pulldown!$C$2,1) -> 0.6666666667 | O19: 0 | P19: 0 | R19: 0.6666666667 | AD19: 0 | AF19: 0.6666666667 | AG19: 2025-05-01 | AN19: =IF(OR(I19=1, I19=2), IF(F19<=E19, DATE(YEAR(E19)+AH19+1, MONTH(E19), DAY(E19))-DATE(YEAR(E19)+AH19, MONTH(E19), DAY(E19)), DATE(YEAR(F19)+AH19+1, MONTH(F19), DAY(F19))-DATE(YEAR(F19)+AH19, MONTH(F19), DAY(F19))), "") ->  | AS19: 0 | AT19: 0 | AU19: 0 | AV19: MPF | AW19: =_xlfn.IFS(AV19="",0,AV19=Pulldown!$B$2,1,AV19=Pulldown!$B$3,2) -> 1 | AX19: MC -> VC | AY19: =_xlfn.IFS(AX19="",0,AX19=Pulldown!$G$1,1,AX19=Pulldown!$G$2,2) -> 1 | AZ19: 0 | BA19: 0 | BB19: 0 | BC19: N/A | BD19: N/A | BE19: N/A | BF19: N/A | BG19: N/A | BH19: N/A | BI19: N/A | BJ19: N/A | BK19: N/A | BL19: N/A | BM19: N/A | BN19: N/A | BO19: N/A | BP19: N/A | BQ19: N/A | BR19: N/A | BS19: N/A | BT19: N/A | BU19: =IF(ISNA(INDIRECT("BT" & ROW())), "N/A", INDIRECT("BT" & ROW())) -> N/A | BV19: No | BW19: =_xlfn.IFS(BV19="",0,BV19=Pulldown!$H$1,1,BV19=Pulldown!$H$2,2) -> 2 | BX19: 011 | BY19: 0 | BZ19: 0 | CA19: 0 | CB19: 0 | CC19: 0 | CD19: 0 | CE19: 0 | CF19: 0 | CG19: N/A | CH19: =IFERROR( _xlfn.IFS( BW19=2, IFERROR( _xlfn.IFS( OR(BX19="211", BX19="212", BX19="221", BX19="222"), "N/A", AND(ISTEXT(BX19), BX19="111", AW19=1), MAX(0, IF(CE19-CF19>0, IF(CE19-CF19-0>0, IF(CE19-CF19-0-0>0, CE19-CF19-0-0-0, 0), 0), 0)), AND(ISTEXT(BX19), BX19="112", AW19=1), MAX(0, IF(CE19-0>0, IF(CE19-0-0>0, IF(CE19-0-0-0>0, CE19-0-0-0-CF19, 0), 0), 0)), AND(ISTEXT(BX19), BX19="121", AW19=2), MAX(0, IF(CE19-CG19>0, IF(CE19-CG19-0>0, IF(CE19-CG19-0-0>0, CE19-CG19-0-0-0, 0), 0), 0)), AND(ISTEXT(BX19), BX19="122", AW19=2), MAX(0, IF(CE19-0>0, IF(CE19-0-0>0, IF(CE19-0-0-0>0, CE19-0-0-0-CG19, 0), 0), 0)), TRUE, "N/A" ), "N/A" ), BW19=1, IFERROR( _xlfn.IFS( OR(BX19="211", BX19="212", BX19="221", BX19="222"), "N/A", AND(ISTEXT(BX19), BX19="111", AW19=1), MAX(0, IF(CE19-CF19>0, IF(CE19-CF19-IF(OR(ISBLANK(BY19), NOT(ISNUMBER(BY19))), 0, BY19)>0, IF(CE19-CF19-IF(OR(ISBLANK(BY19), NOT(ISNUMBER(BY19))), 0, BY19)-IF(OR(ISBLANK(BZ19), NOT(ISNUMBER(BZ19))), 0, BZ19)>0, CE19-CF19-IF(OR(ISBLANK(BY19), NOT(ISNUMBER(BY19))), 0, BY19)-IF(OR(ISBLANK(BZ19), NOT(ISNUMBER(BZ19))), 0, BZ19)-IF(OR(ISBLANK(CA19), NOT(ISNUMBER(CA19))), 0, CA19), 0), 0), 0)), AND(ISTEXT(BX19), BX19="112", AW19=1), MAX(0, IF(CE19-IF(OR(ISBLANK(BY19), NOT(ISNUMBER(BY19))), 0, BY19)>0, IF(CE19-IF(OR(ISBLANK(BY19), NOT(ISNUMBER(BY19))), 0, BY19)-IF(OR(ISBLANK(BZ19), NOT(ISNUMBER(BZ19))), 0, BZ19)>0, IF(CE19-IF(OR(ISBLANK(BY19), NOT(ISNUMBER(BY19))), 0, BY19)-IF(OR(ISBLANK(BZ19), NOT(ISNUMBER(BZ19))), 0, BZ19)-IF(OR(ISBLANK(CA19), NOT(ISNUMBER(CA19))), 0, CA19)>0, CE19-IF(OR(ISBLANK(BY19), NOT(ISNUMBER(BY19))), 0, BY19)-IF(OR(ISBLANK(BZ19), NOT(ISNUMBER(BZ19))), 0, BZ19)-IF(OR(ISBLANK(CA19), NOT(ISNUMBER(CA19))), 0, CA19)-CF19, 0), 0), 0)), AND(ISTEXT(BX19), BX19="121", AW19=2), MAX(0, IF(CE19-CG19>0, IF(CE19-CG19-IF(OR(ISBLANK(CB19), NOT(ISNUMBER(CB19))), 0, CB19)>0, IF(CE19-CG19-IF(OR(ISBLANK(CB19), NOT(ISNUMBER(CB19))), 0, CB19)-IF(OR(ISBLANK(CC19), NOT(ISNUMBER(CC19))), 0, CC19)>0, CE19-CG19-IF(OR(ISBLANK(CB19), NOT(ISNUMBER(CB19))), 0, CB19)-IF(OR(ISBLANK(CC19), NOT(ISNUMBER(CC19))), 0, CC19)-IF(OR(ISBLANK(CD19), NOT(ISNUMBER(CD19))), 0, CD19), 0), 0), 0)), AND(ISTEXT(BX19), BX19="122", AW19=2), MAX(0, IF(CE19-IF(OR(ISBLANK(CB19), NOT(ISNUMBER(CB19))), 0, CB19)>0, IF(CE19-IF(OR(ISBLANK(CB19), NOT(ISNUMBER(CB19))), 0, CB19)-IF(OR(ISBLANK(CC19), NOT(ISNUMBER(CC19))), 0, CC19)>0, IF(CE19-IF(OR(ISBLANK(CB19), NOT(ISNUMBER(CB19))), 0, CB19)-IF(OR(ISBLANK(CC19), NOT(ISNUMBER(CC19))), 0, CC19)-IF(OR(ISBLANK(CD19), NOT(ISNUMBER(CD19))), 0, CD19)>0, CE19-IF(OR(ISBLANK(CB19), NOT(ISNUMBER(CB19))), 0, CB19)-IF(OR(ISBLANK(CC19), NOT(ISNUMBER(CC19))), 0, CC19)-IF(OR(ISBLANK(CD19), NOT(ISNUMBER(CD19))), 0, CD19)-CG19, 0), 0), 0)), TRUE, "N/A" ), "N/A" ), TRUE, "N/A" ), "Calculation error" ) -> N/A | CI19: =IFERROR( _xlfn.IFS( BW19=2, IFERROR( _xlfn.IFS( OR(BX19="211", BX19="212", BX19="221", BX19="222"), "N/A", AND(ISTEXT(BX19), BX19="111", AW19=1), 0-MIN(0,MAX(CE19-CF19,0))+ 0-MIN(0,MAX(CE19-CF19-0,0))+ 0-MIN(0,MAX(CE19-CF19-0-0,0)), AND(ISTEXT(BX19), BX19="112", AW19=1), 0-MIN(0,MAX(CE19,0))+ 0-MIN(0,MAX(CE19-0,0))+ 0-MIN(0,MAX(CE19-0-0,0)), AND(ISTEXT(BX19), BX19="121", AW19=2), 0-MIN(0,MAX(CE19-CG19,0))+ 0-MIN(0,MAX(CE19-CG19-0,0))+ 0-MIN(0,MAX(CE19-CG19-0-0,0)), AND(ISTEXT(BX19), BX19="122", AW19=2), 0-MIN(0,MAX(CE19,0))+ 0-MIN(0,MAX(CE19-0,0))+ 0-MIN(0,MAX(CE19-0-0,0)), TRUE, "Invalid case" ), "Calculation error" ), BW19=1, IFERROR( _xlfn.IFS( OR(BX19="211", BX19="212", BX19="221", BX19="222"), "N/A", AND(ISTEXT(BX19), BX19="111", AW19=1), IF(ISBLANK(BY19), 0, BY19)-MIN(IF(ISBLANK(BY19), 0, BY19),MAX(CE19-CF19,0))+ IF(ISBLANK(BZ19), 0, BZ19)-MIN(IF(ISBLANK(BZ19), 0, BZ19),MAX(CE19-CF19-IF(ISBLANK(BY19), 0, BY19),0))+ IF(ISBLANK(CA19), 0, CA19)-MIN(IF(ISBLANK(CA19), 0, CA19),MAX(CE19-CF19-IF(ISBLANK(BY19), 0, BY19)-IF(ISBLANK(BZ19), 0, BZ19),0)), AND(ISTEXT(BX19), BX19="112", AW19=1), IF(ISBLANK(BY19), 0, BY19)-MIN(IF(ISBLANK(BY19), 0, BY19),MAX(CE19,0))+ IF(ISBLANK(BZ19), 0, BZ19)-MIN(IF(ISBLANK(BZ19), 0, BZ19),MAX(CE19-IF(ISBLANK(BY19), 0, BY19),0))+ IF(ISBLANK(CA19), 0, CA19)-MIN(IF(ISBLANK(CA19), 0, CA19),MAX(CE19-IF(ISBLANK(BY19), 0, BY19)-IF(ISBLANK(BZ19), 0, BZ19),0)), AND(ISTEXT(BX19), BX19="121", AW19=2), IF(ISBLANK(CB19), 0, CB19)-MIN(IF(ISBLANK(CB19), 0, CB19),MAX(CE19-CG19,0))+ IF(ISBLANK(CC19), 0, CC19)-MIN(IF(ISBLANK(CC19), 0, CC19),MAX(CE19-CG19-IF(ISBLANK(CB19), 0, CB19),0))+ IF(ISBLANK(CD19), 0, CD19)-MIN(IF(ISBLANK(CD19), 0, CD19),MAX(CE19-CG19-IF(ISBLANK(CB19), 0, CB19)-IF(ISBLANK(CC19), 0, CC19),0)), AND(ISTEXT(BX19), BX19="122", AW19=2), IF(ISBLANK(CB19), 0, CB19)-MIN(IF(ISBLANK(CB19), 0, CB19),MAX(CE19,0))+ IF(ISBLANK(CC19), 0, CC19)-MIN(IF(ISBLANK(CC19), 0, CC19),MAX(CE19-IF(ISBLANK(CB19), 0, CB19),0))+ IF(ISBLANK(CD19), 0, CD19)-MIN(IF(ISBLANK(CD19), 0, CD19),MAX(CE19-IF(ISBLANK(CB19), 0, CB19)-IF(ISBLANK(CC19), 0, CC19),0)), TRUE, "Invalid case" ), "Calculation error" ), TRUE, "Invalid BW" ), "Calculation error" ) -> Invalid case | CJ19: 0 | CK19: =IFERROR( _xlfn.IFS( BW19=2, IFERROR( _xlfn.IFS( ISNUMBER(CI19), IF(OR(ISBLANK(CI19), NOT(ISNUMBER(CI19))), 0, CI19), AW19=1, 0 + 0 + 0, AW19=2, 0 + 0 + 0 ), "Calculation error" ), BW19=1, IFERROR( _xlfn.IFS( ISNUMBER(CI19), IF(OR(ISBLANK(CI19), NOT(ISNUMBER(CI19))), 0, CI19), AW19=1, IF(ISBLANK(BY19), 0, BY19) + IF(ISBLANK(BZ19), 0, BZ19) + IF(ISBLANK(CA19), 0, CA19), AW19=2, IF(ISBLANK(CB19), 0, CB19) + IF(ISBLANK(CC19), 0, CC19) + IF(ISBLANK(CD19), 0, CD19) ), "Calculation error" ), TRUE, "Invalid BW" ), "Calculation error" ) -> 0 | CL19: =IFERROR( _xlfn.IFS( CK19>=CJ19, 0, CK19<CJ19, CJ19-CK19 ), "Calculation error") -> 0 | CM19: N/A | CN19: 0 | CO19: within $500,000 | CP19: =_xlfn.IFS(CO19=Pulldown!$A$1,1,CO19=Pulldown!$A$2,2) -> 1 | CQ19: 0 | CR19: =_xlfn.IFS( NOT(OR(CP19=1, CP19=2)), 0%, ISERROR(MATCH(CQ19, Subsidy!$A$2:$A$26, 0)), 0%, CP19=1, VLOOKUP(CQ19, Subsidy!$A$2:$G$26, 6, 0), CP19=2, VLOOKUP(CQ19, Subsidy!$A$2:$G$26, 7, 0) ) -> 0 | CS19: =_xlfn.IFS( NOT(OR(CP19=1, CP19=2)), 0%, ISERROR(MATCH(CQ19, Subsidy!$A$2:$A$26, 0)), 0%, CP19=1, VLOOKUP(CQ19, Subsidy!$A$2:$D$26, 2, 0), CP19=2, VLOOKUP(CQ19, Subsidy!$A$2:$D$26, 4, 0) ) -> 0 | CT19: 0 | CU19: =_xlfn.IFS( NOT(OR(CP19=1, CP19=2)), 0, ISERROR(MATCH(CQ19, Subsidy!$A$2:$A$26, 0)), 0, CP19=2, "N/A", AND(CP19=1, CQ19<=9), VLOOKUP(CQ19, Subsidy!$A$2:$D$26, 3, 0), TRUE, 0 ) -> 0 | CV19: =IF(AND(CP19=1, CQ19<=9, NOT(ISERROR(MATCH(CQ19, Subsidy!$A$2:$A$26, 0)))), IFERROR(CL19-CU19, 0), 0) -> 0 | CW19: 0 | CX19: 0 | CY19: 0 | CZ19: 0 | DA19: 0 | DB19: 0 | DC19: 0
A20: 11 | C20: Please Select | D20: =_xlfn.IFS( OR(C20="", C20="Pls select"), 0, C20=Pulldown!$F$2, 1, C20=Pulldown!$F$3, 2, TRUE, 0) -> 0 | E20: 2025-05-01 | H20: =_xlfn.IFS( AND(F20<>"", G20<>"", G20<F20), "Invalid Date Order", AND(F20="", G20=""), "Input Required", AND(F20="", G20<>""), IF(G20<E20, "Date Before Transition", "Invalid: F11 Missing"), OR(F20="", G20=""), "Input Required", G20<E20, "Date Before Transition", AND(D20=1, DATEDIF(F20, G20+1, "y")>=2), "1-valid", AND(D20=1, DATEDIF(F20, G20+1, "y")<2), "1-invalid", AND(D20=2, DATEDIF(F20, G20+1, "y")>=5), "2-valid", AND(D20=2, DATEDIF(F20, G20+1, "y")<5), "2-invalid", TRUE, "Invalid Category" ) -> Input Required | I20: =_xlfn.IFS( $H20="1-valid", 1, $H20="2-valid", 2, $H20="Input Required", 3, $H20="Date Before Transition", 4, TRUE, 0 ) -> 3 | J20: =_xlfn.IFS( OR(F20="",G20=""),"Input Required", $F20>=$E20,"轉制日後開始受僱", $E20>$F20,"轉制日前開始受僱", TRUE,"Invalid Category" ) -> Input Required | K20: =_xlfn.IFS( $J20="轉制日前開始受僱", 1, $J20="轉制日後開始受僱", 2, TRUE, 0 ) -> 0 | L20: Monthly-rated | M20: =_xlfn.IFS($L20=Pulldown!$C$1,22500,$L20=Pulldown!$C$2,15000) -> 22500 | N20: =_xlfn.IFS($L20=Pulldown!$C$1,2/3,$L20=Pulldown!$C$2,1) -> 0.6666666667 | O20: 0 | P20: 0 | R20: 0.6666666667 | AD20: 0 | AF20: 0.6666666667 | AG20: 2025-05-01 | AN20: =IF(OR(I20=1, I20=2), IF(F20<=E20, DATE(YEAR(E20)+AH20+1, MONTH(E20), DAY(E20))-DATE(YEAR(E20)+AH20, MONTH(E20), DAY(E20)), DATE(YEAR(F20)+AH20+1, MONTH(F20), DAY(F20))-DATE(YEAR(F20)+AH20, MONTH(F20), DAY(F20))), "") ->  | AS20: 0 | AT20: 0 | AU20: 0 | AV20: MPF | AW20: =_xlfn.IFS(AV20="",0,AV20=Pulldown!$B$2,1,AV20=Pulldown!$B$3,2) -> 1 | AX20: MC -> VC | AY20: =_xlfn.IFS(AX20="",0,AX20=Pulldown!$G$1,1,AX20=Pulldown!$G$2,2) -> 1 | AZ20: 0 | BA20: 0 | BB20: 0 | BC20: N/A | BD20: N/A | BE20: N/A | BF20: N/A | BG20: N/A | BH20: N/A | BI20: N/A | BJ20: N/A | BK20: N/A | BL20: N/A | BM20: N/A | BN20: N/A | BO20: N/A | BP20: N/A | BQ20: N/A | BR20: N/A | BS20: N/A | BT20: N/A | BU20: =IF(ISNA(INDIRECT("BT" & ROW())), "N/A", INDIRECT("BT" & ROW())) -> N/A | BV20: No | BW20: =_xlfn.IFS(BV20="",0,BV20=Pulldown!$H$1,1,BV20=Pulldown!$H$2,2) -> 2 | BX20: 011 | BY20: 0 | BZ20: 0 | CA20: 0 | CB20: 0 | CC20: 0 | CD20: 0 | CE20: 0 | CF20: 0 | CG20: N/A | CH20: =IFERROR( _xlfn.IFS( BW20=2, IFERROR( _xlfn.IFS( OR(BX20="211", BX20="212", BX20="221", BX20="222"), "N/A", AND(ISTEXT(BX20), BX20="111", AW20=1), MAX(0, IF(CE20-CF20>0, IF(CE20-CF20-0>0, IF(CE20-CF20-0-0>0, CE20-CF20-0-0-0, 0), 0), 0)), AND(ISTEXT(BX20), BX20="112", AW20=1), MAX(0, IF(CE20-0>0, IF(CE20-0-0>0, IF(CE20-0-0-0>0, CE20-0-0-0-CF20, 0), 0), 0)), AND(ISTEXT(BX20), BX20="121", AW20=2), MAX(0, IF(CE20-CG20>0, IF(CE20-CG20-0>0, IF(CE20-CG20-0-0>0, CE20-CG20-0-0-0, 0), 0), 0)), AND(ISTEXT(BX20), BX20="122", AW20=2), MAX(0, IF(CE20-0>0, IF(CE20-0-0>0, IF(CE20-0-0-0>0, CE20-0-0-0-CG20, 0), 0), 0)), TRUE, "N/A" ), "N/A" ), BW20=1, IFERROR( _xlfn.IFS( OR(BX20="211", BX20="212", BX20="221", BX20="222"), "N/A", AND(ISTEXT(BX20), BX20="111", AW20=1), MAX(0, IF(CE20-CF20>0, IF(CE20-CF20-IF(OR(ISBLANK(BY20), NOT(ISNUMBER(BY20))), 0, BY20)>0, IF(CE20-CF20-IF(OR(ISBLANK(BY20), NOT(ISNUMBER(BY20))), 0, BY20)-IF(OR(ISBLANK(BZ20), NOT(ISNUMBER(BZ20))), 0, BZ20)>0, CE20-CF20-IF(OR(ISBLANK(BY20), NOT(ISNUMBER(BY20))), 0, BY20)-IF(OR(ISBLANK(BZ20), NOT(ISNUMBER(BZ20))), 0, BZ20)-IF(OR(ISBLANK(CA20), NOT(ISNUMBER(CA20))), 0, CA20), 0), 0), 0)), AND(ISTEXT(BX20), BX20="112", AW20=1), MAX(0, IF(CE20-IF(OR(ISBLANK(BY20), NOT(ISNUMBER(BY20))), 0, BY20)>0, IF(CE20-IF(OR(ISBLANK(BY20), NOT(ISNUMBER(BY20))), 0, BY20)-IF(OR(ISBLANK(BZ20), NOT(ISNUMBER(BZ20))), 0, BZ20)>0, IF(CE20-IF(OR(ISBLANK(BY20), NOT(ISNUMBER(BY20))), 0, BY20)-IF(OR(ISBLANK(BZ20), NOT(ISNUMBER(BZ20))), 0, BZ20)-IF(OR(ISBLANK(CA20), NOT(ISNUMBER(CA20))), 0, CA20)>0, CE20-IF(OR(ISBLANK(BY20), NOT(ISNUMBER(BY20))), 0, BY20)-IF(OR(ISBLANK(BZ20), NOT(ISNUMBER(BZ20))), 0, BZ20)-IF(OR(ISBLANK(CA20), NOT(ISNUMBER(CA20))), 0, CA20)-CF20, 0), 0), 0)), AND(ISTEXT(BX20), BX20="121", AW20=2), MAX(0, IF(CE20-CG20>0, IF(CE20-CG20-IF(OR(ISBLANK(CB20), NOT(ISNUMBER(CB20))), 0, CB20)>0, IF(CE20-CG20-IF(OR(ISBLANK(CB20), NOT(ISNUMBER(CB20))), 0, CB20)-IF(OR(ISBLANK(CC20), NOT(ISNUMBER(CC20))), 0, CC20)>0, CE20-CG20-IF(OR(ISBLANK(CB20), NOT(ISNUMBER(CB20))), 0, CB20)-IF(OR(ISBLANK(CC20), NOT(ISNUMBER(CC20))), 0, CC20)-IF(OR(ISBLANK(CD20), NOT(ISNUMBER(CD20))), 0, CD20), 0), 0), 0)), AND(ISTEXT(BX20), BX20="122", AW20=2), MAX(0, IF(CE20-IF(OR(ISBLANK(CB20), NOT(ISNUMBER(CB20))), 0, CB20)>0, IF(CE20-IF(OR(ISBLANK(CB20), NOT(ISNUMBER(CB20))), 0, CB20)-IF(OR(ISBLANK(CC20), NOT(ISNUMBER(CC20))), 0, CC20)>0, IF(CE20-IF(OR(ISBLANK(CB20), NOT(ISNUMBER(CB20))), 0, CB20)-IF(OR(ISBLANK(CC20), NOT(ISNUMBER(CC20))), 0, CC20)-IF(OR(ISBLANK(CD20), NOT(ISNUMBER(CD20))), 0, CD20)>0, CE20-IF(OR(ISBLANK(CB20), NOT(ISNUMBER(CB20))), 0, CB20)-IF(OR(ISBLANK(CC20), NOT(ISNUMBER(CC20))), 0, CC20)-IF(OR(ISBLANK(CD20), NOT(ISNUMBER(CD20))), 0, CD20)-CG20, 0), 0), 0)), TRUE, "N/A" ), "N/A" ), TRUE, "N/A" ), "Calculation error" ) -> N/A | CI20: =IFERROR( _xlfn.IFS( BW20=2, IFERROR( _xlfn.IFS( OR(BX20="211", BX20="212", BX20="221", BX20="222"), "N/A", AND(ISTEXT(BX20), BX20="111", AW20=1), 0-MIN(0,MAX(CE20-CF20,0))+ 0-MIN(0,MAX(CE20-CF20-0,0))+ 0-MIN(0,MAX(CE20-CF20-0-0,0)), AND(ISTEXT(BX20), BX20="112", AW20=1), 0-MIN(0,MAX(CE20,0))+ 0-MIN(0,MAX(CE20-0,0))+ 0-MIN(0,MAX(CE20-0-0,0)), AND(ISTEXT(BX20), BX20="121", AW20=2), 0-MIN(0,MAX(CE20-CG20,0))+ 0-MIN(0,MAX(CE20-CG20-0,0))+ 0-MIN(0,MAX(CE20-CG20-0-0,0)), AND(ISTEXT(BX20), BX20="122", AW20=2), 0-MIN(0,MAX(CE20,0))+ 0-MIN(0,MAX(CE20-0,0))+ 0-MIN(0,MAX(CE20-0-0,0)), TRUE, "Invalid case" ), "Calculation error" ), BW20=1, IFERROR( _xlfn.IFS( OR(BX20="211", BX20="212", BX20="221", BX20="222"), "N/A", AND(ISTEXT(BX20), BX20="111", AW20=1), IF(ISBLANK(BY20), 0, BY20)-MIN(IF(ISBLANK(BY20), 0, BY20),MAX(CE20-CF20,0))+ IF(ISBLANK(BZ20), 0, BZ20)-MIN(IF(ISBLANK(BZ20), 0, BZ20),MAX(CE20-CF20-IF(ISBLANK(BY20), 0, BY20),0))+ IF(ISBLANK(CA20), 0, CA20)-MIN(IF(ISBLANK(CA20), 0, CA20),MAX(CE20-CF20-IF(ISBLANK(BY20), 0, BY20)-IF(ISBLANK(BZ20), 0, BZ20),0)), AND(ISTEXT(BX20), BX20="112", AW20=1), IF(ISBLANK(BY20), 0, BY20)-MIN(IF(ISBLANK(BY20), 0, BY20),MAX(CE20,0))+ IF(ISBLANK(BZ20), 0, BZ20)-MIN(IF(ISBLANK(BZ20), 0, BZ20),MAX(CE20-IF(ISBLANK(BY20), 0, BY20),0))+ IF(ISBLANK(CA20), 0, CA20)-MIN(IF(ISBLANK(CA20), 0, CA20),MAX(CE20-IF(ISBLANK(BY20), 0, BY20)-IF(ISBLANK(BZ20), 0, BZ20),0)), AND(ISTEXT(BX20), BX20="121", AW20=2), IF(ISBLANK(CB20), 0, CB20)-MIN(IF(ISBLANK(CB20), 0, CB20),MAX(CE20-CG20,0))+ IF(ISBLANK(CC20), 0, CC20)-MIN(IF(ISBLANK(CC20), 0, CC20),MAX(CE20-CG20-IF(ISBLANK(CB20), 0, CB20),0))+ IF(ISBLANK(CD20), 0, CD20)-MIN(IF(ISBLANK(CD20), 0, CD20),MAX(CE20-CG20-IF(ISBLANK(CB20), 0, CB20)-IF(ISBLANK(CC20), 0, CC20),0)), AND(ISTEXT(BX20), BX20="122", AW20=2), IF(ISBLANK(CB20), 0, CB20)-MIN(IF(ISBLANK(CB20), 0, CB20),MAX(CE20,0))+ IF(ISBLANK(CC20), 0, CC20)-MIN(IF(ISBLANK(CC20), 0, CC20),MAX(CE20-IF(ISBLANK(CB20), 0, CB20),0))+ IF(ISBLANK(CD20), 0, CD20)-MIN(IF(ISBLANK(CD20), 0, CD20),MAX(CE20-IF(ISBLANK(CB20), 0, CB20)-IF(ISBLANK(CC20), 0, CC20),0)), TRUE, "Invalid case" ), "Calculation error" ), TRUE, "Invalid BW" ), "Calculation error" ) -> Invalid case | CJ20: 0 | CK20: =IFERROR( _xlfn.IFS( BW20=2, IFERROR( _xlfn.IFS( ISNUMBER(CI20), IF(OR(ISBLANK(CI20), NOT(ISNUMBER(CI20))), 0, CI20), AW20=1, 0 + 0 + 0, AW20=2, 0 + 0 + 0 ), "Calculation error" ), BW20=1, IFERROR( _xlfn.IFS( ISNUMBER(CI20), IF(OR(ISBLANK(CI20), NOT(ISNUMBER(CI20))), 0, CI20), AW20=1, IF(ISBLANK(BY20), 0, BY20) + IF(ISBLANK(BZ20), 0, BZ20) + IF(ISBLANK(CA20), 0, CA20), AW20=2, IF(ISBLANK(CB20), 0, CB20) + IF(ISBLANK(CC20), 0, CC20) + IF(ISBLANK(CD20), 0, CD20) ), "Calculation error" ), TRUE, "Invalid BW" ), "Calculation error" ) -> 0 | CL20: =IFERROR( _xlfn.IFS( CK20>=CJ20, 0, CK20<CJ20, CJ20-CK20 ), "Calculation error") -> 0 | CM20: N/A | CN20: 0 | CO20: within $500,000 | CP20: =_xlfn.IFS(CO20=Pulldown!$A$1,1,CO20=Pulldown!$A$2,2) -> 1 | CQ20: 0 | CR20: =_xlfn.IFS( NOT(OR(CP20=1, CP20=2)), 0%, ISERROR(MATCH(CQ20, Subsidy!$A$2:$A$26, 0)), 0%, CP20=1, VLOOKUP(CQ20, Subsidy!$A$2:$G$26, 6, 0), CP20=2, VLOOKUP(CQ20, Subsidy!$A$2:$G$26, 7, 0) ) -> 0 | CS20: =_xlfn.IFS( NOT(OR(CP20=1, CP20=2)), 0%, ISERROR(MATCH(CQ20, Subsidy!$A$2:$A$26, 0)), 0%, CP20=1, VLOOKUP(CQ20, Subsidy!$A$2:$D$26, 2, 0), CP20=2, VLOOKUP(CQ20, Subsidy!$A$2:$D$26, 4, 0) ) -> 0 | CT20: 0 | CU20: =_xlfn.IFS( NOT(OR(CP20=1, CP20=2)), 0, ISERROR(MATCH(CQ20, Subsidy!$A$2:$A$26, 0)), 0, CP20=2, "N/A", AND(CP20=1, CQ20<=9), VLOOKUP(CQ20, Subsidy!$A$2:$D$26, 3, 0), TRUE, 0 ) -> 0 | CV20: =IF(AND(CP20=1, CQ20<=9, NOT(ISERROR(MATCH(CQ20, Subsidy!$A$2:$A$26, 0)))), IFERROR(CL20-CU20, 0), 0) -> 0 | CW20: 0 | CX20: 0 | CY20: 0 | CZ20: 0 | DA20: 0 | DB20: 0 | DC20: 0
A21: 12 | C21: Please Select | D21: =_xlfn.IFS( OR(C21="", C21="Pls select"), 0, C21=Pulldown!$F$2, 1, C21=Pulldown!$F$3, 2, TRUE, 0) -> 0 | E21: 2025-05-01 | H21: =_xlfn.IFS( AND(F21<>"", G21<>"", G21<F21), "Invalid Date Order", AND(F21="", G21=""), "Input Required", AND(F21="", G21<>""), IF(G21<E21, "Date Before Transition", "Invalid: F11 Missing"), OR(F21="", G21=""), "Input Required", G21<E21, "Date Before Transition", AND(D21=1, DATEDIF(F21, G21+1, "y")>=2), "1-valid", AND(D21=1, DATEDIF(F21, G21+1, "y")<2), "1-invalid", AND(D21=2, DATEDIF(F21, G21+1, "y")>=5), "2-valid", AND(D21=2, DATEDIF(F21, G21+1, "y")<5), "2-invalid", TRUE, "Invalid Category" ) -> Input Required | I21: =_xlfn.IFS( $H21="1-valid", 1, $H21="2-valid", 2, $H21="Input Required", 3, $H21="Date Before Transition", 4, TRUE, 0 ) -> 3 | J21: =_xlfn.IFS( OR(F21="",G21=""),"Input Required", $F21>=$E21,"轉制日後開始受僱", $E21>$F21,"轉制日前開始受僱", TRUE,"Invalid Category" ) -> Input Required | K21: =_xlfn.IFS( $J21="轉制日前開始受僱", 1, $J21="轉制日後開始受僱", 2, TRUE, 0 ) -> 0 | L21: Monthly-rated | M21: =_xlfn.IFS($L21=Pulldown!$C$1,22500,$L21=Pulldown!$C$2,15000) -> 22500 | N21: =_xlfn.IFS($L21=Pulldown!$C$1,2/3,$L21=Pulldown!$C$2,1) -> 0.6666666667 | O21: 0 | P21: 0 | R21: 0.6666666667 | AD21: 0 | AF21: 0.6666666667 | AG21: 2025-05-01 | AS21: 0 | AT21: 0 | AU21: 0 | AV21: MPF | AW21: =_xlfn.IFS(AV21="",0,AV21=Pulldown!$B$2,1,AV21=Pulldown!$B$3,2) -> 1 | AX21: MC -> VC | AY21: =_xlfn.IFS(AX21="",0,AX21=Pulldown!$G$1,1,AX21=Pulldown!$G$2,2) -> 1 | AZ21: 0 | BA21: 0 | BB21: 0 | BC21: N/A | BD21: N/A | BE21: N/A | BF21: N/A | BG21: N/A | BH21: N/A | BI21: N/A | BJ21: N/A | BK21: N/A | BL21: N/A | BM21: N/A | BN21: N/A | BO21: N/A | BP21: N/A | BQ21: N/A | BR21: N/A | BS21: N/A | BT21: N/A | BU21: =IF(ISNA(INDIRECT("BT" & ROW())), "N/A", INDIRECT("BT" & ROW())) -> N/A | BV21: No | BW21: =_xlfn.IFS(BV21="",0,BV21=Pulldown!$H$1,1,BV21=Pulldown!$H$2,2) -> 2 | BX21: 011 | BY21: 0 | BZ21: 0 | CA21: 0 | CB21: 0 | CC21: 0 | CD21: 0 | CE21: 0 | CF21: 0 | CG21: N/A | CH21: =IFERROR( _xlfn.IFS( BW21=2, IFERROR( _xlfn.IFS( OR(BX21="211", BX21="212", BX21="221", BX21="222"), "N/A", AND(ISTEXT(BX21), BX21="111", AW21=1), MAX(0, IF(CE21-CF21>0, IF(CE21-CF21-0>0, IF(CE21-CF21-0-0>0, CE21-CF21-0-0-0, 0), 0), 0)), AND(ISTEXT(BX21), BX21="112", AW21=1), MAX(0, IF(CE21-0>0, IF(CE21-0-0>0, IF(CE21-0-0-0>0, CE21-0-0-0-CF21, 0), 0), 0)), AND(ISTEXT(BX21), BX21="121", AW21=2), MAX(0, IF(CE21-CG21>0, IF(CE21-CG21-0>0, IF(CE21-CG21-0-0>0, CE21-CG21-0-0-0, 0), 0), 0)), AND(ISTEXT(BX21), BX21="122", AW21=2), MAX(0, IF(CE21-0>0, IF(CE21-0-0>0, IF(CE21-0-0-0>0, CE21-0-0-0-CG21, 0), 0), 0)), TRUE, "N/A" ), "N/A" ), BW21=1, IFERROR( _xlfn.IFS( OR(BX21="211", BX21="212", BX21="221", BX21="222"), "N/A", AND(ISTEXT(BX21), BX21="111", AW21=1), MAX(0, IF(CE21-CF21>0, IF(CE21-CF21-IF(OR(ISBLANK(BY21), NOT(ISNUMBER(BY21))), 0, BY21)>0, IF(CE21-CF21-IF(OR(ISBLANK(BY21), NOT(ISNUMBER(BY21))), 0, BY21)-IF(OR(ISBLANK(BZ21), NOT(ISNUMBER(BZ21))), 0, BZ21)>0, CE21-CF21-IF(OR(ISBLANK(BY21), NOT(ISNUMBER(BY21))), 0, BY21)-IF(OR(ISBLANK(BZ21), NOT(ISNUMBER(BZ21))), 0, BZ21)-IF(OR(ISBLANK(CA21), NOT(ISNUMBER(CA21))), 0, CA21), 0), 0), 0)), AND(ISTEXT(BX21), BX21="112", AW21=1), MAX(0, IF(CE21-IF(OR(ISBLANK(BY21), NOT(ISNUMBER(BY21))), 0, BY21)>0, IF(CE21-IF(OR(ISBLANK(BY21), NOT(ISNUMBER(BY21))), 0, BY21)-IF(OR(ISBLANK(BZ21), NOT(ISNUMBER(BZ21))), 0, BZ21)>0, IF(CE21-IF(OR(ISBLANK(BY21), NOT(ISNUMBER(BY21))), 0, BY21)-IF(OR(ISBLANK(BZ21), NOT(ISNUMBER(BZ21))), 0, BZ21)-IF(OR(ISBLANK(CA21), NOT(ISNUMBER(CA21))), 0, CA21)>0, CE21-IF(OR(ISBLANK(BY21), NOT(ISNUMBER(BY21))), 0, BY21)-IF(OR(ISBLANK(BZ21), NOT(ISNUMBER(BZ21))), 0, BZ21)-IF(OR(ISBLANK(CA21), NOT(ISNUMBER(CA21))), 0, CA21)-CF21, 0), 0), 0)), AND(ISTEXT(BX21), BX21="121", AW21=2), MAX(0, IF(CE21-CG21>0, IF(CE21-CG21-IF(OR(ISBLANK(CB21), NOT(ISNUMBER(CB21))), 0, CB21)>0, IF(CE21-CG21-IF(OR(ISBLANK(CB21), NOT(ISNUMBER(CB21))), 0, CB21)-IF(OR(ISBLANK(CC21), NOT(ISNUMBER(CC21))), 0, CC21)>0, CE21-CG21-IF(OR(ISBLANK(CB21), NOT(ISNUMBER(CB21))), 0, CB21)-IF(OR(ISBLANK(CC21), NOT(ISNUMBER(CC21))), 0, CC21)-IF(OR(ISBLANK(CD21), NOT(ISNUMBER(CD21))), 0, CD21), 0), 0), 0)), AND(ISTEXT(BX21), BX21="122", AW21=2), MAX(0, IF(CE21-IF(OR(ISBLANK(CB21), NOT(ISNUMBER(CB21))), 0, CB21)>0, IF(CE21-IF(OR(ISBLANK(CB21), NOT(ISNUMBER(CB21))), 0, CB21)-IF(OR(ISBLANK(CC21), NOT(ISNUMBER(CC21))), 0, CC21)>0, IF(CE21-IF(OR(ISBLANK(CB21), NOT(ISNUMBER(CB21))), 0, CB21)-IF(OR(ISBLANK(CC21), NOT(ISNUMBER(CC21))), 0, CC21)-IF(OR(ISBLANK(CD21), NOT(ISNUMBER(CD21))), 0, CD21)>0, CE21-IF(OR(ISBLANK(CB21), NOT(ISNUMBER(CB21))), 0, CB21)-IF(OR(ISBLANK(CC21), NOT(ISNUMBER(CC21))), 0, CC21)-IF(OR(ISBLANK(CD21), NOT(ISNUMBER(CD21))), 0, CD21)-CG21, 0), 0), 0)), TRUE, "N/A" ), "N/A" ), TRUE, "N/A" ), "Calculation error" ) -> N/A | CI21: =IFERROR( _xlfn.IFS( BW21=2, IFERROR( _xlfn.IFS( OR(BX21="211", BX21="212", BX21="221", BX21="222"), "N/A", AND(ISTEXT(BX21), BX21="111", AW21=1), 0-MIN(0,MAX(CE21-CF21,0))+ 0-MIN(0,MAX(CE21-CF21-0,0))+ 0-MIN(0,MAX(CE21-CF21-0-0,0)), AND(ISTEXT(BX21), BX21="112", AW21=1), 0-MIN(0,MAX(CE21,0))+ 0-MIN(0,MAX(CE21-0,0))+ 0-MIN(0,MAX(CE21-0-0,0)), AND(ISTEXT(BX21), BX21="121", AW21=2), 0-MIN(0,MAX(CE21-CG21,0))+ 0-MIN(0,MAX(CE21-CG21-0,0))+ 0-MIN(0,MAX(CE21-CG21-0-0,0)), AND(ISTEXT(BX21), BX21="122", AW21=2), 0-MIN(0,MAX(CE21,0))+ 0-MIN(0,MAX(CE21-0,0))+ 0-MIN(0,MAX(CE21-0-0,0)), TRUE, "Invalid case" ), "Calculation error" ), BW21=1, IFERROR( _xlfn.IFS( OR(BX21="211", BX21="212", BX21="221", BX21="222"), "N/A", AND(ISTEXT(BX21), BX21="111", AW21=1), IF(ISBLANK(BY21), 0, BY21)-MIN(IF(ISBLANK(BY21), 0, BY21),MAX(CE21-CF21,0))+ IF(ISBLANK(BZ21), 0, BZ21)-MIN(IF(ISBLANK(BZ21), 0, BZ21),MAX(CE21-CF21-IF(ISBLANK(BY21), 0, BY21),0))+ IF(ISBLANK(CA21), 0, CA21)-MIN(IF(ISBLANK(CA21), 0, CA21),MAX(CE21-CF21-IF(ISBLANK(BY21), 0, BY21)-IF(ISBLANK(BZ21), 0, BZ21),0)), AND(ISTEXT(BX21), BX21="112", AW21=1), IF(ISBLANK(BY21), 0, BY21)-MIN(IF(ISBLANK(BY21), 0, BY21),MAX(CE21,0))+ IF(ISBLANK(BZ21), 0, BZ21)-MIN(IF(ISBLANK(BZ21), 0, BZ21),MAX(CE21-IF(ISBLANK(BY21), 0, BY21),0))+ IF(ISBLANK(CA21), 0, CA21)-MIN(IF(ISBLANK(CA21), 0, CA21),MAX(CE21-IF(ISBLANK(BY21), 0, BY21)-IF(ISBLANK(BZ21), 0, BZ21),0)), AND(ISTEXT(BX21), BX21="121", AW21=2), IF(ISBLANK(CB21), 0, CB21)-MIN(IF(ISBLANK(CB21), 0, CB21),MAX(CE21-CG21,0))+ IF(ISBLANK(CC21), 0, CC21)-MIN(IF(ISBLANK(CC21), 0, CC21),MAX(CE21-CG21-IF(ISBLANK(CB21), 0, CB21),0))+ IF(ISBLANK(CD21), 0, CD21)-MIN(IF(ISBLANK(CD21), 0, CD21),MAX(CE21-CG21-IF(ISBLANK(CB21), 0, CB21)-IF(ISBLANK(CC21), 0, CC21),0)), AND(ISTEXT(BX21), BX21="122", AW21=2), IF(ISBLANK(CB21), 0, CB21)-MIN(IF(ISBLANK(CB21), 0, CB21),MAX(CE21,0))+ IF(ISBLANK(CC21), 0, CC21)-MIN(IF(ISBLANK(CC21), 0, CC21),MAX(CE21-IF(ISBLANK(CB21), 0, CB21),0))+ IF(ISBLANK(CD21), 0, CD21)-MIN(IF(ISBLANK(CD21), 0, CD21),MAX(CE21-IF(ISBLANK(CB21), 0, CB21)-IF(ISBLANK(CC21), 0, CC21),0)), TRUE, "Invalid case" ), "Calculation error" ), TRUE, "Invalid BW" ), "Calculation error" ) -> Invalid case | CJ21: 0 | CK21: =IFERROR( _xlfn.IFS( BW21=2, IFERROR( _xlfn.IFS( ISNUMBER(CI21), IF(OR(ISBLANK(CI21), NOT(ISNUMBER(CI21))), 0, CI21), AW21=1, 0 + 0 + 0, AW21=2, 0 + 0 + 0 ), "Calculation error" ), BW21=1, IFERROR( _xlfn.IFS( ISNUMBER(CI21), IF(OR(ISBLANK(CI21), NOT(ISNUMBER(CI21))), 0, CI21), AW21=1, IF(ISBLANK(BY21), 0, BY21) + IF(ISBLANK(BZ21), 0, BZ21) + IF(ISBLANK(CA21), 0, CA21), AW21=2, IF(ISBLANK(CB21), 0, CB21) + IF(ISBLANK(CC21), 0, CC21) + IF(ISBLANK(CD21), 0, CD21) ), "Calculation error" ), TRUE, "Invalid BW" ), "Calculation error" ) -> 0 | CL21: =IFERROR( _xlfn.IFS( CK21>=CJ21, 0, CK21<CJ21, CJ21-CK21 ), "Calculation error") -> 0 | CM21: N/A | CN21: 0 | CO21: within $500,000 | CP21: =_xlfn.IFS(CO21=Pulldown!$A$1,1,CO21=Pulldown!$A$2,2) -> 1 | CQ21: 0 | CR21: =_xlfn.IFS( NOT(OR(CP21=1, CP21=2)), 0%, ISERROR(MATCH(CQ21, Subsidy!$A$2:$A$26, 0)), 0%, CP21=1, VLOOKUP(CQ21, Subsidy!$A$2:$G$26, 6, 0), CP21=2, VLOOKUP(CQ21, Subsidy!$A$2:$G$26, 7, 0) ) -> 0 | CS21: =_xlfn.IFS( NOT(OR(CP21=1, CP21=2)), 0%, ISERROR(MATCH(CQ21, Subsidy!$A$2:$A$26, 0)), 0%, CP21=1, VLOOKUP(CQ21, Subsidy!$A$2:$D$26, 2, 0), CP21=2, VLOOKUP(CQ21, Subsidy!$A$2:$D$26, 4, 0) ) -> 0 | CT21: 0 | CU21: =_xlfn.IFS( NOT(OR(CP21=1, CP21=2)), 0, ISERROR(MATCH(CQ21, Subsidy!$A$2:$A$26, 0)), 0, CP21=2, "N/A", AND(CP21=1, CQ21<=9), VLOOKUP(CQ21, Subsidy!$A$2:$D$26, 3, 0), TRUE, 0 ) -> 0 | CV21: =IF(AND(CP21=1, CQ21<=9, NOT(ISERROR(MATCH(CQ21, Subsidy!$A$2:$A$26, 0)))), IFERROR(CL21-CU21, 0), 0) -> 0 | CW21: 0 | CX21: 0 | CY21: 0 | CZ21: 0 | DA21: 0 | DB21: 0 | DC21: 0
